Workbook

Sheet DOE - FIPStoPayeeCodeConvTable (hidden)
B1: Manually edit this file | F1: FY= | G1: 2021
A2: FIPS | B2: FIPS DESC | C2: PAYEE | D2: PAYEE DESC | E2: Pool Rate
A3: 1 | B3: Accomack Co | C3: 00001 | D3: Accomack County | E3: 0.2332
A4: 3 | B4: Albemarle Co | C4: 00002 | D4: Albemarle County | E4: 0.4474
A5: 5 | B5: Alleghany Co | C5: 00003 | D5: Alleghany County | E5: 0.1924
A6: 7 | B6: Amelia Co | C6: 00004 | D6: Amelia County | E6: 0.3268
A7: 9 | B7: Amherst Co | C7: 00005 | D7: Amherst County | E7: 0.2722
A8: 11 | B8: Appomattox Co | C8: 00006 | D8: Appomattox County | E8: 0.2639
A9: 13 | B9: Arlington Co | C9: 00007 | D9: Arlington County | E9: 0.4602
A10: 15 | B10: Augusta Co | C10: 00008 | D10: Augusta County | E10: 0.3302
A11: 17 | B11: Bath Co | C11: 00009 | D11: Bath County | E11: 0.4278
A12: 19 | B12: Bedford Co | C12: 00010 | D12: Bedford County | E12: 0.31112
A13: 21 | B13: Bland Co | C13: 00011 | D13: Bland County | E13: 0.2109
A14: 23 | B14: Botetourt Co | C14: 00012 | D14: Botetourt County | E14: 0.3602
A15: 25 | B15: Brunswick Co | C15: 00013 | D15: Brunswick County | E15: 0.2439
A16: 27 | B16: Buchanan Co | C16: 00014 | D16: Buchanan County | E16: 0.3156
A17: 29 | B17: Buckingham Co | C17: 00015 | D17: Buckingham County | E17: 0.2023
A18: 31 | B18: Campbell Co | C18: 00016 | D18: Campbell County | E18: 0.3107
A19: 33 | B19: Caroline Co | C19: 00017 | D19: Caroline County | E19: 0.3308
A20: 35 | B20: Carroll Co | C20: 00018 | D20: Carroll County | E20: 0.291
A21: 36 | B21: Charles City Co | C21: 00019 | D21: Charles City | E21: 0.3131
A22: 37 | B22: Charlotte Co | C22: 00020 | D22: Charlotte County | E22: 0.2204
A23: 41 | B23: Chesterfield Co | C23: 00021 | D23: Chesterfield County | E23: 0.3853
A24: 43 | B24: Clarke Co | C24: 00022 | D24: Clarke County | E24: 0.4797
A25: 45 | B25: Craig Co | C25: 00023 | D25: Craig County | E25: 0.2901
A26: 47 | B26: Culpeper Co | C26: 00024 | D26: Culpeper County | E26: 0.3767
A27: 49 | B27: Cumberland Co | C27: 00025 | D27: Cumberland County | E27: 0.304
A28: 51 | B28: Dickenson Co | C28: 00026 | D28: Dickenson County | E28: 0.3042
A29: 53 | B29: Dinwiddie Co | C29: 00027 | D29: Dinwiddie County | E29: 0.3358
A30: 57 | B30: Essex Co | C30: 00028 | D30: Essex County | E30: 0.3853
A31: 59 | B31: Fairfax Co | C31: 00029 | D31: Fairfax County | E31: 0.4611
A32: 61 | B32: Fauquier Co | C32: 00030 | D32: Fauquier County | E32: 0.4584
A33: 63 | B33: Floyd Co | C33: 00031 | D33: Floyd County | E33: 0.2324
A34: 65 | B34: Fluvanna Co | C34: 00032 | D34: Fluvanna County | E34: 0.3811
A35: 67 | B35: Franklin Co | C35: 00033 | D35: Franklin County | E35: 0.283
A36: 69 | B36: Frederick Co | C36: 00034 | D36: Frederick County | E36: 0.4348
A37: 71 | B37: Giles Co | C37: 00035 | D37: Giles County | E37: 0.2898
A38: 73 | B38: Gloucester Co | C38: 00036 | D38: Gloucester County | E38: 0.3687
A39: 75 | B39: Goochland Co | C39: 00037 | D39: Goochland County | E39: 0.4871
A40: 77 | B40: Grayson Co | C40: 00038 | D40: Grayson County | E40: 0.2109
A41: 79 | B41: Greene Co | C41: 00039 | D41: Greene County | E41: 0.3471
A42: 81 | B42: Greensville Co | C42: 00040 | D42: Greensville County | E42: 0.2266
A43: 83 | B43: Halifax Co | C43: 00041 | D43: Halifax County | E43: 0.2335
A44: 85 | B44: Hanover Co | C44: 00042 | D44: Hanover County | E44: 0.4444
A45: 87 | B45: Henrico Co | C45: 00043 | D45: Henrico County | E45: 0.3755
A46: 89 | B46: Henry Co | C46: 00044 | D46: Henry County | E46: 0.2786
A47: 91 | B47: Highland Co | C47: 00045 | D47: Highland County | E47: 0.3822
A48: 93 | B48: Isle Of Wight Co | C48: 00046 | D48: Isle of Wight | E48: 0.3613
A49: 95 | B49: James City Co | C49: 00047 | D49: James City County | E49: 0.4483
A50: 97 | B50: King And Queen Co | C50: 00049 | D50: King and Queen County | E50: 0.3144
A51: 99 | B51: King George Co | C51: 00048 | D51: King George County | E51: 0.3627
A52: 101 | B52: King William Co | C52: 00050 | D52: King William County | E52: 0.3853
A53: 103 | B53: Lancaster Co | C53: 00051 | D53: Lancaster County | E53: 0.4391
A54: 105 | B54: Lee Co | C54: 00052 | D54: Lee County | E54: 0.2245
A55: 107 | B55: Loudoun Co | C55: 00053 | D55: Loudoun County | E55: 0.4764
A56: 109 | B56: Louisa Co | C56: 00054 | D56: Louisa County | E56: 0.4401
A57: 111 | B57: Lunenburg Co | C57: 00055 | D57: Lunenburg County | E57: 0.1698
A58: 113 | B58: Madison Co | C58: 00056 | D58: Madison County | E58: 0.3355
A59: 115 | B59: Mathews Co | C59: 00057 | D59: Mathews County | E59: 0.4271
A60: 117 | B60: Mecklenburg Co | C60: 00058 | D60: Mecklenburg County | E60: 0.2286
A61: 119 | B61: Middlesex Co | C61: 00059 | D61: Middlesex County | E61: 0.4333
A62: 121 | B62: Montgomery Co | C62: 00060 | D62: Montgomery County | E62: 0.2834
A63: 125 | B63: Nelson Co | C63: 00062 | D63: Nelson County | E63: 0.3132
A64: 127 | B64: New Kent Co | C64: 00063 | D64: New Kent County | E64: 0.4329
A65: 131 | B65: Northampton Co | C65: 00001 | D65: Accomack County | E65: 0.1971
A66: 133 | B66: Northumberland Co | C66: 00066 | D66: Northumberland County | E66: 0.3304
A67: 135 | B67: Nottoway Co | C67: 00067 | D67: Nottoway County | E67: 0.2686
A68: 137 | B68: Orange Co | C68: 00068 | D68: Orange County | E68: 0.4083
A69: 139 | B69: Page Co | C69: 00069 | D69: Page County | E69: 0.2865
A70: 141 | B70: Patrick Co | C70: 00070 | D70: Patrick County | E70: 0.2539
A71: 143 | B71: Pittsylvania Co | C71: 00071 | D71: Pittsylvania County | E71: 0.2355
A72: 145 | B72: Powhatan Co | C72: 00072 | D72: Powhatan County | E72: 0.4342
A73: 147 | B73: Prince Edward Co | C73: 00073 | D73: Prince Edward County | E73: 0.2232
A74: 149 | B74: Prince George Co | C74: 00074 | D74: Prince George County | E74: 0.3716
A75: 153 | B75: Prince William Co | C75: 00075 | D75: Prince William County | E75: 0.3414
A76: 155 | B76: Pulaski Co | C76: 00077 | D76: Pulaski County | E76: 0.2923
A77: 157 | B77: Rappahannock Co | C77: 00078 | D77: Rappahannock County | E77: 0.4199
A78: 159 | B78: Richmond Co | C78: 00079 | D78: Richmond County | E78: 0.3227
A79: 161 | B79: Roanoke Co | C79: 00080 | D79: Roanoke County | E79: 0.4397
A80: 163 | B80: Rockbridge Co | C80: 00081 | D80: Rockbridge County | E80: 0.2336
A81: 165 | B81: Rockingham Co | C81: 00082 | D81: Rockingham County | E81: 0.3445
A82: 167 | B82: Russell Co | C82: 00083 | D82: Russell County | E82: 0.1894
A83: 169 | B83: Scott Co | C83: 00084 | D83: Scott County | E83: 0.3154
A84: 171 | B84: Shenandoah Co | C84: 00085 | D84: Shenandoah County | E84: 0.3517
A85: 173 | B85: Smyth Co | C85: 00086 | D85: Smyth County | E85: 0.2337
A86: 175 | B86: Southampton Co | C86: 00087 | D86: Southampton County | E86: 0.323
A87: 177 | B87: Spotsylvania Co | C87: 00088 | D87: Spotsylvania County | E87: 0.4588
A88: 179 | B88: Stafford Co | C88: 00089 | D88: Stafford County | E88: 0.4439
A89: 181 | B89: Surry Co | C89: 00090 | D89: Surry County | E89: 0.3979
A90: 183 | B90: Sussex Co | C90: 00091 | D90: Sussex County | E90: 0.2387
A91: 185 | B91: Tazewell Co | C91: 00092 | D91: Tazewell County | E91: 0.2455
A92: 187 | B92: Warren Co | C92: 00093 | D92: Warren County | E92: 0.3853
A93: 191 | B93: Washington Co | C93: 00094 | D93: Washington County | E93: 0.276
A94: 193 | B94: Westmoreland Co | C94: 00095 | D94: Westmoreland County | E94: 0.3025
A95: 195 | B95: Wise Co | C95: 00096 | D95: Wise County | E95: 0.2755
A96: 197 | B96: Wythe Co | C96: 00097 | D96: Wythe County | E96: 0.2708 | L96: Jul - Sept | M96: Oct - June
A97: 199 | B97: York Co | C97: 00098 | D97: York County | E97: 0.3888 | J97: (Tab Name with) OR = Federal Match rate | L97: 0.88
A98: 510 | B98: Alexandria City | C98: 00101 | D98: Alexandria City | E98: 0.5309 | J98: (Tab Name with) NR = Federal Match rate | M98: 0.765
A99: 520 | B99: Bristol City | C99: 00094 | D99: Washington County | E99: 0.2547
A100: 530 | B100: Buena Vista City | C100: 00103 | D100: Buena Vista City | E100: 0.2329
A101: 540 | B101: Charlottesville City | C101: 00104 | D101: Charlottesville City | E101: 0.3068
A102: 550 | B102: Chesapeake City | C102: 00136 | D102: Chesapeake City | E102: 0.3715
A103: 570 | B103: Colonial Heights City | C103: 00021 | D103: Chesterfield County | E103: 0.4027
A104: 580 | B104: Covington City | C104: 00107 | D104: Covington City | E104: 0.2496
A105: 590 | B105: Danville City | C105: 00108 | D105: Danville City | E105: 0.2223
A106: 620 | B106: Franklin City | C106: 00135 | D106: Franklin City | E106: 0.371
A107: 630 | B107: Fredericksburg City | C107: 00110 | D107: Fredericksburg City | E107: 0.3441
A108: 640 | B108: Galax City | C108: 00111 | D108: Galax City | E108: 0.3146
A109: 650 | B109: Hampton City | C109: 00112 | D109: Hampton City | E109: 0.3223
A110: 660 | B110: Harrisonburg City | C110: 00082 | D110: Rockingham County | E110: 0.3808
A111: 670 | B111: Hopewell City | C111: 00114 | D111: Hopewell City | E111: 0.2667
A112: 678 | B112: Lexington City | C112: 00137 | D112: Lexington City | E112: 0.3302
A113: 680 | B113: Lynchburg City | C113: 00115 | D113: Lynchburg City | E113: 0.2736
A114: 683 | B114: Manassas City | C114: 00143 | D114: Manassas City | E114: 0.4168
A115: 685 | B115: Manassas Park City | C115: 00144 | D115: Manassas Park City | E115: 0.4273
A116: 690 | B116: Martinsville City | C116: 00116 | D116: Martinsville City | E116: 0.3321
A117: 700 | B117: Newport News City | C117: 00117 | D117: Newport News City | E117: 0.2773
A118: 710 | B118: Norfolk City | C118: 00118 | D118: Norfolk City | E118: 0.2455
A119: 720 | B119: Norton City | C119: 00119 | D119: Norton City | E119: 0.3254
A120: 730 | B120: Petersburg City | C120: 00120 | D120: Petersburg City | E120: 0.3535
A121: 735 | B121: Poquoson City | C121: 00142 | D121: Poquoson City | E121: 0.2787
A122: 740 | B122: Portsmouth City | C122: 00121 | D122: Portsmouth City | E122: 0.2605
A123: 750 | B123: Radford City | C123: 00122 | D123: Radford City | E123: 0.2035
A124: 760 | B124: Richmond City | C124: 00123 | D124: Richmond City | E124: 0.3691
A125: 770 | B125: Roanoke City | C125: 00124 | D125: Roanoke City | E125: 0.3072
A126: 775 | B126: Salem City | C126: 00139 | D126: Salem City | E126: 0.3513
A127: 790 | B127: Staunton City | C127: 00126 | D127: Staunton City | E127: 0.2699
A128: 800 | B128: Suffolk City | C128: 00127 | D128: Suffolk City | E128: 0.2432
A129: 810 | B129: Virginia Beach City | C129: 00128 | D129: Virginia Beach City | E129: 0.3569
A130: 820 | B130: Waynesboro City | C130: 00130 | D130: Waynesboro City | E130: 0.3843
A131: 830 | B131: Williamsburg City | C131: 00850 | D131: Williamsburg City | E131: 0.4553
A132: 840 | B132: Winchester City | C132: 00132 | D132: Winchester City | E132: 0.4587

Sheet Extended Covid adj Oct 20 (hidden)
A1: FY | B1: ='DOE - FIPStoPayeeCodeConvTable'!G1 -> 2021 | C1: MEDICAID ADJUSTMENTS--EXTENDED PAYMENTS TO PROVIDERS | O1: ="Extended to be paided in this SFY = " & B1 -> Extended to be paided in this SFY = 2021 | T1: xx | U1: 0.6934 | V1: 0.3066 | W1: (POOL) | X1: 1.25
U2: FEDERAL | V2: STATE/ | W2: (RATE) | X2: Factor
A3: FIPS | S3: Grand | U3: MEDICAID | V3: LOCAL | W3: LOCAL | Y3: LOCAL | Z3: STATE
A4: CODE | B4: LOCALITY | C4: =TEXT("7/1/" & $B$1-1,"mmm-yyyy") -> Jul-2020 | D4: =TEXT("8/1/" & $B$1-1,"mmm-yyyy") -> Aug-2020 | E4: =TEXT("9/1/" & $B$1-1,"mmm-yyyy") -> Sep-2020 | F4: =TEXT("10/1/" & $B$1-1,"mmm-yyyy") -> Oct-2020 | G4: =TEXT("11/1/" & $B$1-1,"mmm-yyyy") -> Nov-2020 | H4: =TEXT("12/1/" & $B$1-1,"mmm-yyyy") -> Dec-2020 | I4: =TEXT("1/1/" & $B$1,"mmm-yyyy") -> Jan-2021 | J4: =TEXT("2/1/" & $B$1,"mmm-yyyy") -> Feb-2021 | K4: =TEXT("3/1/" & $B$1,"mmm-yyyy") -> Mar-2021 | L4: =TEXT("4/1/" & $B$1,"mmm-yyyy") -> Apr-2021 | M4: =TEXT("5/1/" & $B$1,"mmm-yyyy") -> May-2021 | N4: =TEXT("6/1/" & $B$1,"mmm-yyyy") -> Jun-2021 | O4: =TEXT("7/1/" & $B$1,"mmm-yyyy") -> Jul-2021 | P4: =TEXT("8/1/" & $B$1,"mmm-yyyy") -> Aug-2021 | Q4: =TEXT("9/1/" & $B$1,"mmm-yyyy") -> Sep-2021 | R4: =TEXT("10/1/" & $B$1,"mmm-yyyy") -> Oct-2021 | S4: Total | U4: RATE/Share | V4: SHARE | W4: MATCH Rate | Y4: MATCH | Z4: SHARE
A5: Totals | C5: =SUM(C6:C1200) -> 0 | D5: 0 | E5: =SUM(E6:E1200) -> 0 | F5: =SUM(F6:F1200) -> 153956.36 | G5: =SUM(G6:G1200) -> 166226.48 | H5: =SUM(H6:H1200) -> 130125.54 | I5: 152687.44 | J5: 109579.5 | K5: 156378.66 | L5: 137346.64 | M5: 171682.2 | N5: =SUM(N6:N1200) -> 145988.5 | O5: 0 | P5: 0 | Q5: 0 | R5: 0 | S5: =SUM(C5:R5) -> 1323971.32 | T5: = | U5: =SUM(U6:U399) -> 918041.73 | V5: =SUM(V6:V399) -> 405929.59 | W5: = | Y5: =SUM(Y6:Y399) -> 188452.11 | Z5: =SUM(Z6:Z399) -> 217477.48
A6: 1 | B6: =LOOKUP(A6,'DOE - FIPStoPayeeCodeConvTable'!$A$3:$A$213,'DOE - FIPStoPayeeCodeConvTable'!$B$3:$B$213) -> Accomack Co | F6: 6689.5 | G6: 1574 | H6: 0 | I6: 0 | J6: 0 | K6: 0 | L6: 0 | M6: 0 | N6: 0 | S6: =SUM(C6:R6) -> 8263.5 | U6: =ROUND($U$1*S6,2) -> 5729.91 | V6: =SUM(S6)-SUM(U6) -> 2533.59 | W6: =LOOKUP(A6,'DOE - FIPStoPayeeCodeConvTable'!$A$3:$A$213,'DOE - FIPStoPayeeCodeConvTable'!$E$3:$E$213) -> 0.2332 | X6: =$X$1*W6 -> 0.2915 | Y6: =ROUND(X6*V6,2) -> 738.54 | Z6: =SUM(V6)-SUM(Y6) -> 1795.05
A7: 3 | B7: =LOOKUP(A7,'DOE - FIPStoPayeeCodeConvTable'!$A$3:$A$213,'DOE - FIPStoPayeeCodeConvTable'!$B$3:$B$213) -> Albemarle Co | F7: 9837.5 | G7: 8657 | H7: 0 | I7: 0 | J7: 0 | K7: 0 | L7: 0 | M7: 0 | N7: 0 | S7: =SUM(C7:R7) -> 18494.5 | U7: =ROUND($U$1*S7,2) -> 12824.09 | V7: 5670.41 | W7: =LOOKUP(A7,'DOE - FIPStoPayeeCodeConvTable'!$A$3:$A$213,'DOE - FIPStoPayeeCodeConvTable'!$E$3:$E$213) -> 0.4474 | X7: =$X$1*W7 -> 0.55925 | Y7: =ROUND(X7*V7,2) -> 3171.18 | Z7: =SUM(V7)-SUM(Y7) -> 2499.23
A8: 5 | B8: =LOOKUP(A8,'DOE - FIPStoPayeeCodeConvTable'!$A$3:$A$213,'DOE - FIPStoPayeeCodeConvTable'!$B$3:$B$213) -> Alleghany Co | F8: 0 | G8: 0 | H8: 0 | I8: 0 | J8: 0 | K8: 0 | L8: 0 | M8: 0 | N8: 0 | S8: 0 | U8: 0 | V8: 0 | W8: =LOOKUP(A8,'DOE - FIPStoPayeeCodeConvTable'!$A$3:$A$213,'DOE - FIPStoPayeeCodeConvTable'!$E$3:$E$213) -> 0.1924 | X8: 0.2405 | Y8: 0 | Z8: 0
A9: 7 | B9: =LOOKUP(A9,'DOE - FIPStoPayeeCodeConvTable'!$A$3:$A$213,'DOE - FIPStoPayeeCodeConvTable'!$B$3:$B$213) -> Amelia Co | F9: 0 | G9: 0 | H9: 0 | I9: 0 | J9: 0 | K9: 0 | L9: 0 | M9: 0 | N9: 0 | S9: 0 | U9: 0 | V9: 0 | W9: =LOOKUP(A9,'DOE - FIPStoPayeeCodeConvTable'!$A$3:$A$213,'DOE - FIPStoPayeeCodeConvTable'!$E$3:$E$213) -> 0.3268 | X9: 0.4085 | Y9: 0 | Z9: 0
A10: 9 | B10: =LOOKUP(A10,'DOE - FIPStoPayeeCodeConvTable'!$A$3:$A$213,'DOE - FIPStoPayeeCodeConvTable'!$B$3:$B$213) -> Amherst Co | F10: 0 | G10: 0 | H10: 0 | I10: 0 | J10: 0 | K10: 0 | L10: 0 | M10: 0 | N10: 0 | S10: 0 | U10: 0 | V10: 0 | W10: =LOOKUP(A10,'DOE - FIPStoPayeeCodeConvTable'!$A$3:$A$213,'DOE - FIPStoPayeeCodeConvTable'!$E$3:$E$213) -> 0.2722 | X10: 0.34025 | Y10: 0 | Z10: 0
A11: 11 | B11: =LOOKUP(A11,'DOE - FIPStoPayeeCodeConvTable'!$A$3:$A$213,'DOE - FIPStoPayeeCodeConvTable'!$B$3:$B$213) -> Appomattox Co | F11: 0 | G11: 0 | H11: 0 | I11: 0 | J11: 0 | K11: 0 | L11: 0 | M11: 0 | N11: 0 | S11: 0 | U11: 0 | V11: 0 | W11: =LOOKUP(A11,'DOE - FIPStoPayeeCodeConvTable'!$A$3:$A$213,'DOE - FIPStoPayeeCodeConvTable'!$E$3:$E$213) -> 0.2639 | X11: 0.329875 | Y11: 0 | Z11: 0
A12: 13 | B12: =LOOKUP(A12,'DOE - FIPStoPayeeCodeConvTable'!$A$3:$A$213,'DOE - FIPStoPayeeCodeConvTable'!$B$3:$B$213) -> Arlington Co | F12: 0 | G12: 0 | H12: 0 | I12: 0 | J12: 0 | K12: 0 | L12: 0 | M12: 0 | N12: 0 | S12: 0 | U12: 0 | V12: 0 | W12: =LOOKUP(A12,'DOE - FIPStoPayeeCodeConvTable'!$A$3:$A$213,'DOE - FIPStoPayeeCodeConvTable'!$E$3:$E$213) -> 0.4602 | X12: 0.57525 | Y12: 0 | Z12: 0
A13: 15 | B13: =LOOKUP(A13,'DOE - FIPStoPayeeCodeConvTable'!$A$3:$A$213,'DOE - FIPStoPayeeCodeConvTable'!$B$3:$B$213) -> Augusta Co | F13: 0 | G13: 0 | H13: 0 | I13: 0 | J13: 0 | K13: 0 | L13: 0 | M13: 0 | N13: 0 | S13: 0 | U13: 0 | V13: 0 | W13: =LOOKUP(A13,'DOE - FIPStoPayeeCodeConvTable'!$A$3:$A$213,'DOE - FIPStoPayeeCodeConvTable'!$E$3:$E$213) -> 0.3302 | X13: 0.41275 | Y13: 0 | Z13: 0
A14: 17 | B14: =LOOKUP(A14,'DOE - FIPStoPayeeCodeConvTable'!$A$3:$A$213,'DOE - FIPStoPayeeCodeConvTable'!$B$3:$B$213) -> Bath Co | F14: 0 | G14: 0 | H14: 0 | I14: 0 | J14: 0 | K14: 0 | L14: 0 | M14: 0 | N14: 0 | S14: 0 | U14: 0 | V14: 0 | W14: =LOOKUP(A14,'DOE - FIPStoPayeeCodeConvTable'!$A$3:$A$213,'DOE - FIPStoPayeeCodeConvTable'!$E$3:$E$213) -> 0.4278 | X14: 0.53475 | Y14: 0 | Z14: 0
A15: 19 | B15: =LOOKUP(A15,'DOE - FIPStoPayeeCodeConvTable'!$A$3:$A$213,'DOE - FIPStoPayeeCodeConvTable'!$B$3:$B$213) -> Bedford Co | F15: 0 | G15: 0 | H15: 0 | I15: 0 | J15: 0 | K15: 0 | L15: 0 | M15: 0 | N15: 0 | S15: 0 | U15: 0 | V15: 0 | W15: =LOOKUP(A15,'DOE - FIPStoPayeeCodeConvTable'!$A$3:$A$213,'DOE - FIPStoPayeeCodeConvTable'!$E$3:$E$213) -> 0.31112 | X15: 0.3889 | Y15: 0 | Z15: 0
A16: 21 | B16: =LOOKUP(A16,'DOE - FIPStoPayeeCodeConvTable'!$A$3:$A$213,'DOE - FIPStoPayeeCodeConvTable'!$B$3:$B$213) -> Bland Co | F16: 0 | G16: 0 | H16: 0 | I16: 0 | J16: 0 | K16: 0 | L16: 0 | M16: 0 | N16: 0 | S16: 0 | U16: 0 | V16: 0 | W16: =LOOKUP(A16,'DOE - FIPStoPayeeCodeConvTable'!$A$3:$A$213,'DOE - FIPStoPayeeCodeConvTable'!$E$3:$E$213) -> 0.2109 | X16: 0.263625 | Y16: 0 | Z16: 0
A17: 23 | B17: =LOOKUP(A17,'DOE - FIPStoPayeeCodeConvTable'!$A$3:$A$213,'DOE - FIPStoPayeeCodeConvTable'!$B$3:$B$213) -> Botetourt Co | F17: 0 | G17: 0 | H17: 0 | I17: 0 | J17: 0 | K17: 0 | L17: 0 | M17: 0 | N17: 0 | S17: 0 | U17: 0 | V17: 0 | W17: =LOOKUP(A17,'DOE - FIPStoPayeeCodeConvTable'!$A$3:$A$213,'DOE - FIPStoPayeeCodeConvTable'!$E$3:$E$213) -> 0.3602 | X17: 0.45025 | Y17: 0 | Z17: 0
A18: 25 | B18: =LOOKUP(A18,'DOE - FIPStoPayeeCodeConvTable'!$A$3:$A$213,'DOE - FIPStoPayeeCodeConvTable'!$B$3:$B$213) -> Brunswick Co | F18: 0 | G18: 0 | H18: 0 | I18: 0 | J18: 0 | K18: 0 | L18: 0 | M18: 0 | N18: 0 | S18: 0 | U18: 0 | V18: 0 | W18: =LOOKUP(A18,'DOE - FIPStoPayeeCodeConvTable'!$A$3:$A$213,'DOE - FIPStoPayeeCodeConvTable'!$E$3:$E$213) -> 0.2439 | X18: 0.304875 | Y18: 0 | Z18: 0
A19: 27 | B19: =LOOKUP(A19,'DOE - FIPStoPayeeCodeConvTable'!$A$3:$A$213,'DOE - FIPStoPayeeCodeConvTable'!$B$3:$B$213) -> Buchanan Co | F19: 8556 | G19: 0 | H19: 0 | I19: 0 | J19: 0 | K19: 0 | L19: 0 | M19: 0 | N19: 0 | S19: 8556 | U19: 5932.73 | V19: 2623.27 | W19: =LOOKUP(A19,'DOE - FIPStoPayeeCodeConvTable'!$A$3:$A$213,'DOE - FIPStoPayeeCodeConvTable'!$E$3:$E$213) -> 0.3156 | X19: 0.3945 | Y19: 1034.88 | Z19: 1588.39
A20: 29 | B20: =LOOKUP(A20,'DOE - FIPStoPayeeCodeConvTable'!$A$3:$A$213,'DOE - FIPStoPayeeCodeConvTable'!$B$3:$B$213) -> Buckingham Co | F20: 9444 | G20: 0 | H20: 0 | I20: 0 | J20: 0 | K20: 0 | L20: 0 | M20: 0 | N20: 0 | S20: 9444 | U20: 6548.47 | V20: 2895.53 | W20: =LOOKUP(A20,'DOE - FIPStoPayeeCodeConvTable'!$A$3:$A$213,'DOE - FIPStoPayeeCodeConvTable'!$E$3:$E$213) -> 0.2023 | X20: 0.252875 | Y20: 732.21 | Z20: 2163.32
A21: 31 | B21: =LOOKUP(A21,'DOE - FIPStoPayeeCodeConvTable'!$A$3:$A$213,'DOE - FIPStoPayeeCodeConvTable'!$B$3:$B$213) -> Campbell Co | F21: 0 | G21: 0 | H21: 0 | I21: 0 | J21: 0 | K21: 0 | L21: 0 | M21: 0 | N21: 0 | S21: 0 | U21: 0 | V21: 0 | W21: =LOOKUP(A21,'DOE - FIPStoPayeeCodeConvTable'!$A$3:$A$213,'DOE - FIPStoPayeeCodeConvTable'!$E$3:$E$213) -> 0.3107 | X21: 0.388375 | Y21: 0 | Z21: 0
A22: 33 | B22: =LOOKUP(A22,'DOE - FIPStoPayeeCodeConvTable'!$A$3:$A$213,'DOE - FIPStoPayeeCodeConvTable'!$B$3:$B$213) -> Caroline Co | F22: 0 | G22: 0 | H22: 0 | I22: 0 | J22: 0 | K22: 0 | L22: 0 | M22: 0 | N22: 0 | S22: 0 | U22: 0 | V22: 0 | W22: =LOOKUP(A22,'DOE - FIPStoPayeeCodeConvTable'!$A$3:$A$213,'DOE - FIPStoPayeeCodeConvTable'!$E$3:$E$213) -> 0.3308 | X22: 0.4135 | Y22: 0 | Z22: 0
A23: 35 | B23: =LOOKUP(A23,'DOE - FIPStoPayeeCodeConvTable'!$A$3:$A$213,'DOE - FIPStoPayeeCodeConvTable'!$B$3:$B$213) -> Carroll Co | F23: 0 | G23: 0 | H23: 0 | I23: 0 | J23: 0 | K23: 10624.5 | L23: 11018 | M23: 11018 | N23: 13772.5 | S23: 46433 | U23: 32196.64 | V23: 14236.36 | W23: =LOOKUP(A23,'DOE - FIPStoPayeeCodeConvTable'!$A$3:$A$213,'DOE - FIPStoPayeeCodeConvTable'!$E$3:$E$213) -> 0.291 | X23: 0.36375 | Y23: 5178.48 | Z23: 9057.88
A24: 36 | B24: =LOOKUP(A24,'DOE - FIPStoPayeeCodeConvTable'!$A$3:$A$213,'DOE - FIPStoPayeeCodeConvTable'!$B$3:$B$213) -> Charles City Co | F24: 0 | G24: 0 | H24: 0 | I24: 0 | J24: 0 | K24: 0 | L24: 0 | M24: 0 | N24: 0 | S24: 0 | U24: 0 | V24: 0 | W24: =LOOKUP(A24,'DOE - FIPStoPayeeCodeConvTable'!$A$3:$A$213,'DOE - FIPStoPayeeCodeConvTable'!$E$3:$E$213) -> 0.3131 | X24: 0.391375 | Y24: 0 | Z24: 0
A25: 37 | B25: =LOOKUP(A25,'DOE - FIPStoPayeeCodeConvTable'!$A$3:$A$213,'DOE - FIPStoPayeeCodeConvTable'!$B$3:$B$213) -> Charlotte Co | F25: 0 | G25: 0 | H25: 0 | I25: 0 | J25: 0 | K25: 0 | L25: 0 | M25: 0 | N25: 0 | S25: 0 | U25: 0 | V25: 0 | W25: =LOOKUP(A25,'DOE - FIPStoPayeeCodeConvTable'!$A$3:$A$213,'DOE - FIPStoPayeeCodeConvTable'!$E$3:$E$213) -> 0.2204 | X25: 0.2755 | Y25: 0 | Z25: 0
A26: 41 | B26: =LOOKUP(A26,'DOE - FIPStoPayeeCodeConvTable'!$A$3:$A$213,'DOE - FIPStoPayeeCodeConvTable'!$B$3:$B$213) -> Chesterfield Co | F26: 12198.5 | G26: 0 | H26: 3947.94 | I26: 15157.32 | J26: 3935 | K26: 27310.66 | L26: 9065.64 | M26: 28390.1 | N26: 12198.5 | S26: 112203.66 | U26: 77802.02 | V26: 34401.64 | W26: =LOOKUP(A26,'DOE - FIPStoPayeeCodeConvTable'!$A$3:$A$213,'DOE - FIPStoPayeeCodeConvTable'!$E$3:$E$213) -> 0.3853 | X26: 0.481625 | Y26: 16568.69 | Z26: 17832.95
A27: 43 | B27: =LOOKUP(A27,'DOE - FIPStoPayeeCodeConvTable'!$A$3:$A$213,'DOE - FIPStoPayeeCodeConvTable'!$B$3:$B$213) -> Clarke Co | F27: 0 | G27: 0 | H27: 0 | I27: 0 | J27: 0 | K27: 0 | L27: 0 | M27: 0 | N27: 0 | S27: 0 | U27: 0 | V27: 0 | W27: =LOOKUP(A27,'DOE - FIPStoPayeeCodeConvTable'!$A$3:$A$213,'DOE - FIPStoPayeeCodeConvTable'!$E$3:$E$213) -> 0.4797 | X27: 0.599625 | Y27: 0 | Z27: 0
A28: 45 | B28: =LOOKUP(A28,'DOE - FIPStoPayeeCodeConvTable'!$A$3:$A$213,'DOE - FIPStoPayeeCodeConvTable'!$B$3:$B$213) -> Craig Co | F28: 0 | G28: 0 | H28: 0 | I28: 0 | J28: 0 | K28: 0 | L28: 0 | M28: 0 | N28: 0 | S28: 0 | U28: 0 | V28: 0 | W28: =LOOKUP(A28,'DOE - FIPStoPayeeCodeConvTable'!$A$3:$A$213,'DOE - FIPStoPayeeCodeConvTable'!$E$3:$E$213) -> 0.2901 | X28: 0.362625 | Y28: 0 | Z28: 0
A29: 47 | B29: =LOOKUP(A29,'DOE - FIPStoPayeeCodeConvTable'!$A$3:$A$213,'DOE - FIPStoPayeeCodeConvTable'!$B$3:$B$213) -> Culpeper Co | F29: 787 | G29: 0 | H29: 0 | I29: 0 | J29: 12198.5 | K29: 9050.5 | L29: 36989 | M29: 4328.5 | N29: 0 | S29: 63353.5 | U29: 43929.32 | V29: 19424.18 | W29: =LOOKUP(A29,'DOE - FIPStoPayeeCodeConvTable'!$A$3:$A$213,'DOE - FIPStoPayeeCodeConvTable'!$E$3:$E$213) -> 0.3767 | X29: 0.470875 | Y29: 9146.36 | Z29: 10277.82
A30: 49 | B30: =LOOKUP(A30,'DOE - FIPStoPayeeCodeConvTable'!$A$3:$A$213,'DOE - FIPStoPayeeCodeConvTable'!$B$3:$B$213) -> Cumberland Co | F30: 0 | G30: 0 | H30: 0 | I30: 0 | J30: 0 | K30: 0 | L30: 0 | M30: 3935 | N30: 0 | S30: 3935 | U30: 2728.53 | V30: 1206.47 | W30: =LOOKUP(A30,'DOE - FIPStoPayeeCodeConvTable'!$A$3:$A$213,'DOE - FIPStoPayeeCodeConvTable'!$E$3:$E$213) -> 0.304 | X30: 0.38 | Y30: 458.46 | Z30: 748.01
A31: 51 | B31: =LOOKUP(A31,'DOE - FIPStoPayeeCodeConvTable'!$A$3:$A$213,'DOE - FIPStoPayeeCodeConvTable'!$B$3:$B$213) -> Dickenson Co | F31: 0 | G31: 0 | H31: 0 | I31: 0 | J31: 0 | K31: 0 | L31: 0 | M31: 0 | N31: 0 | S31: 0 | U31: 0 | V31: 0 | W31: =LOOKUP(A31,'DOE - FIPStoPayeeCodeConvTable'!$A$3:$A$213,'DOE - FIPStoPayeeCodeConvTable'!$E$3:$E$213) -> 0.3042 | X31: 0.38025 | Y31: 0 | Z31: 0
A32: 53 | B32: =LOOKUP(A32,'DOE - FIPStoPayeeCodeConvTable'!$A$3:$A$213,'DOE - FIPStoPayeeCodeConvTable'!$B$3:$B$213) -> Dinwiddie Co | F32: 0 | G32: 0 | H32: 0 | I32: 0 | J32: 0 | K32: 0 | L32: 0 | M32: 0 | N32: 0 | S32: 0 | U32: 0 | V32: 0 | W32: =LOOKUP(A32,'DOE - FIPStoPayeeCodeConvTable'!$A$3:$A$213,'DOE - FIPStoPayeeCodeConvTable'!$E$3:$E$213) -> 0.3358 | X32: 0.41975 | Y32: 0 | Z32: 0
A33: 57 | B33: =LOOKUP(A33,'DOE - FIPStoPayeeCodeConvTable'!$A$3:$A$213,'DOE - FIPStoPayeeCodeConvTable'!$B$3:$B$213) -> Essex Co | F33: 0 | G33: 0 | H33: 0 | I33: 0 | J33: 0 | K33: 0 | L33: 0 | M33: 3148 | N33: 0 | S33: 3148 | U33: 2182.82 | V33: 965.18 | W33: =LOOKUP(A33,'DOE - FIPStoPayeeCodeConvTable'!$A$3:$A$213,'DOE - FIPStoPayeeCodeConvTable'!$E$3:$E$213) -> 0.3853 | X33: 0.481625 | Y33: 464.85 | Z33: 500.33
A34: 59 | B34: =LOOKUP(A34,'DOE - FIPStoPayeeCodeConvTable'!$A$3:$A$213,'DOE - FIPStoPayeeCodeConvTable'!$B$3:$B$213) -> Fairfax Co | F34: 0 | G34: 0 | H34: 0 | I34: 0 | J34: 0 | K34: 5902.5 | L34: 11018 | M34: 0 | N34: 0 | S34: 16920.5 | U34: 11732.67 | V34: 5187.83 | W34: =LOOKUP(A34,'DOE - FIPStoPayeeCodeConvTable'!$A$3:$A$213,'DOE - FIPStoPayeeCodeConvTable'!$E$3:$E$213) -> 0.4611 | X34: 0.576375 | Y34: 2990.14 | Z34: 2197.69
A35: 61 | B35: =LOOKUP(A35,'DOE - FIPStoPayeeCodeConvTable'!$A$3:$A$213,'DOE - FIPStoPayeeCodeConvTable'!$B$3:$B$213) -> Fauquier Co | F35: 15740 | G35: 12198.5 | H35: 11805 | I35: 12198.5 | J35: 12198.5 | K35: 11018 | L35: 12198.5 | M35: 11805 | N35: 2361 | S35: 101523 | U35: 70396.05 | V35: 31126.95 | W35: =LOOKUP(A35,'DOE - FIPStoPayeeCodeConvTable'!$A$3:$A$213,'DOE - FIPStoPayeeCodeConvTable'!$E$3:$E$213) -> 0.4584 | X35: 0.573 | Y35: 17835.74 | Z35: 13291.21
A36: 63 | B36: =LOOKUP(A36,'DOE - FIPStoPayeeCodeConvTable'!$A$3:$A$213,'DOE - FIPStoPayeeCodeConvTable'!$B$3:$B$213) -> Floyd Co | F36: 0 | G36: 0 | H36: 0 | I36: 0 | J36: 0 | K36: 0 | L36: 0 | M36: 0 | N36: 0 | S36: 0 | U36: 0 | V36: 0 | W36: =LOOKUP(A36,'DOE - FIPStoPayeeCodeConvTable'!$A$3:$A$213,'DOE - FIPStoPayeeCodeConvTable'!$E$3:$E$213) -> 0.2324 | X36: 0.2905 | Y36: 0 | Z36: 0
A37: 65 | B37: =LOOKUP(A37,'DOE - FIPStoPayeeCodeConvTable'!$A$3:$A$213,'DOE - FIPStoPayeeCodeConvTable'!$B$3:$B$213) -> Fluvanna Co | F37: 0 | G37: 0 | H37: 0 | I37: 0 | J37: 0 | K37: 0 | L37: 0 | M37: 0 | N37: 0 | S37: 0 | U37: 0 | V37: 0 | W37: =LOOKUP(A37,'DOE - FIPStoPayeeCodeConvTable'!$A$3:$A$213,'DOE - FIPStoPayeeCodeConvTable'!$E$3:$E$213) -> 0.3811 | X37: 0.476375 | Y37: 0 | Z37: 0
A38: 67 | B38: =LOOKUP(A38,'DOE - FIPStoPayeeCodeConvTable'!$A$3:$A$213,'DOE - FIPStoPayeeCodeConvTable'!$B$3:$B$213) -> Franklin Co | F38: 0 | G38: 146.22 | H38: 0 | I38: 0 | J38: 0 | K38: 0 | L38: 0 | M38: 0 | N38: 0 | S38: 146.22 | U38: 101.39 | V38: 44.83 | W38: =LOOKUP(A38,'DOE - FIPStoPayeeCodeConvTable'!$A$3:$A$213,'DOE - FIPStoPayeeCodeConvTable'!$E$3:$E$213) -> 0.283 | X38: 0.35375 | Y38: 15.86 | Z38: 28.97
A39: 69 | B39: =LOOKUP(A39,'DOE - FIPStoPayeeCodeConvTable'!$A$3:$A$213,'DOE - FIPStoPayeeCodeConvTable'!$B$3:$B$213) -> Frederick Co | F39: 0 | G39: 0 | H39: 0 | I39: 0 | J39: 0 | K39: 0 | L39: 0 | M39: 0 | N39: 0 | S39: 0 | U39: 0 | V39: 0 | W39: =LOOKUP(A39,'DOE - FIPStoPayeeCodeConvTable'!$A$3:$A$213,'DOE - FIPStoPayeeCodeConvTable'!$E$3:$E$213) -> 0.4348 | X39: 0.5435 | Y39: 0 | Z39: 0
A40: 71 | B40: =LOOKUP(A40,'DOE - FIPStoPayeeCodeConvTable'!$A$3:$A$213,'DOE - FIPStoPayeeCodeConvTable'!$B$3:$B$213) -> Giles Co | F40: 0 | G40: 0 | H40: 0 | I40: 0 | J40: 0 | K40: 0 | L40: 0 | M40: 0 | N40: 0 | S40: 0 | U40: 0 | V40: 0 | W40: =LOOKUP(A40,'DOE - FIPStoPayeeCodeConvTable'!$A$3:$A$213,'DOE - FIPStoPayeeCodeConvTable'!$E$3:$E$213) -> 0.2898 | X40: 0.36225 | Y40: 0 | Z40: 0
A41: 73 | B41: =LOOKUP(A41,'DOE - FIPStoPayeeCodeConvTable'!$A$3:$A$213,'DOE - FIPStoPayeeCodeConvTable'!$B$3:$B$213) -> Gloucester Co | F41: 0 | G41: 0 | H41: 0 | I41: 0 | J41: 0 | K41: 0 | L41: 0 | M41: 0 | N41: 0 | S41: 0 | U41: 0 | V41: 0 | W41: =LOOKUP(A41,'DOE - FIPStoPayeeCodeConvTable'!$A$3:$A$213,'DOE - FIPStoPayeeCodeConvTable'!$E$3:$E$213) -> 0.3687 | X41: 0.460875 | Y41: 0 | Z41: 0
A42: 75 | B42: =LOOKUP(A42,'DOE - FIPStoPayeeCodeConvTable'!$A$3:$A$213,'DOE - FIPStoPayeeCodeConvTable'!$B$3:$B$213) -> Goochland Co | F42: 0 | G42: 0 | H42: 0 | I42: 0 | J42: 0 | K42: 0 | L42: 0 | M42: 0 | N42: 0 | S42: 0 | U42: 0 | V42: 0 | W42: =LOOKUP(A42,'DOE - FIPStoPayeeCodeConvTable'!$A$3:$A$213,'DOE - FIPStoPayeeCodeConvTable'!$E$3:$E$213) -> 0.4871 | X42: 0.608875 | Y42: 0 | Z42: 0
A43: 77 | B43: =LOOKUP(A43,'DOE - FIPStoPayeeCodeConvTable'!$A$3:$A$213,'DOE - FIPStoPayeeCodeConvTable'!$B$3:$B$213) -> Grayson Co | F43: 0 | G43: 0 | H43: 0 | I43: 0 | J43: 0 | K43: 0 | L43: 0 | M43: 0 | N43: 0 | S43: 0 | U43: 0 | V43: 0 | W43: =LOOKUP(A43,'DOE - FIPStoPayeeCodeConvTable'!$A$3:$A$213,'DOE - FIPStoPayeeCodeConvTable'!$E$3:$E$213) -> 0.2109 | X43: 0.263625 | Y43: 0 | Z43: 0
A44: 79 | B44: =LOOKUP(A44,'DOE - FIPStoPayeeCodeConvTable'!$A$3:$A$213,'DOE - FIPStoPayeeCodeConvTable'!$B$3:$B$213) -> Greene Co | F44: 0 | G44: 0 | H44: 0 | I44: 0 | J44: 0 | K44: 0 | L44: 0 | M44: 0 | N44: 0 | S44: 0 | U44: 0 | V44: 0 | W44: =LOOKUP(A44,'DOE - FIPStoPayeeCodeConvTable'!$A$3:$A$213,'DOE - FIPStoPayeeCodeConvTable'!$E$3:$E$213) -> 0.3471 | X44: 0.433875 | Y44: 0 | Z44: 0
A45: 81 | B45: =LOOKUP(A45,'DOE - FIPStoPayeeCodeConvTable'!$A$3:$A$213,'DOE - FIPStoPayeeCodeConvTable'!$B$3:$B$213) -> Greensville Co | F45: 0 | G45: 0 | H45: 0 | I45: 0 | J45: 0 | K45: 0 | L45: 0 | M45: 0 | N45: 0 | S45: 0 | U45: 0 | V45: 0 | W45: =LOOKUP(A45,'DOE - FIPStoPayeeCodeConvTable'!$A$3:$A$213,'DOE - FIPStoPayeeCodeConvTable'!$E$3:$E$213) -> 0.2266 | X45: 0.28325 | Y45: 0 | Z45: 0
A46: 83 | B46: =LOOKUP(A46,'DOE - FIPStoPayeeCodeConvTable'!$A$3:$A$213,'DOE - FIPStoPayeeCodeConvTable'!$B$3:$B$213) -> Halifax Co | F46: 0 | G46: 0 | H46: 0 | I46: 0 | J46: 0 | K46: 0 | L46: 0 | M46: 0 | N46: 0 | S46: 0 | U46: 0 | V46: 0 | W46: =LOOKUP(A46,'DOE - FIPStoPayeeCodeConvTable'!$A$3:$A$213,'DOE - FIPStoPayeeCodeConvTable'!$E$3:$E$213) -> 0.2335 | X46: 0.291875 | Y46: 0 | Z46: 0
A47: 85 | B47: =LOOKUP(A47,'DOE - FIPStoPayeeCodeConvTable'!$A$3:$A$213,'DOE - FIPStoPayeeCodeConvTable'!$B$3:$B$213) -> Hanover Co | F47: 393.5 | G47: 14559.5 | H47: 7476.5 | I47: 0 | J47: 0 | K47: 24397 | L47: 0 | M47: 0 | N47: 0 | S47: 46826.5 | U47: 32469.5 | V47: 14357 | W47: =LOOKUP(A47,'DOE - FIPStoPayeeCodeConvTable'!$A$3:$A$213,'DOE - FIPStoPayeeCodeConvTable'!$E$3:$E$213) -> 0.4444 | X47: 0.5555 | Y47: 7975.31 | Z47: 6381.69
A48: 87 | B48: =LOOKUP(A48,'DOE - FIPStoPayeeCodeConvTable'!$A$3:$A$213,'DOE - FIPStoPayeeCodeConvTable'!$B$3:$B$213) -> Henrico Co | F48: 6296 | G48: -1180.5 | H48: 12198.5 | I48: 0 | J48: 0 | K48: 0 | L48: 0 | M48: 0 | N48: 0 | S48: 17314 | U48: 12005.53 | V48: 5308.47 | W48: =LOOKUP(A48,'DOE - FIPStoPayeeCodeConvTable'!$A$3:$A$213,'DOE - FIPStoPayeeCodeConvTable'!$E$3:$E$213) -> 0.3755 | X48: 0.469375 | Y48: 2491.66 | Z48: 2816.81
A49: 89 | B49: =LOOKUP(A49,'DOE - FIPStoPayeeCodeConvTable'!$A$3:$A$213,'DOE - FIPStoPayeeCodeConvTable'!$B$3:$B$213) -> Henry Co | F49: 0 | G49: 0 | H49: 0 | I49: 0 | J49: 0 | K49: 0 | L49: 0 | M49: 0 | N49: 0 | S49: 0 | U49: 0 | V49: 0 | W49: =LOOKUP(A49,'DOE - FIPStoPayeeCodeConvTable'!$A$3:$A$213,'DOE - FIPStoPayeeCodeConvTable'!$E$3:$E$213) -> 0.2786 | X49: 0.34825 | Y49: 0 | Z49: 0
A50: 91 | B50: =LOOKUP(A50,'DOE - FIPStoPayeeCodeConvTable'!$A$3:$A$213,'DOE - FIPStoPayeeCodeConvTable'!$B$3:$B$213) -> Highland Co | F50: 0 | G50: 0 | H50: 0 | I50: 0 | J50: 0 | K50: 0 | L50: 0 | M50: 0 | N50: 0 | S50: 0 | U50: 0 | V50: 0 | W50: =LOOKUP(A50,'DOE - FIPStoPayeeCodeConvTable'!$A$3:$A$213,'DOE - FIPStoPayeeCodeConvTable'!$E$3:$E$213) -> 0.3822 | X50: 0.47775 | Y50: 0 | Z50: 0
A51: 93 | B51: =LOOKUP(A51,'DOE - FIPStoPayeeCodeConvTable'!$A$3:$A$213,'DOE - FIPStoPayeeCodeConvTable'!$B$3:$B$213) -> Isle Of Wight Co | F51: 0 | G51: 0 | H51: 0 | I51: 0 | J51: 0 | K51: 0 | L51: 0 | M51: 0 | N51: 0 | S51: 0 | U51: 0 | V51: 0 | W51: =LOOKUP(A51,'DOE - FIPStoPayeeCodeConvTable'!$A$3:$A$213,'DOE - FIPStoPayeeCodeConvTable'!$E$3:$E$213) -> 0.3613 | X51: 0.451625 | Y51: 0 | Z51: 0
A52: 95 | B52: =LOOKUP(A52,'DOE - FIPStoPayeeCodeConvTable'!$A$3:$A$213,'DOE - FIPStoPayeeCodeConvTable'!$B$3:$B$213) -> James City Co | F52: 13379 | G52: 11018 | H52: 11411.5 | I52: 11411.5 | J52: 10624.5 | K52: 12592 | L52: 12592 | M52: 10231 | N52: 2754.5 | S52: 96014 | U52: 66576.11 | V52: 29437.89 | W52: =LOOKUP(A52,'DOE - FIPStoPayeeCodeConvTable'!$A$3:$A$213,'DOE - FIPStoPayeeCodeConvTable'!$E$3:$E$213) -> 0.4483 | X52: 0.560375 | Y52: 16496.26 | Z52: 12941.63
A53: 97 | B53: =LOOKUP(A53,'DOE - FIPStoPayeeCodeConvTable'!$A$3:$A$213,'DOE - FIPStoPayeeCodeConvTable'!$B$3:$B$213) -> King And Queen Co | F53: 0 | G53: 0 | H53: 0 | I53: 0 | J53: 0 | K53: 0 | L53: 0 | M53: 0 | N53: 0 | S53: 0 | U53: 0 | V53: 0 | W53: =LOOKUP(A53,'DOE - FIPStoPayeeCodeConvTable'!$A$3:$A$213,'DOE - FIPStoPayeeCodeConvTable'!$E$3:$E$213) -> 0.3144 | X53: 0.393 | Y53: 0 | Z53: 0
A54: 99 | B54: =LOOKUP(A54,'DOE - FIPStoPayeeCodeConvTable'!$A$3:$A$213,'DOE - FIPStoPayeeCodeConvTable'!$B$3:$B$213) -> King George Co | F54: 0 | G54: 0 | H54: 0 | I54: 0 | J54: 0 | K54: 0 | L54: 0 | M54: 0 | N54: 0 | S54: 0 | U54: 0 | V54: 0 | W54: =LOOKUP(A54,'DOE - FIPStoPayeeCodeConvTable'!$A$3:$A$213,'DOE - FIPStoPayeeCodeConvTable'!$E$3:$E$213) -> 0.3627 | X54: 0.453375 | Y54: 0 | Z54: 0
A55: 101 | B55: =LOOKUP(A55,'DOE - FIPStoPayeeCodeConvTable'!$A$3:$A$213,'DOE - FIPStoPayeeCodeConvTable'!$B$3:$B$213) -> King William Co | F55: 0 | G55: 0 | H55: 0 | I55: 0 | J55: 0 | K55: 0 | L55: 0 | M55: 0 | N55: 0 | S55: 0 | U55: 0 | V55: 0 | W55: =LOOKUP(A55,'DOE - FIPStoPayeeCodeConvTable'!$A$3:$A$213,'DOE - FIPStoPayeeCodeConvTable'!$E$3:$E$213) -> 0.3853 | X55: 0.481625 | Y55: 0 | Z55: 0
A56: 103 | B56: =LOOKUP(A56,'DOE - FIPStoPayeeCodeConvTable'!$A$3:$A$213,'DOE - FIPStoPayeeCodeConvTable'!$B$3:$B$213) -> Lancaster Co | F56: 0 | G56: 0 | H56: 0 | I56: 0 | J56: 0 | K56: 0 | L56: 0 | M56: 0 | N56: 0 | S56: 0 | U56: 0 | V56: 0 | W56: =LOOKUP(A56,'DOE - FIPStoPayeeCodeConvTable'!$A$3:$A$213,'DOE - FIPStoPayeeCodeConvTable'!$E$3:$E$213) -> 0.4391 | X56: 0.548875 | Y56: 0 | Z56: 0
A57: 105 | B57: =LOOKUP(A57,'DOE - FIPStoPayeeCodeConvTable'!$A$3:$A$213,'DOE - FIPStoPayeeCodeConvTable'!$B$3:$B$213) -> Lee Co | F57: 0 | G57: 0 | H57: 0 | I57: 0 | J57: 0 | K57: 0 | L57: 0 | M57: 0 | N57: 0 | S57: 0 | U57: 0 | V57: 0 | W57: =LOOKUP(A57,'DOE - FIPStoPayeeCodeConvTable'!$A$3:$A$213,'DOE - FIPStoPayeeCodeConvTable'!$E$3:$E$213) -> 0.2245 | X57: 0.280625 | Y57: 0 | Z57: 0
A58: 107 | B58: =LOOKUP(A58,'DOE - FIPStoPayeeCodeConvTable'!$A$3:$A$213,'DOE - FIPStoPayeeCodeConvTable'!$B$3:$B$213) -> Loudoun Co | F58: 21642.5 | G58: 53909.5 | H58: 11805 | I58: 11805 | J58: 393.5 | K58: 10624.5 | L58: 0 | M58: 0 | N58: 393.5 | S58: 110573.5 | U58: 76671.66 | V58: 33901.84 | W58: =LOOKUP(A58,'DOE - FIPStoPayeeCodeConvTable'!$A$3:$A$213,'DOE - FIPStoPayeeCodeConvTable'!$E$3:$E$213) -> 0.4764 | X58: 0.5955 | Y58: 20188.55 | Z58: 13713.29
A59: 109 | B59: =LOOKUP(A59,'DOE - FIPStoPayeeCodeConvTable'!$A$3:$A$213,'DOE - FIPStoPayeeCodeConvTable'!$B$3:$B$213) -> Louisa Co | F59: 0 | G59: 0 | H59: 0 | I59: 0 | J59: 0 | K59: 0 | L59: 0 | M59: 0 | N59: 0 | S59: 0 | U59: 0 | V59: 0 | W59: =LOOKUP(A59,'DOE - FIPStoPayeeCodeConvTable'!$A$3:$A$213,'DOE - FIPStoPayeeCodeConvTable'!$E$3:$E$213) -> 0.4401 | X59: 0.550125 | Y59: 0 | Z59: 0
A60: 111 | B60: =LOOKUP(A60,'DOE - FIPStoPayeeCodeConvTable'!$A$3:$A$213,'DOE - FIPStoPayeeCodeConvTable'!$B$3:$B$213) -> Lunenburg Co | F60: 0 | G60: 0 | H60: 0 | I60: 0 | J60: 0 | K60: 0 | L60: 0 | M60: 0 | N60: 0 | S60: 0 | U60: 0 | V60: 0 | W60: =LOOKUP(A60,'DOE - FIPStoPayeeCodeConvTable'!$A$3:$A$213,'DOE - FIPStoPayeeCodeConvTable'!$E$3:$E$213) -> 0.1698 | X60: 0.21225 | Y60: 0 | Z60: 0
A61: 113 | B61: =LOOKUP(A61,'DOE - FIPStoPayeeCodeConvTable'!$A$3:$A$213,'DOE - FIPStoPayeeCodeConvTable'!$B$3:$B$213) -> Madison Co | F61: 0 | G61: 0 | H61: 0 | I61: 0 | J61: 0 | K61: 0 | L61: 0 | M61: 4386.6 | N61: 0 | S61: 4386.6 | U61: 3041.67 | V61: 1344.93 | W61: =LOOKUP(A61,'DOE - FIPStoPayeeCodeConvTable'!$A$3:$A$213,'DOE - FIPStoPayeeCodeConvTable'!$E$3:$E$213) -> 0.3355 | X61: 0.419375 | Y61: 564.03 | Z61: 780.9
A62: 115 | B62: =LOOKUP(A62,'DOE - FIPStoPayeeCodeConvTable'!$A$3:$A$213,'DOE - FIPStoPayeeCodeConvTable'!$B$3:$B$213) -> Mathews Co | F62: 0 | G62: 0 | H62: 0 | I62: 0 | J62: 0 | K62: 0 | L62: 0 | M62: 0 | N62: 0 | S62: 0 | U62: 0 | V62: 0 | W62: =LOOKUP(A62,'DOE - FIPStoPayeeCodeConvTable'!$A$3:$A$213,'DOE - FIPStoPayeeCodeConvTable'!$E$3:$E$213) -> 0.4271 | X62: 0.533875 | Y62: 0 | Z62: 0
A63: 117 | B63: =LOOKUP(A63,'DOE - FIPStoPayeeCodeConvTable'!$A$3:$A$213,'DOE - FIPStoPayeeCodeConvTable'!$B$3:$B$213) -> Mecklenburg Co | F63: 0 | G63: 0 | H63: 0 | I63: 7476.5 | J63: 0 | K63: 0 | L63: 0 | M63: 0 | N63: 0 | S63: 7476.5 | U63: 5184.21 | V63: 2292.29 | W63: =LOOKUP(A63,'DOE - FIPStoPayeeCodeConvTable'!$A$3:$A$213,'DOE - FIPStoPayeeCodeConvTable'!$E$3:$E$213) -> 0.2286 | X63: 0.28575 | Y63: 655.02 | Z63: 1637.27
A64: 119 | B64: =LOOKUP(A64,'DOE - FIPStoPayeeCodeConvTable'!$A$3:$A$213,'DOE - FIPStoPayeeCodeConvTable'!$B$3:$B$213) -> Middlesex Co | F64: 0 | G64: 0 | H64: 0 | I64: 0 | J64: 0 | K64: 0 | L64: 0 | M64: 0 | N64: 0 | S64: 0 | U64: 0 | V64: 0 | W64: =LOOKUP(A64,'DOE - FIPStoPayeeCodeConvTable'!$A$3:$A$213,'DOE - FIPStoPayeeCodeConvTable'!$E$3:$E$213) -> 0.4333 | X64: 0.541625 | Y64: 0 | Z64: 0
A65: 121 | B65: =LOOKUP(A65,'DOE - FIPStoPayeeCodeConvTable'!$A$3:$A$213,'DOE - FIPStoPayeeCodeConvTable'!$B$3:$B$213) -> Montgomery Co | F65: 0 | G65: 0 | H65: 0 | I65: 0 | J65: 0 | K65: 0 | L65: 0 | M65: 0 | N65: 0 | S65: 0 | U65: 0 | V65: 0 | W65: =LOOKUP(A65,'DOE - FIPStoPayeeCodeConvTable'!$A$3:$A$213,'DOE - FIPStoPayeeCodeConvTable'!$E$3:$E$213) -> 0.2834 | X65: 0.35425 | Y65: 0 | Z65: 0
A66: 125 | B66: =LOOKUP(A66,'DOE - FIPStoPayeeCodeConvTable'!$A$3:$A$213,'DOE - FIPStoPayeeCodeConvTable'!$B$3:$B$213) -> Nelson Co | F66: 11805 | G66: 12198.5 | H66: 11805 | I66: 0 | J66: 0 | K66: 0 | L66: 0 | M66: 0 | N66: 44072 | S66: 79880.5 | U66: 55389.14 | V66: 24491.36 | W66: =LOOKUP(A66,'DOE - FIPStoPayeeCodeConvTable'!$A$3:$A$213,'DOE - FIPStoPayeeCodeConvTable'!$E$3:$E$213) -> 0.3132 | X66: 0.3915 | Y66: 9588.37 | Z66: 14902.99
A67: 127 | B67: =LOOKUP(A67,'DOE - FIPStoPayeeCodeConvTable'!$A$3:$A$213,'DOE - FIPStoPayeeCodeConvTable'!$B$3:$B$213) -> New Kent Co | F67: 0 | G67: 0 | H67: 0 | I67: 0 | J67: 0 | K67: 0 | L67: 0 | M67: 0 | N67: 0 | S67: 0 | U67: 0 | V67: 0 | W67: =LOOKUP(A67,'DOE - FIPStoPayeeCodeConvTable'!$A$3:$A$213,'DOE - FIPStoPayeeCodeConvTable'!$E$3:$E$213) -> 0.4329 | X67: 0.541125 | Y67: 0 | Z67: 0
A68: 131 | B68: =LOOKUP(A68,'DOE - FIPStoPayeeCodeConvTable'!$A$3:$A$213,'DOE - FIPStoPayeeCodeConvTable'!$B$3:$B$213) -> Northampton Co | F68: 0 | G68: 0 | H68: 0 | I68: 0 | J68: 0 | K68: 0 | L68: 0 | M68: 0 | N68: 0 | S68: 0 | U68: 0 | V68: 0 | W68: =LOOKUP(A68,'DOE - FIPStoPayeeCodeConvTable'!$A$3:$A$213,'DOE - FIPStoPayeeCodeConvTable'!$E$3:$E$213) -> 0.1971 | X68: 0.246375 | Y68: 0 | Z68: 0
A69: 133 | B69: =LOOKUP(A69,'DOE - FIPStoPayeeCodeConvTable'!$A$3:$A$213,'DOE - FIPStoPayeeCodeConvTable'!$B$3:$B$213) -> Northumberland Co | F69: 0 | G69: 0 | H69: 0 | I69: 0 | J69: 0 | K69: 0 | L69: 0 | M69: 0 | N69: 0 | S69: 0 | U69: 0 | V69: 0 | W69: =LOOKUP(A69,'DOE - FIPStoPayeeCodeConvTable'!$A$3:$A$213,'DOE - FIPStoPayeeCodeConvTable'!$E$3:$E$213) -> 0.3304 | X69: 0.413 | Y69: 0 | Z69: 0
A70: 135 | B70: =LOOKUP(A70,'DOE - FIPStoPayeeCodeConvTable'!$A$3:$A$213,'DOE - FIPStoPayeeCodeConvTable'!$B$3:$B$213) -> Nottoway Co | F70: 0 | G70: 0 | H70: 0 | I70: 0 | J70: 0 | K70: 0 | L70: 0 | M70: 0 | N70: 0 | S70: 0 | U70: =ROUND($U$1*S70,2) -> 0 | V70: =SUM(S70)-SUM(U70) -> 0 | W70: =LOOKUP(A70,'DOE - FIPStoPayeeCodeConvTable'!$A$3:$A$213,'DOE - FIPStoPayeeCodeConvTable'!$E$3:$E$213) -> 0.2686 | X70: 0.33575 | Y70: 0 | Z70: 0
A71: 137 | B71: =LOOKUP(A71,'DOE - FIPStoPayeeCodeConvTable'!$A$3:$A$213,'DOE - FIPStoPayeeCodeConvTable'!$B$3:$B$213) -> Orange Co | F71: 0 | G71: 0 | H71: 4328.5 | I71: 0 | J71: 0 | K71: 0 | L71: 0 | M71: 0 | N71: 0 | S71: =SUM(C71:R71) -> 4328.5 | U71: 3001.38 | V71: 1327.12 | W71: =LOOKUP(A71,'DOE - FIPStoPayeeCodeConvTable'!$A$3:$A$213,'DOE - FIPStoPayeeCodeConvTable'!$E$3:$E$213) -> 0.4083 | X71: =$X$1*W71 -> 0.510375 | Y71: =ROUND(X71*V71,2) -> 677.33 | Z71: =SUM(V71)-SUM(Y71) -> 649.79
A72: 139 | B72: =LOOKUP(A72,'DOE - FIPStoPayeeCodeConvTable'!$A$3:$A$213,'DOE - FIPStoPayeeCodeConvTable'!$B$3:$B$213) -> Page Co | F72: 0 | G72: 0 | H72: 0 | I72: 0 | J72: 0 | K72: 0 | L72: 0 | M72: 0 | N72: 0 | S72: 0 | U72: 0 | V72: 0 | W72: =LOOKUP(A72,'DOE - FIPStoPayeeCodeConvTable'!$A$3:$A$213,'DOE - FIPStoPayeeCodeConvTable'!$E$3:$E$213) -> 0.2865 | X72: 0.358125 | Y72: 0 | Z72: 0
A73: 141 | B73: =LOOKUP(A73,'DOE - FIPStoPayeeCodeConvTable'!$A$3:$A$213,'DOE - FIPStoPayeeCodeConvTable'!$B$3:$B$213) -> Patrick Co | F73: 0 | G73: 0 | H73: 0 | I73: 0 | J73: 0 | K73: 0 | L73: 0 | M73: 0 | N73: 0 | S73: 0 | U73: 0 | V73: 0 | W73: =LOOKUP(A73,'DOE - FIPStoPayeeCodeConvTable'!$A$3:$A$213,'DOE - FIPStoPayeeCodeConvTable'!$E$3:$E$213) -> 0.2539 | X73: 0.317375 | Y73: 0 | Z73: 0
A74: 143 | B74: =LOOKUP(A74,'DOE - FIPStoPayeeCodeConvTable'!$A$3:$A$213,'DOE - FIPStoPayeeCodeConvTable'!$B$3:$B$213) -> Pittsylvania Co | F74: 0 | G74: 0 | H74: 0 | I74: 0 | J74: 0 | K74: 0 | L74: 0 | M74: 0 | N74: 0 | S74: 0 | U74: 0 | V74: 0 | W74: =LOOKUP(A74,'DOE - FIPStoPayeeCodeConvTable'!$A$3:$A$213,'DOE - FIPStoPayeeCodeConvTable'!$E$3:$E$213) -> 0.2355 | X74: 0.294375 | Y74: 0 | Z74: 0
A75: 145 | B75: =LOOKUP(A75,'DOE - FIPStoPayeeCodeConvTable'!$A$3:$A$213,'DOE - FIPStoPayeeCodeConvTable'!$B$3:$B$213) -> Powhatan Co | F75: 0 | G75: 0 | H75: 0 | I75: 0 | J75: 0 | K75: 0 | L75: 0 | M75: 0 | N75: 0 | S75: 0 | U75: 0 | V75: 0 | W75: =LOOKUP(A75,'DOE - FIPStoPayeeCodeConvTable'!$A$3:$A$213,'DOE - FIPStoPayeeCodeConvTable'!$E$3:$E$213) -> 0.4342 | X75: 0.54275 | Y75: 0 | Z75: 0
A76: 147 | B76: =LOOKUP(A76,'DOE - FIPStoPayeeCodeConvTable'!$A$3:$A$213,'DOE - FIPStoPayeeCodeConvTable'!$B$3:$B$213) -> Prince Edward Co | F76: 0 | G76: 0 | H76: 0 | I76: 0 | J76: 0 | K76: 0 | L76: 0 | M76: 0 | N76: 0 | S76: 0 | U76: 0 | V76: 0 | W76: =LOOKUP(A76,'DOE - FIPStoPayeeCodeConvTable'!$A$3:$A$213,'DOE - FIPStoPayeeCodeConvTable'!$E$3:$E$213) -> 0.2232 | X76: 0.279 | Y76: 0 | Z76: 0
A77: 149 | B77: =LOOKUP(A77,'DOE - FIPStoPayeeCodeConvTable'!$A$3:$A$213,'DOE - FIPStoPayeeCodeConvTable'!$B$3:$B$213) -> Prince George Co | F77: 0 | G77: 0 | H77: 0 | I77: 0 | J77: 22429.5 | K77: 0 | L77: 0 | M77: 0 | N77: 7476.5 | S77: 29906 | U77: 20736.82 | V77: 9169.18 | W77: =LOOKUP(A77,'DOE - FIPStoPayeeCodeConvTable'!$A$3:$A$213,'DOE - FIPStoPayeeCodeConvTable'!$E$3:$E$213) -> 0.3716 | X77: 0.4645 | Y77: 4259.08 | Z77: 4910.1
A78: 153 | B78: =LOOKUP(A78,'DOE - FIPStoPayeeCodeConvTable'!$A$3:$A$213,'DOE - FIPStoPayeeCodeConvTable'!$B$3:$B$213) -> Prince William Co | F78: 8974 | G78: 11217.5 | H78: 11217.5 | I78: 2243.5 | J78: 14746 | K78: 0 | L78: 0 | M78: 0 | N78: 1574 | S78: 49972.5 | U78: 34650.93 | V78: 15321.57 | W78: =LOOKUP(A78,'DOE - FIPStoPayeeCodeConvTable'!$A$3:$A$213,'DOE - FIPStoPayeeCodeConvTable'!$E$3:$E$213) -> 0.3414 | X78: 0.42675 | Y78: 6538.48 | Z78: 8783.09
A79: 155 | B79: =LOOKUP(A79,'DOE - FIPStoPayeeCodeConvTable'!$A$3:$A$213,'DOE - FIPStoPayeeCodeConvTable'!$B$3:$B$213) -> Pulaski Co | F79: 0 | G79: 0 | H79: 0 | I79: 0 | J79: 0 | K79: 0 | L79: 0 | M79: 0 | N79: 0 | S79: 0 | U79: 0 | V79: 0 | W79: =LOOKUP(A79,'DOE - FIPStoPayeeCodeConvTable'!$A$3:$A$213,'DOE - FIPStoPayeeCodeConvTable'!$E$3:$E$213) -> 0.2923 | X79: 0.365375 | Y79: 0 | Z79: 0
A80: 157 | B80: =LOOKUP(A80,'DOE - FIPStoPayeeCodeConvTable'!$A$3:$A$213,'DOE - FIPStoPayeeCodeConvTable'!$B$3:$B$213) -> Rappahannock Co | F80: 0 | G80: 0 | H80: 0 | I80: 0 | J80: 0 | K80: 0 | L80: 0 | M80: 0 | N80: 0 | S80: 0 | U80: 0 | V80: 0 | W80: =LOOKUP(A80,'DOE - FIPStoPayeeCodeConvTable'!$A$3:$A$213,'DOE - FIPStoPayeeCodeConvTable'!$E$3:$E$213) -> 0.4199 | X80: 0.524875 | Y80: 0 | Z80: 0
A81: 159 | B81: =LOOKUP(A81,'DOE - FIPStoPayeeCodeConvTable'!$A$3:$A$213,'DOE - FIPStoPayeeCodeConvTable'!$B$3:$B$213) -> Richmond Co | F81: 0 | G81: 0 | H81: 0 | I81: 0 | J81: 0 | K81: 0 | L81: 0 | M81: 0 | N81: 0 | S81: 0 | U81: 0 | V81: 0 | W81: =LOOKUP(A81,'DOE - FIPStoPayeeCodeConvTable'!$A$3:$A$213,'DOE - FIPStoPayeeCodeConvTable'!$E$3:$E$213) -> 0.3227 | X81: 0.403375 | Y81: 0 | Z81: 0
A82: 161 | B82: =LOOKUP(A82,'DOE - FIPStoPayeeCodeConvTable'!$A$3:$A$213,'DOE - FIPStoPayeeCodeConvTable'!$B$3:$B$213) -> Roanoke Co | F82: 0 | G82: 0 | H82: 0 | I82: 0 | J82: 0 | K82: 0 | L82: 0 | M82: 0 | N82: 0 | S82: 0 | U82: 0 | V82: 0 | W82: =LOOKUP(A82,'DOE - FIPStoPayeeCodeConvTable'!$A$3:$A$213,'DOE - FIPStoPayeeCodeConvTable'!$E$3:$E$213) -> 0.4397 | X82: 0.549625 | Y82: 0 | Z82: 0
A83: 163 | B83: =LOOKUP(A83,'DOE - FIPStoPayeeCodeConvTable'!$A$3:$A$213,'DOE - FIPStoPayeeCodeConvTable'!$B$3:$B$213) -> Rockbridge Co | F83: 0 | G83: 0 | H83: 0 | I83: 0 | J83: 0 | K83: 0 | L83: 0 | M83: 0 | N83: 0 | S83: 0 | U83: 0 | V83: 0 | W83: =LOOKUP(A83,'DOE - FIPStoPayeeCodeConvTable'!$A$3:$A$213,'DOE - FIPStoPayeeCodeConvTable'!$E$3:$E$213) -> 0.2336 | X83: 0.292 | Y83: 0 | Z83: 0
A84: 165 | B84: =LOOKUP(A84,'DOE - FIPStoPayeeCodeConvTable'!$A$3:$A$213,'DOE - FIPStoPayeeCodeConvTable'!$B$3:$B$213) -> Rockingham Co | F84: 0 | G84: 0 | H84: 1967.5 | I84: 14166 | J84: 2754.5 | K84: 13772.5 | L84: 11018 | M84: 33447.5 | N84: 16527 | S84: 93653 | U84: 64938.99 | V84: 28714.01 | W84: =LOOKUP(A84,'DOE - FIPStoPayeeCodeConvTable'!$A$3:$A$213,'DOE - FIPStoPayeeCodeConvTable'!$E$3:$E$213) -> 0.3445 | X84: 0.430625 | Y84: 12364.97 | Z84: 16349.04
A85: 167 | B85: =LOOKUP(A85,'DOE - FIPStoPayeeCodeConvTable'!$A$3:$A$213,'DOE - FIPStoPayeeCodeConvTable'!$B$3:$B$213) -> Russell Co | F85: 0 | G85: 0 | H85: 0 | I85: 0 | J85: 0 | K85: 0 | L85: 0 | M85: 0 | N85: 0 | S85: 0 | U85: 0 | V85: 0 | W85: =LOOKUP(A85,'DOE - FIPStoPayeeCodeConvTable'!$A$3:$A$213,'DOE - FIPStoPayeeCodeConvTable'!$E$3:$E$213) -> 0.1894 | X85: 0.23675 | Y85: 0 | Z85: 0
A86: 169 | B86: =LOOKUP(A86,'DOE - FIPStoPayeeCodeConvTable'!$A$3:$A$213,'DOE - FIPStoPayeeCodeConvTable'!$B$3:$B$213) -> Scott Co | F86: 0 | G86: 0 | H86: 0 | I86: 0 | J86: 0 | K86: 0 | L86: 0 | M86: 0 | N86: 0 | S86: 0 | U86: 0 | V86: 0 | W86: =LOOKUP(A86,'DOE - FIPStoPayeeCodeConvTable'!$A$3:$A$213,'DOE - FIPStoPayeeCodeConvTable'!$E$3:$E$213) -> 0.3154 | X86: 0.39425 | Y86: 0 | Z86: 0
A87: 171 | B87: =LOOKUP(A87,'DOE - FIPStoPayeeCodeConvTable'!$A$3:$A$213,'DOE - FIPStoPayeeCodeConvTable'!$B$3:$B$213) -> Shenandoah Co | F87: 0 | G87: 0 | H87: 4328.5 | I87: 12198.5 | J87: 12198.5 | K87: 16920.5 | L87: 12198.5 | M87: 12985.5 | N87: 0 | S87: 70830 | U87: 49113.52 | V87: 21716.48 | W87: =LOOKUP(A87,'DOE - FIPStoPayeeCodeConvTable'!$A$3:$A$213,'DOE - FIPStoPayeeCodeConvTable'!$E$3:$E$213) -> 0.3517 | X87: 0.439625 | Y87: 9547.11 | Z87: 12169.37
A88: 173 | B88: =LOOKUP(A88,'DOE - FIPStoPayeeCodeConvTable'!$A$3:$A$213,'DOE - FIPStoPayeeCodeConvTable'!$B$3:$B$213) -> Smyth Co | F88: 11805 | G88: 12198.5 | H88: 11805 | I88: 8657 | J88: 0 | K88: 0 | L88: 0 | M88: 0 | N88: 7083 | S88: 51548.5 | U88: 35743.73 | V88: 15804.77 | W88: =LOOKUP(A88,'DOE - FIPStoPayeeCodeConvTable'!$A$3:$A$213,'DOE - FIPStoPayeeCodeConvTable'!$E$3:$E$213) -> 0.2337 | X88: 0.292125 | Y88: 4616.97 | Z88: 11187.8
A89: 175 | B89: =LOOKUP(A89,'DOE - FIPStoPayeeCodeConvTable'!$A$3:$A$213,'DOE - FIPStoPayeeCodeConvTable'!$B$3:$B$213) -> Southampton Co | F89: 0 | G89: 0 | H89: 0 | I89: 0 | J89: 0 | K89: 0 | L89: 0 | M89: 0 | N89: 0 | S89: 0 | U89: 0 | V89: 0 | W89: =LOOKUP(A89,'DOE - FIPStoPayeeCodeConvTable'!$A$3:$A$213,'DOE - FIPStoPayeeCodeConvTable'!$E$3:$E$213) -> 0.323 | X89: 0.40375 | Y89: 0 | Z89: 0
A90: 177 | B90: =LOOKUP(A90,'DOE - FIPStoPayeeCodeConvTable'!$A$3:$A$213,'DOE - FIPStoPayeeCodeConvTable'!$B$3:$B$213) -> Spotsylvania Co | F90: 0 | G90: 0 | H90: 0 | I90: 0 | J90: 0 | K90: 0 | L90: 0 | M90: 0 | N90: 5509 | S90: 5509 | U90: 3819.94 | V90: 1689.06 | W90: =LOOKUP(A90,'DOE - FIPStoPayeeCodeConvTable'!$A$3:$A$213,'DOE - FIPStoPayeeCodeConvTable'!$E$3:$E$213) -> 0.4588 | X90: 0.5735 | Y90: 968.68 | Z90: 720.38
A91: 179 | B91: =LOOKUP(A91,'DOE - FIPStoPayeeCodeConvTable'!$A$3:$A$213,'DOE - FIPStoPayeeCodeConvTable'!$B$3:$B$213) -> Stafford Co | F91: 0 | G91: 0 | H91: 0 | I91: 0 | J91: 0 | K91: 0 | L91: 0 | M91: 0 | N91: 0 | S91: 0 | U91: 0 | V91: 0 | W91: =LOOKUP(A91,'DOE - FIPStoPayeeCodeConvTable'!$A$3:$A$213,'DOE - FIPStoPayeeCodeConvTable'!$E$3:$E$213) -> 0.4439 | X91: 0.554875 | Y91: 0 | Z91: 0
A92: 181 | B92: =LOOKUP(A92,'DOE - FIPStoPayeeCodeConvTable'!$A$3:$A$213,'DOE - FIPStoPayeeCodeConvTable'!$B$3:$B$213) -> Surry Co | F92: 0 | G92: 0 | H92: 0 | I92: 0 | J92: 0 | K92: 0 | L92: 0 | M92: 0 | N92: 0 | S92: 0 | U92: 0 | V92: 0 | W92: =LOOKUP(A92,'DOE - FIPStoPayeeCodeConvTable'!$A$3:$A$213,'DOE - FIPStoPayeeCodeConvTable'!$E$3:$E$213) -> 0.3979 | X92: 0.497375 | Y92: 0 | Z92: 0
A93: 183 | B93: =LOOKUP(A93,'DOE - FIPStoPayeeCodeConvTable'!$A$3:$A$213,'DOE - FIPStoPayeeCodeConvTable'!$B$3:$B$213) -> Sussex Co | F93: 0 | G93: 0 | H93: 0 | I93: 0 | J93: 0 | K93: 0 | L93: 0 | M93: 0 | N93: 0 | S93: 0 | U93: 0 | V93: 0 | W93: =LOOKUP(A93,'DOE - FIPStoPayeeCodeConvTable'!$A$3:$A$213,'DOE - FIPStoPayeeCodeConvTable'!$E$3:$E$213) -> 0.2387 | X93: 0.298375 | Y93: 0 | Z93: 0
A94: 185 | B94: =LOOKUP(A94,'DOE - FIPStoPayeeCodeConvTable'!$A$3:$A$213,'DOE - FIPStoPayeeCodeConvTable'!$B$3:$B$213) -> Tazewell Co | F94: 0 | G94: 0 | H94: 0 | I94: 0 | J94: 0 | K94: 0 | L94: 0 | M94: 0 | N94: 0 | S94: 0 | U94: 0 | V94: 0 | W94: =LOOKUP(A94,'DOE - FIPStoPayeeCodeConvTable'!$A$3:$A$213,'DOE - FIPStoPayeeCodeConvTable'!$E$3:$E$213) -> 0.2455 | X94: 0.306875 | Y94: 0 | Z94: 0
A95: 187 | B95: =LOOKUP(A95,'DOE - FIPStoPayeeCodeConvTable'!$A$3:$A$213,'DOE - FIPStoPayeeCodeConvTable'!$B$3:$B$213) -> Warren Co | F95: 0 | G95: 0 | H95: 0 | I95: 0 | J95: 0 | K95: 0 | L95: 0 | M95: 0 | N95: 0 | S95: 0 | U95: 0 | V95: 0 | W95: =LOOKUP(A95,'DOE - FIPStoPayeeCodeConvTable'!$A$3:$A$213,'DOE - FIPStoPayeeCodeConvTable'!$E$3:$E$213) -> 0.3853 | X95: 0.481625 | Y95: 0 | Z95: 0
A96: 191 | B96: =LOOKUP(A96,'DOE - FIPStoPayeeCodeConvTable'!$A$3:$A$213,'DOE - FIPStoPayeeCodeConvTable'!$B$3:$B$213) -> Washington Co | F96: 0 | G96: 0 | H96: 0 | I96: 0 | J96: 0 | K96: 0 | L96: 0 | M96: 0 | N96: 0 | S96: 0 | U96: 0 | V96: 0 | W96: =LOOKUP(A96,'DOE - FIPStoPayeeCodeConvTable'!$A$3:$A$213,'DOE - FIPStoPayeeCodeConvTable'!$E$3:$E$213) -> 0.276 | X96: 0.345 | Y96: 0 | Z96: 0
A97: 193 | B97: =LOOKUP(A97,'DOE - FIPStoPayeeCodeConvTable'!$A$3:$A$213,'DOE - FIPStoPayeeCodeConvTable'!$B$3:$B$213) -> Westmoreland Co | F97: 0 | G97: 0 | H97: 0 | I97: 0 | J97: 0 | K97: 0 | L97: 0 | M97: 0 | N97: 0 | S97: 0 | U97: 0 | V97: 0 | W97: =LOOKUP(A97,'DOE - FIPStoPayeeCodeConvTable'!$A$3:$A$213,'DOE - FIPStoPayeeCodeConvTable'!$E$3:$E$213) -> 0.3025 | X97: 0.378125 | Y97: 0 | Z97: 0
A98: 195 | B98: =LOOKUP(A98,'DOE - FIPStoPayeeCodeConvTable'!$A$3:$A$213,'DOE - FIPStoPayeeCodeConvTable'!$B$3:$B$213) -> Wise Co | F98: 0 | G98: 0 | H98: 0 | I98: 0 | J98: 0 | K98: 0 | L98: 0 | M98: 0 | N98: 0 | S98: 0 | U98: 0 | V98: 0 | W98: =LOOKUP(A98,'DOE - FIPStoPayeeCodeConvTable'!$A$3:$A$213,'DOE - FIPStoPayeeCodeConvTable'!$E$3:$E$213) -> 0.2755 | X98: 0.344375 | Y98: 0 | Z98: 0
A99: 197 | B99: =LOOKUP(A99,'DOE - FIPStoPayeeCodeConvTable'!$A$3:$A$213,'DOE - FIPStoPayeeCodeConvTable'!$B$3:$B$213) -> Wythe Co | F99: 0 | G99: 0 | H99: 0 | I99: 0 | J99: 0 | K99: 0 | L99: 0 | M99: 0 | N99: 0 | S99: 0 | U99: 0 | V99: 0 | W99: =LOOKUP(A99,'DOE - FIPStoPayeeCodeConvTable'!$A$3:$A$213,'DOE - FIPStoPayeeCodeConvTable'!$E$3:$E$213) -> 0.2708 | X99: 0.3385 | Y99: 0 | Z99: 0
A100: 199 | B100: =LOOKUP(A100,'DOE - FIPStoPayeeCodeConvTable'!$A$3:$A$213,'DOE - FIPStoPayeeCodeConvTable'!$B$3:$B$213) -> York Co | F100: 0 | G100: 0 | H100: 0 | I100: 0 | J100: 0 | K100: 0 | L100: 0 | M100: 0 | N100: 0 | S100: 0 | U100: 0 | V100: 0 | W100: =LOOKUP(A100,'DOE - FIPStoPayeeCodeConvTable'!$A$3:$A$213,'DOE - FIPStoPayeeCodeConvTable'!$E$3:$E$213) -> 0.3888 | X100: 0.486 | Y100: 0 | Z100: 0
A101: 510 | B101: =LOOKUP(A101,'DOE - FIPStoPayeeCodeConvTable'!$A$3:$A$213,'DOE - FIPStoPayeeCodeConvTable'!$B$3:$B$213) -> Alexandria City | F101: 0 | G101: 0 | H101: 0 | I101: 0 | J101: 0 | K101: 0 | L101: 0 | M101: 0 | N101: 0 | S101: 0 | U101: 0 | V101: 0 | W101: =LOOKUP(A101,'DOE - FIPStoPayeeCodeConvTable'!$A$3:$A$213,'DOE - FIPStoPayeeCodeConvTable'!$E$3:$E$213) -> 0.5309 | X101: 0.663625 | Y101: 0 | Z101: 0
A102: 520 | B102: =LOOKUP(A102,'DOE - FIPStoPayeeCodeConvTable'!$A$3:$A$213,'DOE - FIPStoPayeeCodeConvTable'!$B$3:$B$213) -> Bristol City | F102: 0 | G102: 0 | H102: 0 | I102: 0 | J102: 0 | K102: 0 | L102: 0 | M102: 0 | N102: 0 | S102: 0 | U102: 0 | V102: 0 | W102: =LOOKUP(A102,'DOE - FIPStoPayeeCodeConvTable'!$A$3:$A$213,'DOE - FIPStoPayeeCodeConvTable'!$E$3:$E$213) -> 0.2547 | X102: 0.318375 | Y102: 0 | Z102: 0
A103: 530 | B103: =LOOKUP(A103,'DOE - FIPStoPayeeCodeConvTable'!$A$3:$A$213,'DOE - FIPStoPayeeCodeConvTable'!$B$3:$B$213) -> Buena Vista City | F103: 0 | G103: 0 | H103: 0 | I103: 0 | J103: 0 | K103: 0 | L103: 0 | M103: 0 | N103: 0 | S103: 0 | U103: 0 | V103: 0 | W103: =LOOKUP(A103,'DOE - FIPStoPayeeCodeConvTable'!$A$3:$A$213,'DOE - FIPStoPayeeCodeConvTable'!$E$3:$E$213) -> 0.2329 | X103: 0.291125 | Y103: 0 | Z103: 0
A104: 540 | B104: =LOOKUP(A104,'DOE - FIPStoPayeeCodeConvTable'!$A$3:$A$213,'DOE - FIPStoPayeeCodeConvTable'!$B$3:$B$213) -> Charlottesville City | F104: 0 | G104: 0 | H104: 0 | I104: 0 | J104: 0 | K104: 0 | L104: 0 | M104: 0 | N104: 0 | S104: 0 | U104: 0 | V104: 0 | W104: =LOOKUP(A104,'DOE - FIPStoPayeeCodeConvTable'!$A$3:$A$213,'DOE - FIPStoPayeeCodeConvTable'!$E$3:$E$213) -> 0.3068 | X104: 0.3835 | Y104: 0 | Z104: 0
A105: 550 | B105: =LOOKUP(A105,'DOE - FIPStoPayeeCodeConvTable'!$A$3:$A$213,'DOE - FIPStoPayeeCodeConvTable'!$B$3:$B$213) -> Chesapeake City | F105: 0 | G105: 0 | H105: 0 | I105: 0 | J105: 0 | K105: 0 | L105: 0 | M105: 0 | N105: 0 | S105: 0 | U105: 0 | V105: 0 | W105: =LOOKUP(A105,'DOE - FIPStoPayeeCodeConvTable'!$A$3:$A$213,'DOE - FIPStoPayeeCodeConvTable'!$E$3:$E$213) -> 0.3715 | X105: 0.464375 | Y105: 0 | Z105: 0
A106: 570 | B106: =LOOKUP(A106,'DOE - FIPStoPayeeCodeConvTable'!$A$3:$A$213,'DOE - FIPStoPayeeCodeConvTable'!$B$3:$B$213) -> Colonial Heights City | F106: 0 | G106: 0 | H106: 0 | I106: 0 | J106: 0 | K106: 0 | L106: 0 | M106: 0 | N106: 0 | S106: 0 | U106: 0 | V106: 0 | W106: =LOOKUP(A106,'DOE - FIPStoPayeeCodeConvTable'!$A$3:$A$213,'DOE - FIPStoPayeeCodeConvTable'!$E$3:$E$213) -> 0.4027 | X106: 0.503375 | Y106: 0 | Z106: 0
A107: 580 | B107: =LOOKUP(A107,'DOE - FIPStoPayeeCodeConvTable'!$A$3:$A$213,'DOE - FIPStoPayeeCodeConvTable'!$B$3:$B$213) -> Covington City | F107: 0 | G107: 0 | H107: 0 | I107: 0 | J107: 0 | K107: 0 | L107: 0 | M107: 0 | N107: 0 | S107: 0 | U107: 0 | V107: 0 | W107: =LOOKUP(A107,'DOE - FIPStoPayeeCodeConvTable'!$A$3:$A$213,'DOE - FIPStoPayeeCodeConvTable'!$E$3:$E$213) -> 0.2496 | X107: 0.312 | Y107: 0 | Z107: 0
A108: 590 | B108: =LOOKUP(A108,'DOE - FIPStoPayeeCodeConvTable'!$A$3:$A$213,'DOE - FIPStoPayeeCodeConvTable'!$B$3:$B$213) -> Danville City | F108: 4094.16 | G108: 0 | H108: 0 | I108: 0 | J108: 0 | K108: 0 | L108: 0 | M108: 0 | N108: 0 | S108: 4094.16 | U108: 2838.89 | V108: 1255.27 | W108: =LOOKUP(A108,'DOE - FIPStoPayeeCodeConvTable'!$A$3:$A$213,'DOE - FIPStoPayeeCodeConvTable'!$E$3:$E$213) -> 0.2223 | X108: 0.277875 | Y108: 348.81 | Z108: 906.46
A109: 620 | B109: =LOOKUP(A109,'DOE - FIPStoPayeeCodeConvTable'!$A$3:$A$213,'DOE - FIPStoPayeeCodeConvTable'!$B$3:$B$213) -> Franklin City | F109: 0 | G109: 0 | H109: 0 | I109: 0 | J109: 0 | K109: 0 | L109: 0 | M109: 0 | N109: 0 | S109: 0 | U109: 0 | V109: 0 | W109: =LOOKUP(A109,'DOE - FIPStoPayeeCodeConvTable'!$A$3:$A$213,'DOE - FIPStoPayeeCodeConvTable'!$E$3:$E$213) -> 0.371 | X109: 0.46375 | Y109: 0 | Z109: 0
A110: 630 | B110: =LOOKUP(A110,'DOE - FIPStoPayeeCodeConvTable'!$A$3:$A$213,'DOE - FIPStoPayeeCodeConvTable'!$B$3:$B$213) -> Fredericksburg City | F110: 0 | G110: 0 | H110: 0 | I110: 0 | J110: 0 | K110: 0 | L110: 0 | M110: 0 | N110: 0 | S110: 0 | U110: 0 | V110: 0 | W110: =LOOKUP(A110,'DOE - FIPStoPayeeCodeConvTable'!$A$3:$A$213,'DOE - FIPStoPayeeCodeConvTable'!$E$3:$E$213) -> 0.3441 | X110: 0.430125 | Y110: 0 | Z110: 0
A111: 640 | B111: =LOOKUP(A111,'DOE - FIPStoPayeeCodeConvTable'!$A$3:$A$213,'DOE - FIPStoPayeeCodeConvTable'!$B$3:$B$213) -> Galax City | F111: 0 | G111: 0 | H111: 0 | I111: 0 | J111: 0 | K111: 0 | L111: 0 | M111: 0 | N111: 0 | S111: 0 | U111: 0 | V111: 0 | W111: =LOOKUP(A111,'DOE - FIPStoPayeeCodeConvTable'!$A$3:$A$213,'DOE - FIPStoPayeeCodeConvTable'!$E$3:$E$213) -> 0.3146 | X111: 0.39325 | Y111: 0 | Z111: 0
A112: 650 | B112: =LOOKUP(A112,'DOE - FIPStoPayeeCodeConvTable'!$A$3:$A$213,'DOE - FIPStoPayeeCodeConvTable'!$B$3:$B$213) -> Hampton City | F112: 0 | G112: 0 | H112: 0 | I112: 0 | J112: 0 | K112: 0 | L112: 0 | M112: 0 | N112: 0 | S112: 0 | U112: 0 | V112: 0 | W112: =LOOKUP(A112,'DOE - FIPStoPayeeCodeConvTable'!$A$3:$A$213,'DOE - FIPStoPayeeCodeConvTable'!$E$3:$E$213) -> 0.3223 | X112: 0.402875 | Y112: 0 | Z112: 0
A113: 660 | B113: =LOOKUP(A113,'DOE - FIPStoPayeeCodeConvTable'!$A$3:$A$213,'DOE - FIPStoPayeeCodeConvTable'!$B$3:$B$213) -> Harrisonburg City | F113: 0 | G113: 0 | H113: 0 | I113: 0 | J113: 0 | K113: 0 | L113: 0 | M113: 0 | N113: 0 | S113: 0 | U113: 0 | V113: 0 | W113: =LOOKUP(A113,'DOE - FIPStoPayeeCodeConvTable'!$A$3:$A$213,'DOE - FIPStoPayeeCodeConvTable'!$E$3:$E$213) -> 0.3808 | X113: 0.476 | Y113: 0 | Z113: 0
A114: 670 | B114: =LOOKUP(A114,'DOE - FIPStoPayeeCodeConvTable'!$A$3:$A$213,'DOE - FIPStoPayeeCodeConvTable'!$B$3:$B$213) -> Hopewell City | F114: 0 | G114: 0 | H114: 0 | I114: 0 | J114: 0 | K114: 0 | L114: 0 | M114: 0 | N114: 0 | S114: 0 | U114: 0 | V114: 0 | W114: =LOOKUP(A114,'DOE - FIPStoPayeeCodeConvTable'!$A$3:$A$213,'DOE - FIPStoPayeeCodeConvTable'!$E$3:$E$213) -> 0.2667 | X114: 0.333375 | Y114: 0 | Z114: 0
A115: 678 | B115: =LOOKUP(A115,'DOE - FIPStoPayeeCodeConvTable'!$A$3:$A$213,'DOE - FIPStoPayeeCodeConvTable'!$B$3:$B$213) -> Lexington City | F115: 0 | G115: 0 | H115: 0 | I115: 0 | J115: 0 | K115: 0 | L115: 0 | M115: 0 | N115: 0 | S115: 0 | U115: 0 | V115: 0 | W115: =LOOKUP(A115,'DOE - FIPStoPayeeCodeConvTable'!$A$3:$A$213,'DOE - FIPStoPayeeCodeConvTable'!$E$3:$E$213) -> 0.3302 | X115: 0.41275 | Y115: 0 | Z115: 0
A116: 680 | B116: =LOOKUP(A116,'DOE - FIPStoPayeeCodeConvTable'!$A$3:$A$213,'DOE - FIPStoPayeeCodeConvTable'!$B$3:$B$213) -> Lynchburg City | F116: 0 | G116: 0 | H116: 0 | I116: 24003.5 | J116: 0 | K116: 0 | L116: 0 | M116: 0 | N116: 0 | S116: 24003.5 | U116: 16644.03 | V116: 7359.47 | W116: =LOOKUP(A116,'DOE - FIPStoPayeeCodeConvTable'!$A$3:$A$213,'DOE - FIPStoPayeeCodeConvTable'!$E$3:$E$213) -> 0.2736 | X116: 0.342 | Y116: 2516.94 | Z116: 4842.53
A117: 683 | B117: =LOOKUP(A117,'DOE - FIPStoPayeeCodeConvTable'!$A$3:$A$213,'DOE - FIPStoPayeeCodeConvTable'!$B$3:$B$213) -> Manassas City | F117: 0 | G117: 0 | H117: 0 | I117: 0 | J117: 0 | K117: 0 | L117: 0 | M117: 0 | N117: 0 | S117: 0 | U117: 0 | V117: 0 | W117: =LOOKUP(A117,'DOE - FIPStoPayeeCodeConvTable'!$A$3:$A$213,'DOE - FIPStoPayeeCodeConvTable'!$E$3:$E$213) -> 0.4168 | X117: 0.521 | Y117: 0 | Z117: 0
A118: 685 | B118: =LOOKUP(A118,'DOE - FIPStoPayeeCodeConvTable'!$A$3:$A$213,'DOE - FIPStoPayeeCodeConvTable'!$B$3:$B$213) -> Manassas Park City | F118: 0 | G118: 0 | H118: 0 | I118: 0 | J118: 0 | K118: 0 | L118: 0 | M118: 0 | N118: 0 | S118: 0 | U118: 0 | V118: 0 | W118: =LOOKUP(A118,'DOE - FIPStoPayeeCodeConvTable'!$A$3:$A$213,'DOE - FIPStoPayeeCodeConvTable'!$E$3:$E$213) -> 0.4273 | X118: 0.534125 | Y118: 0 | Z118: 0
A119: 690 | B119: =LOOKUP(A119,'DOE - FIPStoPayeeCodeConvTable'!$A$3:$A$213,'DOE - FIPStoPayeeCodeConvTable'!$B$3:$B$213) -> Martinsville City | F119: 0 | G119: 0 | H119: 0 | I119: 0 | J119: 0 | K119: 0 | L119: 0 | M119: 0 | N119: 0 | S119: 0 | U119: 0 | V119: 0 | W119: =LOOKUP(A119,'DOE - FIPStoPayeeCodeConvTable'!$A$3:$A$213,'DOE - FIPStoPayeeCodeConvTable'!$E$3:$E$213) -> 0.3321 | X119: 0.415125 | Y119: 0 | Z119: 0
A120: 700 | B120: =LOOKUP(A120,'DOE - FIPStoPayeeCodeConvTable'!$A$3:$A$213,'DOE - FIPStoPayeeCodeConvTable'!$B$3:$B$213) -> Newport News City | F120: 0 | G120: 0 | H120: 0 | I120: 0 | J120: 0 | K120: 0 | L120: -393.5 | M120: 0 | N120: 0 | S120: -393.5 | U120: -272.85 | V120: -120.65 | W120: =LOOKUP(A120,'DOE - FIPStoPayeeCodeConvTable'!$A$3:$A$213,'DOE - FIPStoPayeeCodeConvTable'!$E$3:$E$213) -> 0.2773 | X120: 0.346625 | Y120: -41.82 | Z120: -78.83
A121: 710 | B121: =LOOKUP(A121,'DOE - FIPStoPayeeCodeConvTable'!$A$3:$A$213,'DOE - FIPStoPayeeCodeConvTable'!$B$3:$B$213) -> Norfolk City | F121: 0 | G121: 0 | H121: 0 | I121: 0 | J121: 0 | K121: 0 | L121: 3935 | M121: 11805 | N121: 12198.5 | S121: 27938.5 | U121: 19372.56 | V121: 8565.94 | W121: =LOOKUP(A121,'DOE - FIPStoPayeeCodeConvTable'!$A$3:$A$213,'DOE - FIPStoPayeeCodeConvTable'!$E$3:$E$213) -> 0.2455 | X121: 0.306875 | Y121: 2628.67 | Z121: 5937.27
A122: 720 | B122: =LOOKUP(A122,'DOE - FIPStoPayeeCodeConvTable'!$A$3:$A$213,'DOE - FIPStoPayeeCodeConvTable'!$B$3:$B$213) -> Norton City | F122: 0 | G122: 0 | H122: 0 | I122: 0 | J122: 0 | K122: 0 | L122: 0 | M122: 0 | N122: 0 | S122: 0 | U122: 0 | V122: 0 | W122: =LOOKUP(A122,'DOE - FIPStoPayeeCodeConvTable'!$A$3:$A$213,'DOE - FIPStoPayeeCodeConvTable'!$E$3:$E$213) -> 0.3254 | X122: 0.40675 | Y122: 0 | Z122: 0
A123: 730 | B123: =LOOKUP(A123,'DOE - FIPStoPayeeCodeConvTable'!$A$3:$A$213,'DOE - FIPStoPayeeCodeConvTable'!$B$3:$B$213) -> Petersburg City | F123: 0 | G123: 0 | H123: 0 | I123: 0 | J123: 0 | K123: 0 | L123: 0 | M123: 0 | N123: 0 | S123: 0 | U123: 0 | V123: 0 | W123: =LOOKUP(A123,'DOE - FIPStoPayeeCodeConvTable'!$A$3:$A$213,'DOE - FIPStoPayeeCodeConvTable'!$E$3:$E$213) -> 0.3535 | X123: 0.441875 | Y123: 0 | Z123: 0
A124: 735 | B124: =LOOKUP(A124,'DOE - FIPStoPayeeCodeConvTable'!$A$3:$A$213,'DOE - FIPStoPayeeCodeConvTable'!$B$3:$B$213) -> Poquoson City | F124: 0 | G124: 0 | H124: 0 | I124: 0 | J124: 0 | K124: 0 | L124: 0 | M124: 0 | N124: 0 | S124: 0 | U124: 0 | V124: 0 | W124: =LOOKUP(A124,'DOE - FIPStoPayeeCodeConvTable'!$A$3:$A$213,'DOE - FIPStoPayeeCodeConvTable'!$E$3:$E$213) -> 0.2787 | X124: 0.348375 | Y124: 0 | Z124: 0
A125: 740 | B125: =LOOKUP(A125,'DOE - FIPStoPayeeCodeConvTable'!$A$3:$A$213,'DOE - FIPStoPayeeCodeConvTable'!$B$3:$B$213) -> Portsmouth City | F125: 4386.6 | G125: 4532.82 | H125: 4386.6 | I125: 3070.62 | J125: 0 | K125: 0 | L125: 0 | M125: 0 | N125: 0 | S125: 16376.64 | U125: 11355.56 | V125: 5021.08 | W125: =LOOKUP(A125,'DOE - FIPStoPayeeCodeConvTable'!$A$3:$A$213,'DOE - FIPStoPayeeCodeConvTable'!$E$3:$E$213) -> 0.2605 | X125: 0.325625 | Y125: 1634.99 | Z125: 3386.09
A126: 750 | B126: =LOOKUP(A126,'DOE - FIPStoPayeeCodeConvTable'!$A$3:$A$213,'DOE - FIPStoPayeeCodeConvTable'!$B$3:$B$213) -> Radford City | F126: 0 | G126: 0 | H126: 0 | I126: 0 | J126: 0 | K126: 0 | L126: 0 | M126: 0 | N126: 0 | S126: 0 | U126: 0 | V126: 0 | W126: =LOOKUP(A126,'DOE - FIPStoPayeeCodeConvTable'!$A$3:$A$213,'DOE - FIPStoPayeeCodeConvTable'!$E$3:$E$213) -> 0.2035 | X126: 0.254375 | Y126: 0 | Z126: 0
A127: 760 | B127: =LOOKUP(A127,'DOE - FIPStoPayeeCodeConvTable'!$A$3:$A$213,'DOE - FIPStoPayeeCodeConvTable'!$B$3:$B$213) -> Richmond City | F127: 4386.6 | G127: 19687.94 | H127: 4722 | I127: 0 | J127: 0 | K127: 1574 | L127: 0 | M127: 1574 | N127: 0 | S127: 31944.54 | U127: 22150.34 | V127: 9794.2 | W127: =LOOKUP(A127,'DOE - FIPStoPayeeCodeConvTable'!$A$3:$A$213,'DOE - FIPStoPayeeCodeConvTable'!$E$3:$E$213) -> 0.3691 | X127: 0.461375 | Y127: 4518.8 | Z127: 5275.4
A128: 770 | B128: =LOOKUP(A128,'DOE - FIPStoPayeeCodeConvTable'!$A$3:$A$213,'DOE - FIPStoPayeeCodeConvTable'!$B$3:$B$213) -> Roanoke City | F128: 3541.5 | G128: 0 | H128: 5902.5 | I128: 16527 | J128: 10624.5 | K128: 12592 | L128: 17707.5 | M128: 14166 | N128: 7870 | S128: 88931 | U128: 61664.76 | V128: 27266.24 | W128: =LOOKUP(A128,'DOE - FIPStoPayeeCodeConvTable'!$A$3:$A$213,'DOE - FIPStoPayeeCodeConvTable'!$E$3:$E$213) -> 0.3072 | X128: 0.384 | Y128: 10470.24 | Z128: 16796
A129: 775 | B129: =LOOKUP(A129,'DOE - FIPStoPayeeCodeConvTable'!$A$3:$A$213,'DOE - FIPStoPayeeCodeConvTable'!$B$3:$B$213) -> Salem City | F129: 0 | G129: 0 | H129: 0 | I129: 0 | J129: 0 | K129: 0 | L129: 0 | M129: 0 | N129: 0 | S129: 0 | U129: 0 | V129: 0 | W129: =LOOKUP(A129,'DOE - FIPStoPayeeCodeConvTable'!$A$3:$A$213,'DOE - FIPStoPayeeCodeConvTable'!$E$3:$E$213) -> 0.3513 | X129: 0.439125 | Y129: 0 | Z129: 0
A130: 790 | B130: =LOOKUP(A130,'DOE - FIPStoPayeeCodeConvTable'!$A$3:$A$213,'DOE - FIPStoPayeeCodeConvTable'!$B$3:$B$213) -> Staunton City | F130: 0 | G130: 0 | H130: 0 | I130: 0 | J130: 0 | K130: 0 | L130: 0 | M130: 0 | N130: 0 | S130: 0 | U130: 0 | V130: 0 | W130: =LOOKUP(A130,'DOE - FIPStoPayeeCodeConvTable'!$A$3:$A$213,'DOE - FIPStoPayeeCodeConvTable'!$E$3:$E$213) -> 0.2699 | X130: 0.337375 | Y130: 0 | Z130: 0
A131: 800 | B131: =LOOKUP(A131,'DOE - FIPStoPayeeCodeConvTable'!$A$3:$A$213,'DOE - FIPStoPayeeCodeConvTable'!$B$3:$B$213) -> Suffolk City | F131: 0 | G131: 0 | H131: 0 | I131: 0 | J131: 0 | K131: 0 | L131: 0 | M131: 0 | N131: 0 | S131: 0 | U131: 0 | V131: 0 | W131: =LOOKUP(A131,'DOE - FIPStoPayeeCodeConvTable'!$A$3:$A$213,'DOE - FIPStoPayeeCodeConvTable'!$E$3:$E$213) -> 0.2432 | X131: 0.304 | Y131: 0 | Z131: 0
A132: 810 | B132: =LOOKUP(A132,'DOE - FIPStoPayeeCodeConvTable'!$A$3:$A$213,'DOE - FIPStoPayeeCodeConvTable'!$B$3:$B$213) -> Virginia Beach City | F132: 0 | G132: 0 | H132: 0 | I132: 0 | J132: 0 | K132: 0 | L132: 0 | M132: 20462 | N132: 12198.5 | S132: 32660.5 | U132: 22646.79 | V132: 10013.71 | W132: =LOOKUP(A132,'DOE - FIPStoPayeeCodeConvTable'!$A$3:$A$213,'DOE - FIPStoPayeeCodeConvTable'!$E$3:$E$213) -> 0.3569 | X132: 0.446125 | Y132: 4467.37 | Z132: 5546.34
A133: 820 | B133: =LOOKUP(A133,'DOE - FIPStoPayeeCodeConvTable'!$A$3:$A$213,'DOE - FIPStoPayeeCodeConvTable'!$B$3:$B$213) -> Waynesboro City | F133: 0 | G133: 0 | H133: 0 | I133: 0 | J133: 0 | K133: 0 | L133: 0 | M133: 0 | N133: 0 | S133: 0 | U133: 0 | V133: =SUM(S133)-SUM(U133) -> 0 | W133: =LOOKUP(A133,'DOE - FIPStoPayeeCodeConvTable'!$A$3:$A$213,'DOE - FIPStoPayeeCodeConvTable'!$E$3:$E$213) -> 0.3843 | X133: 0.480375 | Y133: 0 | Z133: 0
A134: 830 | B134: =LOOKUP(A134,'DOE - FIPStoPayeeCodeConvTable'!$A$3:$A$213,'DOE - FIPStoPayeeCodeConvTable'!$B$3:$B$213) -> Williamsburg City | F134: 0 | G134: 0 | H134: 0 | I134: 0 | J134: 0 | K134: 0 | L134: 0 | M134: 0 | N134: 0 | S134: 0 | U134: =ROUND($U$1*S134,2) -> 0 | V134: 0 | W134: =LOOKUP(A134,'DOE - FIPStoPayeeCodeConvTable'!$A$3:$A$213,'DOE - FIPStoPayeeCodeConvTable'!$E$3:$E$213) -> 0.4553 | X134: 0.569125 | Y134: 0 | Z134: 0
A135: 840 | B135: =LOOKUP(A135,'DOE - FIPStoPayeeCodeConvTable'!$A$3:$A$213,'DOE - FIPStoPayeeCodeConvTable'!$B$3:$B$213) -> Winchester City | F135: 0 | G135: 5509 | H135: 11018 | I135: 13772.5 | J135: 7476.5 | K135: 0 | L135: 0 | M135: 0 | N135: 0 | S135: =SUM(C135:R135) -> 37776 | U135: 26193.88 | V135: 11582.12 | W135: =LOOKUP(A135,'DOE - FIPStoPayeeCodeConvTable'!$A$3:$A$213,'DOE - FIPStoPayeeCodeConvTable'!$E$3:$E$213) -> 0.4587 | X135: =$X$1*W135 -> 0.573375 | Y135: =ROUND(X135*V135,2) -> 6640.9 | Z135: =SUM(V135)-SUM(Y135) -> 4941.22

Sheet Extend Covid 19 rate adj (hidden)
A1: FY | B1: ='DOE - FIPStoPayeeCodeConvTable'!G1 -> 2021 | C1: MEDICAID ADJUSTMENTS--Extended Rate Chg for Covid 19 | O1: ="Extended to be paided in this SFY = " & B1 -> Extended to be paided in this SFY = 2021 | T1: xx | U1: 0.8084 | V1: =100%-U1 -> 0.1916 | W1: (POOL) | X1: 1.25
U2: FEDERAL | V2: STATE/ | W2: (RATE) | X2: Factor
A3: FIPS | S3: Grand | U3: MEDICAID | V3: LOCAL | W3: LOCAL | Y3: LOCAL | Z3: STATE
A4: CODE | B4: LOCALITY | C4: =TEXT("7/1/" & $B$1-1,"mmm-yyyy") -> Jul-2020 | D4: =TEXT("8/1/" & $B$1-1,"mmm-yyyy") -> Aug-2020 | E4: =TEXT("9/1/" & $B$1-1,"mmm-yyyy") -> Sep-2020 | F4: =TEXT("10/1/" & $B$1-1,"mmm-yyyy") -> Oct-2020 | G4: =TEXT("11/1/" & $B$1-1,"mmm-yyyy") -> Nov-2020 | H4: =TEXT("12/1/" & $B$1-1,"mmm-yyyy") -> Dec-2020 | I4: =TEXT("1/1/" & $B$1,"mmm-yyyy") -> Jan-2021 | J4: =TEXT("2/1/" & $B$1,"mmm-yyyy") -> Feb-2021 | K4: =TEXT("3/1/" & $B$1,"mmm-yyyy") -> Mar-2021 | L4: =TEXT("4/1/" & $B$1,"mmm-yyyy") -> Apr-2021 | M4: =TEXT("5/1/" & $B$1,"mmm-yyyy") -> May-2021 | N4: =TEXT("6/1/" & $B$1,"mmm-yyyy") -> Jun-2021 | O4: =TEXT("7/1/" & $B$1,"mmm-yyyy") -> Jul-2021 | P4: =TEXT("8/1/" & $B$1,"mmm-yyyy") -> Aug-2021 | Q4: =TEXT("9/1/" & $B$1,"mmm-yyyy") -> Sep-2021 | R4: =TEXT("10/1/" & $B$1,"mmm-yyyy") -> Oct-2021 | S4: Total | U4: RATE/Share | V4: SHARE | W4: MATCH Rate | Y4: MATCH | Z4: SHARE
A5: Totals | C5: =SUM(C6:C1200) -> 233796.04 | D5: 227983.86 | E5: 153885.28 | F5: 0 | G5: 0 | H5: 0 | I5: 0 | J5: 0 | K5: 0 | L5: 0 | M5: 0 | N5: 0 | O5: 0 | P5: 0 | Q5: 0 | R5: 0 | S5: =SUM(C5:R5) -> 615665.18 | T5: = | U5: =SUM(U6:U399) -> 497703.71 | V5: =SUM(V6:V399) -> 117961.47 | W5: = | Y5: =SUM(Y6:Y399) -> 48440.91 | Z5: =SUM(Z6:Z399) -> 69520.56
A6: 1 | B6: =LOOKUP(A6,'DOE - FIPStoPayeeCodeConvTable'!$A$3:$A$213,'DOE - FIPStoPayeeCodeConvTable'!$B$3:$B$213) -> Accomack Co | C6: 11411.5 | D6: 16133.5 | E6: 8657 | S6: 36202 | U6: =ROUND($U$1*S6,2) -> 29265.7 | V6: =SUM(S6)-SUM(U6) -> 6936.3 | W6: =LOOKUP(A6,'DOE - FIPStoPayeeCodeConvTable'!$A$3:$A$213,'DOE - FIPStoPayeeCodeConvTable'!$E$3:$E$213) -> 0.2332 | X6: =$X$1*W6 -> 0.2915 | Y6: =ROUND(X6*V6,2) -> 2021.93 | Z6: =SUM(V6)-SUM(Y6) -> 4914.37
A7: 3 | B7: =LOOKUP(A7,'DOE - FIPStoPayeeCodeConvTable'!$A$3:$A$213,'DOE - FIPStoPayeeCodeConvTable'!$B$3:$B$213) -> Albemarle Co | C7: 11018 | D7: 11018 | E7: 11018 | S7: 33054 | U7: 26720.85 | V7: 6333.15 | W7: =LOOKUP(A7,'DOE - FIPStoPayeeCodeConvTable'!$A$3:$A$213,'DOE - FIPStoPayeeCodeConvTable'!$E$3:$E$213) -> 0.4474 | X7: =$X$1*W7 -> 0.55925 | Y7: =ROUND(X7*V7,2) -> 3541.81 | Z7: =SUM(V7)-SUM(Y7) -> 2791.34
A8: 5 | B8: =LOOKUP(A8,'DOE - FIPStoPayeeCodeConvTable'!$A$3:$A$213,'DOE - FIPStoPayeeCodeConvTable'!$B$3:$B$213) -> Alleghany Co | C8: 0 | D8: 0 | E8: 0 | S8: 0 | U8: 0 | V8: 0 | W8: =LOOKUP(A8,'DOE - FIPStoPayeeCodeConvTable'!$A$3:$A$213,'DOE - FIPStoPayeeCodeConvTable'!$E$3:$E$213) -> 0.1924 | X8: 0.2405 | Y8: 0 | Z8: 0 | AB8: =1-0.1916 -> 0.8084
A9: 7 | B9: =LOOKUP(A9,'DOE - FIPStoPayeeCodeConvTable'!$A$3:$A$213,'DOE - FIPStoPayeeCodeConvTable'!$B$3:$B$213) -> Amelia Co | C9: 0 | D9: 0 | E9: 0 | S9: 0 | U9: 0 | V9: 0 | W9: =LOOKUP(A9,'DOE - FIPStoPayeeCodeConvTable'!$A$3:$A$213,'DOE - FIPStoPayeeCodeConvTable'!$E$3:$E$213) -> 0.3268 | X9: 0.4085 | Y9: 0 | Z9: 0
A10: 9 | B10: =LOOKUP(A10,'DOE - FIPStoPayeeCodeConvTable'!$A$3:$A$213,'DOE - FIPStoPayeeCodeConvTable'!$B$3:$B$213) -> Amherst Co | C10: 0 | D10: 0 | E10: 0 | S10: 0 | U10: 0 | V10: 0 | W10: =LOOKUP(A10,'DOE - FIPStoPayeeCodeConvTable'!$A$3:$A$213,'DOE - FIPStoPayeeCodeConvTable'!$E$3:$E$213) -> 0.2722 | X10: 0.34025 | Y10: 0 | Z10: 0
A11: 11 | B11: =LOOKUP(A11,'DOE - FIPStoPayeeCodeConvTable'!$A$3:$A$213,'DOE - FIPStoPayeeCodeConvTable'!$B$3:$B$213) -> Appomattox Co | C11: 0 | D11: 0 | E11: 0 | S11: 0 | U11: 0 | V11: 0 | W11: =LOOKUP(A11,'DOE - FIPStoPayeeCodeConvTable'!$A$3:$A$213,'DOE - FIPStoPayeeCodeConvTable'!$E$3:$E$213) -> 0.2639 | X11: 0.329875 | Y11: 0 | Z11: 0
A12: 13 | B12: =LOOKUP(A12,'DOE - FIPStoPayeeCodeConvTable'!$A$3:$A$213,'DOE - FIPStoPayeeCodeConvTable'!$B$3:$B$213) -> Arlington Co | C12: 0 | D12: 0 | E12: 0 | S12: 0 | U12: 0 | V12: 0 | W12: =LOOKUP(A12,'DOE - FIPStoPayeeCodeConvTable'!$A$3:$A$213,'DOE - FIPStoPayeeCodeConvTable'!$E$3:$E$213) -> 0.4602 | X12: 0.57525 | Y12: 0 | Z12: 0
A13: 15 | B13: =LOOKUP(A13,'DOE - FIPStoPayeeCodeConvTable'!$A$3:$A$213,'DOE - FIPStoPayeeCodeConvTable'!$B$3:$B$213) -> Augusta Co | C13: 0 | D13: 0 | E13: 0 | S13: 0 | U13: 0 | V13: 0 | W13: =LOOKUP(A13,'DOE - FIPStoPayeeCodeConvTable'!$A$3:$A$213,'DOE - FIPStoPayeeCodeConvTable'!$E$3:$E$213) -> 0.3302 | X13: 0.41275 | Y13: 0 | Z13: 0
A14: 17 | B14: =LOOKUP(A14,'DOE - FIPStoPayeeCodeConvTable'!$A$3:$A$213,'DOE - FIPStoPayeeCodeConvTable'!$B$3:$B$213) -> Bath Co | C14: 0 | D14: 0 | E14: 0 | S14: 0 | U14: 0 | V14: 0 | W14: =LOOKUP(A14,'DOE - FIPStoPayeeCodeConvTable'!$A$3:$A$213,'DOE - FIPStoPayeeCodeConvTable'!$E$3:$E$213) -> 0.4278 | X14: 0.53475 | Y14: 0 | Z14: 0
A15: 19 | B15: =LOOKUP(A15,'DOE - FIPStoPayeeCodeConvTable'!$A$3:$A$213,'DOE - FIPStoPayeeCodeConvTable'!$B$3:$B$213) -> Bedford Co | C15: 4386.6 | D15: 4532.82 | E15: 4532.82 | S15: 13452.24 | U15: 10874.79 | V15: 2577.45 | W15: =LOOKUP(A15,'DOE - FIPStoPayeeCodeConvTable'!$A$3:$A$213,'DOE - FIPStoPayeeCodeConvTable'!$E$3:$E$213) -> 0.31112 | X15: 0.3889 | Y15: 1002.37 | Z15: 1575.08
A16: 21 | B16: =LOOKUP(A16,'DOE - FIPStoPayeeCodeConvTable'!$A$3:$A$213,'DOE - FIPStoPayeeCodeConvTable'!$B$3:$B$213) -> Bland Co | C16: 0 | D16: 0 | E16: 0 | S16: 0 | U16: 0 | V16: 0 | W16: =LOOKUP(A16,'DOE - FIPStoPayeeCodeConvTable'!$A$3:$A$213,'DOE - FIPStoPayeeCodeConvTable'!$E$3:$E$213) -> 0.2109 | X16: 0.263625 | Y16: 0 | Z16: 0
A17: 23 | B17: =LOOKUP(A17,'DOE - FIPStoPayeeCodeConvTable'!$A$3:$A$213,'DOE - FIPStoPayeeCodeConvTable'!$B$3:$B$213) -> Botetourt Co | C17: 0 | D17: 0 | E17: 0 | S17: 0 | U17: 0 | V17: 0 | W17: =LOOKUP(A17,'DOE - FIPStoPayeeCodeConvTable'!$A$3:$A$213,'DOE - FIPStoPayeeCodeConvTable'!$E$3:$E$213) -> 0.3602 | X17: 0.45025 | Y17: 0 | Z17: 0
A18: 25 | B18: =LOOKUP(A18,'DOE - FIPStoPayeeCodeConvTable'!$A$3:$A$213,'DOE - FIPStoPayeeCodeConvTable'!$B$3:$B$213) -> Brunswick Co | C18: 0 | D18: 0 | E18: 0 | S18: 0 | U18: 0 | V18: 0 | W18: =LOOKUP(A18,'DOE - FIPStoPayeeCodeConvTable'!$A$3:$A$213,'DOE - FIPStoPayeeCodeConvTable'!$E$3:$E$213) -> 0.2439 | X18: 0.304875 | Y18: 0 | Z18: 0
A19: 27 | B19: =LOOKUP(A19,'DOE - FIPStoPayeeCodeConvTable'!$A$3:$A$213,'DOE - FIPStoPayeeCodeConvTable'!$B$3:$B$213) -> Buchanan Co | C19: 0 | D19: 0 | E19: 0 | S19: 0 | U19: 0 | V19: 0 | W19: =LOOKUP(A19,'DOE - FIPStoPayeeCodeConvTable'!$A$3:$A$213,'DOE - FIPStoPayeeCodeConvTable'!$E$3:$E$213) -> 0.3156 | X19: 0.3945 | Y19: 0 | Z19: 0
A20: 29 | B20: =LOOKUP(A20,'DOE - FIPStoPayeeCodeConvTable'!$A$3:$A$213,'DOE - FIPStoPayeeCodeConvTable'!$B$3:$B$213) -> Buckingham Co | C20: 39350 | D20: 12198.5 | E20: 12198.5 | S20: 63747 | U20: 51533.07 | V20: 12213.93 | W20: =LOOKUP(A20,'DOE - FIPStoPayeeCodeConvTable'!$A$3:$A$213,'DOE - FIPStoPayeeCodeConvTable'!$E$3:$E$213) -> 0.2023 | X20: 0.252875 | Y20: 3088.6 | Z20: 9125.33
A21: 31 | B21: =LOOKUP(A21,'DOE - FIPStoPayeeCodeConvTable'!$A$3:$A$213,'DOE - FIPStoPayeeCodeConvTable'!$B$3:$B$213) -> Campbell Co | C21: 0 | D21: 0 | E21: 0 | S21: 0 | U21: 0 | V21: 0 | W21: =LOOKUP(A21,'DOE - FIPStoPayeeCodeConvTable'!$A$3:$A$213,'DOE - FIPStoPayeeCodeConvTable'!$E$3:$E$213) -> 0.3107 | X21: 0.388375 | Y21: 0 | Z21: 0
A22: 33 | B22: =LOOKUP(A22,'DOE - FIPStoPayeeCodeConvTable'!$A$3:$A$213,'DOE - FIPStoPayeeCodeConvTable'!$B$3:$B$213) -> Caroline Co | C22: 0 | D22: 0 | E22: 0 | S22: 0 | U22: 0 | V22: 0 | W22: =LOOKUP(A22,'DOE - FIPStoPayeeCodeConvTable'!$A$3:$A$213,'DOE - FIPStoPayeeCodeConvTable'!$E$3:$E$213) -> 0.3308 | X22: 0.4135 | Y22: 0 | Z22: 0
A23: 35 | B23: =LOOKUP(A23,'DOE - FIPStoPayeeCodeConvTable'!$A$3:$A$213,'DOE - FIPStoPayeeCodeConvTable'!$B$3:$B$213) -> Carroll Co | C23: 0 | D23: 0 | E23: 0 | S23: 0 | U23: 0 | V23: 0 | W23: =LOOKUP(A23,'DOE - FIPStoPayeeCodeConvTable'!$A$3:$A$213,'DOE - FIPStoPayeeCodeConvTable'!$E$3:$E$213) -> 0.291 | X23: 0.36375 | Y23: 0 | Z23: 0
A24: 36 | B24: =LOOKUP(A24,'DOE - FIPStoPayeeCodeConvTable'!$A$3:$A$213,'DOE - FIPStoPayeeCodeConvTable'!$B$3:$B$213) -> Charles City Co | C24: 0 | D24: 0 | E24: 0 | S24: 0 | U24: 0 | V24: 0 | W24: =LOOKUP(A24,'DOE - FIPStoPayeeCodeConvTable'!$A$3:$A$213,'DOE - FIPStoPayeeCodeConvTable'!$E$3:$E$213) -> 0.3131 | X24: 0.391375 | Y24: 0 | Z24: 0
A25: 37 | B25: =LOOKUP(A25,'DOE - FIPStoPayeeCodeConvTable'!$A$3:$A$213,'DOE - FIPStoPayeeCodeConvTable'!$B$3:$B$213) -> Charlotte Co | C25: 0 | D25: 0 | E25: 0 | S25: 0 | U25: 0 | V25: 0 | W25: =LOOKUP(A25,'DOE - FIPStoPayeeCodeConvTable'!$A$3:$A$213,'DOE - FIPStoPayeeCodeConvTable'!$E$3:$E$213) -> 0.2204 | X25: 0.2755 | Y25: 0 | Z25: 0
A26: 41 | B26: =LOOKUP(A26,'DOE - FIPStoPayeeCodeConvTable'!$A$3:$A$213,'DOE - FIPStoPayeeCodeConvTable'!$B$3:$B$213) -> Chesterfield Co | C26: 0 | D26: 0 | E26: 0 | S26: 0 | U26: 0 | V26: 0 | W26: =LOOKUP(A26,'DOE - FIPStoPayeeCodeConvTable'!$A$3:$A$213,'DOE - FIPStoPayeeCodeConvTable'!$E$3:$E$213) -> 0.3853 | X26: 0.481625 | Y26: 0 | Z26: 0
A27: 43 | B27: =LOOKUP(A27,'DOE - FIPStoPayeeCodeConvTable'!$A$3:$A$213,'DOE - FIPStoPayeeCodeConvTable'!$B$3:$B$213) -> Clarke Co | C27: 0 | D27: 0 | E27: 0 | S27: 0 | U27: 0 | V27: 0 | W27: =LOOKUP(A27,'DOE - FIPStoPayeeCodeConvTable'!$A$3:$A$213,'DOE - FIPStoPayeeCodeConvTable'!$E$3:$E$213) -> 0.4797 | X27: 0.599625 | Y27: 0 | Z27: 0
A28: 45 | B28: =LOOKUP(A28,'DOE - FIPStoPayeeCodeConvTable'!$A$3:$A$213,'DOE - FIPStoPayeeCodeConvTable'!$B$3:$B$213) -> Craig Co | C28: 0 | D28: 0 | E28: 0 | S28: 0 | U28: 0 | V28: 0 | W28: =LOOKUP(A28,'DOE - FIPStoPayeeCodeConvTable'!$A$3:$A$213,'DOE - FIPStoPayeeCodeConvTable'!$E$3:$E$213) -> 0.2901 | X28: 0.362625 | Y28: 0 | Z28: 0
A29: 47 | B29: =LOOKUP(A29,'DOE - FIPStoPayeeCodeConvTable'!$A$3:$A$213,'DOE - FIPStoPayeeCodeConvTable'!$B$3:$B$213) -> Culpeper Co | C29: 16920.5 | D29: 0 | E29: 0 | S29: 16920.5 | U29: 13678.53 | V29: 3241.97 | W29: =LOOKUP(A29,'DOE - FIPStoPayeeCodeConvTable'!$A$3:$A$213,'DOE - FIPStoPayeeCodeConvTable'!$E$3:$E$213) -> 0.3767 | X29: 0.470875 | Y29: 1526.56 | Z29: 1715.41
A30: 49 | B30: =LOOKUP(A30,'DOE - FIPStoPayeeCodeConvTable'!$A$3:$A$213,'DOE - FIPStoPayeeCodeConvTable'!$B$3:$B$213) -> Cumberland Co | C30: 0 | D30: 0 | E30: 0 | S30: 0 | U30: 0 | V30: 0 | W30: =LOOKUP(A30,'DOE - FIPStoPayeeCodeConvTable'!$A$3:$A$213,'DOE - FIPStoPayeeCodeConvTable'!$E$3:$E$213) -> 0.304 | X30: 0.38 | Y30: 0 | Z30: 0
A31: 51 | B31: =LOOKUP(A31,'DOE - FIPStoPayeeCodeConvTable'!$A$3:$A$213,'DOE - FIPStoPayeeCodeConvTable'!$B$3:$B$213) -> Dickenson Co | C31: 0 | D31: 0 | E31: 0 | S31: 0 | U31: 0 | V31: 0 | W31: =LOOKUP(A31,'DOE - FIPStoPayeeCodeConvTable'!$A$3:$A$213,'DOE - FIPStoPayeeCodeConvTable'!$E$3:$E$213) -> 0.3042 | X31: 0.38025 | Y31: 0 | Z31: 0
A32: 53 | B32: =LOOKUP(A32,'DOE - FIPStoPayeeCodeConvTable'!$A$3:$A$213,'DOE - FIPStoPayeeCodeConvTable'!$B$3:$B$213) -> Dinwiddie Co | C32: 0 | D32: 0 | E32: 0 | S32: 0 | U32: 0 | V32: 0 | W32: =LOOKUP(A32,'DOE - FIPStoPayeeCodeConvTable'!$A$3:$A$213,'DOE - FIPStoPayeeCodeConvTable'!$E$3:$E$213) -> 0.3358 | X32: 0.41975 | Y32: 0 | Z32: 0
A33: 57 | B33: =LOOKUP(A33,'DOE - FIPStoPayeeCodeConvTable'!$A$3:$A$213,'DOE - FIPStoPayeeCodeConvTable'!$B$3:$B$213) -> Essex Co | C33: 0 | D33: 0 | E33: 0 | S33: 0 | U33: 0 | V33: 0 | W33: =LOOKUP(A33,'DOE - FIPStoPayeeCodeConvTable'!$A$3:$A$213,'DOE - FIPStoPayeeCodeConvTable'!$E$3:$E$213) -> 0.3853 | X33: 0.481625 | Y33: 0 | Z33: 0
A34: 59 | B34: =LOOKUP(A34,'DOE - FIPStoPayeeCodeConvTable'!$A$3:$A$213,'DOE - FIPStoPayeeCodeConvTable'!$B$3:$B$213) -> Fairfax Co | C34: 0 | D34: 0 | E34: 0 | S34: 0 | U34: 0 | V34: 0 | W34: =LOOKUP(A34,'DOE - FIPStoPayeeCodeConvTable'!$A$3:$A$213,'DOE - FIPStoPayeeCodeConvTable'!$E$3:$E$213) -> 0.4611 | X34: 0.576375 | Y34: 0 | Z34: 0
A35: 61 | B35: =LOOKUP(A35,'DOE - FIPStoPayeeCodeConvTable'!$A$3:$A$213,'DOE - FIPStoPayeeCodeConvTable'!$B$3:$B$213) -> Fauquier Co | C35: 11805 | D35: 23610 | E35: 24397 | S35: 59812 | U35: 48352.02 | V35: 11459.98 | W35: =LOOKUP(A35,'DOE - FIPStoPayeeCodeConvTable'!$A$3:$A$213,'DOE - FIPStoPayeeCodeConvTable'!$E$3:$E$213) -> 0.4584 | X35: 0.573 | Y35: 6566.57 | Z35: 4893.41
A36: 63 | B36: =LOOKUP(A36,'DOE - FIPStoPayeeCodeConvTable'!$A$3:$A$213,'DOE - FIPStoPayeeCodeConvTable'!$B$3:$B$213) -> Floyd Co | C36: 0 | D36: 0 | E36: 0 | S36: 0 | U36: 0 | V36: 0 | W36: =LOOKUP(A36,'DOE - FIPStoPayeeCodeConvTable'!$A$3:$A$213,'DOE - FIPStoPayeeCodeConvTable'!$E$3:$E$213) -> 0.2324 | X36: 0.2905 | Y36: 0 | Z36: 0
A37: 65 | B37: =LOOKUP(A37,'DOE - FIPStoPayeeCodeConvTable'!$A$3:$A$213,'DOE - FIPStoPayeeCodeConvTable'!$B$3:$B$213) -> Fluvanna Co | C37: 0 | D37: 0 | E37: 0 | S37: =SUM(C37:R37) -> 0 | U37: 0 | V37: 0 | W37: =LOOKUP(A37,'DOE - FIPStoPayeeCodeConvTable'!$A$3:$A$213,'DOE - FIPStoPayeeCodeConvTable'!$E$3:$E$213) -> 0.3811 | X37: 0.476375 | Y37: 0 | Z37: 0
A38: 67 | B38: =LOOKUP(A38,'DOE - FIPStoPayeeCodeConvTable'!$A$3:$A$213,'DOE - FIPStoPayeeCodeConvTable'!$B$3:$B$213) -> Franklin Co | C38: 0 | D38: 0 | E38: 0 | S38: 0 | U38: =ROUND($U$1*S38,2) -> 0 | V38: =SUM(S38)-SUM(U38) -> 0 | W38: =LOOKUP(A38,'DOE - FIPStoPayeeCodeConvTable'!$A$3:$A$213,'DOE - FIPStoPayeeCodeConvTable'!$E$3:$E$213) -> 0.283 | X38: 0.35375 | Y38: 0 | Z38: 0
A39: 69 | B39: =LOOKUP(A39,'DOE - FIPStoPayeeCodeConvTable'!$A$3:$A$213,'DOE - FIPStoPayeeCodeConvTable'!$B$3:$B$213) -> Frederick Co | C39: 0 | D39: 0 | E39: 0 | S39: 0 | U39: 0 | V39: 0 | W39: =LOOKUP(A39,'DOE - FIPStoPayeeCodeConvTable'!$A$3:$A$213,'DOE - FIPStoPayeeCodeConvTable'!$E$3:$E$213) -> 0.4348 | X39: 0.5435 | Y39: 0 | Z39: 0
A40: 71 | B40: =LOOKUP(A40,'DOE - FIPStoPayeeCodeConvTable'!$A$3:$A$213,'DOE - FIPStoPayeeCodeConvTable'!$B$3:$B$213) -> Giles Co | C40: 0 | D40: 0 | E40: 0 | S40: 0 | U40: 0 | V40: 0 | W40: =LOOKUP(A40,'DOE - FIPStoPayeeCodeConvTable'!$A$3:$A$213,'DOE - FIPStoPayeeCodeConvTable'!$E$3:$E$213) -> 0.2898 | X40: 0.36225 | Y40: 0 | Z40: 0
A41: 73 | B41: =LOOKUP(A41,'DOE - FIPStoPayeeCodeConvTable'!$A$3:$A$213,'DOE - FIPStoPayeeCodeConvTable'!$B$3:$B$213) -> Gloucester Co | C41: 0 | D41: 0 | E41: 0 | S41: 0 | U41: 0 | V41: 0 | W41: =LOOKUP(A41,'DOE - FIPStoPayeeCodeConvTable'!$A$3:$A$213,'DOE - FIPStoPayeeCodeConvTable'!$E$3:$E$213) -> 0.3687 | X41: 0.460875 | Y41: 0 | Z41: 0
A42: 75 | B42: =LOOKUP(A42,'DOE - FIPStoPayeeCodeConvTable'!$A$3:$A$213,'DOE - FIPStoPayeeCodeConvTable'!$B$3:$B$213) -> Goochland Co | C42: 0 | D42: 0 | E42: 0 | S42: 0 | U42: 0 | V42: 0 | W42: =LOOKUP(A42,'DOE - FIPStoPayeeCodeConvTable'!$A$3:$A$213,'DOE - FIPStoPayeeCodeConvTable'!$E$3:$E$213) -> 0.4871 | X42: 0.608875 | Y42: 0 | Z42: 0
A43: 77 | B43: =LOOKUP(A43,'DOE - FIPStoPayeeCodeConvTable'!$A$3:$A$213,'DOE - FIPStoPayeeCodeConvTable'!$B$3:$B$213) -> Grayson Co | C43: 0 | D43: 0 | E43: 0 | S43: 0 | U43: 0 | V43: 0 | W43: =LOOKUP(A43,'DOE - FIPStoPayeeCodeConvTable'!$A$3:$A$213,'DOE - FIPStoPayeeCodeConvTable'!$E$3:$E$213) -> 0.2109 | X43: 0.263625 | Y43: 0 | Z43: 0
A44: 79 | B44: =LOOKUP(A44,'DOE - FIPStoPayeeCodeConvTable'!$A$3:$A$213,'DOE - FIPStoPayeeCodeConvTable'!$B$3:$B$213) -> Greene Co | C44: 0 | D44: 0 | E44: 0 | S44: 0 | U44: 0 | V44: 0 | W44: =LOOKUP(A44,'DOE - FIPStoPayeeCodeConvTable'!$A$3:$A$213,'DOE - FIPStoPayeeCodeConvTable'!$E$3:$E$213) -> 0.3471 | X44: 0.433875 | Y44: 0 | Z44: 0
A45: 81 | B45: =LOOKUP(A45,'DOE - FIPStoPayeeCodeConvTable'!$A$3:$A$213,'DOE - FIPStoPayeeCodeConvTable'!$B$3:$B$213) -> Greensville Co | C45: 0 | D45: 0 | E45: 0 | S45: 0 | U45: 0 | V45: 0 | W45: =LOOKUP(A45,'DOE - FIPStoPayeeCodeConvTable'!$A$3:$A$213,'DOE - FIPStoPayeeCodeConvTable'!$E$3:$E$213) -> 0.2266 | X45: 0.28325 | Y45: 0 | Z45: 0
A46: 83 | B46: =LOOKUP(A46,'DOE - FIPStoPayeeCodeConvTable'!$A$3:$A$213,'DOE - FIPStoPayeeCodeConvTable'!$B$3:$B$213) -> Halifax Co | C46: 12198.5 | D46: 0 | E46: 0 | S46: 12198.5 | U46: 9861.27 | V46: 2337.23 | W46: =LOOKUP(A46,'DOE - FIPStoPayeeCodeConvTable'!$A$3:$A$213,'DOE - FIPStoPayeeCodeConvTable'!$E$3:$E$213) -> 0.2335 | X46: 0.291875 | Y46: 682.18 | Z46: 1655.05
A47: 85 | B47: =LOOKUP(A47,'DOE - FIPStoPayeeCodeConvTable'!$A$3:$A$213,'DOE - FIPStoPayeeCodeConvTable'!$B$3:$B$213) -> Hanover Co | C47: 0 | D47: 29906 | E47: 7083 | S47: 36989 | U47: 29901.91 | V47: 7087.09 | W47: =LOOKUP(A47,'DOE - FIPStoPayeeCodeConvTable'!$A$3:$A$213,'DOE - FIPStoPayeeCodeConvTable'!$E$3:$E$213) -> 0.4444 | X47: 0.5555 | Y47: 3936.88 | Z47: 3150.21
A48: 87 | B48: =LOOKUP(A48,'DOE - FIPStoPayeeCodeConvTable'!$A$3:$A$213,'DOE - FIPStoPayeeCodeConvTable'!$B$3:$B$213) -> Henrico Co | C48: 0 | D48: 3935 | E48: 0 | S48: 3935 | U48: 3181.05 | V48: 753.95 | W48: =LOOKUP(A48,'DOE - FIPStoPayeeCodeConvTable'!$A$3:$A$213,'DOE - FIPStoPayeeCodeConvTable'!$E$3:$E$213) -> 0.3755 | X48: 0.469375 | Y48: 353.89 | Z48: 400.06
A49: 89 | B49: =LOOKUP(A49,'DOE - FIPStoPayeeCodeConvTable'!$A$3:$A$213,'DOE - FIPStoPayeeCodeConvTable'!$B$3:$B$213) -> Henry Co | C49: 0 | D49: 0 | E49: 0 | S49: 0 | U49: 0 | V49: 0 | W49: =LOOKUP(A49,'DOE - FIPStoPayeeCodeConvTable'!$A$3:$A$213,'DOE - FIPStoPayeeCodeConvTable'!$E$3:$E$213) -> 0.2786 | X49: 0.34825 | Y49: 0 | Z49: 0
A50: 91 | B50: =LOOKUP(A50,'DOE - FIPStoPayeeCodeConvTable'!$A$3:$A$213,'DOE - FIPStoPayeeCodeConvTable'!$B$3:$B$213) -> Highland Co | C50: 0 | D50: 0 | E50: 0 | S50: 0 | U50: 0 | V50: 0 | W50: =LOOKUP(A50,'DOE - FIPStoPayeeCodeConvTable'!$A$3:$A$213,'DOE - FIPStoPayeeCodeConvTable'!$E$3:$E$213) -> 0.3822 | X50: 0.47775 | Y50: 0 | Z50: 0
A51: 93 | B51: =LOOKUP(A51,'DOE - FIPStoPayeeCodeConvTable'!$A$3:$A$213,'DOE - FIPStoPayeeCodeConvTable'!$B$3:$B$213) -> Isle Of Wight Co | C51: 0 | D51: 0 | E51: 0 | S51: 0 | U51: 0 | V51: 0 | W51: =LOOKUP(A51,'DOE - FIPStoPayeeCodeConvTable'!$A$3:$A$213,'DOE - FIPStoPayeeCodeConvTable'!$E$3:$E$213) -> 0.3613 | X51: 0.451625 | Y51: 0 | Z51: 0
A52: 95 | B52: =LOOKUP(A52,'DOE - FIPStoPayeeCodeConvTable'!$A$3:$A$213,'DOE - FIPStoPayeeCodeConvTable'!$B$3:$B$213) -> James City Co | C52: 0 | D52: 10231 | E52: 8657 | S52: 18888 | U52: 15269.06 | V52: 3618.94 | W52: =LOOKUP(A52,'DOE - FIPStoPayeeCodeConvTable'!$A$3:$A$213,'DOE - FIPStoPayeeCodeConvTable'!$E$3:$E$213) -> 0.4483 | X52: 0.560375 | Y52: 2027.96 | Z52: 1590.98
A53: 97 | B53: =LOOKUP(A53,'DOE - FIPStoPayeeCodeConvTable'!$A$3:$A$213,'DOE - FIPStoPayeeCodeConvTable'!$B$3:$B$213) -> King And Queen Co | C53: 0 | D53: 0 | E53: 0 | S53: 0 | U53: 0 | V53: 0 | W53: =LOOKUP(A53,'DOE - FIPStoPayeeCodeConvTable'!$A$3:$A$213,'DOE - FIPStoPayeeCodeConvTable'!$E$3:$E$213) -> 0.3144 | X53: 0.393 | Y53: 0 | Z53: 0
A54: 99 | B54: =LOOKUP(A54,'DOE - FIPStoPayeeCodeConvTable'!$A$3:$A$213,'DOE - FIPStoPayeeCodeConvTable'!$B$3:$B$213) -> King George Co | C54: 0 | D54: 0 | E54: 0 | S54: 0 | U54: 0 | V54: 0 | W54: =LOOKUP(A54,'DOE - FIPStoPayeeCodeConvTable'!$A$3:$A$213,'DOE - FIPStoPayeeCodeConvTable'!$E$3:$E$213) -> 0.3627 | X54: 0.453375 | Y54: 0 | Z54: 0
A55: 101 | B55: =LOOKUP(A55,'DOE - FIPStoPayeeCodeConvTable'!$A$3:$A$213,'DOE - FIPStoPayeeCodeConvTable'!$B$3:$B$213) -> King William Co | C55: 0 | D55: 0 | E55: 0 | S55: 0 | U55: 0 | V55: 0 | W55: =LOOKUP(A55,'DOE - FIPStoPayeeCodeConvTable'!$A$3:$A$213,'DOE - FIPStoPayeeCodeConvTable'!$E$3:$E$213) -> 0.3853 | X55: 0.481625 | Y55: 0 | Z55: 0
A56: 103 | B56: =LOOKUP(A56,'DOE - FIPStoPayeeCodeConvTable'!$A$3:$A$213,'DOE - FIPStoPayeeCodeConvTable'!$B$3:$B$213) -> Lancaster Co | C56: 0 | D56: 0 | E56: 0 | S56: 0 | U56: 0 | V56: 0 | W56: =LOOKUP(A56,'DOE - FIPStoPayeeCodeConvTable'!$A$3:$A$213,'DOE - FIPStoPayeeCodeConvTable'!$E$3:$E$213) -> 0.4391 | X56: 0.548875 | Y56: 0 | Z56: 0
A57: 105 | B57: =LOOKUP(A57,'DOE - FIPStoPayeeCodeConvTable'!$A$3:$A$213,'DOE - FIPStoPayeeCodeConvTable'!$B$3:$B$213) -> Lee Co | C57: 0 | D57: 0 | E57: 0 | S57: 0 | U57: 0 | V57: 0 | W57: =LOOKUP(A57,'DOE - FIPStoPayeeCodeConvTable'!$A$3:$A$213,'DOE - FIPStoPayeeCodeConvTable'!$E$3:$E$213) -> 0.2245 | X57: 0.280625 | Y57: 0 | Z57: 0
A58: 107 | B58: =LOOKUP(A58,'DOE - FIPStoPayeeCodeConvTable'!$A$3:$A$213,'DOE - FIPStoPayeeCodeConvTable'!$B$3:$B$213) -> Loudoun Co | C58: 3541.5 | D58: 12592 | E58: 8263.5 | S58: 24397 | U58: 19722.53 | V58: 4674.47 | W58: =LOOKUP(A58,'DOE - FIPStoPayeeCodeConvTable'!$A$3:$A$213,'DOE - FIPStoPayeeCodeConvTable'!$E$3:$E$213) -> 0.4764 | X58: 0.5955 | Y58: 2783.65 | Z58: 1890.82
A59: 109 | B59: =LOOKUP(A59,'DOE - FIPStoPayeeCodeConvTable'!$A$3:$A$213,'DOE - FIPStoPayeeCodeConvTable'!$B$3:$B$213) -> Louisa Co | C59: 0 | D59: 0 | E59: 0 | S59: 0 | U59: 0 | V59: 0 | W59: =LOOKUP(A59,'DOE - FIPStoPayeeCodeConvTable'!$A$3:$A$213,'DOE - FIPStoPayeeCodeConvTable'!$E$3:$E$213) -> 0.4401 | X59: 0.550125 | Y59: 0 | Z59: 0
A60: 111 | B60: =LOOKUP(A60,'DOE - FIPStoPayeeCodeConvTable'!$A$3:$A$213,'DOE - FIPStoPayeeCodeConvTable'!$B$3:$B$213) -> Lunenburg Co | C60: 0 | D60: 0 | E60: 0 | S60: 0 | U60: 0 | V60: 0 | W60: =LOOKUP(A60,'DOE - FIPStoPayeeCodeConvTable'!$A$3:$A$213,'DOE - FIPStoPayeeCodeConvTable'!$E$3:$E$213) -> 0.1698 | X60: 0.21225 | Y60: 0 | Z60: 0
A61: 113 | B61: =LOOKUP(A61,'DOE - FIPStoPayeeCodeConvTable'!$A$3:$A$213,'DOE - FIPStoPayeeCodeConvTable'!$B$3:$B$213) -> Madison Co | C61: 0 | D61: 0 | E61: 0 | S61: 0 | U61: 0 | V61: 0 | W61: =LOOKUP(A61,'DOE - FIPStoPayeeCodeConvTable'!$A$3:$A$213,'DOE - FIPStoPayeeCodeConvTable'!$E$3:$E$213) -> 0.3355 | X61: 0.419375 | Y61: 0 | Z61: 0
A62: 115 | B62: =LOOKUP(A62,'DOE - FIPStoPayeeCodeConvTable'!$A$3:$A$213,'DOE - FIPStoPayeeCodeConvTable'!$B$3:$B$213) -> Mathews Co | C62: 0 | D62: 0 | E62: 0 | S62: 0 | U62: 0 | V62: 0 | W62: =LOOKUP(A62,'DOE - FIPStoPayeeCodeConvTable'!$A$3:$A$213,'DOE - FIPStoPayeeCodeConvTable'!$E$3:$E$213) -> 0.4271 | X62: 0.533875 | Y62: 0 | Z62: 0
A63: 117 | B63: =LOOKUP(A63,'DOE - FIPStoPayeeCodeConvTable'!$A$3:$A$213,'DOE - FIPStoPayeeCodeConvTable'!$B$3:$B$213) -> Mecklenburg Co | C63: 6689.5 | D63: 12198.5 | E63: 2361 | S63: 21249 | U63: 17177.69 | V63: 4071.31 | W63: =LOOKUP(A63,'DOE - FIPStoPayeeCodeConvTable'!$A$3:$A$213,'DOE - FIPStoPayeeCodeConvTable'!$E$3:$E$213) -> 0.2286 | X63: 0.28575 | Y63: 1163.38 | Z63: 2907.93
A64: 119 | B64: =LOOKUP(A64,'DOE - FIPStoPayeeCodeConvTable'!$A$3:$A$213,'DOE - FIPStoPayeeCodeConvTable'!$B$3:$B$213) -> Middlesex Co | C64: 0 | D64: 0 | E64: 0 | S64: 0 | U64: 0 | V64: 0 | W64: =LOOKUP(A64,'DOE - FIPStoPayeeCodeConvTable'!$A$3:$A$213,'DOE - FIPStoPayeeCodeConvTable'!$E$3:$E$213) -> 0.4333 | X64: 0.541625 | Y64: 0 | Z64: 0
A65: 121 | B65: =LOOKUP(A65,'DOE - FIPStoPayeeCodeConvTable'!$A$3:$A$213,'DOE - FIPStoPayeeCodeConvTable'!$B$3:$B$213) -> Montgomery Co | C65: 0 | D65: 0 | E65: 0 | S65: 0 | U65: 0 | V65: 0 | W65: =LOOKUP(A65,'DOE - FIPStoPayeeCodeConvTable'!$A$3:$A$213,'DOE - FIPStoPayeeCodeConvTable'!$E$3:$E$213) -> 0.2834 | X65: 0.35425 | Y65: 0 | Z65: 0
A66: 125 | B66: =LOOKUP(A66,'DOE - FIPStoPayeeCodeConvTable'!$A$3:$A$213,'DOE - FIPStoPayeeCodeConvTable'!$B$3:$B$213) -> Nelson Co | C66: 0 | D66: 0 | E66: 2361 | S66: 2361 | U66: 1908.63 | V66: 452.37 | W66: =LOOKUP(A66,'DOE - FIPStoPayeeCodeConvTable'!$A$3:$A$213,'DOE - FIPStoPayeeCodeConvTable'!$E$3:$E$213) -> 0.3132 | X66: 0.3915 | Y66: 177.1 | Z66: 275.27
A67: 127 | B67: =LOOKUP(A67,'DOE - FIPStoPayeeCodeConvTable'!$A$3:$A$213,'DOE - FIPStoPayeeCodeConvTable'!$B$3:$B$213) -> New Kent Co | C67: 0 | D67: 0 | E67: 0 | S67: 0 | U67: 0 | V67: 0 | W67: =LOOKUP(A67,'DOE - FIPStoPayeeCodeConvTable'!$A$3:$A$213,'DOE - FIPStoPayeeCodeConvTable'!$E$3:$E$213) -> 0.4329 | X67: 0.541125 | Y67: 0 | Z67: 0
A68: 131 | B68: =LOOKUP(A68,'DOE - FIPStoPayeeCodeConvTable'!$A$3:$A$213,'DOE - FIPStoPayeeCodeConvTable'!$B$3:$B$213) -> Northampton Co | C68: 0 | D68: 0 | E68: 0 | S68: 0 | U68: 0 | V68: 0 | W68: =LOOKUP(A68,'DOE - FIPStoPayeeCodeConvTable'!$A$3:$A$213,'DOE - FIPStoPayeeCodeConvTable'!$E$3:$E$213) -> 0.1971 | X68: 0.246375 | Y68: 0 | Z68: 0
A69: 133 | B69: =LOOKUP(A69,'DOE - FIPStoPayeeCodeConvTable'!$A$3:$A$213,'DOE - FIPStoPayeeCodeConvTable'!$B$3:$B$213) -> Northumberland Co | C69: 0 | D69: 0 | E69: 0 | S69: =SUM(C69:R69) -> 0 | U69: 0 | V69: 0 | W69: =LOOKUP(A69,'DOE - FIPStoPayeeCodeConvTable'!$A$3:$A$213,'DOE - FIPStoPayeeCodeConvTable'!$E$3:$E$213) -> 0.3304 | X69: 0.413 | Y69: 0 | Z69: 0
A70: 135 | B70: =LOOKUP(A70,'DOE - FIPStoPayeeCodeConvTable'!$A$3:$A$213,'DOE - FIPStoPayeeCodeConvTable'!$B$3:$B$213) -> Nottoway Co | C70: 0 | D70: 0 | E70: 0 | S70: 0 | U70: =ROUND($U$1*S70,2) -> 0 | V70: =SUM(S70)-SUM(U70) -> 0 | W70: =LOOKUP(A70,'DOE - FIPStoPayeeCodeConvTable'!$A$3:$A$213,'DOE - FIPStoPayeeCodeConvTable'!$E$3:$E$213) -> 0.2686 | X70: 0.33575 | Y70: 0 | Z70: 0
A71: 137 | B71: =LOOKUP(A71,'DOE - FIPStoPayeeCodeConvTable'!$A$3:$A$213,'DOE - FIPStoPayeeCodeConvTable'!$B$3:$B$213) -> Orange Co | C71: 11018 | D71: 3148 | E71: 0 | S71: 14166 | U71: 11451.79 | V71: 2714.21 | W71: =LOOKUP(A71,'DOE - FIPStoPayeeCodeConvTable'!$A$3:$A$213,'DOE - FIPStoPayeeCodeConvTable'!$E$3:$E$213) -> 0.4083 | X71: =$X$1*W71 -> 0.510375 | Y71: =ROUND(X71*V71,2) -> 1385.26 | Z71: =SUM(V71)-SUM(Y71) -> 1328.95
A72: 139 | B72: =LOOKUP(A72,'DOE - FIPStoPayeeCodeConvTable'!$A$3:$A$213,'DOE - FIPStoPayeeCodeConvTable'!$B$3:$B$213) -> Page Co | C72: 0 | D72: 0 | E72: 0 | S72: 0 | U72: 0 | V72: 0 | W72: =LOOKUP(A72,'DOE - FIPStoPayeeCodeConvTable'!$A$3:$A$213,'DOE - FIPStoPayeeCodeConvTable'!$E$3:$E$213) -> 0.2865 | X72: 0.358125 | Y72: 0 | Z72: 0
A73: 141 | B73: =LOOKUP(A73,'DOE - FIPStoPayeeCodeConvTable'!$A$3:$A$213,'DOE - FIPStoPayeeCodeConvTable'!$B$3:$B$213) -> Patrick Co | C73: 0 | D73: 0 | E73: 0 | S73: 0 | U73: 0 | V73: 0 | W73: =LOOKUP(A73,'DOE - FIPStoPayeeCodeConvTable'!$A$3:$A$213,'DOE - FIPStoPayeeCodeConvTable'!$E$3:$E$213) -> 0.2539 | X73: 0.317375 | Y73: 0 | Z73: 0
A74: 143 | B74: =LOOKUP(A74,'DOE - FIPStoPayeeCodeConvTable'!$A$3:$A$213,'DOE - FIPStoPayeeCodeConvTable'!$B$3:$B$213) -> Pittsylvania Co | C74: 23610 | D74: 12592 | E74: 11805 | S74: 48007 | U74: 38808.86 | V74: 9198.14 | W74: =LOOKUP(A74,'DOE - FIPStoPayeeCodeConvTable'!$A$3:$A$213,'DOE - FIPStoPayeeCodeConvTable'!$E$3:$E$213) -> 0.2355 | X74: 0.294375 | Y74: 2707.7 | Z74: 6490.44
A75: 145 | B75: =LOOKUP(A75,'DOE - FIPStoPayeeCodeConvTable'!$A$3:$A$213,'DOE - FIPStoPayeeCodeConvTable'!$B$3:$B$213) -> Powhatan Co | C75: 0 | D75: 0 | E75: 0 | S75: 0 | U75: 0 | V75: 0 | W75: =LOOKUP(A75,'DOE - FIPStoPayeeCodeConvTable'!$A$3:$A$213,'DOE - FIPStoPayeeCodeConvTable'!$E$3:$E$213) -> 0.4342 | X75: 0.54275 | Y75: 0 | Z75: 0
A76: 147 | B76: =LOOKUP(A76,'DOE - FIPStoPayeeCodeConvTable'!$A$3:$A$213,'DOE - FIPStoPayeeCodeConvTable'!$B$3:$B$213) -> Prince Edward Co | C76: 0 | D76: 0 | E76: 0 | S76: 0 | U76: 0 | V76: 0 | W76: =LOOKUP(A76,'DOE - FIPStoPayeeCodeConvTable'!$A$3:$A$213,'DOE - FIPStoPayeeCodeConvTable'!$E$3:$E$213) -> 0.2232 | X76: 0.279 | Y76: 0 | Z76: 0
A77: 149 | B77: =LOOKUP(A77,'DOE - FIPStoPayeeCodeConvTable'!$A$3:$A$213,'DOE - FIPStoPayeeCodeConvTable'!$B$3:$B$213) -> Prince George Co | C77: 0 | D77: 0 | E77: 0 | S77: 0 | U77: 0 | V77: 0 | W77: =LOOKUP(A77,'DOE - FIPStoPayeeCodeConvTable'!$A$3:$A$213,'DOE - FIPStoPayeeCodeConvTable'!$E$3:$E$213) -> 0.3716 | X77: 0.4645 | Y77: 0 | Z77: 0
A78: 153 | B78: =LOOKUP(A78,'DOE - FIPStoPayeeCodeConvTable'!$A$3:$A$213,'DOE - FIPStoPayeeCodeConvTable'!$B$3:$B$213) -> Prince William Co | C78: 11728.5 | D78: 8974 | E78: 8653.5 | S78: 29356 | U78: 23731.39 | V78: 5624.61 | W78: =LOOKUP(A78,'DOE - FIPStoPayeeCodeConvTable'!$A$3:$A$213,'DOE - FIPStoPayeeCodeConvTable'!$E$3:$E$213) -> 0.3414 | X78: 0.42675 | Y78: 2400.3 | Z78: 3224.31
A79: 155 | B79: =LOOKUP(A79,'DOE - FIPStoPayeeCodeConvTable'!$A$3:$A$213,'DOE - FIPStoPayeeCodeConvTable'!$B$3:$B$213) -> Pulaski Co | C79: 0 | D79: 0 | E79: 0 | S79: 0 | U79: 0 | V79: 0 | W79: =LOOKUP(A79,'DOE - FIPStoPayeeCodeConvTable'!$A$3:$A$213,'DOE - FIPStoPayeeCodeConvTable'!$E$3:$E$213) -> 0.2923 | X79: 0.365375 | Y79: 0 | Z79: 0
A80: 157 | B80: =LOOKUP(A80,'DOE - FIPStoPayeeCodeConvTable'!$A$3:$A$213,'DOE - FIPStoPayeeCodeConvTable'!$B$3:$B$213) -> Rappahannock Co | C80: 0 | D80: 0 | E80: 0 | S80: 0 | U80: 0 | V80: 0 | W80: =LOOKUP(A80,'DOE - FIPStoPayeeCodeConvTable'!$A$3:$A$213,'DOE - FIPStoPayeeCodeConvTable'!$E$3:$E$213) -> 0.4199 | X80: 0.524875 | Y80: 0 | Z80: 0
A81: 159 | B81: =LOOKUP(A81,'DOE - FIPStoPayeeCodeConvTable'!$A$3:$A$213,'DOE - FIPStoPayeeCodeConvTable'!$B$3:$B$213) -> Richmond Co | C81: 0 | D81: 0 | E81: 0 | S81: 0 | U81: 0 | V81: 0 | W81: =LOOKUP(A81,'DOE - FIPStoPayeeCodeConvTable'!$A$3:$A$213,'DOE - FIPStoPayeeCodeConvTable'!$E$3:$E$213) -> 0.3227 | X81: 0.403375 | Y81: 0 | Z81: 0
A82: 161 | B82: =LOOKUP(A82,'DOE - FIPStoPayeeCodeConvTable'!$A$3:$A$213,'DOE - FIPStoPayeeCodeConvTable'!$B$3:$B$213) -> Roanoke Co | C82: 0 | D82: 0 | E82: 0 | S82: 0 | U82: 0 | V82: 0 | W82: =LOOKUP(A82,'DOE - FIPStoPayeeCodeConvTable'!$A$3:$A$213,'DOE - FIPStoPayeeCodeConvTable'!$E$3:$E$213) -> 0.4397 | X82: 0.549625 | Y82: 0 | Z82: 0
A83: 163 | B83: =LOOKUP(A83,'DOE - FIPStoPayeeCodeConvTable'!$A$3:$A$213,'DOE - FIPStoPayeeCodeConvTable'!$B$3:$B$213) -> Rockbridge Co | C83: 0 | D83: 0 | E83: 0 | S83: 0 | U83: 0 | V83: 0 | W83: =LOOKUP(A83,'DOE - FIPStoPayeeCodeConvTable'!$A$3:$A$213,'DOE - FIPStoPayeeCodeConvTable'!$E$3:$E$213) -> 0.2336 | X83: 0.292 | Y83: 0 | Z83: 0
A84: 165 | B84: =LOOKUP(A84,'DOE - FIPStoPayeeCodeConvTable'!$A$3:$A$213,'DOE - FIPStoPayeeCodeConvTable'!$B$3:$B$213) -> Rockingham Co | C84: 11411.5 | D84: 12198.5 | E84: 9837.5 | S84: 33447.5 | U84: 27038.96 | V84: 6408.54 | W84: =LOOKUP(A84,'DOE - FIPStoPayeeCodeConvTable'!$A$3:$A$213,'DOE - FIPStoPayeeCodeConvTable'!$E$3:$E$213) -> 0.3445 | X84: 0.430625 | Y84: 2759.68 | Z84: 3648.86
A85: 167 | B85: =LOOKUP(A85,'DOE - FIPStoPayeeCodeConvTable'!$A$3:$A$213,'DOE - FIPStoPayeeCodeConvTable'!$B$3:$B$213) -> Russell Co | C85: 0 | D85: 0 | E85: 0 | S85: 0 | U85: 0 | V85: 0 | W85: =LOOKUP(A85,'DOE - FIPStoPayeeCodeConvTable'!$A$3:$A$213,'DOE - FIPStoPayeeCodeConvTable'!$E$3:$E$213) -> 0.1894 | X85: 0.23675 | Y85: 0 | Z85: 0
A86: 169 | B86: =LOOKUP(A86,'DOE - FIPStoPayeeCodeConvTable'!$A$3:$A$213,'DOE - FIPStoPayeeCodeConvTable'!$B$3:$B$213) -> Scott Co | C86: 0 | D86: 0 | E86: 0 | S86: 0 | U86: 0 | V86: 0 | W86: =LOOKUP(A86,'DOE - FIPStoPayeeCodeConvTable'!$A$3:$A$213,'DOE - FIPStoPayeeCodeConvTable'!$E$3:$E$213) -> 0.3154 | X86: 0.39425 | Y86: 0 | Z86: 0
A87: 171 | B87: =LOOKUP(A87,'DOE - FIPStoPayeeCodeConvTable'!$A$3:$A$213,'DOE - FIPStoPayeeCodeConvTable'!$B$3:$B$213) -> Shenandoah Co | C87: 4386.6 | D87: 4386.6 | E87: 0 | S87: 8773.2 | U87: 7092.25 | V87: 1680.95 | W87: =LOOKUP(A87,'DOE - FIPStoPayeeCodeConvTable'!$A$3:$A$213,'DOE - FIPStoPayeeCodeConvTable'!$E$3:$E$213) -> 0.3517 | X87: 0.439625 | Y87: 738.99 | Z87: 941.96
A88: 173 | B88: =LOOKUP(A88,'DOE - FIPStoPayeeCodeConvTable'!$A$3:$A$213,'DOE - FIPStoPayeeCodeConvTable'!$B$3:$B$213) -> Smyth Co | C88: 11805 | D88: 12198.5 | E88: 12198.5 | S88: 36202 | U88: 29265.7 | V88: 6936.3 | W88: =LOOKUP(A88,'DOE - FIPStoPayeeCodeConvTable'!$A$3:$A$213,'DOE - FIPStoPayeeCodeConvTable'!$E$3:$E$213) -> 0.2337 | X88: 0.292125 | Y88: 2026.27 | Z88: 4910.03
A89: 175 | B89: =LOOKUP(A89,'DOE - FIPStoPayeeCodeConvTable'!$A$3:$A$213,'DOE - FIPStoPayeeCodeConvTable'!$B$3:$B$213) -> Southampton Co | C89: 11411.5 | D89: 11018 | E89: 2361 | S89: 24790.5 | U89: 20040.64 | V89: 4749.86 | W89: =LOOKUP(A89,'DOE - FIPStoPayeeCodeConvTable'!$A$3:$A$213,'DOE - FIPStoPayeeCodeConvTable'!$E$3:$E$213) -> 0.323 | X89: 0.40375 | Y89: 1917.76 | Z89: 2832.1
A90: 177 | B90: =LOOKUP(A90,'DOE - FIPStoPayeeCodeConvTable'!$A$3:$A$213,'DOE - FIPStoPayeeCodeConvTable'!$B$3:$B$213) -> Spotsylvania Co | C90: 0 | D90: 0 | E90: 0 | S90: 0 | U90: 0 | V90: 0 | W90: =LOOKUP(A90,'DOE - FIPStoPayeeCodeConvTable'!$A$3:$A$213,'DOE - FIPStoPayeeCodeConvTable'!$E$3:$E$213) -> 0.4588 | X90: 0.5735 | Y90: 0 | Z90: 0
A91: 179 | B91: =LOOKUP(A91,'DOE - FIPStoPayeeCodeConvTable'!$A$3:$A$213,'DOE - FIPStoPayeeCodeConvTable'!$B$3:$B$213) -> Stafford Co | C91: 0 | D91: 0 | E91: 0 | S91: 0 | U91: 0 | V91: 0 | W91: =LOOKUP(A91,'DOE - FIPStoPayeeCodeConvTable'!$A$3:$A$213,'DOE - FIPStoPayeeCodeConvTable'!$E$3:$E$213) -> 0.4439 | X91: 0.554875 | Y91: 0 | Z91: 0
A92: 181 | B92: =LOOKUP(A92,'DOE - FIPStoPayeeCodeConvTable'!$A$3:$A$213,'DOE - FIPStoPayeeCodeConvTable'!$B$3:$B$213) -> Surry Co | C92: 0 | D92: 0 | E92: 0 | S92: 0 | U92: 0 | V92: 0 | W92: =LOOKUP(A92,'DOE - FIPStoPayeeCodeConvTable'!$A$3:$A$213,'DOE - FIPStoPayeeCodeConvTable'!$E$3:$E$213) -> 0.3979 | X92: 0.497375 | Y92: 0 | Z92: 0
A93: 183 | B93: =LOOKUP(A93,'DOE - FIPStoPayeeCodeConvTable'!$A$3:$A$213,'DOE - FIPStoPayeeCodeConvTable'!$B$3:$B$213) -> Sussex Co | C93: 0 | D93: 0 | E93: 0 | S93: 0 | U93: 0 | V93: 0 | W93: =LOOKUP(A93,'DOE - FIPStoPayeeCodeConvTable'!$A$3:$A$213,'DOE - FIPStoPayeeCodeConvTable'!$E$3:$E$213) -> 0.2387 | X93: 0.298375 | Y93: 0 | Z93: 0
A94: 185 | B94: =LOOKUP(A94,'DOE - FIPStoPayeeCodeConvTable'!$A$3:$A$213,'DOE - FIPStoPayeeCodeConvTable'!$B$3:$B$213) -> Tazewell Co | C94: 0 | D94: 0 | E94: 0 | S94: 0 | U94: 0 | V94: 0 | W94: =LOOKUP(A94,'DOE - FIPStoPayeeCodeConvTable'!$A$3:$A$213,'DOE - FIPStoPayeeCodeConvTable'!$E$3:$E$213) -> 0.2455 | X94: 0.306875 | Y94: 0 | Z94: 0
A95: 187 | B95: =LOOKUP(A95,'DOE - FIPStoPayeeCodeConvTable'!$A$3:$A$213,'DOE - FIPStoPayeeCodeConvTable'!$B$3:$B$213) -> Warren Co | C95: 0 | D95: 0 | E95: 0 | S95: 0 | U95: 0 | V95: 0 | W95: =LOOKUP(A95,'DOE - FIPStoPayeeCodeConvTable'!$A$3:$A$213,'DOE - FIPStoPayeeCodeConvTable'!$E$3:$E$213) -> 0.3853 | X95: 0.481625 | Y95: 0 | Z95: 0
A96: 191 | B96: =LOOKUP(A96,'DOE - FIPStoPayeeCodeConvTable'!$A$3:$A$213,'DOE - FIPStoPayeeCodeConvTable'!$B$3:$B$213) -> Washington Co | C96: 0 | D96: 0 | E96: 0 | S96: 0 | U96: 0 | V96: 0 | W96: =LOOKUP(A96,'DOE - FIPStoPayeeCodeConvTable'!$A$3:$A$213,'DOE - FIPStoPayeeCodeConvTable'!$E$3:$E$213) -> 0.276 | X96: 0.345 | Y96: 0 | Z96: 0
A97: 193 | B97: =LOOKUP(A97,'DOE - FIPStoPayeeCodeConvTable'!$A$3:$A$213,'DOE - FIPStoPayeeCodeConvTable'!$B$3:$B$213) -> Westmoreland Co | C97: 0 | D97: 0 | E97: 0 | S97: 0 | U97: 0 | V97: 0 | W97: =LOOKUP(A97,'DOE - FIPStoPayeeCodeConvTable'!$A$3:$A$213,'DOE - FIPStoPayeeCodeConvTable'!$E$3:$E$213) -> 0.3025 | X97: 0.378125 | Y97: 0 | Z97: 0
A98: 195 | B98: =LOOKUP(A98,'DOE - FIPStoPayeeCodeConvTable'!$A$3:$A$213,'DOE - FIPStoPayeeCodeConvTable'!$B$3:$B$213) -> Wise Co | C98: 0 | D98: 0 | E98: 0 | S98: 0 | U98: 0 | V98: 0 | W98: =LOOKUP(A98,'DOE - FIPStoPayeeCodeConvTable'!$A$3:$A$213,'DOE - FIPStoPayeeCodeConvTable'!$E$3:$E$213) -> 0.2755 | X98: 0.344375 | Y98: 0 | Z98: 0
A99: 197 | B99: =LOOKUP(A99,'DOE - FIPStoPayeeCodeConvTable'!$A$3:$A$213,'DOE - FIPStoPayeeCodeConvTable'!$B$3:$B$213) -> Wythe Co | C99: 0 | D99: 0 | E99: 0 | S99: 0 | U99: 0 | V99: 0 | W99: =LOOKUP(A99,'DOE - FIPStoPayeeCodeConvTable'!$A$3:$A$213,'DOE - FIPStoPayeeCodeConvTable'!$E$3:$E$213) -> 0.2708 | X99: 0.3385 | Y99: 0 | Z99: 0
A100: 199 | B100: =LOOKUP(A100,'DOE - FIPStoPayeeCodeConvTable'!$A$3:$A$213,'DOE - FIPStoPayeeCodeConvTable'!$B$3:$B$213) -> York Co | C100: 0 | D100: 0 | E100: 0 | S100: 0 | U100: 0 | V100: 0 | W100: =LOOKUP(A100,'DOE - FIPStoPayeeCodeConvTable'!$A$3:$A$213,'DOE - FIPStoPayeeCodeConvTable'!$E$3:$E$213) -> 0.3888 | X100: 0.486 | Y100: 0 | Z100: 0
A101: 510 | B101: =LOOKUP(A101,'DOE - FIPStoPayeeCodeConvTable'!$A$3:$A$213,'DOE - FIPStoPayeeCodeConvTable'!$B$3:$B$213) -> Alexandria City | C101: 0 | D101: 0 | E101: 0 | S101: =SUM(C101:R101) -> 0 | U101: 0 | V101: 0 | W101: =LOOKUP(A101,'DOE - FIPStoPayeeCodeConvTable'!$A$3:$A$213,'DOE - FIPStoPayeeCodeConvTable'!$E$3:$E$213) -> 0.5309 | X101: 0.663625 | Y101: 0 | Z101: 0
A102: 520 | B102: =LOOKUP(A102,'DOE - FIPStoPayeeCodeConvTable'!$A$3:$A$213,'DOE - FIPStoPayeeCodeConvTable'!$B$3:$B$213) -> Bristol City | C102: 0 | D102: 0 | E102: 0 | S102: 0 | U102: =ROUND($U$1*S102,2) -> 0 | V102: =SUM(S102)-SUM(U102) -> 0 | W102: =LOOKUP(A102,'DOE - FIPStoPayeeCodeConvTable'!$A$3:$A$213,'DOE - FIPStoPayeeCodeConvTable'!$E$3:$E$213) -> 0.2547 | X102: 0.318375 | Y102: 0 | Z102: 0
A103: 530 | B103: =LOOKUP(A103,'DOE - FIPStoPayeeCodeConvTable'!$A$3:$A$213,'DOE - FIPStoPayeeCodeConvTable'!$B$3:$B$213) -> Buena Vista City | C103: 0 | D103: 0 | E103: 0 | S103: 0 | U103: 0 | V103: 0 | W103: =LOOKUP(A103,'DOE - FIPStoPayeeCodeConvTable'!$A$3:$A$213,'DOE - FIPStoPayeeCodeConvTable'!$E$3:$E$213) -> 0.2329 | X103: 0.291125 | Y103: 0 | Z103: 0
A104: 540 | B104: =LOOKUP(A104,'DOE - FIPStoPayeeCodeConvTable'!$A$3:$A$213,'DOE - FIPStoPayeeCodeConvTable'!$B$3:$B$213) -> Charlottesville City | C104: 8919.42 | D104: 1462.2 | E104: 0 | S104: 10381.62 | U104: 8392.5 | V104: 1989.12 | W104: =LOOKUP(A104,'DOE - FIPStoPayeeCodeConvTable'!$A$3:$A$213,'DOE - FIPStoPayeeCodeConvTable'!$E$3:$E$213) -> 0.3068 | X104: 0.3835 | Y104: 762.83 | Z104: 1226.29
A105: 550 | B105: =LOOKUP(A105,'DOE - FIPStoPayeeCodeConvTable'!$A$3:$A$213,'DOE - FIPStoPayeeCodeConvTable'!$B$3:$B$213) -> Chesapeake City | C105: 0 | D105: 0 | E105: 0 | S105: 0 | U105: 0 | V105: 0 | W105: =LOOKUP(A105,'DOE - FIPStoPayeeCodeConvTable'!$A$3:$A$213,'DOE - FIPStoPayeeCodeConvTable'!$E$3:$E$213) -> 0.3715 | X105: 0.464375 | Y105: 0 | Z105: 0
A106: 570 | B106: =LOOKUP(A106,'DOE - FIPStoPayeeCodeConvTable'!$A$3:$A$213,'DOE - FIPStoPayeeCodeConvTable'!$B$3:$B$213) -> Colonial Heights City | C106: 0 | D106: 0 | E106: 0 | S106: 0 | U106: 0 | V106: 0 | W106: =LOOKUP(A106,'DOE - FIPStoPayeeCodeConvTable'!$A$3:$A$213,'DOE - FIPStoPayeeCodeConvTable'!$E$3:$E$213) -> 0.4027 | X106: 0.503375 | Y106: 0 | Z106: 0
A107: 580 | B107: =LOOKUP(A107,'DOE - FIPStoPayeeCodeConvTable'!$A$3:$A$213,'DOE - FIPStoPayeeCodeConvTable'!$B$3:$B$213) -> Covington City | C107: 0 | D107: 0 | E107: 0 | S107: 0 | U107: 0 | V107: 0 | W107: =LOOKUP(A107,'DOE - FIPStoPayeeCodeConvTable'!$A$3:$A$213,'DOE - FIPStoPayeeCodeConvTable'!$E$3:$E$213) -> 0.2496 | X107: 0.312 | Y107: 0 | Z107: 0
A108: 590 | B108: =LOOKUP(A108,'DOE - FIPStoPayeeCodeConvTable'!$A$3:$A$213,'DOE - FIPStoPayeeCodeConvTable'!$B$3:$B$213) -> Danville City | C108: 0 | D108: 4386.6 | E108: 4532.82 | S108: 8919.42 | U108: 7210.46 | V108: 1708.96 | W108: =LOOKUP(A108,'DOE - FIPStoPayeeCodeConvTable'!$A$3:$A$213,'DOE - FIPStoPayeeCodeConvTable'!$E$3:$E$213) -> 0.2223 | X108: 0.277875 | Y108: 474.88 | Z108: 1234.08
A109: 620 | B109: =LOOKUP(A109,'DOE - FIPStoPayeeCodeConvTable'!$A$3:$A$213,'DOE - FIPStoPayeeCodeConvTable'!$B$3:$B$213) -> Franklin City | C109: 0 | D109: 0 | E109: 0 | S109: 0 | U109: 0 | V109: 0 | W109: =LOOKUP(A109,'DOE - FIPStoPayeeCodeConvTable'!$A$3:$A$213,'DOE - FIPStoPayeeCodeConvTable'!$E$3:$E$213) -> 0.371 | X109: 0.46375 | Y109: 0 | Z109: 0
A110: 630 | B110: =LOOKUP(A110,'DOE - FIPStoPayeeCodeConvTable'!$A$3:$A$213,'DOE - FIPStoPayeeCodeConvTable'!$B$3:$B$213) -> Fredericksburg City | C110: 0 | D110: 0 | E110: 0 | S110: 0 | U110: 0 | V110: 0 | W110: =LOOKUP(A110,'DOE - FIPStoPayeeCodeConvTable'!$A$3:$A$213,'DOE - FIPStoPayeeCodeConvTable'!$E$3:$E$213) -> 0.3441 | X110: 0.430125 | Y110: 0 | Z110: 0
A111: 640 | B111: =LOOKUP(A111,'DOE - FIPStoPayeeCodeConvTable'!$A$3:$A$213,'DOE - FIPStoPayeeCodeConvTable'!$B$3:$B$213) -> Galax City | C111: 0 | D111: 0 | E111: 0 | S111: 0 | U111: 0 | V111: 0 | W111: =LOOKUP(A111,'DOE - FIPStoPayeeCodeConvTable'!$A$3:$A$213,'DOE - FIPStoPayeeCodeConvTable'!$E$3:$E$213) -> 0.3146 | X111: 0.39325 | Y111: 0 | Z111: 0
A112: 650 | B112: =LOOKUP(A112,'DOE - FIPStoPayeeCodeConvTable'!$A$3:$A$213,'DOE - FIPStoPayeeCodeConvTable'!$B$3:$B$213) -> Hampton City | C112: 0 | D112: 0 | E112: 0 | S112: 0 | U112: 0 | V112: 0 | W112: =LOOKUP(A112,'DOE - FIPStoPayeeCodeConvTable'!$A$3:$A$213,'DOE - FIPStoPayeeCodeConvTable'!$E$3:$E$213) -> 0.3223 | X112: 0.402875 | Y112: 0 | Z112: 0
A113: 660 | B113: =LOOKUP(A113,'DOE - FIPStoPayeeCodeConvTable'!$A$3:$A$213,'DOE - FIPStoPayeeCodeConvTable'!$B$3:$B$213) -> Harrisonburg City | C113: 0 | D113: 0 | E113: 0 | S113: 0 | U113: 0 | V113: 0 | W113: =LOOKUP(A113,'DOE - FIPStoPayeeCodeConvTable'!$A$3:$A$213,'DOE - FIPStoPayeeCodeConvTable'!$E$3:$E$213) -> 0.3808 | X113: 0.476 | Y113: 0 | Z113: 0
A114: 670 | B114: =LOOKUP(A114,'DOE - FIPStoPayeeCodeConvTable'!$A$3:$A$213,'DOE - FIPStoPayeeCodeConvTable'!$B$3:$B$213) -> Hopewell City | C114: 0 | D114: 0 | E114: 0 | S114: 0 | U114: 0 | V114: 0 | W114: =LOOKUP(A114,'DOE - FIPStoPayeeCodeConvTable'!$A$3:$A$213,'DOE - FIPStoPayeeCodeConvTable'!$E$3:$E$213) -> 0.2667 | X114: 0.333375 | Y114: 0 | Z114: 0
A115: 678 | B115: =LOOKUP(A115,'DOE - FIPStoPayeeCodeConvTable'!$A$3:$A$213,'DOE - FIPStoPayeeCodeConvTable'!$B$3:$B$213) -> Lexington City | C115: 0 | D115: 0 | E115: 0 | S115: 0 | U115: 0 | V115: 0 | W115: =LOOKUP(A115,'DOE - FIPStoPayeeCodeConvTable'!$A$3:$A$213,'DOE - FIPStoPayeeCodeConvTable'!$E$3:$E$213) -> 0.3302 | X115: 0.41275 | Y115: 0 | Z115: 0
A116: 680 | B116: =LOOKUP(A116,'DOE - FIPStoPayeeCodeConvTable'!$A$3:$A$213,'DOE - FIPStoPayeeCodeConvTable'!$B$3:$B$213) -> Lynchburg City | C116: 0 | D116: 0 | E116: 0 | S116: 0 | U116: 0 | V116: 0 | W116: =LOOKUP(A116,'DOE - FIPStoPayeeCodeConvTable'!$A$3:$A$213,'DOE - FIPStoPayeeCodeConvTable'!$E$3:$E$213) -> 0.2736 | X116: 0.342 | Y116: 0 | Z116: 0
A117: 683 | B117: =LOOKUP(A117,'DOE - FIPStoPayeeCodeConvTable'!$A$3:$A$213,'DOE - FIPStoPayeeCodeConvTable'!$B$3:$B$213) -> Manassas City | C117: 0 | D117: 0 | E117: 0 | S117: 0 | U117: 0 | V117: 0 | W117: =LOOKUP(A117,'DOE - FIPStoPayeeCodeConvTable'!$A$3:$A$213,'DOE - FIPStoPayeeCodeConvTable'!$E$3:$E$213) -> 0.4168 | X117: 0.521 | Y117: 0 | Z117: 0
A118: 685 | B118: =LOOKUP(A118,'DOE - FIPStoPayeeCodeConvTable'!$A$3:$A$213,'DOE - FIPStoPayeeCodeConvTable'!$B$3:$B$213) -> Manassas Park City | C118: 0 | D118: 0 | E118: 0 | S118: 0 | U118: 0 | V118: 0 | W118: =LOOKUP(A118,'DOE - FIPStoPayeeCodeConvTable'!$A$3:$A$213,'DOE - FIPStoPayeeCodeConvTable'!$E$3:$E$213) -> 0.4273 | X118: 0.534125 | Y118: 0 | Z118: 0
A119: 690 | B119: =LOOKUP(A119,'DOE - FIPStoPayeeCodeConvTable'!$A$3:$A$213,'DOE - FIPStoPayeeCodeConvTable'!$B$3:$B$213) -> Martinsville City | C119: 0 | D119: 0 | E119: 0 | S119: 0 | U119: 0 | V119: 0 | W119: =LOOKUP(A119,'DOE - FIPStoPayeeCodeConvTable'!$A$3:$A$213,'DOE - FIPStoPayeeCodeConvTable'!$E$3:$E$213) -> 0.3321 | X119: 0.415125 | Y119: 0 | Z119: 0
A120: 700 | B120: =LOOKUP(A120,'DOE - FIPStoPayeeCodeConvTable'!$A$3:$A$213,'DOE - FIPStoPayeeCodeConvTable'!$B$3:$B$213) -> Newport News City | C120: -2754.5 | D120: 0 | E120: 0 | S120: -2754.5 | U120: -2226.74 | V120: -527.76 | W120: =LOOKUP(A120,'DOE - FIPStoPayeeCodeConvTable'!$A$3:$A$213,'DOE - FIPStoPayeeCodeConvTable'!$E$3:$E$213) -> 0.2773 | X120: 0.346625 | Y120: -182.93 | Z120: -344.83
A121: 710 | B121: =LOOKUP(A121,'DOE - FIPStoPayeeCodeConvTable'!$A$3:$A$213,'DOE - FIPStoPayeeCodeConvTable'!$B$3:$B$213) -> Norfolk City | C121: 0 | D121: 0 | E121: 0 | S121: 0 | U121: 0 | V121: 0 | W121: =LOOKUP(A121,'DOE - FIPStoPayeeCodeConvTable'!$A$3:$A$213,'DOE - FIPStoPayeeCodeConvTable'!$E$3:$E$213) -> 0.2455 | X121: 0.306875 | Y121: 0 | Z121: 0
A122: 720 | B122: =LOOKUP(A122,'DOE - FIPStoPayeeCodeConvTable'!$A$3:$A$213,'DOE - FIPStoPayeeCodeConvTable'!$B$3:$B$213) -> Norton City | C122: 0 | D122: 0 | E122: 0 | S122: 0 | U122: 0 | V122: 0 | W122: =LOOKUP(A122,'DOE - FIPStoPayeeCodeConvTable'!$A$3:$A$213,'DOE - FIPStoPayeeCodeConvTable'!$E$3:$E$213) -> 0.3254 | X122: 0.40675 | Y122: 0 | Z122: 0
A123: 730 | B123: =LOOKUP(A123,'DOE - FIPStoPayeeCodeConvTable'!$A$3:$A$213,'DOE - FIPStoPayeeCodeConvTable'!$B$3:$B$213) -> Petersburg City | C123: 0 | D123: 0 | E123: 0 | S123: 0 | U123: 0 | V123: 0 | W123: =LOOKUP(A123,'DOE - FIPStoPayeeCodeConvTable'!$A$3:$A$213,'DOE - FIPStoPayeeCodeConvTable'!$E$3:$E$213) -> 0.3535 | X123: 0.441875 | Y123: 0 | Z123: 0
A124: 735 | B124: =LOOKUP(A124,'DOE - FIPStoPayeeCodeConvTable'!$A$3:$A$213,'DOE - FIPStoPayeeCodeConvTable'!$B$3:$B$213) -> Poquoson City | C124: 0 | D124: 0 | E124: 0 | S124: 0 | U124: 0 | V124: 0 | W124: =LOOKUP(A124,'DOE - FIPStoPayeeCodeConvTable'!$A$3:$A$213,'DOE - FIPStoPayeeCodeConvTable'!$E$3:$E$213) -> 0.2787 | X124: 0.348375 | Y124: 0 | Z124: 0
A125: 740 | B125: =LOOKUP(A125,'DOE - FIPStoPayeeCodeConvTable'!$A$3:$A$213,'DOE - FIPStoPayeeCodeConvTable'!$B$3:$B$213) -> Portsmouth City | C125: 0 | D125: 0 | E125: 4532.82 | S125: 4532.82 | U125: 3664.33 | V125: 868.49 | W125: =LOOKUP(A125,'DOE - FIPStoPayeeCodeConvTable'!$A$3:$A$213,'DOE - FIPStoPayeeCodeConvTable'!$E$3:$E$213) -> 0.2605 | X125: 0.325625 | Y125: 282.8 | Z125: 585.69
A126: 750 | B126: =LOOKUP(A126,'DOE - FIPStoPayeeCodeConvTable'!$A$3:$A$213,'DOE - FIPStoPayeeCodeConvTable'!$B$3:$B$213) -> Radford City | C126: 0 | D126: 0 | E126: 0 | S126: 0 | U126: 0 | V126: 0 | W126: =LOOKUP(A126,'DOE - FIPStoPayeeCodeConvTable'!$A$3:$A$213,'DOE - FIPStoPayeeCodeConvTable'!$E$3:$E$213) -> 0.2035 | X126: 0.254375 | Y126: 0 | Z126: 0
A127: 760 | B127: =LOOKUP(A127,'DOE - FIPStoPayeeCodeConvTable'!$A$3:$A$213,'DOE - FIPStoPayeeCodeConvTable'!$B$3:$B$213) -> Richmond City | C127: 8747.32 | D127: 4532.82 | E127: 4532.82 | S127: 17812.96 | U127: 14400 | V127: 3412.96 | W127: =LOOKUP(A127,'DOE - FIPStoPayeeCodeConvTable'!$A$3:$A$213,'DOE - FIPStoPayeeCodeConvTable'!$E$3:$E$213) -> 0.3691 | X127: 0.461375 | Y127: 1574.65 | Z127: 1838.31
A128: 770 | B128: =LOOKUP(A128,'DOE - FIPStoPayeeCodeConvTable'!$A$3:$A$213,'DOE - FIPStoPayeeCodeConvTable'!$B$3:$B$213) -> Roanoke City | C128: 11805 | D128: 12198.5 | E128: 5902.5 | S128: 29906 | U128: 24176.01 | V128: 5729.99 | W128: =LOOKUP(A128,'DOE - FIPStoPayeeCodeConvTable'!$A$3:$A$213,'DOE - FIPStoPayeeCodeConvTable'!$E$3:$E$213) -> 0.3072 | X128: 0.384 | Y128: 2200.32 | Z128: 3529.67
A129: 775 | B129: =LOOKUP(A129,'DOE - FIPStoPayeeCodeConvTable'!$A$3:$A$213,'DOE - FIPStoPayeeCodeConvTable'!$B$3:$B$213) -> Salem City | C129: 0 | D129: 0 | E129: 0 | S129: 0 | U129: 0 | V129: 0 | W129: =LOOKUP(A129,'DOE - FIPStoPayeeCodeConvTable'!$A$3:$A$213,'DOE - FIPStoPayeeCodeConvTable'!$E$3:$E$213) -> 0.3513 | X129: 0.439125 | Y129: 0 | Z129: 0
A130: 790 | B130: =LOOKUP(A130,'DOE - FIPStoPayeeCodeConvTable'!$A$3:$A$213,'DOE - FIPStoPayeeCodeConvTable'!$B$3:$B$213) -> Staunton City | C130: 0 | D130: 0 | E130: 0 | S130: 0 | U130: 0 | V130: 0 | W130: =LOOKUP(A130,'DOE - FIPStoPayeeCodeConvTable'!$A$3:$A$213,'DOE - FIPStoPayeeCodeConvTable'!$E$3:$E$213) -> 0.2699 | X130: 0.337375 | Y130: 0 | Z130: 0
A131: 800 | B131: =LOOKUP(A131,'DOE - FIPStoPayeeCodeConvTable'!$A$3:$A$213,'DOE - FIPStoPayeeCodeConvTable'!$B$3:$B$213) -> Suffolk City | C131: 4386.6 | D131: 4532.82 | E131: 0 | S131: 8919.42 | U131: 7210.46 | V131: 1708.96 | W131: =LOOKUP(A131,'DOE - FIPStoPayeeCodeConvTable'!$A$3:$A$213,'DOE - FIPStoPayeeCodeConvTable'!$E$3:$E$213) -> 0.2432 | X131: 0.304 | Y131: 519.52 | Z131: 1189.44
A132: 810 | B132: =LOOKUP(A132,'DOE - FIPStoPayeeCodeConvTable'!$A$3:$A$213,'DOE - FIPStoPayeeCodeConvTable'!$B$3:$B$213) -> Virginia Beach City | C132: 0 | D132: 0 | E132: 0 | S132: 0 | U132: 0 | V132: 0 | W132: =LOOKUP(A132,'DOE - FIPStoPayeeCodeConvTable'!$A$3:$A$213,'DOE - FIPStoPayeeCodeConvTable'!$E$3:$E$213) -> 0.3569 | X132: 0.446125 | Y132: 0 | Z132: 0
A133: 820 | B133: =LOOKUP(A133,'DOE - FIPStoPayeeCodeConvTable'!$A$3:$A$213,'DOE - FIPStoPayeeCodeConvTable'!$B$3:$B$213) -> Waynesboro City | C133: 0 | D133: 0 | E133: 0 | S133: =SUM(C133:R133) -> 0 | U133: 0 | V133: =SUM(S133)-SUM(U133) -> 0 | W133: =LOOKUP(A133,'DOE - FIPStoPayeeCodeConvTable'!$A$3:$A$213,'DOE - FIPStoPayeeCodeConvTable'!$E$3:$E$213) -> 0.3843 | X133: 0.480375 | Y133: 0 | Z133: 0
A134: 830 | B134: =LOOKUP(A134,'DOE - FIPStoPayeeCodeConvTable'!$A$3:$A$213,'DOE - FIPStoPayeeCodeConvTable'!$B$3:$B$213) -> Williamsburg City | C134: 0 | D134: 0 | E134: 0 | S134: 0 | U134: 0 | V134: 0 | W134: =LOOKUP(A134,'DOE - FIPStoPayeeCodeConvTable'!$A$3:$A$213,'DOE - FIPStoPayeeCodeConvTable'!$E$3:$E$213) -> 0.4553 | X134: =$X$1*W134 -> 0.569125 | Y134: =ROUND(X134*V134,2) -> 0 | Z134: =SUM(V134)-SUM(Y134) -> 0
A135: 840 | B135: =LOOKUP(A135,'DOE - FIPStoPayeeCodeConvTable'!$A$3:$A$213,'DOE - FIPStoPayeeCodeConvTable'!$B$3:$B$213) -> Winchester City | C135: 0 | D135: 0 | E135: 0 | S135: 0 | U135: 0 | V135: 0 | W135: =LOOKUP(A135,'DOE - FIPStoPayeeCodeConvTable'!$A$3:$A$213,'DOE - FIPStoPayeeCodeConvTable'!$E$3:$E$213) -> 0.4587 | X135: 0.573375 | Y135: 0 | Z135: 0

Sheet Regular (hidden)
A1: FY | B1: ='DOE - FIPStoPayeeCodeConvTable'!G1 -> 2021 | C1: MEDICAID ADJUSTMENTS--Regular PAYMENTS TO PROVIDERS | O1: ="Extended to be paided in this SFY = " & B1 -> Extended to be paided in this SFY = 2021 | T1: xx | U1: 0.5 | V1: 0.5 | W1: (POOL) | X1: 1.25
U2: FEDERAL | V2: STATE/ | W2: (RATE) | X2: Factor
A3: FIPS | S3: Grand | U3: MEDICAID | V3: LOCAL | W3: LOCAL | Y3: LOCAL | Z3: STATE
A4: CODE | B4: LOCALITY | C4: =TEXT("7/1/" & $B$1-1,"mmm-yyyy") -> Jul-2020 | D4: =TEXT("8/1/" & $B$1-1,"mmm-yyyy") -> Aug-2020 | E4: =TEXT("9/1/" & $B$1-1,"mmm-yyyy") -> Sep-2020 | F4: =TEXT("10/1/" & $B$1-1,"mmm-yyyy") -> Oct-2020 | G4: =TEXT("11/1/" & $B$1-1,"mmm-yyyy") -> Nov-2020 | H4: =TEXT("12/1/" & $B$1-1,"mmm-yyyy") -> Dec-2020 | I4: =TEXT("1/1/" & $B$1,"mmm-yyyy") -> Jan-2021 | J4: =TEXT("2/1/" & $B$1,"mmm-yyyy") -> Feb-2021 | K4: =TEXT("3/1/" & $B$1,"mmm-yyyy") -> Mar-2021 | L4: =TEXT("4/1/" & $B$1,"mmm-yyyy") -> Apr-2021 | M4: =TEXT("5/1/" & $B$1,"mmm-yyyy") -> May-2021 | N4: =TEXT("6/1/" & $B$1,"mmm-yyyy") -> Jun-2021 | O4: =TEXT("7/1/" & $B$1,"mmm-yyyy") -> Jul-2021 | P4: =TEXT("8/1/" & $B$1,"mmm-yyyy") -> Aug-2021 | Q4: =TEXT("9/1/" & $B$1,"mmm-yyyy") -> Sep-2021 | R4: =TEXT("10/1/" & $B$1,"mmm-yyyy") -> Oct-2021 | S4: Total | U4: RATE/Share | V4: SHARE | W4: MATCH Rate | Y4: MATCH | Z4: SHARE
A5: Totals | C5: =SUM(C6:C1201) -> 0 | D5: 0 | E5: =SUM(E6:E1201) -> 0 | F5: =SUM(F6:F1201) -> 0 | G5: =SUM(G6:G1201) -> 0 | H5: =SUM(H6:H1201) -> 0 | I5: 0 | J5: 0 | K5: =SUM(K6:K1200) -> 0 | L5: =SUM(L6:L1200) -> 0 | M5: =SUM(M6:M1200) -> 0 | N5: =SUM(N6:N1200) -> 0 | O5: 0 | P5: 0 | Q5: 0 | R5: 0 | S5: =SUM(C5:R5) -> 0 | T5: = | U5: =SUM(U6:U399) -> 0 | V5: =SUM(V6:V399) -> 0 | W5: = | Y5: =SUM(Y6:Y399) -> 0 | Z5: =SUM(Z6:Z399) -> 0
A6: 1 | B6: =LOOKUP(A6,'DOE - FIPStoPayeeCodeConvTable'!$A$3:$A$213,'DOE - FIPStoPayeeCodeConvTable'!$B$3:$B$213) -> Accomack Co | S6: 0 | U6: =ROUND($U$1*S6,2) -> 0 | V6: =SUM(S6)-SUM(U6) -> 0 | W6: =LOOKUP(A6,'DOE - FIPStoPayeeCodeConvTable'!$A$3:$A$213,'DOE - FIPStoPayeeCodeConvTable'!$E$3:$E$213) -> 0.2332 | X6: =$X$1*W6 -> 0.2915 | Y6: =ROUND(X6*V6,2) -> 0 | Z6: =SUM(V6)-SUM(Y6) -> 0
A7: 3 | B7: =LOOKUP(A7,'DOE - FIPStoPayeeCodeConvTable'!$A$3:$A$213,'DOE - FIPStoPayeeCodeConvTable'!$B$3:$B$213) -> Albemarle Co | S7: 0 | U7: 0 | V7: 0 | W7: =LOOKUP(A7,'DOE - FIPStoPayeeCodeConvTable'!$A$3:$A$213,'DOE - FIPStoPayeeCodeConvTable'!$E$3:$E$213) -> 0.4474 | X7: =$X$1*W7 -> 0.55925 | Y7: =ROUND(X7*V7,2) -> 0 | Z7: =SUM(V7)-SUM(Y7) -> 0
A8: 5 | B8: =LOOKUP(A8,'DOE - FIPStoPayeeCodeConvTable'!$A$3:$A$213,'DOE - FIPStoPayeeCodeConvTable'!$B$3:$B$213) -> Alleghany Co | S8: 0 | U8: 0 | V8: 0 | W8: =LOOKUP(A8,'DOE - FIPStoPayeeCodeConvTable'!$A$3:$A$213,'DOE - FIPStoPayeeCodeConvTable'!$E$3:$E$213) -> 0.1924 | X8: 0.2405 | Y8: 0 | Z8: 0
A9: 7 | B9: =LOOKUP(A9,'DOE - FIPStoPayeeCodeConvTable'!$A$3:$A$213,'DOE - FIPStoPayeeCodeConvTable'!$B$3:$B$213) -> Amelia Co | S9: 0 | U9: 0 | V9: 0 | W9: =LOOKUP(A9,'DOE - FIPStoPayeeCodeConvTable'!$A$3:$A$213,'DOE - FIPStoPayeeCodeConvTable'!$E$3:$E$213) -> 0.3268 | X9: 0.4085 | Y9: 0 | Z9: 0
A10: 9 | B10: =LOOKUP(A10,'DOE - FIPStoPayeeCodeConvTable'!$A$3:$A$213,'DOE - FIPStoPayeeCodeConvTable'!$B$3:$B$213) -> Amherst Co | S10: 0 | U10: 0 | V10: 0 | W10: =LOOKUP(A10,'DOE - FIPStoPayeeCodeConvTable'!$A$3:$A$213,'DOE - FIPStoPayeeCodeConvTable'!$E$3:$E$213) -> 0.2722 | X10: 0.34025 | Y10: 0 | Z10: 0
A11: 11 | B11: =LOOKUP(A11,'DOE - FIPStoPayeeCodeConvTable'!$A$3:$A$213,'DOE - FIPStoPayeeCodeConvTable'!$B$3:$B$213) -> Appomattox Co | S11: 0 | U11: 0 | V11: 0 | W11: =LOOKUP(A11,'DOE - FIPStoPayeeCodeConvTable'!$A$3:$A$213,'DOE - FIPStoPayeeCodeConvTable'!$E$3:$E$213) -> 0.2639 | X11: 0.329875 | Y11: 0 | Z11: 0
A12: 13 | B12: =LOOKUP(A12,'DOE - FIPStoPayeeCodeConvTable'!$A$3:$A$213,'DOE - FIPStoPayeeCodeConvTable'!$B$3:$B$213) -> Arlington Co | S12: 0 | U12: 0 | V12: 0 | W12: =LOOKUP(A12,'DOE - FIPStoPayeeCodeConvTable'!$A$3:$A$213,'DOE - FIPStoPayeeCodeConvTable'!$E$3:$E$213) -> 0.4602 | X12: 0.57525 | Y12: 0 | Z12: 0
A13: 15 | B13: =LOOKUP(A13,'DOE - FIPStoPayeeCodeConvTable'!$A$3:$A$213,'DOE - FIPStoPayeeCodeConvTable'!$B$3:$B$213) -> Augusta Co | S13: 0 | U13: 0 | V13: 0 | W13: =LOOKUP(A13,'DOE - FIPStoPayeeCodeConvTable'!$A$3:$A$213,'DOE - FIPStoPayeeCodeConvTable'!$E$3:$E$213) -> 0.3302 | X13: 0.41275 | Y13: 0 | Z13: 0
A14: 17 | B14: =LOOKUP(A14,'DOE - FIPStoPayeeCodeConvTable'!$A$3:$A$213,'DOE - FIPStoPayeeCodeConvTable'!$B$3:$B$213) -> Bath Co | S14: 0 | U14: 0 | V14: 0 | W14: =LOOKUP(A14,'DOE - FIPStoPayeeCodeConvTable'!$A$3:$A$213,'DOE - FIPStoPayeeCodeConvTable'!$E$3:$E$213) -> 0.4278 | X14: 0.53475 | Y14: 0 | Z14: 0
A15: 19 | B15: =LOOKUP(A15,'DOE - FIPStoPayeeCodeConvTable'!$A$3:$A$213,'DOE - FIPStoPayeeCodeConvTable'!$B$3:$B$213) -> Bedford Co | S15: 0 | U15: 0 | V15: 0 | W15: =LOOKUP(A15,'DOE - FIPStoPayeeCodeConvTable'!$A$3:$A$213,'DOE - FIPStoPayeeCodeConvTable'!$E$3:$E$213) -> 0.31112 | X15: 0.3889 | Y15: 0 | Z15: 0
A16: 21 | B16: =LOOKUP(A16,'DOE - FIPStoPayeeCodeConvTable'!$A$3:$A$213,'DOE - FIPStoPayeeCodeConvTable'!$B$3:$B$213) -> Bland Co | S16: 0 | U16: 0 | V16: 0 | W16: =LOOKUP(A16,'DOE - FIPStoPayeeCodeConvTable'!$A$3:$A$213,'DOE - FIPStoPayeeCodeConvTable'!$E$3:$E$213) -> 0.2109 | X16: 0.263625 | Y16: 0 | Z16: 0
A17: 23 | B17: =LOOKUP(A17,'DOE - FIPStoPayeeCodeConvTable'!$A$3:$A$213,'DOE - FIPStoPayeeCodeConvTable'!$B$3:$B$213) -> Botetourt Co | S17: 0 | U17: 0 | V17: 0 | W17: =LOOKUP(A17,'DOE - FIPStoPayeeCodeConvTable'!$A$3:$A$213,'DOE - FIPStoPayeeCodeConvTable'!$E$3:$E$213) -> 0.3602 | X17: 0.45025 | Y17: 0 | Z17: 0
A18: 25 | B18: =LOOKUP(A18,'DOE - FIPStoPayeeCodeConvTable'!$A$3:$A$213,'DOE - FIPStoPayeeCodeConvTable'!$B$3:$B$213) -> Brunswick Co | S18: 0 | U18: 0 | V18: 0 | W18: =LOOKUP(A18,'DOE - FIPStoPayeeCodeConvTable'!$A$3:$A$213,'DOE - FIPStoPayeeCodeConvTable'!$E$3:$E$213) -> 0.2439 | X18: 0.304875 | Y18: 0 | Z18: 0
A19: 27 | B19: =LOOKUP(A19,'DOE - FIPStoPayeeCodeConvTable'!$A$3:$A$213,'DOE - FIPStoPayeeCodeConvTable'!$B$3:$B$213) -> Buchanan Co | S19: 0 | U19: 0 | V19: 0 | W19: =LOOKUP(A19,'DOE - FIPStoPayeeCodeConvTable'!$A$3:$A$213,'DOE - FIPStoPayeeCodeConvTable'!$E$3:$E$213) -> 0.3156 | X19: 0.3945 | Y19: 0 | Z19: 0
A20: 29 | B20: =LOOKUP(A20,'DOE - FIPStoPayeeCodeConvTable'!$A$3:$A$213,'DOE - FIPStoPayeeCodeConvTable'!$B$3:$B$213) -> Buckingham Co | S20: 0 | U20: 0 | V20: 0 | W20: =LOOKUP(A20,'DOE - FIPStoPayeeCodeConvTable'!$A$3:$A$213,'DOE - FIPStoPayeeCodeConvTable'!$E$3:$E$213) -> 0.2023 | X20: 0.252875 | Y20: 0 | Z20: 0
A21: 31 | B21: =LOOKUP(A21,'DOE - FIPStoPayeeCodeConvTable'!$A$3:$A$213,'DOE - FIPStoPayeeCodeConvTable'!$B$3:$B$213) -> Campbell Co | S21: 0 | U21: 0 | V21: 0 | W21: =LOOKUP(A21,'DOE - FIPStoPayeeCodeConvTable'!$A$3:$A$213,'DOE - FIPStoPayeeCodeConvTable'!$E$3:$E$213) -> 0.3107 | X21: 0.388375 | Y21: 0 | Z21: 0
A22: 33 | B22: =LOOKUP(A22,'DOE - FIPStoPayeeCodeConvTable'!$A$3:$A$213,'DOE - FIPStoPayeeCodeConvTable'!$B$3:$B$213) -> Caroline Co | S22: 0 | U22: 0 | V22: 0 | W22: =LOOKUP(A22,'DOE - FIPStoPayeeCodeConvTable'!$A$3:$A$213,'DOE - FIPStoPayeeCodeConvTable'!$E$3:$E$213) -> 0.3308 | X22: 0.4135 | Y22: 0 | Z22: 0
A23: 35 | B23: =LOOKUP(A23,'DOE - FIPStoPayeeCodeConvTable'!$A$3:$A$213,'DOE - FIPStoPayeeCodeConvTable'!$B$3:$B$213) -> Carroll Co | S23: 0 | U23: 0 | V23: 0 | W23: =LOOKUP(A23,'DOE - FIPStoPayeeCodeConvTable'!$A$3:$A$213,'DOE - FIPStoPayeeCodeConvTable'!$E$3:$E$213) -> 0.291 | X23: 0.36375 | Y23: 0 | Z23: 0
A24: 36 | B24: =LOOKUP(A24,'DOE - FIPStoPayeeCodeConvTable'!$A$3:$A$213,'DOE - FIPStoPayeeCodeConvTable'!$B$3:$B$213) -> Charles City Co | S24: 0 | U24: 0 | V24: 0 | W24: =LOOKUP(A24,'DOE - FIPStoPayeeCodeConvTable'!$A$3:$A$213,'DOE - FIPStoPayeeCodeConvTable'!$E$3:$E$213) -> 0.3131 | X24: 0.391375 | Y24: 0 | Z24: 0
A25: 37 | B25: =LOOKUP(A25,'DOE - FIPStoPayeeCodeConvTable'!$A$3:$A$213,'DOE - FIPStoPayeeCodeConvTable'!$B$3:$B$213) -> Charlotte Co | S25: 0 | U25: 0 | V25: 0 | W25: =LOOKUP(A25,'DOE - FIPStoPayeeCodeConvTable'!$A$3:$A$213,'DOE - FIPStoPayeeCodeConvTable'!$E$3:$E$213) -> 0.2204 | X25: 0.2755 | Y25: 0 | Z25: 0
A26: 41 | B26: =LOOKUP(A26,'DOE - FIPStoPayeeCodeConvTable'!$A$3:$A$213,'DOE - FIPStoPayeeCodeConvTable'!$B$3:$B$213) -> Chesterfield Co | S26: 0 | U26: 0 | V26: 0 | W26: =LOOKUP(A26,'DOE - FIPStoPayeeCodeConvTable'!$A$3:$A$213,'DOE - FIPStoPayeeCodeConvTable'!$E$3:$E$213) -> 0.3853 | X26: 0.481625 | Y26: 0 | Z26: 0
A27: 43 | B27: =LOOKUP(A27,'DOE - FIPStoPayeeCodeConvTable'!$A$3:$A$213,'DOE - FIPStoPayeeCodeConvTable'!$B$3:$B$213) -> Clarke Co | S27: 0 | U27: 0 | V27: 0 | W27: =LOOKUP(A27,'DOE - FIPStoPayeeCodeConvTable'!$A$3:$A$213,'DOE - FIPStoPayeeCodeConvTable'!$E$3:$E$213) -> 0.4797 | X27: 0.599625 | Y27: 0 | Z27: 0
A28: 45 | B28: =LOOKUP(A28,'DOE - FIPStoPayeeCodeConvTable'!$A$3:$A$213,'DOE - FIPStoPayeeCodeConvTable'!$B$3:$B$213) -> Craig Co | S28: 0 | U28: 0 | V28: 0 | W28: =LOOKUP(A28,'DOE - FIPStoPayeeCodeConvTable'!$A$3:$A$213,'DOE - FIPStoPayeeCodeConvTable'!$E$3:$E$213) -> 0.2901 | X28: 0.362625 | Y28: 0 | Z28: 0
A29: 47 | B29: =LOOKUP(A29,'DOE - FIPStoPayeeCodeConvTable'!$A$3:$A$213,'DOE - FIPStoPayeeCodeConvTable'!$B$3:$B$213) -> Culpeper Co | S29: 0 | U29: 0 | V29: 0 | W29: =LOOKUP(A29,'DOE - FIPStoPayeeCodeConvTable'!$A$3:$A$213,'DOE - FIPStoPayeeCodeConvTable'!$E$3:$E$213) -> 0.3767 | X29: 0.470875 | Y29: 0 | Z29: 0
A30: 49 | B30: =LOOKUP(A30,'DOE - FIPStoPayeeCodeConvTable'!$A$3:$A$213,'DOE - FIPStoPayeeCodeConvTable'!$B$3:$B$213) -> Cumberland Co | S30: 0 | U30: 0 | V30: 0 | W30: =LOOKUP(A30,'DOE - FIPStoPayeeCodeConvTable'!$A$3:$A$213,'DOE - FIPStoPayeeCodeConvTable'!$E$3:$E$213) -> 0.304 | X30: 0.38 | Y30: 0 | Z30: 0
A31: 51 | B31: =LOOKUP(A31,'DOE - FIPStoPayeeCodeConvTable'!$A$3:$A$213,'DOE - FIPStoPayeeCodeConvTable'!$B$3:$B$213) -> Dickenson Co | S31: 0 | U31: 0 | V31: 0 | W31: =LOOKUP(A31,'DOE - FIPStoPayeeCodeConvTable'!$A$3:$A$213,'DOE - FIPStoPayeeCodeConvTable'!$E$3:$E$213) -> 0.3042 | X31: 0.38025 | Y31: 0 | Z31: 0
A32: 53 | B32: =LOOKUP(A32,'DOE - FIPStoPayeeCodeConvTable'!$A$3:$A$213,'DOE - FIPStoPayeeCodeConvTable'!$B$3:$B$213) -> Dinwiddie Co | S32: 0 | U32: 0 | V32: 0 | W32: =LOOKUP(A32,'DOE - FIPStoPayeeCodeConvTable'!$A$3:$A$213,'DOE - FIPStoPayeeCodeConvTable'!$E$3:$E$213) -> 0.3358 | X32: 0.41975 | Y32: 0 | Z32: 0
A33: 57 | B33: =LOOKUP(A33,'DOE - FIPStoPayeeCodeConvTable'!$A$3:$A$213,'DOE - FIPStoPayeeCodeConvTable'!$B$3:$B$213) -> Essex Co | S33: 0 | U33: 0 | V33: 0 | W33: =LOOKUP(A33,'DOE - FIPStoPayeeCodeConvTable'!$A$3:$A$213,'DOE - FIPStoPayeeCodeConvTable'!$E$3:$E$213) -> 0.3853 | X33: 0.481625 | Y33: 0 | Z33: 0
A34: 59 | B34: =LOOKUP(A34,'DOE - FIPStoPayeeCodeConvTable'!$A$3:$A$213,'DOE - FIPStoPayeeCodeConvTable'!$B$3:$B$213) -> Fairfax Co | S34: 0 | U34: 0 | V34: 0 | W34: =LOOKUP(A34,'DOE - FIPStoPayeeCodeConvTable'!$A$3:$A$213,'DOE - FIPStoPayeeCodeConvTable'!$E$3:$E$213) -> 0.4611 | X34: 0.576375 | Y34: 0 | Z34: 0
A35: 61 | B35: =LOOKUP(A35,'DOE - FIPStoPayeeCodeConvTable'!$A$3:$A$213,'DOE - FIPStoPayeeCodeConvTable'!$B$3:$B$213) -> Fauquier Co | S35: 0 | U35: 0 | V35: 0 | W35: =LOOKUP(A35,'DOE - FIPStoPayeeCodeConvTable'!$A$3:$A$213,'DOE - FIPStoPayeeCodeConvTable'!$E$3:$E$213) -> 0.4584 | X35: 0.573 | Y35: 0 | Z35: 0
A36: 63 | B36: =LOOKUP(A36,'DOE - FIPStoPayeeCodeConvTable'!$A$3:$A$213,'DOE - FIPStoPayeeCodeConvTable'!$B$3:$B$213) -> Floyd Co | S36: 0 | U36: 0 | V36: 0 | W36: =LOOKUP(A36,'DOE - FIPStoPayeeCodeConvTable'!$A$3:$A$213,'DOE - FIPStoPayeeCodeConvTable'!$E$3:$E$213) -> 0.2324 | X36: 0.2905 | Y36: 0 | Z36: 0
A37: 65 | B37: =LOOKUP(A37,'DOE - FIPStoPayeeCodeConvTable'!$A$3:$A$213,'DOE - FIPStoPayeeCodeConvTable'!$B$3:$B$213) -> Fluvanna Co | S37: =SUM(C37:R37) -> 0 | U37: 0 | V37: 0 | W37: =LOOKUP(A37,'DOE - FIPStoPayeeCodeConvTable'!$A$3:$A$213,'DOE - FIPStoPayeeCodeConvTable'!$E$3:$E$213) -> 0.3811 | X37: 0.476375 | Y37: 0 | Z37: 0
A38: 67 | B38: =LOOKUP(A38,'DOE - FIPStoPayeeCodeConvTable'!$A$3:$A$213,'DOE - FIPStoPayeeCodeConvTable'!$B$3:$B$213) -> Franklin Co | S38: 0 | U38: =ROUND($U$1*S38,2) -> 0 | V38: =SUM(S38)-SUM(U38) -> 0 | W38: =LOOKUP(A38,'DOE - FIPStoPayeeCodeConvTable'!$A$3:$A$213,'DOE - FIPStoPayeeCodeConvTable'!$E$3:$E$213) -> 0.283 | X38: 0.35375 | Y38: 0 | Z38: 0
A39: 69 | B39: =LOOKUP(A39,'DOE - FIPStoPayeeCodeConvTable'!$A$3:$A$213,'DOE - FIPStoPayeeCodeConvTable'!$B$3:$B$213) -> Frederick Co | S39: 0 | U39: 0 | V39: 0 | W39: =LOOKUP(A39,'DOE - FIPStoPayeeCodeConvTable'!$A$3:$A$213,'DOE - FIPStoPayeeCodeConvTable'!$E$3:$E$213) -> 0.4348 | X39: 0.5435 | Y39: 0 | Z39: 0
A40: 71 | B40: =LOOKUP(A40,'DOE - FIPStoPayeeCodeConvTable'!$A$3:$A$213,'DOE - FIPStoPayeeCodeConvTable'!$B$3:$B$213) -> Giles Co | S40: 0 | U40: 0 | V40: 0 | W40: =LOOKUP(A40,'DOE - FIPStoPayeeCodeConvTable'!$A$3:$A$213,'DOE - FIPStoPayeeCodeConvTable'!$E$3:$E$213) -> 0.2898 | X40: 0.36225 | Y40: 0 | Z40: 0
A41: 73 | B41: =LOOKUP(A41,'DOE - FIPStoPayeeCodeConvTable'!$A$3:$A$213,'DOE - FIPStoPayeeCodeConvTable'!$B$3:$B$213) -> Gloucester Co | S41: 0 | U41: 0 | V41: 0 | W41: =LOOKUP(A41,'DOE - FIPStoPayeeCodeConvTable'!$A$3:$A$213,'DOE - FIPStoPayeeCodeConvTable'!$E$3:$E$213) -> 0.3687 | X41: 0.460875 | Y41: 0 | Z41: 0
A42: 75 | B42: =LOOKUP(A42,'DOE - FIPStoPayeeCodeConvTable'!$A$3:$A$213,'DOE - FIPStoPayeeCodeConvTable'!$B$3:$B$213) -> Goochland Co | S42: 0 | U42: 0 | V42: 0 | W42: =LOOKUP(A42,'DOE - FIPStoPayeeCodeConvTable'!$A$3:$A$213,'DOE - FIPStoPayeeCodeConvTable'!$E$3:$E$213) -> 0.4871 | X42: 0.608875 | Y42: 0 | Z42: 0
A43: 77 | B43: =LOOKUP(A43,'DOE - FIPStoPayeeCodeConvTable'!$A$3:$A$213,'DOE - FIPStoPayeeCodeConvTable'!$B$3:$B$213) -> Grayson Co | S43: 0 | U43: 0 | V43: 0 | W43: =LOOKUP(A43,'DOE - FIPStoPayeeCodeConvTable'!$A$3:$A$213,'DOE - FIPStoPayeeCodeConvTable'!$E$3:$E$213) -> 0.2109 | X43: 0.263625 | Y43: 0 | Z43: 0
A44: 79 | B44: =LOOKUP(A44,'DOE - FIPStoPayeeCodeConvTable'!$A$3:$A$213,'DOE - FIPStoPayeeCodeConvTable'!$B$3:$B$213) -> Greene Co | S44: 0 | U44: 0 | V44: 0 | W44: =LOOKUP(A44,'DOE - FIPStoPayeeCodeConvTable'!$A$3:$A$213,'DOE - FIPStoPayeeCodeConvTable'!$E$3:$E$213) -> 0.3471 | X44: 0.433875 | Y44: 0 | Z44: 0
A45: 81 | B45: =LOOKUP(A45,'DOE - FIPStoPayeeCodeConvTable'!$A$3:$A$213,'DOE - FIPStoPayeeCodeConvTable'!$B$3:$B$213) -> Greensville Co | S45: 0 | U45: 0 | V45: 0 | W45: =LOOKUP(A45,'DOE - FIPStoPayeeCodeConvTable'!$A$3:$A$213,'DOE - FIPStoPayeeCodeConvTable'!$E$3:$E$213) -> 0.2266 | X45: 0.28325 | Y45: 0 | Z45: 0
A46: 83 | B46: =LOOKUP(A46,'DOE - FIPStoPayeeCodeConvTable'!$A$3:$A$213,'DOE - FIPStoPayeeCodeConvTable'!$B$3:$B$213) -> Halifax Co | S46: 0 | U46: 0 | V46: 0 | W46: =LOOKUP(A46,'DOE - FIPStoPayeeCodeConvTable'!$A$3:$A$213,'DOE - FIPStoPayeeCodeConvTable'!$E$3:$E$213) -> 0.2335 | X46: 0.291875 | Y46: 0 | Z46: 0
A47: 85 | B47: =LOOKUP(A47,'DOE - FIPStoPayeeCodeConvTable'!$A$3:$A$213,'DOE - FIPStoPayeeCodeConvTable'!$B$3:$B$213) -> Hanover Co | S47: 0 | U47: 0 | V47: 0 | W47: =LOOKUP(A47,'DOE - FIPStoPayeeCodeConvTable'!$A$3:$A$213,'DOE - FIPStoPayeeCodeConvTable'!$E$3:$E$213) -> 0.4444 | X47: 0.5555 | Y47: 0 | Z47: 0
A48: 87 | B48: =LOOKUP(A48,'DOE - FIPStoPayeeCodeConvTable'!$A$3:$A$213,'DOE - FIPStoPayeeCodeConvTable'!$B$3:$B$213) -> Henrico Co | S48: 0 | U48: 0 | V48: 0 | W48: =LOOKUP(A48,'DOE - FIPStoPayeeCodeConvTable'!$A$3:$A$213,'DOE - FIPStoPayeeCodeConvTable'!$E$3:$E$213) -> 0.3755 | X48: 0.469375 | Y48: 0 | Z48: 0
A49: 89 | B49: =LOOKUP(A49,'DOE - FIPStoPayeeCodeConvTable'!$A$3:$A$213,'DOE - FIPStoPayeeCodeConvTable'!$B$3:$B$213) -> Henry Co | S49: 0 | U49: 0 | V49: 0 | W49: =LOOKUP(A49,'DOE - FIPStoPayeeCodeConvTable'!$A$3:$A$213,'DOE - FIPStoPayeeCodeConvTable'!$E$3:$E$213) -> 0.2786 | X49: 0.34825 | Y49: 0 | Z49: 0
A50: 91 | B50: =LOOKUP(A50,'DOE - FIPStoPayeeCodeConvTable'!$A$3:$A$213,'DOE - FIPStoPayeeCodeConvTable'!$B$3:$B$213) -> Highland Co | S50: 0 | U50: 0 | V50: 0 | W50: =LOOKUP(A50,'DOE - FIPStoPayeeCodeConvTable'!$A$3:$A$213,'DOE - FIPStoPayeeCodeConvTable'!$E$3:$E$213) -> 0.3822 | X50: 0.47775 | Y50: 0 | Z50: 0
A51: 93 | B51: =LOOKUP(A51,'DOE - FIPStoPayeeCodeConvTable'!$A$3:$A$213,'DOE - FIPStoPayeeCodeConvTable'!$B$3:$B$213) -> Isle Of Wight Co | S51: 0 | U51: 0 | V51: 0 | W51: =LOOKUP(A51,'DOE - FIPStoPayeeCodeConvTable'!$A$3:$A$213,'DOE - FIPStoPayeeCodeConvTable'!$E$3:$E$213) -> 0.3613 | X51: 0.451625 | Y51: 0 | Z51: 0
A52: 95 | B52: =LOOKUP(A52,'DOE - FIPStoPayeeCodeConvTable'!$A$3:$A$213,'DOE - FIPStoPayeeCodeConvTable'!$B$3:$B$213) -> James City Co | S52: 0 | U52: 0 | V52: 0 | W52: =LOOKUP(A52,'DOE - FIPStoPayeeCodeConvTable'!$A$3:$A$213,'DOE - FIPStoPayeeCodeConvTable'!$E$3:$E$213) -> 0.4483 | X52: 0.560375 | Y52: 0 | Z52: 0
A53: 97 | B53: =LOOKUP(A53,'DOE - FIPStoPayeeCodeConvTable'!$A$3:$A$213,'DOE - FIPStoPayeeCodeConvTable'!$B$3:$B$213) -> King And Queen Co | S53: 0 | U53: 0 | V53: 0 | W53: =LOOKUP(A53,'DOE - FIPStoPayeeCodeConvTable'!$A$3:$A$213,'DOE - FIPStoPayeeCodeConvTable'!$E$3:$E$213) -> 0.3144 | X53: 0.393 | Y53: 0 | Z53: 0
A54: 99 | B54: =LOOKUP(A54,'DOE - FIPStoPayeeCodeConvTable'!$A$3:$A$213,'DOE - FIPStoPayeeCodeConvTable'!$B$3:$B$213) -> King George Co | S54: 0 | U54: 0 | V54: 0 | W54: =LOOKUP(A54,'DOE - FIPStoPayeeCodeConvTable'!$A$3:$A$213,'DOE - FIPStoPayeeCodeConvTable'!$E$3:$E$213) -> 0.3627 | X54: 0.453375 | Y54: 0 | Z54: 0
A55: 101 | B55: =LOOKUP(A55,'DOE - FIPStoPayeeCodeConvTable'!$A$3:$A$213,'DOE - FIPStoPayeeCodeConvTable'!$B$3:$B$213) -> King William Co | S55: 0 | U55: 0 | V55: 0 | W55: =LOOKUP(A55,'DOE - FIPStoPayeeCodeConvTable'!$A$3:$A$213,'DOE - FIPStoPayeeCodeConvTable'!$E$3:$E$213) -> 0.3853 | X55: 0.481625 | Y55: 0 | Z55: 0
A56: 103 | B56: =LOOKUP(A56,'DOE - FIPStoPayeeCodeConvTable'!$A$3:$A$213,'DOE - FIPStoPayeeCodeConvTable'!$B$3:$B$213) -> Lancaster Co | S56: 0 | U56: 0 | V56: 0 | W56: =LOOKUP(A56,'DOE - FIPStoPayeeCodeConvTable'!$A$3:$A$213,'DOE - FIPStoPayeeCodeConvTable'!$E$3:$E$213) -> 0.4391 | X56: 0.548875 | Y56: 0 | Z56: 0
A57: 105 | B57: =LOOKUP(A57,'DOE - FIPStoPayeeCodeConvTable'!$A$3:$A$213,'DOE - FIPStoPayeeCodeConvTable'!$B$3:$B$213) -> Lee Co | S57: 0 | U57: 0 | V57: 0 | W57: =LOOKUP(A57,'DOE - FIPStoPayeeCodeConvTable'!$A$3:$A$213,'DOE - FIPStoPayeeCodeConvTable'!$E$3:$E$213) -> 0.2245 | X57: 0.280625 | Y57: 0 | Z57: 0
A58: 107 | B58: =LOOKUP(A58,'DOE - FIPStoPayeeCodeConvTable'!$A$3:$A$213,'DOE - FIPStoPayeeCodeConvTable'!$B$3:$B$213) -> Loudoun Co | S58: 0 | U58: 0 | V58: 0 | W58: =LOOKUP(A58,'DOE - FIPStoPayeeCodeConvTable'!$A$3:$A$213,'DOE - FIPStoPayeeCodeConvTable'!$E$3:$E$213) -> 0.4764 | X58: 0.5955 | Y58: 0 | Z58: 0
A59: 109 | B59: =LOOKUP(A59,'DOE - FIPStoPayeeCodeConvTable'!$A$3:$A$213,'DOE - FIPStoPayeeCodeConvTable'!$B$3:$B$213) -> Louisa Co | S59: 0 | U59: 0 | V59: 0 | W59: =LOOKUP(A59,'DOE - FIPStoPayeeCodeConvTable'!$A$3:$A$213,'DOE - FIPStoPayeeCodeConvTable'!$E$3:$E$213) -> 0.4401 | X59: 0.550125 | Y59: 0 | Z59: 0
A60: 111 | B60: =LOOKUP(A60,'DOE - FIPStoPayeeCodeConvTable'!$A$3:$A$213,'DOE - FIPStoPayeeCodeConvTable'!$B$3:$B$213) -> Lunenburg Co | S60: 0 | U60: 0 | V60: 0 | W60: =LOOKUP(A60,'DOE - FIPStoPayeeCodeConvTable'!$A$3:$A$213,'DOE - FIPStoPayeeCodeConvTable'!$E$3:$E$213) -> 0.1698 | X60: 0.21225 | Y60: 0 | Z60: 0
A61: 113 | B61: =LOOKUP(A61,'DOE - FIPStoPayeeCodeConvTable'!$A$3:$A$213,'DOE - FIPStoPayeeCodeConvTable'!$B$3:$B$213) -> Madison Co | S61: 0 | U61: 0 | V61: 0 | W61: =LOOKUP(A61,'DOE - FIPStoPayeeCodeConvTable'!$A$3:$A$213,'DOE - FIPStoPayeeCodeConvTable'!$E$3:$E$213) -> 0.3355 | X61: 0.419375 | Y61: 0 | Z61: 0
A62: 115 | B62: =LOOKUP(A62,'DOE - FIPStoPayeeCodeConvTable'!$A$3:$A$213,'DOE - FIPStoPayeeCodeConvTable'!$B$3:$B$213) -> Mathews Co | S62: 0 | U62: 0 | V62: 0 | W62: =LOOKUP(A62,'DOE - FIPStoPayeeCodeConvTable'!$A$3:$A$213,'DOE - FIPStoPayeeCodeConvTable'!$E$3:$E$213) -> 0.4271 | X62: 0.533875 | Y62: 0 | Z62: 0
A63: 117 | B63: =LOOKUP(A63,'DOE - FIPStoPayeeCodeConvTable'!$A$3:$A$213,'DOE - FIPStoPayeeCodeConvTable'!$B$3:$B$213) -> Mecklenburg Co | S63: 0 | U63: 0 | V63: 0 | W63: =LOOKUP(A63,'DOE - FIPStoPayeeCodeConvTable'!$A$3:$A$213,'DOE - FIPStoPayeeCodeConvTable'!$E$3:$E$213) -> 0.2286 | X63: 0.28575 | Y63: 0 | Z63: 0
A64: 119 | B64: =LOOKUP(A64,'DOE - FIPStoPayeeCodeConvTable'!$A$3:$A$213,'DOE - FIPStoPayeeCodeConvTable'!$B$3:$B$213) -> Middlesex Co | S64: 0 | U64: 0 | V64: 0 | W64: =LOOKUP(A64,'DOE - FIPStoPayeeCodeConvTable'!$A$3:$A$213,'DOE - FIPStoPayeeCodeConvTable'!$E$3:$E$213) -> 0.4333 | X64: 0.541625 | Y64: 0 | Z64: 0
A65: 121 | B65: =LOOKUP(A65,'DOE - FIPStoPayeeCodeConvTable'!$A$3:$A$213,'DOE - FIPStoPayeeCodeConvTable'!$B$3:$B$213) -> Montgomery Co | S65: 0 | U65: 0 | V65: 0 | W65: =LOOKUP(A65,'DOE - FIPStoPayeeCodeConvTable'!$A$3:$A$213,'DOE - FIPStoPayeeCodeConvTable'!$E$3:$E$213) -> 0.2834 | X65: 0.35425 | Y65: 0 | Z65: 0
A66: 125 | B66: =LOOKUP(A66,'DOE - FIPStoPayeeCodeConvTable'!$A$3:$A$213,'DOE - FIPStoPayeeCodeConvTable'!$B$3:$B$213) -> Nelson Co | S66: 0 | U66: 0 | V66: 0 | W66: =LOOKUP(A66,'DOE - FIPStoPayeeCodeConvTable'!$A$3:$A$213,'DOE - FIPStoPayeeCodeConvTable'!$E$3:$E$213) -> 0.3132 | X66: 0.3915 | Y66: 0 | Z66: 0
A67: 127 | B67: =LOOKUP(A67,'DOE - FIPStoPayeeCodeConvTable'!$A$3:$A$213,'DOE - FIPStoPayeeCodeConvTable'!$B$3:$B$213) -> New Kent Co | S67: 0 | U67: 0 | V67: 0 | W67: =LOOKUP(A67,'DOE - FIPStoPayeeCodeConvTable'!$A$3:$A$213,'DOE - FIPStoPayeeCodeConvTable'!$E$3:$E$213) -> 0.4329 | X67: 0.541125 | Y67: 0 | Z67: 0
A68: 131 | B68: =LOOKUP(A68,'DOE - FIPStoPayeeCodeConvTable'!$A$3:$A$213,'DOE - FIPStoPayeeCodeConvTable'!$B$3:$B$213) -> Northampton Co | S68: 0 | U68: 0 | V68: 0 | W68: =LOOKUP(A68,'DOE - FIPStoPayeeCodeConvTable'!$A$3:$A$213,'DOE - FIPStoPayeeCodeConvTable'!$E$3:$E$213) -> 0.1971 | X68: 0.246375 | Y68: 0 | Z68: 0
A69: 133 | B69: =LOOKUP(A69,'DOE - FIPStoPayeeCodeConvTable'!$A$3:$A$213,'DOE - FIPStoPayeeCodeConvTable'!$B$3:$B$213) -> Northumberland Co | S69: =SUM(C69:R69) -> 0 | U69: 0 | V69: 0 | W69: =LOOKUP(A69,'DOE - FIPStoPayeeCodeConvTable'!$A$3:$A$213,'DOE - FIPStoPayeeCodeConvTable'!$E$3:$E$213) -> 0.3304 | X69: 0.413 | Y69: 0 | Z69: 0
A70: 135 | B70: =LOOKUP(A70,'DOE - FIPStoPayeeCodeConvTable'!$A$3:$A$213,'DOE - FIPStoPayeeCodeConvTable'!$B$3:$B$213) -> Nottoway Co | S70: 0 | U70: =ROUND($U$1*S70,2) -> 0 | V70: =SUM(S70)-SUM(U70) -> 0 | W70: =LOOKUP(A70,'DOE - FIPStoPayeeCodeConvTable'!$A$3:$A$213,'DOE - FIPStoPayeeCodeConvTable'!$E$3:$E$213) -> 0.2686 | X70: 0.33575 | Y70: 0 | Z70: 0
A71: 137 | B71: =LOOKUP(A71,'DOE - FIPStoPayeeCodeConvTable'!$A$3:$A$213,'DOE - FIPStoPayeeCodeConvTable'!$B$3:$B$213) -> Orange Co | S71: 0 | U71: 0 | V71: 0 | W71: =LOOKUP(A71,'DOE - FIPStoPayeeCodeConvTable'!$A$3:$A$213,'DOE - FIPStoPayeeCodeConvTable'!$E$3:$E$213) -> 0.4083 | X71: =$X$1*W71 -> 0.510375 | Y71: =ROUND(X71*V71,2) -> 0 | Z71: =SUM(V71)-SUM(Y71) -> 0
A72: 139 | B72: =LOOKUP(A72,'DOE - FIPStoPayeeCodeConvTable'!$A$3:$A$213,'DOE - FIPStoPayeeCodeConvTable'!$B$3:$B$213) -> Page Co | S72: 0 | U72: 0 | V72: 0 | W72: =LOOKUP(A72,'DOE - FIPStoPayeeCodeConvTable'!$A$3:$A$213,'DOE - FIPStoPayeeCodeConvTable'!$E$3:$E$213) -> 0.2865 | X72: 0.358125 | Y72: 0 | Z72: 0
A73: 141 | B73: =LOOKUP(A73,'DOE - FIPStoPayeeCodeConvTable'!$A$3:$A$213,'DOE - FIPStoPayeeCodeConvTable'!$B$3:$B$213) -> Patrick Co | S73: 0 | U73: 0 | V73: 0 | W73: =LOOKUP(A73,'DOE - FIPStoPayeeCodeConvTable'!$A$3:$A$213,'DOE - FIPStoPayeeCodeConvTable'!$E$3:$E$213) -> 0.2539 | X73: 0.317375 | Y73: 0 | Z73: 0
A74: 143 | B74: =LOOKUP(A74,'DOE - FIPStoPayeeCodeConvTable'!$A$3:$A$213,'DOE - FIPStoPayeeCodeConvTable'!$B$3:$B$213) -> Pittsylvania Co | S74: 0 | U74: 0 | V74: 0 | W74: =LOOKUP(A74,'DOE - FIPStoPayeeCodeConvTable'!$A$3:$A$213,'DOE - FIPStoPayeeCodeConvTable'!$E$3:$E$213) -> 0.2355 | X74: 0.294375 | Y74: 0 | Z74: 0
A75: 145 | B75: =LOOKUP(A75,'DOE - FIPStoPayeeCodeConvTable'!$A$3:$A$213,'DOE - FIPStoPayeeCodeConvTable'!$B$3:$B$213) -> Powhatan Co | S75: 0 | U75: 0 | V75: 0 | W75: =LOOKUP(A75,'DOE - FIPStoPayeeCodeConvTable'!$A$3:$A$213,'DOE - FIPStoPayeeCodeConvTable'!$E$3:$E$213) -> 0.4342 | X75: 0.54275 | Y75: 0 | Z75: 0
A76: 147 | B76: =LOOKUP(A76,'DOE - FIPStoPayeeCodeConvTable'!$A$3:$A$213,'DOE - FIPStoPayeeCodeConvTable'!$B$3:$B$213) -> Prince Edward Co | S76: 0 | U76: 0 | V76: 0 | W76: =LOOKUP(A76,'DOE - FIPStoPayeeCodeConvTable'!$A$3:$A$213,'DOE - FIPStoPayeeCodeConvTable'!$E$3:$E$213) -> 0.2232 | X76: 0.279 | Y76: 0 | Z76: 0
A77: 149 | B77: =LOOKUP(A77,'DOE - FIPStoPayeeCodeConvTable'!$A$3:$A$213,'DOE - FIPStoPayeeCodeConvTable'!$B$3:$B$213) -> Prince George Co | S77: 0 | U77: 0 | V77: 0 | W77: =LOOKUP(A77,'DOE - FIPStoPayeeCodeConvTable'!$A$3:$A$213,'DOE - FIPStoPayeeCodeConvTable'!$E$3:$E$213) -> 0.3716 | X77: 0.4645 | Y77: 0 | Z77: 0
A78: 153 | B78: =LOOKUP(A78,'DOE - FIPStoPayeeCodeConvTable'!$A$3:$A$213,'DOE - FIPStoPayeeCodeConvTable'!$B$3:$B$213) -> Prince William Co | S78: 0 | U78: 0 | V78: 0 | W78: =LOOKUP(A78,'DOE - FIPStoPayeeCodeConvTable'!$A$3:$A$213,'DOE - FIPStoPayeeCodeConvTable'!$E$3:$E$213) -> 0.3414 | X78: 0.42675 | Y78: 0 | Z78: 0
A79: 155 | B79: =LOOKUP(A79,'DOE - FIPStoPayeeCodeConvTable'!$A$3:$A$213,'DOE - FIPStoPayeeCodeConvTable'!$B$3:$B$213) -> Pulaski Co | S79: 0 | U79: 0 | V79: 0 | W79: =LOOKUP(A79,'DOE - FIPStoPayeeCodeConvTable'!$A$3:$A$213,'DOE - FIPStoPayeeCodeConvTable'!$E$3:$E$213) -> 0.2923 | X79: 0.365375 | Y79: 0 | Z79: 0
A80: 157 | B80: =LOOKUP(A80,'DOE - FIPStoPayeeCodeConvTable'!$A$3:$A$213,'DOE - FIPStoPayeeCodeConvTable'!$B$3:$B$213) -> Rappahannock Co | S80: 0 | U80: 0 | V80: 0 | W80: =LOOKUP(A80,'DOE - FIPStoPayeeCodeConvTable'!$A$3:$A$213,'DOE - FIPStoPayeeCodeConvTable'!$E$3:$E$213) -> 0.4199 | X80: 0.524875 | Y80: 0 | Z80: 0
A81: 159 | B81: =LOOKUP(A81,'DOE - FIPStoPayeeCodeConvTable'!$A$3:$A$213,'DOE - FIPStoPayeeCodeConvTable'!$B$3:$B$213) -> Richmond Co | S81: 0 | U81: 0 | V81: 0 | W81: =LOOKUP(A81,'DOE - FIPStoPayeeCodeConvTable'!$A$3:$A$213,'DOE - FIPStoPayeeCodeConvTable'!$E$3:$E$213) -> 0.3227 | X81: 0.403375 | Y81: 0 | Z81: 0
A82: 161 | B82: =LOOKUP(A82,'DOE - FIPStoPayeeCodeConvTable'!$A$3:$A$213,'DOE - FIPStoPayeeCodeConvTable'!$B$3:$B$213) -> Roanoke Co | S82: 0 | U82: 0 | V82: 0 | W82: =LOOKUP(A82,'DOE - FIPStoPayeeCodeConvTable'!$A$3:$A$213,'DOE - FIPStoPayeeCodeConvTable'!$E$3:$E$213) -> 0.4397 | X82: 0.549625 | Y82: 0 | Z82: 0
A83: 163 | B83: =LOOKUP(A83,'DOE - FIPStoPayeeCodeConvTable'!$A$3:$A$213,'DOE - FIPStoPayeeCodeConvTable'!$B$3:$B$213) -> Rockbridge Co | S83: 0 | U83: 0 | V83: 0 | W83: =LOOKUP(A83,'DOE - FIPStoPayeeCodeConvTable'!$A$3:$A$213,'DOE - FIPStoPayeeCodeConvTable'!$E$3:$E$213) -> 0.2336 | X83: 0.292 | Y83: 0 | Z83: 0
A84: 165 | B84: =LOOKUP(A84,'DOE - FIPStoPayeeCodeConvTable'!$A$3:$A$213,'DOE - FIPStoPayeeCodeConvTable'!$B$3:$B$213) -> Rockingham Co | S84: 0 | U84: 0 | V84: 0 | W84: =LOOKUP(A84,'DOE - FIPStoPayeeCodeConvTable'!$A$3:$A$213,'DOE - FIPStoPayeeCodeConvTable'!$E$3:$E$213) -> 0.3445 | X84: 0.430625 | Y84: 0 | Z84: 0
A85: 167 | B85: =LOOKUP(A85,'DOE - FIPStoPayeeCodeConvTable'!$A$3:$A$213,'DOE - FIPStoPayeeCodeConvTable'!$B$3:$B$213) -> Russell Co | S85: 0 | U85: 0 | V85: 0 | W85: =LOOKUP(A85,'DOE - FIPStoPayeeCodeConvTable'!$A$3:$A$213,'DOE - FIPStoPayeeCodeConvTable'!$E$3:$E$213) -> 0.1894 | X85: 0.23675 | Y85: 0 | Z85: 0
A86: 169 | B86: =LOOKUP(A86,'DOE - FIPStoPayeeCodeConvTable'!$A$3:$A$213,'DOE - FIPStoPayeeCodeConvTable'!$B$3:$B$213) -> Scott Co | S86: 0 | U86: 0 | V86: 0 | W86: =LOOKUP(A86,'DOE - FIPStoPayeeCodeConvTable'!$A$3:$A$213,'DOE - FIPStoPayeeCodeConvTable'!$E$3:$E$213) -> 0.3154 | X86: 0.39425 | Y86: 0 | Z86: 0
A87: 171 | B87: =LOOKUP(A87,'DOE - FIPStoPayeeCodeConvTable'!$A$3:$A$213,'DOE - FIPStoPayeeCodeConvTable'!$B$3:$B$213) -> Shenandoah Co | S87: 0 | U87: 0 | V87: 0 | W87: =LOOKUP(A87,'DOE - FIPStoPayeeCodeConvTable'!$A$3:$A$213,'DOE - FIPStoPayeeCodeConvTable'!$E$3:$E$213) -> 0.3517 | X87: 0.439625 | Y87: 0 | Z87: 0
A88: 173 | B88: =LOOKUP(A88,'DOE - FIPStoPayeeCodeConvTable'!$A$3:$A$213,'DOE - FIPStoPayeeCodeConvTable'!$B$3:$B$213) -> Smyth Co | S88: 0 | U88: 0 | V88: 0 | W88: =LOOKUP(A88,'DOE - FIPStoPayeeCodeConvTable'!$A$3:$A$213,'DOE - FIPStoPayeeCodeConvTable'!$E$3:$E$213) -> 0.2337 | X88: 0.292125 | Y88: 0 | Z88: 0
A89: 175 | B89: =LOOKUP(A89,'DOE - FIPStoPayeeCodeConvTable'!$A$3:$A$213,'DOE - FIPStoPayeeCodeConvTable'!$B$3:$B$213) -> Southampton Co | S89: 0 | U89: 0 | V89: 0 | W89: =LOOKUP(A89,'DOE - FIPStoPayeeCodeConvTable'!$A$3:$A$213,'DOE - FIPStoPayeeCodeConvTable'!$E$3:$E$213) -> 0.323 | X89: 0.40375 | Y89: 0 | Z89: 0
A90: 177 | B90: =LOOKUP(A90,'DOE - FIPStoPayeeCodeConvTable'!$A$3:$A$213,'DOE - FIPStoPayeeCodeConvTable'!$B$3:$B$213) -> Spotsylvania Co | S90: 0 | U90: 0 | V90: 0 | W90: =LOOKUP(A90,'DOE - FIPStoPayeeCodeConvTable'!$A$3:$A$213,'DOE - FIPStoPayeeCodeConvTable'!$E$3:$E$213) -> 0.4588 | X90: 0.5735 | Y90: 0 | Z90: 0
A91: 179 | B91: =LOOKUP(A91,'DOE - FIPStoPayeeCodeConvTable'!$A$3:$A$213,'DOE - FIPStoPayeeCodeConvTable'!$B$3:$B$213) -> Stafford Co | S91: 0 | U91: 0 | V91: 0 | W91: =LOOKUP(A91,'DOE - FIPStoPayeeCodeConvTable'!$A$3:$A$213,'DOE - FIPStoPayeeCodeConvTable'!$E$3:$E$213) -> 0.4439 | X91: 0.554875 | Y91: 0 | Z91: 0
A92: 181 | B92: =LOOKUP(A92,'DOE - FIPStoPayeeCodeConvTable'!$A$3:$A$213,'DOE - FIPStoPayeeCodeConvTable'!$B$3:$B$213) -> Surry Co | S92: 0 | U92: 0 | V92: 0 | W92: =LOOKUP(A92,'DOE - FIPStoPayeeCodeConvTable'!$A$3:$A$213,'DOE - FIPStoPayeeCodeConvTable'!$E$3:$E$213) -> 0.3979 | X92: 0.497375 | Y92: 0 | Z92: 0
A93: 183 | B93: =LOOKUP(A93,'DOE - FIPStoPayeeCodeConvTable'!$A$3:$A$213,'DOE - FIPStoPayeeCodeConvTable'!$B$3:$B$213) -> Sussex Co | S93: 0 | U93: 0 | V93: 0 | W93: =LOOKUP(A93,'DOE - FIPStoPayeeCodeConvTable'!$A$3:$A$213,'DOE - FIPStoPayeeCodeConvTable'!$E$3:$E$213) -> 0.2387 | X93: 0.298375 | Y93: 0 | Z93: 0
A94: 185 | B94: =LOOKUP(A94,'DOE - FIPStoPayeeCodeConvTable'!$A$3:$A$213,'DOE - FIPStoPayeeCodeConvTable'!$B$3:$B$213) -> Tazewell Co | S94: 0 | U94: 0 | V94: 0 | W94: =LOOKUP(A94,'DOE - FIPStoPayeeCodeConvTable'!$A$3:$A$213,'DOE - FIPStoPayeeCodeConvTable'!$E$3:$E$213) -> 0.2455 | X94: 0.306875 | Y94: 0 | Z94: 0
A95: 187 | B95: =LOOKUP(A95,'DOE - FIPStoPayeeCodeConvTable'!$A$3:$A$213,'DOE - FIPStoPayeeCodeConvTable'!$B$3:$B$213) -> Warren Co | S95: 0 | U95: 0 | V95: 0 | W95: =LOOKUP(A95,'DOE - FIPStoPayeeCodeConvTable'!$A$3:$A$213,'DOE - FIPStoPayeeCodeConvTable'!$E$3:$E$213) -> 0.3853 | X95: 0.481625 | Y95: 0 | Z95: 0
A96: 191 | B96: =LOOKUP(A96,'DOE - FIPStoPayeeCodeConvTable'!$A$3:$A$213,'DOE - FIPStoPayeeCodeConvTable'!$B$3:$B$213) -> Washington Co | S96: 0 | U96: 0 | V96: 0 | W96: =LOOKUP(A96,'DOE - FIPStoPayeeCodeConvTable'!$A$3:$A$213,'DOE - FIPStoPayeeCodeConvTable'!$E$3:$E$213) -> 0.276 | X96: 0.345 | Y96: 0 | Z96: 0
A97: 193 | B97: =LOOKUP(A97,'DOE - FIPStoPayeeCodeConvTable'!$A$3:$A$213,'DOE - FIPStoPayeeCodeConvTable'!$B$3:$B$213) -> Westmoreland Co | S97: 0 | U97: 0 | V97: 0 | W97: =LOOKUP(A97,'DOE - FIPStoPayeeCodeConvTable'!$A$3:$A$213,'DOE - FIPStoPayeeCodeConvTable'!$E$3:$E$213) -> 0.3025 | X97: 0.378125 | Y97: 0 | Z97: 0
A98: 195 | B98: =LOOKUP(A98,'DOE - FIPStoPayeeCodeConvTable'!$A$3:$A$213,'DOE - FIPStoPayeeCodeConvTable'!$B$3:$B$213) -> Wise Co | S98: 0 | U98: 0 | V98: 0 | W98: =LOOKUP(A98,'DOE - FIPStoPayeeCodeConvTable'!$A$3:$A$213,'DOE - FIPStoPayeeCodeConvTable'!$E$3:$E$213) -> 0.2755 | X98: 0.344375 | Y98: 0 | Z98: 0
A99: 197 | B99: =LOOKUP(A99,'DOE - FIPStoPayeeCodeConvTable'!$A$3:$A$213,'DOE - FIPStoPayeeCodeConvTable'!$B$3:$B$213) -> Wythe Co | S99: 0 | U99: 0 | V99: 0 | W99: =LOOKUP(A99,'DOE - FIPStoPayeeCodeConvTable'!$A$3:$A$213,'DOE - FIPStoPayeeCodeConvTable'!$E$3:$E$213) -> 0.2708 | X99: 0.3385 | Y99: 0 | Z99: 0
A100: 199 | B100: =LOOKUP(A100,'DOE - FIPStoPayeeCodeConvTable'!$A$3:$A$213,'DOE - FIPStoPayeeCodeConvTable'!$B$3:$B$213) -> York Co | S100: 0 | U100: 0 | V100: 0 | W100: =LOOKUP(A100,'DOE - FIPStoPayeeCodeConvTable'!$A$3:$A$213,'DOE - FIPStoPayeeCodeConvTable'!$E$3:$E$213) -> 0.3888 | X100: 0.486 | Y100: 0 | Z100: 0
A101: 510 | B101: =LOOKUP(A101,'DOE - FIPStoPayeeCodeConvTable'!$A$3:$A$213,'DOE - FIPStoPayeeCodeConvTable'!$B$3:$B$213) -> Alexandria City | S101: =SUM(C101:R101) -> 0 | U101: 0 | V101: 0 | W101: =LOOKUP(A101,'DOE - FIPStoPayeeCodeConvTable'!$A$3:$A$213,'DOE - FIPStoPayeeCodeConvTable'!$E$3:$E$213) -> 0.5309 | X101: 0.663625 | Y101: 0 | Z101: 0
A102: 520 | B102: =LOOKUP(A102,'DOE - FIPStoPayeeCodeConvTable'!$A$3:$A$213,'DOE - FIPStoPayeeCodeConvTable'!$B$3:$B$213) -> Bristol City | S102: 0 | U102: =ROUND($U$1*S102,2) -> 0 | V102: =SUM(S102)-SUM(U102) -> 0 | W102: =LOOKUP(A102,'DOE - FIPStoPayeeCodeConvTable'!$A$3:$A$213,'DOE - FIPStoPayeeCodeConvTable'!$E$3:$E$213) -> 0.2547 | X102: 0.318375 | Y102: 0 | Z102: 0
A103: 530 | B103: =LOOKUP(A103,'DOE - FIPStoPayeeCodeConvTable'!$A$3:$A$213,'DOE - FIPStoPayeeCodeConvTable'!$B$3:$B$213) -> Buena Vista City | S103: 0 | U103: 0 | V103: 0 | W103: =LOOKUP(A103,'DOE - FIPStoPayeeCodeConvTable'!$A$3:$A$213,'DOE - FIPStoPayeeCodeConvTable'!$E$3:$E$213) -> 0.2329 | X103: 0.291125 | Y103: 0 | Z103: 0
A104: 540 | B104: =LOOKUP(A104,'DOE - FIPStoPayeeCodeConvTable'!$A$3:$A$213,'DOE - FIPStoPayeeCodeConvTable'!$B$3:$B$213) -> Charlottesville City | S104: 0 | U104: 0 | V104: 0 | W104: =LOOKUP(A104,'DOE - FIPStoPayeeCodeConvTable'!$A$3:$A$213,'DOE - FIPStoPayeeCodeConvTable'!$E$3:$E$213) -> 0.3068 | X104: 0.3835 | Y104: 0 | Z104: 0
A105: 550 | B105: =LOOKUP(A105,'DOE - FIPStoPayeeCodeConvTable'!$A$3:$A$213,'DOE - FIPStoPayeeCodeConvTable'!$B$3:$B$213) -> Chesapeake City | S105: 0 | U105: 0 | V105: 0 | W105: =LOOKUP(A105,'DOE - FIPStoPayeeCodeConvTable'!$A$3:$A$213,'DOE - FIPStoPayeeCodeConvTable'!$E$3:$E$213) -> 0.3715 | X105: 0.464375 | Y105: 0 | Z105: 0
A106: 570 | B106: =LOOKUP(A106,'DOE - FIPStoPayeeCodeConvTable'!$A$3:$A$213,'DOE - FIPStoPayeeCodeConvTable'!$B$3:$B$213) -> Colonial Heights City | S106: 0 | U106: 0 | V106: 0 | W106: =LOOKUP(A106,'DOE - FIPStoPayeeCodeConvTable'!$A$3:$A$213,'DOE - FIPStoPayeeCodeConvTable'!$E$3:$E$213) -> 0.4027 | X106: 0.503375 | Y106: 0 | Z106: 0
A107: 580 | B107: =LOOKUP(A107,'DOE - FIPStoPayeeCodeConvTable'!$A$3:$A$213,'DOE - FIPStoPayeeCodeConvTable'!$B$3:$B$213) -> Covington City | S107: 0 | U107: 0 | V107: 0 | W107: =LOOKUP(A107,'DOE - FIPStoPayeeCodeConvTable'!$A$3:$A$213,'DOE - FIPStoPayeeCodeConvTable'!$E$3:$E$213) -> 0.2496 | X107: 0.312 | Y107: 0 | Z107: 0
A108: 590 | B108: =LOOKUP(A108,'DOE - FIPStoPayeeCodeConvTable'!$A$3:$A$213,'DOE - FIPStoPayeeCodeConvTable'!$B$3:$B$213) -> Danville City | S108: 0 | U108: 0 | V108: 0 | W108: =LOOKUP(A108,'DOE - FIPStoPayeeCodeConvTable'!$A$3:$A$213,'DOE - FIPStoPayeeCodeConvTable'!$E$3:$E$213) -> 0.2223 | X108: 0.277875 | Y108: 0 | Z108: 0
A109: 620 | B109: =LOOKUP(A109,'DOE - FIPStoPayeeCodeConvTable'!$A$3:$A$213,'DOE - FIPStoPayeeCodeConvTable'!$B$3:$B$213) -> Franklin City | S109: 0 | U109: 0 | V109: 0 | W109: =LOOKUP(A109,'DOE - FIPStoPayeeCodeConvTable'!$A$3:$A$213,'DOE - FIPStoPayeeCodeConvTable'!$E$3:$E$213) -> 0.371 | X109: 0.46375 | Y109: 0 | Z109: 0
A110: 630 | B110: =LOOKUP(A110,'DOE - FIPStoPayeeCodeConvTable'!$A$3:$A$213,'DOE - FIPStoPayeeCodeConvTable'!$B$3:$B$213) -> Fredericksburg City | S110: 0 | U110: 0 | V110: 0 | W110: =LOOKUP(A110,'DOE - FIPStoPayeeCodeConvTable'!$A$3:$A$213,'DOE - FIPStoPayeeCodeConvTable'!$E$3:$E$213) -> 0.3441 | X110: 0.430125 | Y110: 0 | Z110: 0
A111: 640 | B111: =LOOKUP(A111,'DOE - FIPStoPayeeCodeConvTable'!$A$3:$A$213,'DOE - FIPStoPayeeCodeConvTable'!$B$3:$B$213) -> Galax City | S111: 0 | U111: 0 | V111: 0 | W111: =LOOKUP(A111,'DOE - FIPStoPayeeCodeConvTable'!$A$3:$A$213,'DOE - FIPStoPayeeCodeConvTable'!$E$3:$E$213) -> 0.3146 | X111: 0.39325 | Y111: 0 | Z111: 0
A112: 650 | B112: =LOOKUP(A112,'DOE - FIPStoPayeeCodeConvTable'!$A$3:$A$213,'DOE - FIPStoPayeeCodeConvTable'!$B$3:$B$213) -> Hampton City | S112: 0 | U112: 0 | V112: 0 | W112: =LOOKUP(A112,'DOE - FIPStoPayeeCodeConvTable'!$A$3:$A$213,'DOE - FIPStoPayeeCodeConvTable'!$E$3:$E$213) -> 0.3223 | X112: 0.402875 | Y112: 0 | Z112: 0
A113: 660 | B113: =LOOKUP(A113,'DOE - FIPStoPayeeCodeConvTable'!$A$3:$A$213,'DOE - FIPStoPayeeCodeConvTable'!$B$3:$B$213) -> Harrisonburg City | S113: 0 | U113: 0 | V113: 0 | W113: =LOOKUP(A113,'DOE - FIPStoPayeeCodeConvTable'!$A$3:$A$213,'DOE - FIPStoPayeeCodeConvTable'!$E$3:$E$213) -> 0.3808 | X113: 0.476 | Y113: 0 | Z113: 0
A114: 670 | B114: =LOOKUP(A114,'DOE - FIPStoPayeeCodeConvTable'!$A$3:$A$213,'DOE - FIPStoPayeeCodeConvTable'!$B$3:$B$213) -> Hopewell City | S114: 0 | U114: 0 | V114: 0 | W114: =LOOKUP(A114,'DOE - FIPStoPayeeCodeConvTable'!$A$3:$A$213,'DOE - FIPStoPayeeCodeConvTable'!$E$3:$E$213) -> 0.2667 | X114: 0.333375 | Y114: 0 | Z114: 0
A115: 678 | B115: =LOOKUP(A115,'DOE - FIPStoPayeeCodeConvTable'!$A$3:$A$213,'DOE - FIPStoPayeeCodeConvTable'!$B$3:$B$213) -> Lexington City | S115: 0 | U115: 0 | V115: 0 | W115: =LOOKUP(A115,'DOE - FIPStoPayeeCodeConvTable'!$A$3:$A$213,'DOE - FIPStoPayeeCodeConvTable'!$E$3:$E$213) -> 0.3302 | X115: 0.41275 | Y115: 0 | Z115: 0
A116: 680 | B116: =LOOKUP(A116,'DOE - FIPStoPayeeCodeConvTable'!$A$3:$A$213,'DOE - FIPStoPayeeCodeConvTable'!$B$3:$B$213) -> Lynchburg City | S116: 0 | U116: 0 | V116: 0 | W116: =LOOKUP(A116,'DOE - FIPStoPayeeCodeConvTable'!$A$3:$A$213,'DOE - FIPStoPayeeCodeConvTable'!$E$3:$E$213) -> 0.2736 | X116: 0.342 | Y116: 0 | Z116: 0
A117: 683 | B117: =LOOKUP(A117,'DOE - FIPStoPayeeCodeConvTable'!$A$3:$A$213,'DOE - FIPStoPayeeCodeConvTable'!$B$3:$B$213) -> Manassas City | S117: 0 | U117: 0 | V117: 0 | W117: =LOOKUP(A117,'DOE - FIPStoPayeeCodeConvTable'!$A$3:$A$213,'DOE - FIPStoPayeeCodeConvTable'!$E$3:$E$213) -> 0.4168 | X117: 0.521 | Y117: 0 | Z117: 0
A118: 685 | B118: =LOOKUP(A118,'DOE - FIPStoPayeeCodeConvTable'!$A$3:$A$213,'DOE - FIPStoPayeeCodeConvTable'!$B$3:$B$213) -> Manassas Park City | S118: 0 | U118: 0 | V118: 0 | W118: =LOOKUP(A118,'DOE - FIPStoPayeeCodeConvTable'!$A$3:$A$213,'DOE - FIPStoPayeeCodeConvTable'!$E$3:$E$213) -> 0.4273 | X118: 0.534125 | Y118: 0 | Z118: 0
A119: 690 | B119: =LOOKUP(A119,'DOE - FIPStoPayeeCodeConvTable'!$A$3:$A$213,'DOE - FIPStoPayeeCodeConvTable'!$B$3:$B$213) -> Martinsville City | S119: 0 | U119: 0 | V119: 0 | W119: =LOOKUP(A119,'DOE - FIPStoPayeeCodeConvTable'!$A$3:$A$213,'DOE - FIPStoPayeeCodeConvTable'!$E$3:$E$213) -> 0.3321 | X119: 0.415125 | Y119: 0 | Z119: 0
A120: 700 | B120: =LOOKUP(A120,'DOE - FIPStoPayeeCodeConvTable'!$A$3:$A$213,'DOE - FIPStoPayeeCodeConvTable'!$B$3:$B$213) -> Newport News City | S120: 0 | U120: 0 | V120: 0 | W120: =LOOKUP(A120,'DOE - FIPStoPayeeCodeConvTable'!$A$3:$A$213,'DOE - FIPStoPayeeCodeConvTable'!$E$3:$E$213) -> 0.2773 | X120: 0.346625 | Y120: 0 | Z120: 0
A121: 710 | B121: =LOOKUP(A121,'DOE - FIPStoPayeeCodeConvTable'!$A$3:$A$213,'DOE - FIPStoPayeeCodeConvTable'!$B$3:$B$213) -> Norfolk City | S121: 0 | U121: 0 | V121: 0 | W121: =LOOKUP(A121,'DOE - FIPStoPayeeCodeConvTable'!$A$3:$A$213,'DOE - FIPStoPayeeCodeConvTable'!$E$3:$E$213) -> 0.2455 | X121: 0.306875 | Y121: 0 | Z121: 0
A122: 720 | B122: =LOOKUP(A122,'DOE - FIPStoPayeeCodeConvTable'!$A$3:$A$213,'DOE - FIPStoPayeeCodeConvTable'!$B$3:$B$213) -> Norton City | S122: 0 | U122: 0 | V122: 0 | W122: =LOOKUP(A122,'DOE - FIPStoPayeeCodeConvTable'!$A$3:$A$213,'DOE - FIPStoPayeeCodeConvTable'!$E$3:$E$213) -> 0.3254 | X122: 0.40675 | Y122: 0 | Z122: 0
A123: 730 | B123: =LOOKUP(A123,'DOE - FIPStoPayeeCodeConvTable'!$A$3:$A$213,'DOE - FIPStoPayeeCodeConvTable'!$B$3:$B$213) -> Petersburg City | S123: 0 | U123: 0 | V123: 0 | W123: =LOOKUP(A123,'DOE - FIPStoPayeeCodeConvTable'!$A$3:$A$213,'DOE - FIPStoPayeeCodeConvTable'!$E$3:$E$213) -> 0.3535 | X123: 0.441875 | Y123: 0 | Z123: 0
A124: 735 | B124: =LOOKUP(A124,'DOE - FIPStoPayeeCodeConvTable'!$A$3:$A$213,'DOE - FIPStoPayeeCodeConvTable'!$B$3:$B$213) -> Poquoson City | S124: 0 | U124: 0 | V124: 0 | W124: =LOOKUP(A124,'DOE - FIPStoPayeeCodeConvTable'!$A$3:$A$213,'DOE - FIPStoPayeeCodeConvTable'!$E$3:$E$213) -> 0.2787 | X124: 0.348375 | Y124: 0 | Z124: 0
A125: 740 | B125: =LOOKUP(A125,'DOE - FIPStoPayeeCodeConvTable'!$A$3:$A$213,'DOE - FIPStoPayeeCodeConvTable'!$B$3:$B$213) -> Portsmouth City | S125: 0 | U125: 0 | V125: 0 | W125: =LOOKUP(A125,'DOE - FIPStoPayeeCodeConvTable'!$A$3:$A$213,'DOE - FIPStoPayeeCodeConvTable'!$E$3:$E$213) -> 0.2605 | X125: 0.325625 | Y125: 0 | Z125: 0
A126: 750 | B126: =LOOKUP(A126,'DOE - FIPStoPayeeCodeConvTable'!$A$3:$A$213,'DOE - FIPStoPayeeCodeConvTable'!$B$3:$B$213) -> Radford City | S126: 0 | U126: 0 | V126: 0 | W126: =LOOKUP(A126,'DOE - FIPStoPayeeCodeConvTable'!$A$3:$A$213,'DOE - FIPStoPayeeCodeConvTable'!$E$3:$E$213) -> 0.2035 | X126: 0.254375 | Y126: 0 | Z126: 0
A127: 760 | B127: =LOOKUP(A127,'DOE - FIPStoPayeeCodeConvTable'!$A$3:$A$213,'DOE - FIPStoPayeeCodeConvTable'!$B$3:$B$213) -> Richmond City | S127: 0 | U127: 0 | V127: 0 | W127: =LOOKUP(A127,'DOE - FIPStoPayeeCodeConvTable'!$A$3:$A$213,'DOE - FIPStoPayeeCodeConvTable'!$E$3:$E$213) -> 0.3691 | X127: 0.461375 | Y127: 0 | Z127: 0
A128: 770 | B128: =LOOKUP(A128,'DOE - FIPStoPayeeCodeConvTable'!$A$3:$A$213,'DOE - FIPStoPayeeCodeConvTable'!$B$3:$B$213) -> Roanoke City | S128: 0 | U128: 0 | V128: 0 | W128: =LOOKUP(A128,'DOE - FIPStoPayeeCodeConvTable'!$A$3:$A$213,'DOE - FIPStoPayeeCodeConvTable'!$E$3:$E$213) -> 0.3072 | X128: 0.384 | Y128: 0 | Z128: 0
A129: 775 | B129: =LOOKUP(A129,'DOE - FIPStoPayeeCodeConvTable'!$A$3:$A$213,'DOE - FIPStoPayeeCodeConvTable'!$B$3:$B$213) -> Salem City | S129: 0 | U129: 0 | V129: 0 | W129: =LOOKUP(A129,'DOE - FIPStoPayeeCodeConvTable'!$A$3:$A$213,'DOE - FIPStoPayeeCodeConvTable'!$E$3:$E$213) -> 0.3513 | X129: 0.439125 | Y129: 0 | Z129: 0
A130: 790 | B130: =LOOKUP(A130,'DOE - FIPStoPayeeCodeConvTable'!$A$3:$A$213,'DOE - FIPStoPayeeCodeConvTable'!$B$3:$B$213) -> Staunton City | S130: 0 | U130: 0 | V130: 0 | W130: =LOOKUP(A130,'DOE - FIPStoPayeeCodeConvTable'!$A$3:$A$213,'DOE - FIPStoPayeeCodeConvTable'!$E$3:$E$213) -> 0.2699 | X130: 0.337375 | Y130: 0 | Z130: 0
A131: 800 | B131: =LOOKUP(A131,'DOE - FIPStoPayeeCodeConvTable'!$A$3:$A$213,'DOE - FIPStoPayeeCodeConvTable'!$B$3:$B$213) -> Suffolk City | S131: 0 | U131: 0 | V131: 0 | W131: =LOOKUP(A131,'DOE - FIPStoPayeeCodeConvTable'!$A$3:$A$213,'DOE - FIPStoPayeeCodeConvTable'!$E$3:$E$213) -> 0.2432 | X131: 0.304 | Y131: 0 | Z131: 0
A132: 810 | B132: =LOOKUP(A132,'DOE - FIPStoPayeeCodeConvTable'!$A$3:$A$213,'DOE - FIPStoPayeeCodeConvTable'!$B$3:$B$213) -> Virginia Beach City | S132: 0 | U132: 0 | V132: 0 | W132: =LOOKUP(A132,'DOE - FIPStoPayeeCodeConvTable'!$A$3:$A$213,'DOE - FIPStoPayeeCodeConvTable'!$E$3:$E$213) -> 0.3569 | X132: 0.446125 | Y132: 0 | Z132: 0
A133: 820 | B133: =LOOKUP(A133,'DOE - FIPStoPayeeCodeConvTable'!$A$3:$A$213,'DOE - FIPStoPayeeCodeConvTable'!$B$3:$B$213) -> Waynesboro City | S133: =SUM(C133:R133) -> 0 | U133: 0 | V133: =SUM(S133)-SUM(U133) -> 0 | W133: =LOOKUP(A133,'DOE - FIPStoPayeeCodeConvTable'!$A$3:$A$213,'DOE - FIPStoPayeeCodeConvTable'!$E$3:$E$213) -> 0.3843 | X133: 0.480375 | Y133: 0 | Z133: 0
A134: 830 | B134: =LOOKUP(A134,'DOE - FIPStoPayeeCodeConvTable'!$A$3:$A$213,'DOE - FIPStoPayeeCodeConvTable'!$B$3:$B$213) -> Williamsburg City | S134: 0 | U134: 0 | V134: 0 | W134: =LOOKUP(A134,'DOE - FIPStoPayeeCodeConvTable'!$A$3:$A$213,'DOE - FIPStoPayeeCodeConvTable'!$E$3:$E$213) -> 0.4553 | X134: =$X$1*W134 -> 0.569125 | Y134: =ROUND(X134*V134,2) -> 0 | Z134: =SUM(V134)-SUM(Y134) -> 0
A135: 840 | B135: =LOOKUP(A135,'DOE - FIPStoPayeeCodeConvTable'!$A$3:$A$213,'DOE - FIPStoPayeeCodeConvTable'!$B$3:$B$213) -> Winchester City | S135: 0 | U135: 0 | V135: 0 | W135: =LOOKUP(A135,'DOE - FIPStoPayeeCodeConvTable'!$A$3:$A$213,'DOE - FIPStoPayeeCodeConvTable'!$E$3:$E$213) -> 0.4587 | X135: 0.573375 | Y135: 0 | Z135: 0

Sheet Regular Covid 19 Rate Adj (hidden)
A1: FY | B1: ='DOE - FIPStoPayeeCodeConvTable'!G1 -> 2021 | C1: MEDICAID ADJUSTMENTS-- Regular Covid Rate Adj | O1: ="Extended to be paided in this SFY = " & B1 -> Extended to be paided in this SFY = 2021 | T1: xx | U1: 0.562 | V1: 0.438 | W1: (POOL) | X1: 1.25 | AA1: =1-0.438 -> 0.562
U2: FEDERAL | V2: STATE/ | W2: (RATE) | X2: Factor | AQ2: =+AQ3-AQ5 -> 0 | AR2: =+AR3-AR5 -> 0 | AS2: 0 | AT2: 0 | AU2: 0 | AV2: 0
A3: FIPS | S3: Grand | U3: MEDICAID | V3: LOCAL | W3: LOCAL | Y3: LOCAL | Z3: STATE | AD3: Regular | AJ3: TFC | AQ3: =+AD5+AJ5 -> 5393434.88 | AR3: =+AE5+AK5 -> 4324480.96 | AS3: 6833304.38 | AT3: 6118750.47 | AU3: 6802406.88 | AV3: 4879031.45
A4: CODE | B4: LOCALITY | C4: =TEXT("7/1/" & $B$1-1,"mmm-yyyy") -> Jul-2020 | D4: =TEXT("8/1/" & $B$1-1,"mmm-yyyy") -> Aug-2020 | E4: =TEXT("9/1/" & $B$1-1,"mmm-yyyy") -> Sep-2020 | F4: =TEXT("10/1/" & $B$1-1,"mmm-yyyy") -> Oct-2020 | G4: =TEXT("11/1/" & $B$1-1,"mmm-yyyy") -> Nov-2020 | H4: =TEXT("12/1/" & $B$1-1,"mmm-yyyy") -> Dec-2020 | I4: =TEXT("1/1/" & $B$1,"mmm-yyyy") -> Jan-2021 | J4: =TEXT("2/1/" & $B$1,"mmm-yyyy") -> Feb-2021 | K4: =TEXT("3/1/" & $B$1,"mmm-yyyy") -> Mar-2021 | L4: =TEXT("4/1/" & $B$1,"mmm-yyyy") -> Apr-2021 | M4: =TEXT("5/1/" & $B$1,"mmm-yyyy") -> May-2021 | N4: =TEXT("6/1/" & $B$1,"mmm-yyyy") -> Jun-2021 | O4: =TEXT("7/1/" & $B$1,"mmm-yyyy") -> Jul-2021 | P4: =TEXT("8/1/" & $B$1,"mmm-yyyy") -> Aug-2021 | Q4: =TEXT("9/1/" & $B$1,"mmm-yyyy") -> Sep-2021 | R4: =TEXT("10/1/" & $B$1,"mmm-yyyy") -> Oct-2021 | S4: Total | U4: RATE/Share | V4: SHARE | W4: MATCH Rate | Y4: MATCH | Z4: SHARE | AD4: =TEXT("1/1/" & $B$1,"mmm-yyyy") -> Jan-2021 | AE4: =TEXT("2/1/" & $B$1,"mmm-yyyy") -> Feb-2021 | AF4: =TEXT("3/1/" & $B$1,"mmm-yyyy") -> Mar-2021 | AG4: =TEXT("4/1/" & $B$1,"mmm-yyyy") -> Apr-2021 | AH4: =TEXT("5/1/" & $B$1,"mmm-yyyy") -> May-2021 | AI4: =TEXT("6/1/" & $B$1,"mmm-yyyy") -> Jun-2021 | AJ4: =TEXT("1/1/" & $B$1,"mmm-yyyy") -> Jan-2021 | AK4: =TEXT("2/1/" & $B$1,"mmm-yyyy") -> Feb-2021 | AL4: =TEXT("3/1/" & $B$1,"mmm-yyyy") -> Mar-2021 | AM4: =TEXT("4/1/" & $B$1,"mmm-yyyy") -> Apr-2021 | AN4: =TEXT("5/1/" & $B$1,"mmm-yyyy") -> May-2021 | AO4: =TEXT("6/1/" & $B$1,"mmm-yyyy") -> Jun-2021 | AQ4: =TEXT("1/1/" & $B$1,"mmm-yyyy") -> Jan-2021 | AR4: =TEXT("2/1/" & $B$1,"mmm-yyyy") -> Feb-2021 | AS4: =TEXT("3/1/" & $B$1,"mmm-yyyy") -> Mar-2021 | AT4: =TEXT("4/1/" & $B$1,"mmm-yyyy") -> Apr-2021 | AU4: =TEXT("5/1/" & $B$1,"mmm-yyyy") -> May-2021 | AV4: =TEXT("6/1/" & $B$1,"mmm-yyyy") -> Jun-2021
A5: Totals | C5: =SUM(C6:C1200) -> 5403319.32 | D5: 6122867.88 | E5: 5581809.02 | F5: 4826212.95 | G5: 5645222.08 | H5: 4756934.65 | I5: 5729209.45 | J5: 4922607.63 | K5: 5942425.79 | L5: 5387690.95 | M5: 5718790.24 | N5: 5181289.49 | O5: 0 | P5: 0 | Q5: 0 | R5: 0 | S5: =SUM(C5:R5) -> 65218379.45 | T5: = | U5: =SUM(U6:U399) -> 36652729.24 | V5: =SUM(V6:V399) -> 28565650.21 | W5: = | Y5: =SUM(Y6:Y399) -> 12282591.03 | Z5: =SUM(Z6:Z399) -> 16283059.18 | AD5: =SUM(AD6:AD1201) -> 5393434.88 | AE5: 4324480.96 | AF5: =SUM(AF6:AF1200) -> 6833304.38 | AG5: =SUM(AG6:AG1200) -> 6118750.47 | AH5: =SUM(AH6:AH1200) -> 6802406.88 | AI5: =SUM(AI6:AI1200) -> 4879031.45 | AJ5: =SUM(AJ6:AJ1201) -> 0 | AK5: =SUM(AK6:AK1200) -> 0 | AL5: =SUM(AL6:AL1200) -> 0 | AM5: =SUM(AM6:AM1200) -> 0 | AN5: =SUM(AN6:AN1200) -> 0 | AO5: =SUM(AO6:AO1200) -> 0 | AQ5: 5393434.88 | AR5: =SUM(AR6:AR1200) -> 4324480.96 | AS5: =SUM(AS6:AS1200) -> 6833304.38 | AT5: =SUM(AT6:AT1200) -> 6118750.47 | AU5: =SUM(AU6:AU1200) -> 6802406.88 | AV5: =SUM(AV6:AV1200) -> 4879031.45
A6: 1 | B6: =LOOKUP(A6,'DOE - FIPStoPayeeCodeConvTable'!$A$3:$A$213,'DOE - FIPStoPayeeCodeConvTable'!$B$3:$B$213) -> Accomack Co | C6: 0 | D6: 0 | E6: 0 | F6: 0 | G6: 0 | H6: 0 | I6: 0 | J6: 0 | K6: 0 | L6: 0 | M6: 0 | N6: 0 | S6: 0 | U6: =ROUND($U$1*S6,2) -> 0 | V6: =SUM(S6)-SUM(U6) -> 0 | W6: =LOOKUP(A6,'DOE - FIPStoPayeeCodeConvTable'!$A$3:$A$213,'DOE - FIPStoPayeeCodeConvTable'!$E$3:$E$213) -> 0.2332 | X6: =$X$1*W6 -> 0.2915 | Y6: =ROUND(X6*V6,2) -> 0 | Z6: =SUM(V6)-SUM(Y6) -> 0 | AD6: 0 | AE6: 0 | AF6: 0 | AG6: 0 | AH6: 0 | AI6: 0 | AQ6: =+AD6+AJ6 -> 0 | AR6: =+AE6+AK6 -> 0 | AS6: 0 | AT6: 0 | AU6: 0 | AV6: 0
A7: 3 | B7: =LOOKUP(A7,'DOE - FIPStoPayeeCodeConvTable'!$A$3:$A$213,'DOE - FIPStoPayeeCodeConvTable'!$B$3:$B$213) -> Albemarle Co | C7: 84368.68 | D7: 113006.06 | E7: 158150.03 | F7: 61889.36 | G7: 50882.1 | H7: 72115.78 | I7: 50691.85 | J7: 72018.3 | K7: 39592.58 | L7: 33154.38 | M7: 28160.21 | N7: 49126.23 | S7: 813155.56 | U7: 456993.42 | V7: 356162.14 | W7: =LOOKUP(A7,'DOE - FIPStoPayeeCodeConvTable'!$A$3:$A$213,'DOE - FIPStoPayeeCodeConvTable'!$E$3:$E$213) -> 0.4474 | X7: =$X$1*W7 -> 0.55925 | Y7: =ROUND(X7*V7,2) -> 199183.68 | Z7: =SUM(V7)-SUM(Y7) -> 156978.46 | AD7: 52803.13 | AE7: 106249.05 | AF7: 144494.56 | AG7: 57576.78 | AH7: 59467.83 | AI7: 101887.89 | AQ7: =+AD7+AJ7 -> 52803.13 | AR7: =+AE7+AK7 -> 106249.05 | AS7: =+AF7+AL7 -> 144494.56 | AT7: =+AG7+AM7 -> 57576.78 | AU7: =+AH7+AN7 -> 59467.83 | AV7: =+AI7+AO7 -> 101887.89
A8: 5 | B8: =LOOKUP(A8,'DOE - FIPStoPayeeCodeConvTable'!$A$3:$A$213,'DOE - FIPStoPayeeCodeConvTable'!$B$3:$B$213) -> Alleghany Co | C8: 30239.7 | D8: 49365.24 | E8: 39904.69 | F8: 20008.7 | G8: 40298.19 | H8: 18041.2 | I8: 12942.37 | J8: 17194.3 | K8: 8041.22 | L8: 6850.69 | M8: 16424.24 | N8: 14338.88 | S8: 273649.42 | U8: 153790.97 | V8: 119858.45 | W8: =LOOKUP(A8,'DOE - FIPStoPayeeCodeConvTable'!$A$3:$A$213,'DOE - FIPStoPayeeCodeConvTable'!$E$3:$E$213) -> 0.1924 | X8: 0.2405 | Y8: 28825.96 | Z8: 91032.49 | AD8: 36376.01 | AE8: 13598.46 | AF8: 36237.78 | AG8: 26147.72 | AH8: 58284.47 | AI8: 18468.71 | AQ8: 36376.01 | AR8: 13598.46 | AS8: 36237.78 | AT8: 26147.72 | AU8: 58284.47 | AV8: 18468.71
A9: 7 | B9: =LOOKUP(A9,'DOE - FIPStoPayeeCodeConvTable'!$A$3:$A$213,'DOE - FIPStoPayeeCodeConvTable'!$B$3:$B$213) -> Amelia Co | C9: 20855.5 | D9: 23703.5 | E9: 23610 | F9: 12985.5 | G9: 19675 | H9: 17314 | I9: 15740 | J9: 15740 | K9: 38563 | L9: 13772.5 | M9: 10680.04 | N9: 15740 | S9: 228379.04 | U9: 128349.02 | V9: 100030.02 | W9: =LOOKUP(A9,'DOE - FIPStoPayeeCodeConvTable'!$A$3:$A$213,'DOE - FIPStoPayeeCodeConvTable'!$E$3:$E$213) -> 0.3268 | X9: 0.4085 | Y9: 40862.26 | Z9: 59167.76 | AD9: 13864.61 | AE9: 21059.82 | AF9: 27355.82 | AG9: 35808.5 | AH9: 27781.54 | AI9: 32961.89 | AQ9: 13864.61 | AR9: 21059.82 | AS9: 27355.82 | AT9: 35808.5 | AU9: 27781.54 | AV9: 32961.89
A10: 9 | B10: =LOOKUP(A10,'DOE - FIPStoPayeeCodeConvTable'!$A$3:$A$213,'DOE - FIPStoPayeeCodeConvTable'!$B$3:$B$213) -> Amherst Co | C10: 26780.58 | D10: 55945.55 | E10: 37777.91 | F10: 17549.7 | G10: 39846.47 | H10: 27938.5 | I10: 29906 | J10: 45646 | K10: 40530.5 | L10: 36202 | M10: 12536.1 | N10: 23577.78 | S10: 394237.09 | U10: 221561.24 | V10: 172675.85 | W10: =LOOKUP(A10,'DOE - FIPStoPayeeCodeConvTable'!$A$3:$A$213,'DOE - FIPStoPayeeCodeConvTable'!$E$3:$E$213) -> 0.2722 | X10: 0.34025 | Y10: 58752.96 | Z10: 113922.89 | AD10: 44263.09 | AE10: 32230.09 | AF10: 26232.58 | AG10: 42104.5 | AH10: 62388.58 | AI10: 77521.41 | AQ10: 44263.09 | AR10: 32230.09 | AS10: 26232.58 | AT10: 42104.5 | AU10: 62388.58 | AV10: 77521.41
A11: 11 | B11: =LOOKUP(A11,'DOE - FIPStoPayeeCodeConvTable'!$A$3:$A$213,'DOE - FIPStoPayeeCodeConvTable'!$B$3:$B$213) -> Appomattox Co | C11: 93137.46 | D11: 70013.2 | E11: 64751.26 | F11: 63018.1 | G11: 71427.82 | H11: 55541.6 | I11: 55405.83 | J11: 49037.73 | K11: 44856.52 | L11: 41319.41 | M11: 28264.78 | N11: 22036 | S11: 658809.71 | U11: 370251.06 | V11: 288558.65 | W11: =LOOKUP(A11,'DOE - FIPStoPayeeCodeConvTable'!$A$3:$A$213,'DOE - FIPStoPayeeCodeConvTable'!$E$3:$E$213) -> 0.2639 | X11: 0.329875 | Y11: 95188.28 | Z11: 193370.37 | AD11: 88919.68 | AE11: 25577.5 | AF11: 83885.41 | AG11: 86570 | AH11: 75787.7 | AI11: 59216.09 | AQ11: 88919.68 | AR11: 25577.5 | AS11: 83885.41 | AT11: 86570 | AU11: 75787.7 | AV11: 59216.09
A12: 13 | B12: =LOOKUP(A12,'DOE - FIPStoPayeeCodeConvTable'!$A$3:$A$213,'DOE - FIPStoPayeeCodeConvTable'!$B$3:$B$213) -> Arlington Co | C12: 56830.5 | D12: 10493.42 | E12: 57451 | F12: 45252.5 | G12: 31480 | H12: 71223.5 | I12: 27545 | J12: 26364.5 | K12: 14527.28 | L12: 6106.82 | M12: 4386.6 | N12: 21249 | S12: 372910.12 | U12: 209575.49 | V12: 163334.63 | W12: =LOOKUP(A12,'DOE - FIPStoPayeeCodeConvTable'!$A$3:$A$213,'DOE - FIPStoPayeeCodeConvTable'!$E$3:$E$213) -> 0.4602 | X12: 0.57525 | Y12: 93958.25 | Z12: 69376.38 | AD12: 9693.48 | AE12: 97459.06 | AF12: 38498.56 | AG12: 17314 | AH12: 26650.6 | AI12: 15843.26 | AQ12: 9693.48 | AR12: 97459.06 | AS12: 38498.56 | AT12: 17314 | AU12: 26650.6 | AV12: 15843.26
A13: 15 | B13: =LOOKUP(A13,'DOE - FIPStoPayeeCodeConvTable'!$A$3:$A$213,'DOE - FIPStoPayeeCodeConvTable'!$B$3:$B$213) -> Augusta Co | C13: 197703.28 | D13: 79487 | E13: 63353.5 | F13: 59418.5 | G13: 43285 | H13: 40924 | I13: 16527 | J13: 13772.5 | K13: 13772.5 | L13: 12592 | M13: 6296 | N13: 12741.5 | S13: 559872.78 | U13: 314648.5 | V13: 245224.28 | W13: =LOOKUP(A13,'DOE - FIPStoPayeeCodeConvTable'!$A$3:$A$213,'DOE - FIPStoPayeeCodeConvTable'!$E$3:$E$213) -> 0.3302 | X13: 0.41275 | Y13: 101216.32 | Z13: 144007.96 | AD13: 42745.36 | AE13: 28474.24 | AF13: 78050.17 | AG13: 61075.47 | AH13: 104456.32 | AI13: 44076.95 | AQ13: 42745.36 | AR13: 28474.24 | AS13: 78050.17 | AT13: 61075.47 | AU13: 104456.32 | AV13: 44076.95
A14: 17 | B14: =LOOKUP(A14,'DOE - FIPStoPayeeCodeConvTable'!$A$3:$A$213,'DOE - FIPStoPayeeCodeConvTable'!$B$3:$B$213) -> Bath Co | C14: 8480.76 | D14: 9065.64 | E14: 9065.64 | F14: 1315.98 | G14: 5117.7 | H14: 4386.6 | I14: 4532.82 | J14: 27749.32 | K14: 36361.16 | L14: 7534.6 | M14: 4386.6 | N14: 32694.92 | S14: 150691.74 | U14: 84688.76 | V14: 66002.98 | W14: =LOOKUP(A14,'DOE - FIPStoPayeeCodeConvTable'!$A$3:$A$213,'DOE - FIPStoPayeeCodeConvTable'!$E$3:$E$213) -> 0.4278 | X14: 0.53475 | Y14: 35295.09 | Z14: 30707.89 | AD14: 0 | AE14: 0 | AF14: 3801.72 | AG14: 0 | AH14: 4386.6 | AI14: 4532.82 | AQ14: 0 | AR14: 0 | AS14: 3801.72 | AT14: 0 | AU14: 4386.6 | AV14: 4532.82
A15: 19 | B15: =LOOKUP(A15,'DOE - FIPStoPayeeCodeConvTable'!$A$3:$A$213,'DOE - FIPStoPayeeCodeConvTable'!$B$3:$B$213) -> Bedford Co | C15: 100702.24 | D15: 162091.83 | E15: 106243.89 | F15: 91748.74 | G15: 103245.56 | H15: 131657.46 | I15: 126089.18 | J15: 87527.36 | K15: 134400.4 | L15: 96066.25 | M15: 110384.66 | N15: 66081.7 | S15: 1316239.27 | U15: 739726.47 | V15: 576512.8 | W15: =LOOKUP(A15,'DOE - FIPStoPayeeCodeConvTable'!$A$3:$A$213,'DOE - FIPStoPayeeCodeConvTable'!$E$3:$E$213) -> 0.31112 | X15: 0.3889 | Y15: 224205.83 | Z15: 352306.97 | AD15: 181173.24 | AE15: 200387.69 | AF15: 248733.79 | AG15: 200895.54 | AH15: 181215.82 | AI15: 145402.85 | AQ15: 181173.24 | AR15: 200387.69 | AS15: 248733.79 | AT15: 200895.54 | AU15: 181215.82 | AV15: 145402.85
A16: 21 | B16: =LOOKUP(A16,'DOE - FIPStoPayeeCodeConvTable'!$A$3:$A$213,'DOE - FIPStoPayeeCodeConvTable'!$B$3:$B$213) -> Bland Co | C16: 0 | D16: 0 | E16: 0 | F16: 0 | G16: 0 | H16: 0 | I16: 0 | J16: 0 | K16: 0 | L16: 0 | M16: 0 | N16: 0 | S16: 0 | U16: 0 | V16: 0 | W16: =LOOKUP(A16,'DOE - FIPStoPayeeCodeConvTable'!$A$3:$A$213,'DOE - FIPStoPayeeCodeConvTable'!$E$3:$E$213) -> 0.2109 | X16: 0.263625 | Y16: 0 | Z16: 0 | AD16: 0 | AE16: 0 | AF16: 0 | AG16: 0 | AH16: 0 | AI16: 0 | AQ16: 0 | AR16: 0 | AS16: 0 | AT16: 0 | AU16: 0 | AV16: 0
A17: 23 | B17: =LOOKUP(A17,'DOE - FIPStoPayeeCodeConvTable'!$A$3:$A$213,'DOE - FIPStoPayeeCodeConvTable'!$B$3:$B$213) -> Botetourt Co | C17: 11805 | D17: 24003.5 | E17: 12198.5 | F17: 27545 | G17: 13772.5 | H17: 29906 | I17: 33447.5 | J17: 12198.5 | K17: 23216.5 | L17: 72207.25 | M17: 11805 | N17: 14559.5 | S17: 286664.75 | U17: 161105.59 | V17: 125559.16 | W17: =LOOKUP(A17,'DOE - FIPStoPayeeCodeConvTable'!$A$3:$A$213,'DOE - FIPStoPayeeCodeConvTable'!$E$3:$E$213) -> 0.3602 | X17: 0.45025 | Y17: 56533.01 | Z17: 69026.15 | AD17: 18055.55 | AE17: 7319 | AF17: 22844 | AG17: 19410 | AH17: 8163 | AI17: 32131 | AQ17: 18055.55 | AR17: 7319 | AS17: 22844 | AT17: 19410 | AU17: 8163 | AV17: 32131
A18: 25 | B18: =LOOKUP(A18,'DOE - FIPStoPayeeCodeConvTable'!$A$3:$A$213,'DOE - FIPStoPayeeCodeConvTable'!$B$3:$B$213) -> Brunswick Co | C18: 19746.04 | D18: 16133.5 | E18: 4722 | F18: 0 | G18: 0 | H18: 0 | I18: 5285.4 | J18: 0 | K18: 0 | L18: 18101 | M18: 24003.5 | N18: 12198.5 | S18: 100189.94 | U18: 56306.75 | V18: 43883.19 | W18: =LOOKUP(A18,'DOE - FIPStoPayeeCodeConvTable'!$A$3:$A$213,'DOE - FIPStoPayeeCodeConvTable'!$E$3:$E$213) -> 0.2439 | X18: 0.304875 | Y18: 13378.89 | Z18: 30504.3 | AD18: 54696.5 | AE18: 11018 | AF18: 11411.5 | AG18: 0 | AH18: 4386.6 | AI18: 5848.8 | AQ18: 54696.5 | AR18: 11018 | AS18: 11411.5 | AT18: 0 | AU18: 4386.6 | AV18: 5848.8
A19: 27 | B19: =LOOKUP(A19,'DOE - FIPStoPayeeCodeConvTable'!$A$3:$A$213,'DOE - FIPStoPayeeCodeConvTable'!$B$3:$B$213) -> Buchanan Co | C19: 10345.57 | D19: 28785.63 | E19: 15339.82 | F19: 23885.6 | G19: 28957.97 | H19: 65203.1 | I19: 62916.87 | J19: 47963.87 | K19: 49187.5 | L19: 61760.54 | M19: 50761.5 | N19: 36759.48 | S19: 481867.45 | U19: 270809.51 | V19: 211057.94 | W19: =LOOKUP(A19,'DOE - FIPStoPayeeCodeConvTable'!$A$3:$A$213,'DOE - FIPStoPayeeCodeConvTable'!$E$3:$E$213) -> 0.3156 | X19: 0.3945 | Y19: 83262.36 | Z19: 127795.58 | AD19: 42536.65 | AE19: -30023.74 | AF19: 28987.75 | AG19: 22745.07 | AH19: 32073.75 | AI19: 4560.97 | AQ19: 42536.65 | AR19: -30023.74 | AS19: 28987.75 | AT19: 22745.07 | AU19: 32073.75 | AV19: 4560.97
A20: 29 | B20: =LOOKUP(A20,'DOE - FIPStoPayeeCodeConvTable'!$A$3:$A$213,'DOE - FIPStoPayeeCodeConvTable'!$B$3:$B$213) -> Buckingham Co | C20: 0 | D20: 2754.5 | E20: 0 | F20: 10624.5 | G20: -1180.5 | H20: 15346.5 | I20: 3148 | J20: 8657 | K20: 22494.75 | L20: 43869.59 | M20: 38956.5 | N20: 20068.5 | S20: 164739.34 | U20: 92583.51 | V20: 72155.83 | W20: =LOOKUP(A20,'DOE - FIPStoPayeeCodeConvTable'!$A$3:$A$213,'DOE - FIPStoPayeeCodeConvTable'!$E$3:$E$213) -> 0.2023 | X20: 0.252875 | Y20: 18246.41 | Z20: 53909.42 | AD20: 0 | AE20: 0 | AF20: 0 | AG20: 0 | AH20: 0 | AI20: 0 | AQ20: 0 | AR20: 0 | AS20: 0 | AT20: 0 | AU20: 0 | AV20: 0
A21: 31 | B21: =LOOKUP(A21,'DOE - FIPStoPayeeCodeConvTable'!$A$3:$A$213,'DOE - FIPStoPayeeCodeConvTable'!$B$3:$B$213) -> Campbell Co | C21: 28407.72 | D21: 67407.77 | E21: 69376.95 | F21: 57373.94 | G21: 167684.9 | H21: 68283.32 | I21: 56143.49 | J21: 66596.3 | K21: 99894.94 | L21: 64171.15 | M21: 55444.74 | N21: 83536.67 | S21: 884321.89 | U21: 496988.9 | V21: 387332.99 | W21: =LOOKUP(A21,'DOE - FIPStoPayeeCodeConvTable'!$A$3:$A$213,'DOE - FIPStoPayeeCodeConvTable'!$E$3:$E$213) -> 0.3107 | X21: 0.388375 | Y21: 150430.45 | Z21: 236902.54 | AD21: 84597.97 | AE21: 90263.41 | AF21: 121663.84 | AG21: 82776.98 | AH21: 97525.76 | AI21: 97331.4 | AQ21: 84597.97 | AR21: 90263.41 | AS21: 121663.84 | AT21: 82776.98 | AU21: 97525.76 | AV21: 97331.4
A22: 33 | B22: =LOOKUP(A22,'DOE - FIPStoPayeeCodeConvTable'!$A$3:$A$213,'DOE - FIPStoPayeeCodeConvTable'!$B$3:$B$213) -> Caroline Co | C22: 10065.5 | D22: 3363.06 | E22: 1462.2 | F22: 0 | G22: 0 | H22: 8657 | I22: 0 | J22: 4324.5 | K22: 12856.5 | L22: 20246 | M22: 21863.5 | N22: 9694 | S22: 92532.26 | U22: 52003.13 | V22: 40529.13 | W22: =LOOKUP(A22,'DOE - FIPStoPayeeCodeConvTable'!$A$3:$A$213,'DOE - FIPStoPayeeCodeConvTable'!$E$3:$E$213) -> 0.3308 | X22: 0.4135 | Y22: 16758.8 | Z22: 23770.33 | AD22: 19281.5 | AE22: 24003.5 | AF22: 21642.5 | AG22: 24003.5 | AH22: 14953 | AI22: 11805 | AQ22: 19281.5 | AR22: 24003.5 | AS22: 21642.5 | AT22: 24003.5 | AU22: 14953 | AV22: 11805
A23: 35 | B23: =LOOKUP(A23,'DOE - FIPStoPayeeCodeConvTable'!$A$3:$A$213,'DOE - FIPStoPayeeCodeConvTable'!$B$3:$B$213) -> Carroll Co | C23: 100855.52 | D23: 44145.73 | E23: 41801.52 | F23: 48574.98 | G23: 112758.26 | H23: 79446.24 | I23: 107440.64 | J23: 130575.36 | K23: 156018.69 | L23: 77093.85 | M23: 174600.9 | N23: 207754.7 | S23: 1281066.39 | U23: 719959.31 | V23: 561107.08 | W23: =LOOKUP(A23,'DOE - FIPStoPayeeCodeConvTable'!$A$3:$A$213,'DOE - FIPStoPayeeCodeConvTable'!$E$3:$E$213) -> 0.291 | X23: 0.36375 | Y23: 204102.7 | Z23: 357004.38 | AD23: 109029.62 | AE23: 88528.96 | AF23: 85330.23 | AG23: 126267.07 | AH23: 180249.86 | AI23: 63590.04 | AQ23: 109029.62 | AR23: 88528.96 | AS23: 85330.23 | AT23: 126267.07 | AU23: 180249.86 | AV23: 63590.04
A24: 36 | B24: =LOOKUP(A24,'DOE - FIPStoPayeeCodeConvTable'!$A$3:$A$213,'DOE - FIPStoPayeeCodeConvTable'!$B$3:$B$213) -> Charles City Co | C24: 17314 | D24: 11018 | E24: 0 | F24: 0 | G24: 0 | H24: 49187.5 | I24: 0 | J24: 16920.5 | K24: 393.5 | L24: 32267 | M24: 24397 | N24: 11805 | S24: 163302.5 | U24: 91776.01 | V24: 71526.49 | W24: =LOOKUP(A24,'DOE - FIPStoPayeeCodeConvTable'!$A$3:$A$213,'DOE - FIPStoPayeeCodeConvTable'!$E$3:$E$213) -> 0.3131 | X24: 0.391375 | Y24: 27993.68 | Z24: 43532.81 | AD24: 0 | AE24: 0 | AF24: 0 | AG24: 11805 | AH24: 11805 | AI24: 11805 | AQ24: 0 | AR24: 0 | AS24: 0 | AT24: 11805 | AU24: 11805 | AV24: 11805
A25: 37 | B25: =LOOKUP(A25,'DOE - FIPStoPayeeCodeConvTable'!$A$3:$A$213,'DOE - FIPStoPayeeCodeConvTable'!$B$3:$B$213) -> Charlotte Co | C25: 5509 | D25: 14559.5 | E25: 33841 | F25: 26364.5 | G25: 33447.5 | H25: 20480.8 | I25: 48171.92 | J25: 26540.96 | K25: 36656.18 | L25: 23876.18 | M25: 9234.22 | N25: 27170.3 | S25: 305852.06 | U25: 171888.86 | V25: 133963.2 | W25: =LOOKUP(A25,'DOE - FIPStoPayeeCodeConvTable'!$A$3:$A$213,'DOE - FIPStoPayeeCodeConvTable'!$E$3:$E$213) -> 0.2204 | X25: 0.2755 | Y25: 36906.86 | Z25: 97056.34 | AD25: 0 | AE25: 0 | AF25: 0 | AG25: 0 | AH25: 0 | AI25: 0 | AQ25: 0 | AR25: 0 | AS25: 0 | AT25: 0 | AU25: 0 | AV25: 0
A26: 41 | B26: =LOOKUP(A26,'DOE - FIPStoPayeeCodeConvTable'!$A$3:$A$213,'DOE - FIPStoPayeeCodeConvTable'!$B$3:$B$213) -> Chesterfield Co | C26: 210150.5 | D26: 231191.76 | E26: 218051.02 | F26: 111988.18 | G26: 198450.64 | H26: 233181.24 | I26: 213593.58 | J26: 124622.57 | K26: 262443.54 | L26: 253713.3 | M26: 270716.24 | N26: 234009.23 | S26: 2562111.8 | U26: 1439906.83 | V26: 1122204.97 | W26: =LOOKUP(A26,'DOE - FIPStoPayeeCodeConvTable'!$A$3:$A$213,'DOE - FIPStoPayeeCodeConvTable'!$E$3:$E$213) -> 0.3853 | X26: 0.481625 | Y26: 540481.97 | Z26: 581723 | AD26: 137351.25 | AE26: 159642.96 | AF26: 184122.4 | AG26: 212795.08 | AH26: 192184.41 | AI26: 217805.55 | AQ26: 137351.25 | AR26: 159642.96 | AS26: 184122.4 | AT26: 212795.08 | AU26: 192184.41 | AV26: 217805.55
A27: 43 | B27: =LOOKUP(A27,'DOE - FIPStoPayeeCodeConvTable'!$A$3:$A$213,'DOE - FIPStoPayeeCodeConvTable'!$B$3:$B$213) -> Clarke Co | C27: 0 | D27: 0 | E27: 16920.5 | F27: 0 | G27: 24003.5 | H27: 0 | I27: 24003.5 | J27: 12198.5 | K27: 2754.5 | L27: 4139.32 | M27: 0 | N27: 0 | S27: 84019.82 | U27: 47219.14 | V27: 36800.68 | W27: =LOOKUP(A27,'DOE - FIPStoPayeeCodeConvTable'!$A$3:$A$213,'DOE - FIPStoPayeeCodeConvTable'!$E$3:$E$213) -> 0.4797 | X27: 0.599625 | Y27: 22066.61 | Z27: 14734.07 | AD27: 4386.6 | AE27: 2778.18 | AF27: 0 | AG27: 0 | AH27: 0 | AI27: 292.44 | AQ27: 4386.6 | AR27: 2778.18 | AS27: 0 | AT27: 0 | AU27: 0 | AV27: 292.44
A28: 45 | B28: =LOOKUP(A28,'DOE - FIPStoPayeeCodeConvTable'!$A$3:$A$213,'DOE - FIPStoPayeeCodeConvTable'!$B$3:$B$213) -> Craig Co | C28: 5115.5 | D28: 15740 | E28: 16920.5 | F28: 3541.5 | G28: 12131.86 | H28: 4386.6 | I28: 21846.82 | J28: 14976.68 | K28: 12615.68 | L28: 21453.32 | M28: 0 | N28: 0 | S28: 128728.46 | U28: 72345.39 | V28: 56383.07 | W28: =LOOKUP(A28,'DOE - FIPStoPayeeCodeConvTable'!$A$3:$A$213,'DOE - FIPStoPayeeCodeConvTable'!$E$3:$E$213) -> 0.2901 | X28: 0.362625 | Y28: 20445.91 | Z28: 35937.16 | AD28: 3541.5 | AE28: 0 | AF28: 372 | AG28: 11018 | AH28: 11411.5 | AI28: 45646 | AQ28: 3541.5 | AR28: 0 | AS28: 372 | AT28: 11018 | AU28: 11411.5 | AV28: 45646
A29: 47 | B29: =LOOKUP(A29,'DOE - FIPStoPayeeCodeConvTable'!$A$3:$A$213,'DOE - FIPStoPayeeCodeConvTable'!$B$3:$B$213) -> Culpeper Co | C29: -3173.54 | D29: 77634.6 | E29: 54507.32 | F29: 44999.08 | G29: 70939.21 | H29: 43485.3 | I29: 64695.82 | J29: 48484.6 | K29: 60325.93 | L29: 31067.74 | M29: 58981.64 | N29: 37647 | S29: 589594.7 | U29: 331352.22 | V29: 258242.48 | W29: =LOOKUP(A29,'DOE - FIPStoPayeeCodeConvTable'!$A$3:$A$213,'DOE - FIPStoPayeeCodeConvTable'!$E$3:$E$213) -> 0.3767 | X29: 0.470875 | Y29: 121599.93 | Z29: 136642.55 | AD29: 50239.12 | AE29: 48426.38 | AF29: 72161.12 | AG29: 46982.88 | AH29: 114336.66 | AI29: 57178.1 | AQ29: 50239.12 | AR29: 48426.38 | AS29: 72161.12 | AT29: 46982.88 | AU29: 114336.66 | AV29: 57178.1
A30: 49 | B30: =LOOKUP(A30,'DOE - FIPStoPayeeCodeConvTable'!$A$3:$A$213,'DOE - FIPStoPayeeCodeConvTable'!$B$3:$B$213) -> Cumberland Co | C30: 4240.38 | D30: 17169.98 | E30: 4094.16 | F30: 1169.76 | G30: 7603.34 | H30: 4094.16 | I30: 0 | J30: 0 | K30: 0 | L30: 6511.73 | M30: 3110.08 | N30: 2818.51 | S30: 50812.1 | U30: 28556.4 | V30: 22255.7 | W30: =LOOKUP(A30,'DOE - FIPStoPayeeCodeConvTable'!$A$3:$A$213,'DOE - FIPStoPayeeCodeConvTable'!$E$3:$E$213) -> 0.304 | X30: 0.38 | Y30: 8457.17 | Z30: 13798.53 | AD30: 0 | AE30: 12198.5 | AF30: 1574 | AG30: 10231 | AH30: 12198.5 | AI30: 13267.2 | AQ30: 0 | AR30: 12198.5 | AS30: 1574 | AT30: 10231 | AU30: 12198.5 | AV30: 13267.2
A31: 51 | B31: =LOOKUP(A31,'DOE - FIPStoPayeeCodeConvTable'!$A$3:$A$213,'DOE - FIPStoPayeeCodeConvTable'!$B$3:$B$213) -> Dickenson Co | C31: 36989 | D31: 23216.5 | E31: 36989 | F31: 7083 | G31: 24003.5 | H31: 11018 | I31: 13772.5 | J31: 15944.32 | K31: 19913.74 | L31: 18305.32 | M31: 25693.7 | N31: 23859.48 | S31: 256788.06 | U31: 144314.89 | V31: 112473.17 | W31: =LOOKUP(A31,'DOE - FIPStoPayeeCodeConvTable'!$A$3:$A$213,'DOE - FIPStoPayeeCodeConvTable'!$E$3:$E$213) -> 0.3042 | X31: 0.38025 | Y31: 42767.92 | Z31: 69705.25 | AD31: 34628 | AE31: 43285 | AF31: 46039.5 | AG31: 37776 | AH31: 43678.5 | AI31: 393.5 | AQ31: 34628 | AR31: 43285 | AS31: 46039.5 | AT31: 37776 | AU31: 43678.5 | AV31: 393.5
A32: 53 | B32: =LOOKUP(A32,'DOE - FIPStoPayeeCodeConvTable'!$A$3:$A$213,'DOE - FIPStoPayeeCodeConvTable'!$B$3:$B$213) -> Dinwiddie Co | C32: 36475.16 | D32: 80985.82 | E32: 46218.2 | F32: 51608.8 | G32: 64738.32 | H32: 92711.24 | I32: 39713.48 | J32: 25212.08 | K32: 37700.82 | L32: 36533.26 | M32: 91115.76 | N32: 52789.3 | S32: 655802.24 | U32: 368560.86 | V32: 287241.38 | W32: =LOOKUP(A32,'DOE - FIPStoPayeeCodeConvTable'!$A$3:$A$213,'DOE - FIPStoPayeeCodeConvTable'!$E$3:$E$213) -> 0.3358 | X32: 0.41975 | Y32: 120569.57 | Z32: 166671.81 | AD32: 69279.68 | AE32: 30293.16 | AF32: 66617.7 | AG32: 27151.5 | AH32: 59412.16 | AI32: 45267.64 | AQ32: 69279.68 | AR32: 30293.16 | AS32: 66617.7 | AT32: 27151.5 | AU32: 59412.16 | AV32: 45267.64
A33: 57 | B33: =LOOKUP(A33,'DOE - FIPStoPayeeCodeConvTable'!$A$3:$A$213,'DOE - FIPStoPayeeCodeConvTable'!$B$3:$B$213) -> Essex Co | C33: 5739.22 | D33: 6275.07 | E33: 21554.93 | F33: 17241.7 | G33: 23950.21 | H33: 12637.32 | I33: 9028.03 | J33: 35368.87 | K33: 29205.5 | L33: 54083.8 | M33: 10158.02 | N33: 731.1 | S33: 225973.77 | U33: 126997.26 | V33: 98976.51 | W33: =LOOKUP(A33,'DOE - FIPStoPayeeCodeConvTable'!$A$3:$A$213,'DOE - FIPStoPayeeCodeConvTable'!$E$3:$E$213) -> 0.3853 | X33: 0.481625 | Y33: 47669.56 | Z33: 51306.95 | AD33: 3070.62 | AE33: 3363.06 | AF33: 877.32 | AG33: 0 | AH33: 13159.8 | AI33: 7031.02 | AQ33: 3070.62 | AR33: 3363.06 | AS33: 877.32 | AT33: 0 | AU33: 13159.8 | AV33: 7031.02
A34: 59 | B34: =LOOKUP(A34,'DOE - FIPStoPayeeCodeConvTable'!$A$3:$A$213,'DOE - FIPStoPayeeCodeConvTable'!$B$3:$B$213) -> Fairfax Co | C34: 239281.43 | D34: 157059.37 | E34: 233125.05 | F34: 182580.79 | G34: 216205.2 | H34: 144866.1 | I34: 192045.34 | J34: 97209.64 | K34: 148919.96 | L34: 98020.32 | M34: 187857.44 | N34: 171085.9 | S34: 2068256.54 | U34: 1162360.18 | V34: 905896.36 | W34: =LOOKUP(A34,'DOE - FIPStoPayeeCodeConvTable'!$A$3:$A$213,'DOE - FIPStoPayeeCodeConvTable'!$E$3:$E$213) -> 0.4611 | X34: 0.576375 | Y34: 522136.01 | Z34: 383760.35 | AD34: 182466.52 | AE34: 62585.31 | AF34: 189695.24 | AG34: 120068.64 | AH34: 146962 | AI34: 95108.86 | AQ34: 182466.52 | AR34: 62585.31 | AS34: 189695.24 | AT34: 120068.64 | AU34: 146962 | AV34: 95108.86
A35: 61 | B35: =LOOKUP(A35,'DOE - FIPStoPayeeCodeConvTable'!$A$3:$A$213,'DOE - FIPStoPayeeCodeConvTable'!$B$3:$B$213) -> Fauquier Co | C35: 76803.92 | D35: 54498.78 | E35: 50763.42 | F35: 46570.68 | G35: 123479.34 | H35: 43867.46 | I35: 75667.26 | J35: 37104.26 | K35: 76885.48 | L35: 57601.32 | M35: 137010.46 | N35: 78559.88 | S35: 858812.26 | U35: 482652.49 | V35: 376159.77 | W35: =LOOKUP(A35,'DOE - FIPStoPayeeCodeConvTable'!$A$3:$A$213,'DOE - FIPStoPayeeCodeConvTable'!$E$3:$E$213) -> 0.4584 | X35: 0.573 | Y35: 215539.55 | Z35: 160620.22 | AD35: 41130.8 | AE35: 41130.3 | AF35: 70483.27 | AG35: 57479.71 | AH35: 52267.7 | AI35: 49525.38 | AQ35: 41130.8 | AR35: 41130.3 | AS35: 70483.27 | AT35: 57479.71 | AU35: 52267.7 | AV35: 49525.38
A36: 63 | B36: =LOOKUP(A36,'DOE - FIPStoPayeeCodeConvTable'!$A$3:$A$213,'DOE - FIPStoPayeeCodeConvTable'!$B$3:$B$213) -> Floyd Co | C36: 30670.36 | D36: 17375.81 | E36: 33447.5 | F36: 54529 | G36: 26071.86 | H36: 12333.98 | I36: 11018 | J36: 20586.74 | K36: 3509.28 | L36: 0 | M36: 21642.5 | N36: 12972.57 | S36: 244157.6 | U36: 137216.57 | V36: 106941.03 | W36: =LOOKUP(A36,'DOE - FIPStoPayeeCodeConvTable'!$A$3:$A$213,'DOE - FIPStoPayeeCodeConvTable'!$E$3:$E$213) -> 0.2324 | X36: 0.2905 | Y36: 31066.37 | Z36: 75874.66 | AD36: 24254.5 | AE36: 19690.14 | AF36: 27829.5 | AG36: 12784.9 | AH36: 34790.76 | AI36: 25510.18 | AQ36: 24254.5 | AR36: 19690.14 | AS36: 27829.5 | AT36: 12784.9 | AU36: 34790.76 | AV36: 25510.18
A37: 65 | B37: =LOOKUP(A37,'DOE - FIPStoPayeeCodeConvTable'!$A$3:$A$213,'DOE - FIPStoPayeeCodeConvTable'!$B$3:$B$213) -> Fluvanna Co | C37: 70.59 | D37: 45621.5 | E37: 16218.89 | F37: 22955.97 | G37: 24587.51 | H37: 33997.06 | I37: 21307.1 | J37: 38578.14 | K37: 49931.54 | L37: 52928.6 | M37: 48482.28 | N37: 49593.94 | S37: =SUM(C37:R37) -> 404273.12 | U37: 227201.49 | V37: 177071.63 | W37: =LOOKUP(A37,'DOE - FIPStoPayeeCodeConvTable'!$A$3:$A$213,'DOE - FIPStoPayeeCodeConvTable'!$E$3:$E$213) -> 0.3811 | X37: 0.476375 | Y37: 84352.5 | Z37: 92719.13 | AD37: 44385.11 | AE37: 11741.45 | AF37: 54447.75 | AG37: 61449.83 | AH37: 24322.94 | AI37: 74371.5 | AQ37: 44385.11 | AR37: 11741.45 | AS37: 54447.75 | AT37: 61449.83 | AU37: 24322.94 | AV37: 74371.5
A38: 67 | B38: =LOOKUP(A38,'DOE - FIPStoPayeeCodeConvTable'!$A$3:$A$213,'DOE - FIPStoPayeeCodeConvTable'!$B$3:$B$213) -> Franklin Co | C38: 123121.96 | D38: 171753.43 | E38: 143632.3 | F38: 132336.62 | G38: 137898.04 | H38: 130377.66 | I38: 231047.78 | J38: 142885.5 | K38: 157588.54 | L38: 131946.46 | M38: 157910.5 | N38: 101240.13 | S38: 1761738.92 | U38: 990097.27 | V38: 771641.65 | W38: =LOOKUP(A38,'DOE - FIPStoPayeeCodeConvTable'!$A$3:$A$213,'DOE - FIPStoPayeeCodeConvTable'!$E$3:$E$213) -> 0.283 | X38: 0.35375 | Y38: 272968.23 | Z38: 498673.42 | AD38: 155361.43 | AE38: 85443.46 | AF38: 160408.9 | AG38: 153312.44 | AH38: 238072.68 | AI38: 92593.36 | AQ38: 155361.43 | AR38: 85443.46 | AS38: 160408.9 | AT38: 153312.44 | AU38: 238072.68 | AV38: 92593.36
A39: 69 | B39: =LOOKUP(A39,'DOE - FIPStoPayeeCodeConvTable'!$A$3:$A$213,'DOE - FIPStoPayeeCodeConvTable'!$B$3:$B$213) -> Frederick Co | C39: 76868.3 | D39: 72601.06 | E39: 37787.48 | F39: 68094.36 | G39: 104724.2 | H39: 32173.66 | I39: 31560.82 | J39: 83093 | K39: 47628.32 | L39: 44703.05 | M39: 50392.18 | N39: 61766.15 | S39: 711392.58 | U39: 399802.63 | V39: 311589.95 | W39: =LOOKUP(A39,'DOE - FIPStoPayeeCodeConvTable'!$A$3:$A$213,'DOE - FIPStoPayeeCodeConvTable'!$E$3:$E$213) -> 0.4348 | X39: 0.5435 | Y39: 169349.14 | Z39: 142240.81 | AD39: 69923.21 | AE39: 63977.2 | AF39: 190184.58 | AG39: 74379.36 | AH39: 120368.6 | AI39: 61666.08 | AQ39: 69923.21 | AR39: 63977.2 | AS39: 190184.58 | AT39: 74379.36 | AU39: 120368.6 | AV39: 61666.08
A40: 71 | B40: =LOOKUP(A40,'DOE - FIPStoPayeeCodeConvTable'!$A$3:$A$213,'DOE - FIPStoPayeeCodeConvTable'!$B$3:$B$213) -> Giles Co | C40: 13146.7 | D40: 15211.39 | E40: 15211.39 | F40: 4202.87 | G40: 17314 | H40: 11805 | I40: 15211.39 | J40: 15211.39 | K40: 15197.17 | L40: 0 | M40: 18101 | N40: 874.71 | S40: 141487.01 | U40: 79515.7 | V40: 61971.31 | W40: =LOOKUP(A40,'DOE - FIPStoPayeeCodeConvTable'!$A$3:$A$213,'DOE - FIPStoPayeeCodeConvTable'!$E$3:$E$213) -> 0.2898 | X40: 0.36225 | Y40: 22449.11 | Z40: 39522.2 | AD40: 7302.3 | AE40: 6087.86 | AF40: 12565.74 | AG40: 1263.47 | AH40: 23647.84 | AI40: 19204.49 | AQ40: 7302.3 | AR40: 6087.86 | AS40: 12565.74 | AT40: 1263.47 | AU40: 23647.84 | AV40: 19204.49
A41: 73 | B41: =LOOKUP(A41,'DOE - FIPStoPayeeCodeConvTable'!$A$3:$A$213,'DOE - FIPStoPayeeCodeConvTable'!$B$3:$B$213) -> Gloucester Co | C41: 0 | D41: 0 | E41: 0 | F41: 0 | G41: 1103.55 | H41: 10313.32 | I41: 2280.67 | J41: 20554.46 | K41: 16323.31 | L41: 2280.67 | M41: 2207.1 | N41: 1177.12 | S41: 56240.2 | U41: 31606.99 | V41: 24633.21 | W41: =LOOKUP(A41,'DOE - FIPStoPayeeCodeConvTable'!$A$3:$A$213,'DOE - FIPStoPayeeCodeConvTable'!$E$3:$E$213) -> 0.3687 | X41: 0.460875 | Y41: 11352.83 | Z41: 13280.38 | AD41: 12198.5 | AE41: 5902.5 | AF41: 17707.5 | AG41: 3148 | AH41: 0 | AI41: 0 | AQ41: 12198.5 | AR41: 5902.5 | AS41: 17707.5 | AT41: 3148 | AU41: 0 | AV41: 0
A42: 75 | B42: =LOOKUP(A42,'DOE - FIPStoPayeeCodeConvTable'!$A$3:$A$213,'DOE - FIPStoPayeeCodeConvTable'!$B$3:$B$213) -> Goochland Co | C42: 11805 | D42: -36595.5 | E42: 12198.5 | F42: 11805 | G42: 12198.5 | H42: 11805 | I42: 12198.5 | J42: 12198.5 | K42: 11018 | L42: 0 | M42: 24003.5 | N42: 12198.5 | S42: 94833.5 | U42: 53296.43 | V42: 41537.07 | W42: =LOOKUP(A42,'DOE - FIPStoPayeeCodeConvTable'!$A$3:$A$213,'DOE - FIPStoPayeeCodeConvTable'!$E$3:$E$213) -> 0.4871 | X42: 0.608875 | Y42: 25290.88 | Z42: 16246.19 | AD42: 14953 | AE42: 0 | AF42: 0 | AG42: 0 | AH42: 0 | AI42: 0 | AQ42: 14953 | AR42: 0 | AS42: 0 | AT42: 0 | AU42: 0 | AV42: 0
A43: 77 | B43: =LOOKUP(A43,'DOE - FIPStoPayeeCodeConvTable'!$A$3:$A$213,'DOE - FIPStoPayeeCodeConvTable'!$B$3:$B$213) -> Grayson Co | C43: 4900 | D43: 19256.77 | E43: 9140.38 | F43: 9286.6 | G43: 6125 | H43: 5553.5 | I43: 12198.5 | J43: 12198.5 | K43: 11018 | L43: 12592 | M43: 23610 | N43: 24397 | S43: 150276.25 | U43: 84455.25 | V43: 65821 | W43: =LOOKUP(A43,'DOE - FIPStoPayeeCodeConvTable'!$A$3:$A$213,'DOE - FIPStoPayeeCodeConvTable'!$E$3:$E$213) -> 0.2109 | X43: 0.263625 | Y43: 17352.06 | Z43: 48468.94 | AD43: 4709.5 | AE43: 14953 | AF43: 20153.25 | AG43: 35085.51 | AH43: 30711.35 | AI43: 8970.48 | AQ43: 4709.5 | AR43: 14953 | AS43: 20153.25 | AT43: 35085.51 | AU43: 30711.35 | AV43: 8970.48
A44: 79 | B44: =LOOKUP(A44,'DOE - FIPStoPayeeCodeConvTable'!$A$3:$A$213,'DOE - FIPStoPayeeCodeConvTable'!$B$3:$B$213) -> Greene Co | C44: 32267 | D44: 33841 | E44: 30693 | F44: 23610 | G44: 20068.5 | H44: 23266.57 | I44: 25388.32 | J44: 17754.86 | K44: 12094.73 | L44: 13075.82 | M44: 27603.1 | N44: 54834.18 | S44: 314497.08 | U44: 176747.36 | V44: 137749.72 | W44: =LOOKUP(A44,'DOE - FIPStoPayeeCodeConvTable'!$A$3:$A$213,'DOE - FIPStoPayeeCodeConvTable'!$E$3:$E$213) -> 0.3471 | X44: 0.433875 | Y44: 59766.16 | Z44: 77983.56 | AD44: 19948.16 | AE44: 12796.32 | AF44: 113662.24 | AG44: 11411.5 | AH44: 31221.98 | AI44: 10231 | AQ44: 19948.16 | AR44: 12796.32 | AS44: 113662.24 | AT44: 11411.5 | AU44: 31221.98 | AV44: 10231
A45: 81 | B45: =LOOKUP(A45,'DOE - FIPStoPayeeCodeConvTable'!$A$3:$A$213,'DOE - FIPStoPayeeCodeConvTable'!$B$3:$B$213) -> Greensville Co | C45: 0 | D45: 4386.6 | E45: 4532.82 | F45: 0 | G45: 1754.64 | H45: 0 | I45: 25814.64 | J45: 5835.86 | K45: 0 | L45: 1900.86 | M45: 1574 | N45: 0 | S45: 45799.42 | U45: 25739.27 | V45: 20060.15 | W45: =LOOKUP(A45,'DOE - FIPStoPayeeCodeConvTable'!$A$3:$A$213,'DOE - FIPStoPayeeCodeConvTable'!$E$3:$E$213) -> 0.2266 | X45: 0.28325 | Y45: 5682.04 | Z45: 14378.11 | AD45: 0 | AE45: 9444 | AF45: 14953 | AG45: 17707.5 | AH45: 0 | AI45: 9504.3 | AQ45: 0 | AR45: 9444 | AS45: 14953 | AT45: 17707.5 | AU45: 0 | AV45: 9504.3
A46: 83 | B46: =LOOKUP(A46,'DOE - FIPStoPayeeCodeConvTable'!$A$3:$A$213,'DOE - FIPStoPayeeCodeConvTable'!$B$3:$B$213) -> Halifax Co | C46: 13454.64 | D46: 23594.18 | E46: 21108.44 | F46: 27033.96 | G46: 8012.31 | H46: 31255.06 | I46: 19005.17 | J46: 20768.35 | K46: 36373.54 | L46: 31203.67 | M46: 7925.4 | N46: 9487.14 | S46: 249221.86 | U46: 140062.69 | V46: 109159.17 | W46: =LOOKUP(A46,'DOE - FIPStoPayeeCodeConvTable'!$A$3:$A$213,'DOE - FIPStoPayeeCodeConvTable'!$E$3:$E$213) -> 0.2335 | X46: 0.291875 | Y46: 31860.83 | Z46: 77298.34 | AD46: 60093.8 | AE46: 45661.14 | AF46: 85075.95 | AG46: 68862.5 | AH46: 59741.22 | AI46: 19770.02 | AQ46: 60093.8 | AR46: 45661.14 | AS46: 85075.95 | AT46: 68862.5 | AU46: 59741.22 | AV46: 19770.02
A47: 85 | B47: =LOOKUP(A47,'DOE - FIPStoPayeeCodeConvTable'!$A$3:$A$213,'DOE - FIPStoPayeeCodeConvTable'!$B$3:$B$213) -> Hanover Co | C47: 108666.3 | D47: 104318.04 | E47: 68058.13 | F47: 127563.65 | G47: 181357.61 | H47: 77302.5 | I47: 205081.21 | J47: 117933.77 | K47: 182139.96 | L47: 213783.22 | M47: 198298.38 | N47: 202169.62 | S47: 1786672.39 | U47: 1004109.88 | V47: 782562.51 | W47: =LOOKUP(A47,'DOE - FIPStoPayeeCodeConvTable'!$A$3:$A$213,'DOE - FIPStoPayeeCodeConvTable'!$E$3:$E$213) -> 0.4444 | X47: 0.5555 | Y47: 434713.47 | Z47: 347849.04 | AD47: 64356.68 | AE47: 26253.54 | AF47: 125904.84 | AG47: 189462.3 | AH47: 125249.2 | AI47: 101583.3 | AQ47: 64356.68 | AR47: 26253.54 | AS47: 125904.84 | AT47: 189462.3 | AU47: 125249.2 | AV47: 101583.3
A48: 87 | B48: =LOOKUP(A48,'DOE - FIPStoPayeeCodeConvTable'!$A$3:$A$213,'DOE - FIPStoPayeeCodeConvTable'!$B$3:$B$213) -> Henrico Co | C48: 353810.69 | D48: 380558.44 | E48: 383681.05 | F48: 332234.78 | G48: 352968.16 | H48: 248987.08 | I48: 357396.86 | J48: 249318.74 | K48: 385385.18 | L48: 338760.98 | M48: 374278.1 | N48: 208854.2 | S48: 3966234.26 | U48: 2229023.65 | V48: 1737210.61 | W48: =LOOKUP(A48,'DOE - FIPStoPayeeCodeConvTable'!$A$3:$A$213,'DOE - FIPStoPayeeCodeConvTable'!$E$3:$E$213) -> 0.3755 | X48: 0.469375 | Y48: 815403.23 | Z48: 921807.38 | AD48: 228919.36 | AE48: 150489.57 | AF48: 375254.56 | AG48: 415447.36 | AH48: 280600.57 | AI48: 346824.22 | AQ48: 228919.36 | AR48: 150489.57 | AS48: 375254.56 | AT48: 415447.36 | AU48: 280600.57 | AV48: 346824.22
A49: 89 | B49: =LOOKUP(A49,'DOE - FIPStoPayeeCodeConvTable'!$A$3:$A$213,'DOE - FIPStoPayeeCodeConvTable'!$B$3:$B$213) -> Henry Co | C49: 26927.9 | D49: 67209.18 | E49: 71970 | F49: 17911.82 | G49: 87288.68 | H49: 35827.49 | I49: 49944.48 | J49: 58207.98 | K49: 127388.8 | L49: 110476.84 | M49: 121765.8 | N49: 86395.96 | S49: 861314.93 | U49: 484058.99 | V49: 377255.94 | W49: =LOOKUP(A49,'DOE - FIPStoPayeeCodeConvTable'!$A$3:$A$213,'DOE - FIPStoPayeeCodeConvTable'!$E$3:$E$213) -> 0.2786 | X49: 0.34825 | Y49: 131379.38 | Z49: 245876.56 | AD49: 49181.38 | AE49: 45646 | AF49: 76558.72 | AG49: 50232.78 | AH49: 48450.06 | AI49: 50824.22 | AQ49: 49181.38 | AR49: 45646 | AS49: 76558.72 | AT49: 50232.78 | AU49: 48450.06 | AV49: 50824.22
A50: 91 | B50: =LOOKUP(A50,'DOE - FIPStoPayeeCodeConvTable'!$A$3:$A$213,'DOE - FIPStoPayeeCodeConvTable'!$B$3:$B$213) -> Highland Co | C50: 0 | D50: 0 | E50: 0 | F50: 0 | G50: 0 | H50: 0 | I50: 0 | J50: 0 | K50: 0 | L50: 0 | M50: 3541.5 | N50: 12198.5 | S50: 15740 | U50: 8845.88 | V50: 6894.12 | W50: =LOOKUP(A50,'DOE - FIPStoPayeeCodeConvTable'!$A$3:$A$213,'DOE - FIPStoPayeeCodeConvTable'!$E$3:$E$213) -> 0.3822 | X50: 0.47775 | Y50: 3293.67 | Z50: 3600.45 | AD50: 0 | AE50: 0 | AF50: 0 | AG50: 0 | AH50: 0 | AI50: 0 | AQ50: 0 | AR50: 0 | AS50: 0 | AT50: 0 | AU50: 0 | AV50: 0
A51: 93 | B51: =LOOKUP(A51,'DOE - FIPStoPayeeCodeConvTable'!$A$3:$A$213,'DOE - FIPStoPayeeCodeConvTable'!$B$3:$B$213) -> Isle Of Wight Co | C51: 0 | D51: 0 | E51: 0 | F51: 0 | G51: 0 | H51: 0 | I51: 0 | J51: 0 | K51: 0 | L51: 0 | M51: 373.85 | N51: 2317.87 | S51: 2691.72 | U51: 1512.75 | V51: 1178.97 | W51: =LOOKUP(A51,'DOE - FIPStoPayeeCodeConvTable'!$A$3:$A$213,'DOE - FIPStoPayeeCodeConvTable'!$E$3:$E$213) -> 0.3613 | X51: 0.451625 | Y51: 532.45 | Z51: 646.52 | AD51: 0 | AE51: 0 | AF51: 0 | AG51: 0 | AH51: 0 | AI51: 0 | AQ51: 0 | AR51: 0 | AS51: 0 | AT51: 0 | AU51: 0 | AV51: 0
A52: 95 | B52: =LOOKUP(A52,'DOE - FIPStoPayeeCodeConvTable'!$A$3:$A$213,'DOE - FIPStoPayeeCodeConvTable'!$B$3:$B$213) -> James City Co | C52: 64481.86 | D52: 75150.33 | E52: 49839.39 | F52: 15507.7 | G52: 21298.79 | H52: 5485.3 | I52: 16887.32 | J52: 34101.22 | K52: 47253.03 | L52: 33490.51 | M52: 26095.72 | N52: 44231.16 | S52: 433822.33 | U52: 243808.15 | V52: 190014.18 | W52: =LOOKUP(A52,'DOE - FIPStoPayeeCodeConvTable'!$A$3:$A$213,'DOE - FIPStoPayeeCodeConvTable'!$E$3:$E$213) -> 0.4483 | X52: 0.560375 | Y52: 106479.2 | Z52: 83534.98 | AD52: 11805 | AE52: 108606 | AF52: 40137 | AG52: 14574.64 | AH52: 21500.68 | AI52: 109059.8 | AQ52: 11805 | AR52: 108606 | AS52: 40137 | AT52: 14574.64 | AU52: 21500.68 | AV52: 109059.8
A53: 97 | B53: =LOOKUP(A53,'DOE - FIPStoPayeeCodeConvTable'!$A$3:$A$213,'DOE - FIPStoPayeeCodeConvTable'!$B$3:$B$213) -> King And Queen Co | C53: 0 | D53: 0 | E53: 0 | F53: 0 | G53: 0 | H53: 0 | I53: 0 | J53: 0 | K53: 0 | L53: 0 | M53: 0 | N53: 0 | S53: 0 | U53: 0 | V53: 0 | W53: =LOOKUP(A53,'DOE - FIPStoPayeeCodeConvTable'!$A$3:$A$213,'DOE - FIPStoPayeeCodeConvTable'!$E$3:$E$213) -> 0.3144 | X53: 0.393 | Y53: 0 | Z53: 0 | AD53: 0 | AE53: 0 | AF53: 0 | AG53: 0 | AH53: 0 | AI53: 0 | AQ53: 0 | AR53: 0 | AS53: 0 | AT53: 0 | AU53: 0 | AV53: 0
A54: 99 | B54: =LOOKUP(A54,'DOE - FIPStoPayeeCodeConvTable'!$A$3:$A$213,'DOE - FIPStoPayeeCodeConvTable'!$B$3:$B$213) -> King George Co | C54: 63635.46 | D54: 20844.76 | E54: 12796.32 | F54: 17372.1 | G54: 20068.5 | H54: 25747.4 | I54: 25018.74 | J54: 25796.96 | K54: 6061.66 | L54: 2115.92 | M54: 13413.42 | N54: 64213.74 | S54: 297084.98 | U54: 166961.76 | V54: 130123.22 | W54: =LOOKUP(A54,'DOE - FIPStoPayeeCodeConvTable'!$A$3:$A$213,'DOE - FIPStoPayeeCodeConvTable'!$E$3:$E$213) -> 0.3627 | X54: 0.453375 | Y54: 58994.61 | Z54: 71128.61 | AD54: 15404.6 | AE54: 16707.64 | AF54: 30727.42 | AG54: 17202.2 | AH54: 33447.5 | AI54: 8657 | AQ54: 15404.6 | AR54: 16707.64 | AS54: 30727.42 | AT54: 17202.2 | AU54: 33447.5 | AV54: 8657
A55: 101 | B55: =LOOKUP(A55,'DOE - FIPStoPayeeCodeConvTable'!$A$3:$A$213,'DOE - FIPStoPayeeCodeConvTable'!$B$3:$B$213) -> King William Co | C55: 0 | D55: 8919.42 | E55: 4532.82 | F55: 4386.6 | G55: 4532.82 | H55: 4386.6 | I55: 4532.82 | J55: 0 | K55: 0 | L55: 4532.82 | M55: 7603.44 | N55: 10435.32 | S55: 53862.66 | U55: 30270.81 | V55: 23591.85 | W55: =LOOKUP(A55,'DOE - FIPStoPayeeCodeConvTable'!$A$3:$A$213,'DOE - FIPStoPayeeCodeConvTable'!$E$3:$E$213) -> 0.3853 | X55: 0.481625 | Y55: 11362.42 | Z55: 12229.43 | AD55: 4386.6 | AE55: 18698.82 | AF55: 4532.82 | AG55: 0 | AH55: 8773.2 | AI55: 4386.6 | AQ55: 4386.6 | AR55: 18698.82 | AS55: 4532.82 | AT55: 0 | AU55: 8773.2 | AV55: 4386.6
A56: 103 | B56: =LOOKUP(A56,'DOE - FIPStoPayeeCodeConvTable'!$A$3:$A$213,'DOE - FIPStoPayeeCodeConvTable'!$B$3:$B$213) -> Lancaster Co | C56: 5488.32 | D56: 11720.76 | E56: 12991.48 | F56: 6590.94 | G56: 20198.92 | H56: 6710.8 | I56: 16915.04 | J56: 13583.32 | K56: 45018.16 | L56: 20520.2 | M56: 20913.6 | N56: 16128.04 | S56: 196779.58 | U56: 110590.12 | V56: 86189.46 | W56: =LOOKUP(A56,'DOE - FIPStoPayeeCodeConvTable'!$A$3:$A$213,'DOE - FIPStoPayeeCodeConvTable'!$E$3:$E$213) -> 0.4391 | X56: 0.548875 | Y56: 47307.24 | Z56: 38882.22 | AD56: 11112.72 | AE56: 6141.24 | AF56: 14529.48 | AG56: 4094.16 | AH56: 4094.16 | AI56: 9311.22 | AQ56: 11112.72 | AR56: 6141.24 | AS56: 14529.48 | AT56: 4094.16 | AU56: 4094.16 | AV56: 9311.22
A57: 105 | B57: =LOOKUP(A57,'DOE - FIPStoPayeeCodeConvTable'!$A$3:$A$213,'DOE - FIPStoPayeeCodeConvTable'!$B$3:$B$213) -> Lee Co | C57: 2915.7 | D57: 3012.89 | E57: 1069.09 | F57: 0 | G57: 0 | H57: 0 | I57: 0 | J57: 0 | K57: 0 | L57: 0 | M57: 0 | N57: 0 | S57: 6997.68 | U57: 3932.7 | V57: 3064.98 | W57: =LOOKUP(A57,'DOE - FIPStoPayeeCodeConvTable'!$A$3:$A$213,'DOE - FIPStoPayeeCodeConvTable'!$E$3:$E$213) -> 0.2245 | X57: 0.280625 | Y57: 860.11 | Z57: 2204.87 | AD57: 14122.87 | AE57: 15704.78 | AF57: 11808.01 | AG57: 0 | AH57: 10674.06 | AI57: 0 | AQ57: 14122.87 | AR57: 15704.78 | AS57: 11808.01 | AT57: 0 | AU57: 10674.06 | AV57: 0
A58: 107 | B58: =LOOKUP(A58,'DOE - FIPStoPayeeCodeConvTable'!$A$3:$A$213,'DOE - FIPStoPayeeCodeConvTable'!$B$3:$B$213) -> Loudoun Co | C58: 70666.7 | D58: 95175.5 | E58: 137916.38 | F58: 131822 | G58: 55872.19 | H58: 33705.9 | I58: 46039.5 | J58: 70043 | K58: 105330.89 | L58: 39743.5 | M58: 125440.58 | N58: 80637.48 | S58: 992393.62 | U58: 557725.21 | V58: 434668.41 | W58: =LOOKUP(A58,'DOE - FIPStoPayeeCodeConvTable'!$A$3:$A$213,'DOE - FIPStoPayeeCodeConvTable'!$E$3:$E$213) -> 0.4764 | X58: 0.5955 | Y58: 258845.04 | Z58: 175823.37 | AD58: 59771.46 | AE58: 93726.24 | AF58: 101834.98 | AG58: 99201 | AH58: 69234.34 | AI58: 59885.24 | AQ58: 59771.46 | AR58: 93726.24 | AS58: 101834.98 | AT58: 99201 | AU58: 69234.34 | AV58: 59885.24
A59: 109 | B59: =LOOKUP(A59,'DOE - FIPStoPayeeCodeConvTable'!$A$3:$A$213,'DOE - FIPStoPayeeCodeConvTable'!$B$3:$B$213) -> Louisa Co | C59: 33540.02 | D59: 36935.3 | E59: 35619.32 | F59: 28390.1 | G59: 28332 | H59: 21283.42 | I59: 35619.32 | J59: 37586.82 | K59: 49718.68 | L59: 97456.92 | M59: 110114.02 | N59: 62347.3 | S59: 576943.22 | U59: 324242.09 | V59: 252701.13 | W59: =LOOKUP(A59,'DOE - FIPStoPayeeCodeConvTable'!$A$3:$A$213,'DOE - FIPStoPayeeCodeConvTable'!$E$3:$E$213) -> 0.4401 | X59: 0.550125 | Y59: 139017.21 | Z59: 113683.92 | AD59: 82909.66 | AE59: 51428.34 | AF59: 78622.52 | AG59: 79854.9 | AH59: 17252.6 | AI59: 21249 | AQ59: 82909.66 | AR59: 51428.34 | AS59: 78622.52 | AT59: 79854.9 | AU59: 17252.6 | AV59: 21249
A60: 111 | B60: =LOOKUP(A60,'DOE - FIPStoPayeeCodeConvTable'!$A$3:$A$213,'DOE - FIPStoPayeeCodeConvTable'!$B$3:$B$213) -> Lunenburg Co | C60: 38299.14 | D60: 57332.86 | E60: 44069.24 | F60: 31353.32 | G60: 47146.56 | H60: 49303.7 | I60: 54922.56 | J60: 28650.32 | K60: 19644.98 | L60: 31645.76 | M60: 19767.52 | N60: 23102.76 | S60: 445238.72 | U60: 250224.16 | V60: 195014.56 | W60: =LOOKUP(A60,'DOE - FIPStoPayeeCodeConvTable'!$A$3:$A$213,'DOE - FIPStoPayeeCodeConvTable'!$E$3:$E$213) -> 0.1698 | X60: 0.21225 | Y60: 41391.84 | Z60: 153622.72 | AD60: 85384.56 | AE60: 40530.5 | AF60: 18888 | AG60: 58238 | AH60: 49377.8 | AI60: 90250.62 | AQ60: 85384.56 | AR60: 40530.5 | AS60: 18888 | AT60: 58238 | AU60: 49377.8 | AV60: 90250.62
A61: 113 | B61: =LOOKUP(A61,'DOE - FIPStoPayeeCodeConvTable'!$A$3:$A$213,'DOE - FIPStoPayeeCodeConvTable'!$B$3:$B$213) -> Madison Co | C61: 3363.06 | D61: 14953 | E61: 10018.14 | F61: 11805 | G61: 18494.5 | H61: 13095.32 | I61: 13772.5 | J61: 8675.8 | K61: 17719.04 | L61: 3463.32 | M61: 494.76 | N61: 4532.82 | S61: 120387.26 | U61: 67657.64 | V61: 52729.62 | W61: =LOOKUP(A61,'DOE - FIPStoPayeeCodeConvTable'!$A$3:$A$213,'DOE - FIPStoPayeeCodeConvTable'!$E$3:$E$213) -> 0.3355 | X61: 0.419375 | Y61: 22113.48 | Z61: 30616.14 | AD61: 6872.34 | AE61: 18159.1 | AF61: 20971.7 | AG61: 11411.5 | AH61: 21117.92 | AI61: 10435.32 | AQ61: 6872.34 | AR61: 18159.1 | AS61: 20971.7 | AT61: 11411.5 | AU61: 21117.92 | AV61: 10435.32
A62: 115 | B62: =LOOKUP(A62,'DOE - FIPStoPayeeCodeConvTable'!$A$3:$A$213,'DOE - FIPStoPayeeCodeConvTable'!$B$3:$B$213) -> Mathews Co | C62: 0 | D62: 0 | E62: 0 | F62: 24652.48 | G62: 13142.9 | H62: 25341.4 | I62: 13615.1 | J62: 2754.5 | K62: 0 | L62: 0 | M62: 0 | N62: 0 | S62: 79506.38 | U62: 44682.59 | V62: 34823.79 | W62: =LOOKUP(A62,'DOE - FIPStoPayeeCodeConvTable'!$A$3:$A$213,'DOE - FIPStoPayeeCodeConvTable'!$E$3:$E$213) -> 0.4271 | X62: 0.533875 | Y62: 18591.55 | Z62: 16232.24 | AD62: 4532.82 | AE62: 0 | AF62: 11921.2 | AG62: 4532.82 | AH62: 4386.6 | AI62: 877.32 | AQ62: 4532.82 | AR62: 0 | AS62: 11921.2 | AT62: 4532.82 | AU62: 4386.6 | AV62: 877.32
A63: 117 | B63: =LOOKUP(A63,'DOE - FIPStoPayeeCodeConvTable'!$A$3:$A$213,'DOE - FIPStoPayeeCodeConvTable'!$B$3:$B$213) -> Mecklenburg Co | C63: 52729 | D63: 46390.04 | E63: 61803.18 | F63: 49157.48 | G63: 52993.62 | H63: 35486.04 | I63: 64110.48 | J63: 54462.16 | K63: 98257.9 | L63: 49927.4 | M63: 49439.18 | N63: 48206.34 | S63: 662962.82 | U63: 372585.1 | V63: 290377.72 | W63: =LOOKUP(A63,'DOE - FIPStoPayeeCodeConvTable'!$A$3:$A$213,'DOE - FIPStoPayeeCodeConvTable'!$E$3:$E$213) -> 0.2286 | X63: 0.28575 | Y63: 82975.43 | Z63: 207402.29 | AD63: 60443.11 | AE63: 51359.32 | AF63: 74754.78 | AG63: 37586.82 | AH63: 81533.24 | AI63: 93423.06 | AQ63: 60443.11 | AR63: 51359.32 | AS63: 74754.78 | AT63: 37586.82 | AU63: 81533.24 | AV63: 93423.06
A64: 119 | B64: =LOOKUP(A64,'DOE - FIPStoPayeeCodeConvTable'!$A$3:$A$213,'DOE - FIPStoPayeeCodeConvTable'!$B$3:$B$213) -> Middlesex Co | C64: 0 | D64: 0 | E64: 0 | F64: 0 | G64: 0 | H64: 0 | I64: 0 | J64: 0 | K64: 0 | L64: 0 | M64: 0 | N64: 0 | S64: 0 | U64: 0 | V64: 0 | W64: =LOOKUP(A64,'DOE - FIPStoPayeeCodeConvTable'!$A$3:$A$213,'DOE - FIPStoPayeeCodeConvTable'!$E$3:$E$213) -> 0.4333 | X64: 0.541625 | Y64: 0 | Z64: 0 | AD64: 0 | AE64: 0 | AF64: 0 | AG64: 0 | AH64: 0 | AI64: 0 | AQ64: 0 | AR64: 0 | AS64: 0 | AT64: 0 | AU64: 0 | AV64: 0
A65: 121 | B65: =LOOKUP(A65,'DOE - FIPStoPayeeCodeConvTable'!$A$3:$A$213,'DOE - FIPStoPayeeCodeConvTable'!$B$3:$B$213) -> Montgomery Co | C65: 25913.5 | D65: 72533.1 | E65: 53486.52 | F65: 109642.82 | G65: 53288.98 | H65: 53867.56 | I65: 91138.1 | J65: 63787.1 | K65: 47696.09 | L65: 44467.41 | M65: 57571.05 | N65: 40186.56 | S65: 713578.79 | U65: 401031.28 | V65: 312547.51 | W65: =LOOKUP(A65,'DOE - FIPStoPayeeCodeConvTable'!$A$3:$A$213,'DOE - FIPStoPayeeCodeConvTable'!$E$3:$E$213) -> 0.2834 | X65: 0.35425 | Y65: 110719.96 | Z65: 201827.55 | AD65: 27546.91 | AE65: 23567.04 | AF65: 33614.62 | AG65: 32317 | AH65: 45332.64 | AI65: 28203 | AQ65: 27546.91 | AR65: 23567.04 | AS65: 33614.62 | AT65: 32317 | AU65: 45332.64 | AV65: 28203
A66: 125 | B66: =LOOKUP(A66,'DOE - FIPStoPayeeCodeConvTable'!$A$3:$A$213,'DOE - FIPStoPayeeCodeConvTable'!$B$3:$B$213) -> Nelson Co | C66: 22429.5 | D66: 12576.02 | E66: 16835.8 | F66: 11984.4 | G66: 6035.79 | H66: 9522.5 | I66: 14802.5 | J66: 14151.5 | K66: 2325 | L66: 16383.5 | M66: 15153 | N66: 41104.7 | S66: 183304.21 | U66: 103016.97 | V66: 80287.24 | W66: =LOOKUP(A66,'DOE - FIPStoPayeeCodeConvTable'!$A$3:$A$213,'DOE - FIPStoPayeeCodeConvTable'!$E$3:$E$213) -> 0.3132 | X66: 0.3915 | Y66: 31432.45 | Z66: 48854.79 | AD66: 30632.41 | AE66: 12198.5 | AF66: 22823 | AG66: 12592 | AH66: 35415 | AI66: 25577.5 | AQ66: 30632.41 | AR66: 12198.5 | AS66: 22823 | AT66: 12592 | AU66: 35415 | AV66: 25577.5
A67: 127 | B67: =LOOKUP(A67,'DOE - FIPStoPayeeCodeConvTable'!$A$3:$A$213,'DOE - FIPStoPayeeCodeConvTable'!$B$3:$B$213) -> New Kent Co | C67: 2924.4 | D67: 0 | E67: 0 | F67: 0 | G67: 14953 | H67: 0 | I67: 24003.5 | J67: 0 | K67: 22036 | L67: -60992.5 | M67: -60992.5 | N67: 0 | S67: -58068.1 | U67: -32634.27 | V67: -25433.83 | W67: =LOOKUP(A67,'DOE - FIPStoPayeeCodeConvTable'!$A$3:$A$213,'DOE - FIPStoPayeeCodeConvTable'!$E$3:$E$213) -> 0.4329 | X67: 0.541125 | Y67: -13762.88 | Z67: -11670.95 | AD67: 0 | AE67: 0 | AF67: 0 | AG67: 0 | AH67: 0 | AI67: 0 | AQ67: 0 | AR67: 0 | AS67: 0 | AT67: 0 | AU67: 0 | AV67: 0
A68: 131 | B68: =LOOKUP(A68,'DOE - FIPStoPayeeCodeConvTable'!$A$3:$A$213,'DOE - FIPStoPayeeCodeConvTable'!$B$3:$B$213) -> Northampton Co | C68: 0 | D68: 14475.78 | E68: 9065.64 | F68: 7457.22 | G68: 0 | H68: 0 | I68: 4532.82 | J68: 0 | K68: 9796.74 | L68: 4532.82 | M68: 4386.6 | N68: 9972.98 | S68: 64220.6 | U68: 36091.98 | V68: 28128.62 | W68: =LOOKUP(A68,'DOE - FIPStoPayeeCodeConvTable'!$A$3:$A$213,'DOE - FIPStoPayeeCodeConvTable'!$E$3:$E$213) -> 0.1971 | X68: 0.246375 | Y68: 6930.19 | Z68: 21198.43 | AD68: 8263.5 | AE68: 13379 | AF68: 8657 | AG68: 5902.5 | AH68: 3363.06 | AI68: 4386.6 | AQ68: 8263.5 | AR68: 13379 | AS68: 8657 | AT68: 5902.5 | AU68: 3363.06 | AV68: 4386.6
A69: 133 | B69: =LOOKUP(A69,'DOE - FIPStoPayeeCodeConvTable'!$A$3:$A$213,'DOE - FIPStoPayeeCodeConvTable'!$B$3:$B$213) -> Northumberland Co | C69: 0 | D69: 0 | E69: 0 | F69: 0 | G69: 0 | H69: 0 | I69: 0 | J69: 0 | K69: 0 | L69: 0 | M69: 0 | N69: 0 | S69: 0 | U69: 0 | V69: 0 | W69: =LOOKUP(A69,'DOE - FIPStoPayeeCodeConvTable'!$A$3:$A$213,'DOE - FIPStoPayeeCodeConvTable'!$E$3:$E$213) -> 0.3304 | X69: 0.413 | Y69: 0 | Z69: 0 | AD69: 0 | AE69: 0 | AF69: 0 | AG69: 0 | AH69: 0 | AI69: 0 | AQ69: 0 | AR69: 0 | AS69: 0 | AT69: 0 | AU69: 0 | AV69: 0
A70: 135 | B70: =LOOKUP(A70,'DOE - FIPStoPayeeCodeConvTable'!$A$3:$A$213,'DOE - FIPStoPayeeCodeConvTable'!$B$3:$B$213) -> Nottoway Co | C70: 35808.5 | D70: 34774.22 | E70: 26175.32 | F70: 25242.1 | G70: 33258.32 | H70: 30370.54 | I70: 23814.32 | J70: 11411.5 | K70: 27736.38 | L70: 16337.82 | M70: 11805 | N70: 12198.5 | S70: 288932.52 | U70: =ROUND($U$1*S70,2) -> 162380.08 | V70: =SUM(S70)-SUM(U70) -> 126552.44 | W70: =LOOKUP(A70,'DOE - FIPStoPayeeCodeConvTable'!$A$3:$A$213,'DOE - FIPStoPayeeCodeConvTable'!$E$3:$E$213) -> 0.2686 | X70: 0.33575 | Y70: 42489.98 | Z70: 84062.46 | AD70: 39678.77 | AE70: 9050.5 | AF70: 55722.21 | AG70: 21092.04 | AH70: 37382.5 | AI70: 29119 | AQ70: 39678.77 | AR70: 9050.5 | AS70: 55722.21 | AT70: 21092.04 | AU70: 37382.5 | AV70: 29119
A71: 137 | B71: =LOOKUP(A71,'DOE - FIPStoPayeeCodeConvTable'!$A$3:$A$213,'DOE - FIPStoPayeeCodeConvTable'!$B$3:$B$213) -> Orange Co | C71: 61119.62 | D71: 19993.5 | E71: 19116.18 | F71: 2521 | G71: 20124.58 | H71: 20836.4 | I71: 48199.22 | J71: 21610.46 | K71: 24778.4 | L71: 26040.02 | M71: 97657.02 | N71: 64229.46 | S71: 426225.86 | U71: 239538.93 | V71: 186686.93 | W71: =LOOKUP(A71,'DOE - FIPStoPayeeCodeConvTable'!$A$3:$A$213,'DOE - FIPStoPayeeCodeConvTable'!$E$3:$E$213) -> 0.4083 | X71: =$X$1*W71 -> 0.510375 | Y71: =ROUND(X71*V71,2) -> 95280.34 | Z71: =SUM(V71)-SUM(Y71) -> 91406.59 | AD71: 18159.1 | AE71: 19485.82 | AF71: 29658.72 | AG71: 38169.5 | AH71: 52082.28 | AI71: 15496.64 | AQ71: =+AD71+AJ71 -> 18159.1 | AR71: =+AE71+AK71 -> 19485.82 | AS71: =+AF71+AL71 -> 29658.72 | AT71: =+AG71+AM71 -> 38169.5 | AU71: =+AH71+AN71 -> 52082.28 | AV71: =+AI71+AO71 -> 15496.64
A72: 139 | B72: =LOOKUP(A72,'DOE - FIPStoPayeeCodeConvTable'!$A$3:$A$213,'DOE - FIPStoPayeeCodeConvTable'!$B$3:$B$213) -> Page Co | C72: 15923.42 | D72: 84602.5 | E72: 25577.5 | F72: 28725.5 | G72: 72404 | H72: 4094.16 | I72: 4532.82 | J72: 438.66 | K72: 0 | L72: 146.22 | M72: 11805 | N72: 47220 | S72: 295469.78 | U72: 166054.02 | V72: 129415.76 | W72: =LOOKUP(A72,'DOE - FIPStoPayeeCodeConvTable'!$A$3:$A$213,'DOE - FIPStoPayeeCodeConvTable'!$E$3:$E$213) -> 0.2865 | X72: 0.358125 | Y72: 46347.02 | Z72: 83068.74 | AD72: 29119 | AE72: 57451 | AF72: 43888.58 | AG72: 24397 | AH72: 29119 | AI72: 18888 | AQ72: 29119 | AR72: 57451 | AS72: 43888.58 | AT72: 24397 | AU72: 29119 | AV72: 18888
A73: 141 | B73: =LOOKUP(A73,'DOE - FIPStoPayeeCodeConvTable'!$A$3:$A$213,'DOE - FIPStoPayeeCodeConvTable'!$B$3:$B$213) -> Patrick Co | C73: 33054 | D73: 29906 | E73: 19675 | F73: 20068.5 | G73: 26364.5 | H73: 22823 | I73: 22823 | J73: 21249 | K73: 19675 | L73: 35415 | M73: 28332 | N73: 13772.5 | S73: 293157.5 | U73: 164754.52 | V73: 128402.98 | W73: =LOOKUP(A73,'DOE - FIPStoPayeeCodeConvTable'!$A$3:$A$213,'DOE - FIPStoPayeeCodeConvTable'!$E$3:$E$213) -> 0.2539 | X73: 0.317375 | Y73: 40751.9 | Z73: 87651.08 | AD73: 8263.5 | AE73: 13379 | AF73: 27151.5 | AG73: 32660.5 | AH73: 27545 | AI73: 12592 | AQ73: 8263.5 | AR73: 13379 | AS73: 27151.5 | AT73: 32660.5 | AU73: 27545 | AV73: 12592
A74: 143 | B74: =LOOKUP(A74,'DOE - FIPStoPayeeCodeConvTable'!$A$3:$A$213,'DOE - FIPStoPayeeCodeConvTable'!$B$3:$B$213) -> Pittsylvania Co | C74: 45488.2 | D74: 46956.42 | E74: 139825.89 | F74: 90957.67 | G74: 101626.06 | H74: 75152.6 | I74: 81965.5 | J74: 49990.88 | K74: 94112.96 | L74: 68893 | M74: 78874.38 | N74: 56147.52 | S74: 929991.08 | U74: 522654.99 | V74: 407336.09 | W74: =LOOKUP(A74,'DOE - FIPStoPayeeCodeConvTable'!$A$3:$A$213,'DOE - FIPStoPayeeCodeConvTable'!$E$3:$E$213) -> 0.2355 | X74: 0.294375 | Y74: 119909.56 | Z74: 287426.53 | AD74: 69649.5 | AE74: 22949 | AF74: 99204.12 | AG74: 138460.68 | AH74: 133883.8 | AI74: 50052.14 | AQ74: 69649.5 | AR74: 22949 | AS74: 99204.12 | AT74: 138460.68 | AU74: 133883.8 | AV74: 50052.14
A75: 145 | B75: =LOOKUP(A75,'DOE - FIPStoPayeeCodeConvTable'!$A$3:$A$213,'DOE - FIPStoPayeeCodeConvTable'!$B$3:$B$213) -> Powhatan Co | C75: 28309.68 | D75: 80073.79 | E75: 34032.09 | F75: 22778.39 | G75: 30749.92 | H75: 33809.18 | I75: 30986.28 | J75: 26040.02 | K75: 32414.06 | L75: 37154.28 | M75: 6221.88 | N75: 12198.5 | S75: 374768.07 | U75: 210619.66 | V75: 164148.41 | W75: =LOOKUP(A75,'DOE - FIPStoPayeeCodeConvTable'!$A$3:$A$213,'DOE - FIPStoPayeeCodeConvTable'!$E$3:$E$213) -> 0.4342 | X75: 0.54275 | Y75: 89091.55 | Z75: 75056.86 | AD75: 51819.17 | AE75: 45646 | AF75: 54249.82 | AG75: 31369.9 | AH75: 43735.76 | AI75: 28389.81 | AQ75: 51819.17 | AR75: 45646 | AS75: 54249.82 | AT75: 31369.9 | AU75: 43735.76 | AV75: 28389.81
A76: 147 | B76: =LOOKUP(A76,'DOE - FIPStoPayeeCodeConvTable'!$A$3:$A$213,'DOE - FIPStoPayeeCodeConvTable'!$B$3:$B$213) -> Prince Edward Co | C76: 7752.1 | D76: 14516.37 | E76: 8613.87 | F76: 11411.5 | G76: 16759.47 | H76: 14048.1 | I76: 12981.67 | J76: 19281.5 | K76: 10231 | L76: 2361 | M76: 0 | N76: 0 | S76: 117956.58 | U76: 66291.6 | V76: 51664.98 | W76: =LOOKUP(A76,'DOE - FIPStoPayeeCodeConvTable'!$A$3:$A$213,'DOE - FIPStoPayeeCodeConvTable'!$E$3:$E$213) -> 0.2232 | X76: 0.279 | Y76: 14414.53 | Z76: 37250.45 | AD76: 6704.47 | AE76: 4532.82 | AF76: 6850.69 | AG76: 43485.83 | AH76: 55503.28 | AI76: 8613.87 | AQ76: 6704.47 | AR76: 4532.82 | AS76: 6850.69 | AT76: 43485.83 | AU76: 55503.28 | AV76: 8613.87
A77: 149 | B77: =LOOKUP(A77,'DOE - FIPStoPayeeCodeConvTable'!$A$3:$A$213,'DOE - FIPStoPayeeCodeConvTable'!$B$3:$B$213) -> Prince George Co | C77: 77263.68 | D77: 40294.22 | E77: 29452.46 | F77: 29202.98 | G77: 42108.9 | H77: 18969.78 | I77: 15135.84 | J77: 22805.92 | K77: 41435.9 | L77: 12123.32 | M77: 29065.3 | N77: 34339.96 | S77: 392198.26 | U77: 220415.42 | V77: 171782.84 | W77: =LOOKUP(A77,'DOE - FIPStoPayeeCodeConvTable'!$A$3:$A$213,'DOE - FIPStoPayeeCodeConvTable'!$E$3:$E$213) -> 0.3716 | X77: 0.4645 | Y77: 79793.13 | Z77: 91989.71 | AD77: 12198.5 | AE77: 33841 | AF77: 54303 | AG77: 30693 | AH77: 28069.7 | AI77: 11622.3 | AQ77: 12198.5 | AR77: 33841 | AS77: 54303 | AT77: 30693 | AU77: 28069.7 | AV77: 11622.3
A78: 153 | B78: =LOOKUP(A78,'DOE - FIPStoPayeeCodeConvTable'!$A$3:$A$213,'DOE - FIPStoPayeeCodeConvTable'!$B$3:$B$213) -> Prince William Co | C78: 210851.65 | D78: 114024.04 | E78: 154451.81 | F78: 130263.14 | G78: 192051.25 | H78: 123998.57 | I78: 110179.57 | J78: 86107.84 | K78: 117565.3 | L78: 113230.43 | M78: 107769.59 | N78: 187559.18 | S78: 1648052.37 | U78: 926205.43 | V78: 721846.94 | W78: =LOOKUP(A78,'DOE - FIPStoPayeeCodeConvTable'!$A$3:$A$213,'DOE - FIPStoPayeeCodeConvTable'!$E$3:$E$213) -> 0.3414 | X78: 0.42675 | Y78: 308048.18 | Z78: 413798.76 | AD78: 118360.61 | AE78: 187944.15 | AF78: 117804.72 | AG78: 225021.75 | AH78: 171118.32 | AI78: 120507.82 | AQ78: 118360.61 | AR78: 187944.15 | AS78: 117804.72 | AT78: 225021.75 | AU78: 171118.32 | AV78: 120507.82
A79: 155 | B79: =LOOKUP(A79,'DOE - FIPStoPayeeCodeConvTable'!$A$3:$A$213,'DOE - FIPStoPayeeCodeConvTable'!$B$3:$B$213) -> Pulaski Co | C79: 27996.6 | D79: 22532.76 | E79: 29787.86 | F79: 44945.18 | G79: 33542.22 | H79: 33170.2 | I79: 33247.58 | J79: 12796.32 | K79: 35260.24 | L79: 52744.14 | M79: 54520.26 | N79: 56971.58 | S79: 437514.94 | U79: 245883.4 | V79: 191631.54 | W79: =LOOKUP(A79,'DOE - FIPStoPayeeCodeConvTable'!$A$3:$A$213,'DOE - FIPStoPayeeCodeConvTable'!$E$3:$E$213) -> 0.2923 | X79: 0.365375 | Y79: 70017.37 | Z79: 121614.17 | AD79: 41711 | AE79: 75945.5 | AF79: 61779.5 | AG79: 36989 | AH79: 54685.76 | AI79: 42702.32 | AQ79: 41711 | AR79: 75945.5 | AS79: 61779.5 | AT79: 36989 | AU79: 54685.76 | AV79: 42702.32
A80: 157 | B80: =LOOKUP(A80,'DOE - FIPStoPayeeCodeConvTable'!$A$3:$A$213,'DOE - FIPStoPayeeCodeConvTable'!$B$3:$B$213) -> Rappahannock Co | C80: 7994.14 | D80: 0 | E80: 18101 | F80: 9454.08 | G80: 0 | H80: 2924.4 | I80: 2485.74 | J80: -1524.44 | K80: 5410.14 | L80: 9065.64 | M80: 8773.2 | N80: 22557.24 | S80: 85241.14 | U80: 47905.52 | V80: 37335.62 | W80: =LOOKUP(A80,'DOE - FIPStoPayeeCodeConvTable'!$A$3:$A$213,'DOE - FIPStoPayeeCodeConvTable'!$E$3:$E$213) -> 0.4199 | X80: 0.524875 | Y80: 19596.53 | Z80: 17739.09 | AD80: 59229.32 | AE80: 33258.32 | AF80: 22341.38 | AG80: 26175.32 | AH80: -6237.9 | AI80: 109990.82 | AQ80: 59229.32 | AR80: 33258.32 | AS80: 22341.38 | AT80: 26175.32 | AU80: -6237.9 | AV80: 109990.82
A81: 159 | B81: =LOOKUP(A81,'DOE - FIPStoPayeeCodeConvTable'!$A$3:$A$213,'DOE - FIPStoPayeeCodeConvTable'!$B$3:$B$213) -> Richmond Co | C81: 0 | D81: 0 | E81: 0 | F81: 0 | G81: 0 | H81: 0 | I81: 8042.1 | J81: 4386.6 | K81: 0 | L81: 0 | M81: 0 | N81: 0 | S81: 12428.7 | U81: 6984.93 | V81: 5443.77 | W81: =LOOKUP(A81,'DOE - FIPStoPayeeCodeConvTable'!$A$3:$A$213,'DOE - FIPStoPayeeCodeConvTable'!$E$3:$E$213) -> 0.3227 | X81: 0.403375 | Y81: 2195.88 | Z81: 3247.89 | AD81: 3655.5 | AE81: -3655.5 | AF81: 0 | AG81: 0 | AH81: 0 | AI81: 0 | AQ81: 3655.5 | AR81: -3655.5 | AS81: 0 | AT81: 0 | AU81: 0 | AV81: 0
A82: 161 | B82: =LOOKUP(A82,'DOE - FIPStoPayeeCodeConvTable'!$A$3:$A$213,'DOE - FIPStoPayeeCodeConvTable'!$B$3:$B$213) -> Roanoke Co | C82: 99003.67 | D82: 110578.12 | E82: 124021.67 | F82: 86766.71 | G82: 75709.41 | H82: 117479.39 | I82: 119542.11 | J82: 111369.04 | K82: 102977.24 | L82: 110275.77 | M82: 132209.3 | N82: 177954.31 | S82: 1367886.74 | U82: 768752.35 | V82: 599134.39 | W82: =LOOKUP(A82,'DOE - FIPStoPayeeCodeConvTable'!$A$3:$A$213,'DOE - FIPStoPayeeCodeConvTable'!$E$3:$E$213) -> 0.4397 | X82: 0.549625 | Y82: 329299.24 | Z82: 269835.15 | AD82: 142348.66 | AE82: 155313.88 | AF82: 150040.74 | AG82: 142837.72 | AH82: 163536.26 | AI82: 108903.91 | AQ82: 142348.66 | AR82: 155313.88 | AS82: 150040.74 | AT82: 142837.72 | AU82: 163536.26 | AV82: 108903.91
A83: 163 | B83: =LOOKUP(A83,'DOE - FIPStoPayeeCodeConvTable'!$A$3:$A$213,'DOE - FIPStoPayeeCodeConvTable'!$B$3:$B$213) -> Rockbridge Co | C83: 99292.76 | D83: 41131.92 | E83: 41833.8 | F83: 25695.9 | G83: 83721.04 | H83: 44964.46 | I83: 46719.1 | J83: 31009.12 | K83: 64503.98 | L83: 61076.48 | M83: 37047.1 | N83: 71116.1 | S83: 648111.76 | U83: 364238.81 | V83: 283872.95 | W83: =LOOKUP(A83,'DOE - FIPStoPayeeCodeConvTable'!$A$3:$A$213,'DOE - FIPStoPayeeCodeConvTable'!$E$3:$E$213) -> 0.2336 | X83: 0.292 | Y83: 82890.9 | Z83: 200982.05 | AD83: 42584.18 | AE83: 35225.82 | AF83: 109887.76 | AG83: 65402.78 | AH83: 92983.85 | AI83: 25592.64 | AQ83: 42584.18 | AR83: 35225.82 | AS83: 109887.76 | AT83: 65402.78 | AU83: 92983.85 | AV83: 25592.64
A84: 165 | B84: =LOOKUP(A84,'DOE - FIPStoPayeeCodeConvTable'!$A$3:$A$213,'DOE - FIPStoPayeeCodeConvTable'!$B$3:$B$213) -> Rockingham Co | C84: 56339.52 | D84: 55552.52 | E84: 96083.02 | F84: 105972.06 | G84: 48937.18 | H84: 89675.04 | I84: 74765 | J84: 63353.5 | K84: 96141.76 | L84: 76732.5 | M84: 79666.5 | N84: 74260.28 | S84: 917478.88 | U84: 515623.13 | V84: 401855.75 | W84: =LOOKUP(A84,'DOE - FIPStoPayeeCodeConvTable'!$A$3:$A$213,'DOE - FIPStoPayeeCodeConvTable'!$E$3:$E$213) -> 0.3445 | X84: 0.430625 | Y84: 173049.13 | Z84: 228806.62 | AD84: 97815.5 | AE84: 82394.02 | AF84: 124265.44 | AG84: 130601.04 | AH84: 149986.12 | AI84: 50972.82 | AQ84: 97815.5 | AR84: 82394.02 | AS84: 124265.44 | AT84: 130601.04 | AU84: 149986.12 | AV84: 50972.82
A85: 167 | B85: =LOOKUP(A85,'DOE - FIPStoPayeeCodeConvTable'!$A$3:$A$213,'DOE - FIPStoPayeeCodeConvTable'!$B$3:$B$213) -> Russell Co | C85: 16191.6 | D85: 44778.41 | E85: 22062.08 | F85: 17561.96 | G85: 10740.9 | H85: 32746.58 | I85: 33700.18 | J85: 16779.68 | K85: 29708.25 | L85: 19306.62 | M85: 20270.01 | N85: 17048.52 | S85: 280894.79 | U85: 157862.87 | V85: 123031.92 | W85: =LOOKUP(A85,'DOE - FIPStoPayeeCodeConvTable'!$A$3:$A$213,'DOE - FIPStoPayeeCodeConvTable'!$E$3:$E$213) -> 0.1894 | X85: 0.23675 | Y85: 29127.81 | Z85: 93904.11 | AD85: 81061 | AE85: 10624.5 | AF85: 46628.78 | AG85: 16527 | AH85: 67856.3 | AI85: 18305.32 | AQ85: 81061 | AR85: 10624.5 | AS85: 46628.78 | AT85: 16527 | AU85: 67856.3 | AV85: 18305.32
A86: 169 | B86: =LOOKUP(A86,'DOE - FIPStoPayeeCodeConvTable'!$A$3:$A$213,'DOE - FIPStoPayeeCodeConvTable'!$B$3:$B$213) -> Scott Co | C86: 4386.6 | D86: 4532.82 | E86: 4532.82 | F86: 3070.62 | G86: 0 | H86: 3984.79 | I86: 3012.89 | J86: 3012.89 | K86: 4179.17 | L86: 8163.96 | M86: 9538.54 | N86: 4719.37 | S86: 53134.47 | U86: 29861.57 | V86: 23272.9 | W86: =LOOKUP(A86,'DOE - FIPStoPayeeCodeConvTable'!$A$3:$A$213,'DOE - FIPStoPayeeCodeConvTable'!$E$3:$E$213) -> 0.3154 | X86: 0.39425 | Y86: 9175.34 | Z86: 14097.56 | AD86: 5053.88 | AE86: 0 | AF86: 0 | AG86: 0 | AH86: 2924.4 | AI86: 7749.66 | AQ86: 5053.88 | AR86: 0 | AS86: 0 | AT86: 0 | AU86: 2924.4 | AV86: 7749.66
A87: 171 | B87: =LOOKUP(A87,'DOE - FIPStoPayeeCodeConvTable'!$A$3:$A$213,'DOE - FIPStoPayeeCodeConvTable'!$B$3:$B$213) -> Shenandoah Co | C87: 70997.18 | D87: 114938.62 | E87: 131756.81 | F87: 109717.97 | G87: 123851.02 | H87: 108052.26 | I87: 109922.58 | J87: 158479.34 | K87: 114985.91 | L87: 106511.8 | M87: 117301.82 | N87: 92113.68 | S87: 1358628.99 | U87: 763549.49 | V87: 595079.5 | W87: =LOOKUP(A87,'DOE - FIPStoPayeeCodeConvTable'!$A$3:$A$213,'DOE - FIPStoPayeeCodeConvTable'!$E$3:$E$213) -> 0.3517 | X87: 0.439625 | Y87: 261611.83 | Z87: 333467.67 | AD87: 107946.31 | AE87: 110456.75 | AF87: 138688.5 | AG87: 156875.42 | AH87: 107963.28 | AI87: 115414.16 | AQ87: 107946.31 | AR87: 110456.75 | AS87: 138688.5 | AT87: 156875.42 | AU87: 107963.28 | AV87: 115414.16
A88: 173 | B88: =LOOKUP(A88,'DOE - FIPStoPayeeCodeConvTable'!$A$3:$A$213,'DOE - FIPStoPayeeCodeConvTable'!$B$3:$B$213) -> Smyth Co | C88: 69256 | D88: 97646.1 | E88: 76543.32 | F88: 74958.58 | G88: 90403.94 | H88: 69649.5 | I88: 82432.59 | J88: 89767.27 | K88: 85714.42 | L88: 93844.09 | M88: 74007.58 | N88: 80655.4 | S88: 984878.79 | U88: 553501.88 | V88: 431376.91 | W88: =LOOKUP(A88,'DOE - FIPStoPayeeCodeConvTable'!$A$3:$A$213,'DOE - FIPStoPayeeCodeConvTable'!$E$3:$E$213) -> 0.2337 | X88: 0.292125 | Y88: 126015.98 | Z88: 305360.93 | AD88: 53122.5 | AE88: 59352.22 | AF88: 72315.88 | AG88: 65918.82 | AH88: 103548.6 | AI88: 35105.48 | AQ88: 53122.5 | AR88: 59352.22 | AS88: 72315.88 | AT88: 65918.82 | AU88: 103548.6 | AV88: 35105.48
A89: 175 | B89: =LOOKUP(A89,'DOE - FIPStoPayeeCodeConvTable'!$A$3:$A$213,'DOE - FIPStoPayeeCodeConvTable'!$B$3:$B$213) -> Southampton Co | C89: 18494.5 | D89: 19675 | E89: 20462 | F89: 15740 | G89: 26757.5 | H89: 29119 | I89: 18101 | J89: 23610 | K89: 21642.5 | L89: 16133.5 | M89: 11805 | N89: 29906 | S89: 251446 | U89: 141312.65 | V89: 110133.35 | W89: =LOOKUP(A89,'DOE - FIPStoPayeeCodeConvTable'!$A$3:$A$213,'DOE - FIPStoPayeeCodeConvTable'!$E$3:$E$213) -> 0.323 | X89: 0.40375 | Y89: 44466.34 | Z89: 65667.01 | AD89: 0 | AE89: 0 | AF89: 58162.45 | AG89: 0 | AH89: 29512.5 | AI89: 11805 | AQ89: 0 | AR89: 0 | AS89: 58162.45 | AT89: 0 | AU89: 29512.5 | AV89: 11805
A90: 177 | B90: =LOOKUP(A90,'DOE - FIPStoPayeeCodeConvTable'!$A$3:$A$213,'DOE - FIPStoPayeeCodeConvTable'!$B$3:$B$213) -> Spotsylvania Co | C90: 40375.26 | D90: 112785.98 | E90: 52046.74 | F90: 38759.08 | G90: 48510.76 | H90: 117346.38 | I90: 105430.06 | J90: 113138.82 | K90: 144656.12 | L90: 118601.82 | M90: 175796.16 | N90: 102584.88 | S90: 1170032.06 | U90: 657558.02 | V90: 512474.04 | W90: =LOOKUP(A90,'DOE - FIPStoPayeeCodeConvTable'!$A$3:$A$213,'DOE - FIPStoPayeeCodeConvTable'!$E$3:$E$213) -> 0.4588 | X90: 0.5735 | Y90: 293903.86 | Z90: 218570.18 | AD90: 93184.32 | AE90: 129924.04 | AF90: 78645.78 | AG90: 110236.82 | AH90: 141856.98 | AI90: 78738.82 | AQ90: 93184.32 | AR90: 129924.04 | AS90: 78645.78 | AT90: 110236.82 | AU90: 141856.98 | AV90: 78738.82
A91: 179 | B91: =LOOKUP(A91,'DOE - FIPStoPayeeCodeConvTable'!$A$3:$A$213,'DOE - FIPStoPayeeCodeConvTable'!$B$3:$B$213) -> Stafford Co | C91: 24003.5 | D91: 23216.5 | E91: 48400.5 | F91: 6296 | G91: 60205.5 | H91: 5902.5 | I91: 11805 | J91: 27938.5 | K91: 11018 | L91: 41103.72 | M91: 26433.52 | N91: 56062.9 | S91: 342386.14 | U91: 192421.01 | V91: 149965.13 | W91: =LOOKUP(A91,'DOE - FIPStoPayeeCodeConvTable'!$A$3:$A$213,'DOE - FIPStoPayeeCodeConvTable'!$E$3:$E$213) -> 0.4439 | X91: 0.554875 | Y91: 83211.9 | Z91: 66753.23 | AD91: 12198.5 | AE91: 0 | AF91: 48400.5 | AG91: 22823 | AH91: 26343.02 | AI91: 11805 | AQ91: 12198.5 | AR91: 0 | AS91: 48400.5 | AT91: 22823 | AU91: 26343.02 | AV91: 11805
A92: 181 | B92: =LOOKUP(A92,'DOE - FIPStoPayeeCodeConvTable'!$A$3:$A$213,'DOE - FIPStoPayeeCodeConvTable'!$B$3:$B$213) -> Surry Co | C92: 0 | D92: 0 | E92: 0 | F92: 0 | G92: 0 | H92: 0 | I92: 0 | J92: 0 | K92: 0 | L92: 0 | M92: 0 | N92: 0 | S92: 0 | U92: 0 | V92: 0 | W92: =LOOKUP(A92,'DOE - FIPStoPayeeCodeConvTable'!$A$3:$A$213,'DOE - FIPStoPayeeCodeConvTable'!$E$3:$E$213) -> 0.3979 | X92: 0.497375 | Y92: 0 | Z92: 0 | AD92: 0 | AE92: 0 | AF92: 0 | AG92: 0 | AH92: 0 | AI92: 7326.69 | AQ92: 0 | AR92: 0 | AS92: 0 | AT92: 0 | AU92: 0 | AV92: 7326.69
A93: 183 | B93: =LOOKUP(A93,'DOE - FIPStoPayeeCodeConvTable'!$A$3:$A$213,'DOE - FIPStoPayeeCodeConvTable'!$B$3:$B$213) -> Sussex Co | C93: 0 | D93: 0 | E93: 7717.66 | F93: 4386.6 | G93: 5410.14 | H93: 8480.76 | I93: 14851.94 | J93: 72302.94 | K93: 24715.32 | L93: 12357.66 | M93: 26613.98 | N93: 39304.62 | S93: 216141.62 | U93: 121471.59 | V93: 94670.03 | W93: =LOOKUP(A93,'DOE - FIPStoPayeeCodeConvTable'!$A$3:$A$213,'DOE - FIPStoPayeeCodeConvTable'!$E$3:$E$213) -> 0.2387 | X93: 0.298375 | Y93: 28247.17 | Z93: 66422.86 | AD93: 0 | AE93: 0 | AF93: 0 | AG93: 0 | AH93: 0 | AI93: 0 | AQ93: 0 | AR93: 0 | AS93: 0 | AT93: 0 | AU93: 0 | AV93: 0
A94: 185 | B94: =LOOKUP(A94,'DOE - FIPStoPayeeCodeConvTable'!$A$3:$A$213,'DOE - FIPStoPayeeCodeConvTable'!$B$3:$B$213) -> Tazewell Co | C94: 57501.1 | D94: 41283 | E94: 21711.26 | F94: 9255.36 | G94: 14593.84 | H94: 11010 | I94: 35380.5 | J94: 25149.5 | K94: 26803 | L94: 36595.5 | M94: 30522 | N94: 61900 | S94: 371705.06 | U94: 208898.24 | V94: 162806.82 | W94: =LOOKUP(A94,'DOE - FIPStoPayeeCodeConvTable'!$A$3:$A$213,'DOE - FIPStoPayeeCodeConvTable'!$E$3:$E$213) -> 0.2455 | X94: 0.306875 | Y94: 49961.34 | Z94: 112845.48 | AD94: 31873.5 | AE94: 0 | AF94: 24397 | AG94: 58765.26 | AH94: 78255.54 | AI94: 52505.32 | AQ94: 31873.5 | AR94: 0 | AS94: 24397 | AT94: 58765.26 | AU94: 78255.54 | AV94: 52505.32
A95: 187 | B95: =LOOKUP(A95,'DOE - FIPStoPayeeCodeConvTable'!$A$3:$A$213,'DOE - FIPStoPayeeCodeConvTable'!$B$3:$B$213) -> Warren Co | C95: 3538.8 | D95: 12576.18 | E95: 8189.58 | F95: 7925.4 | G95: -12807.3 | H95: 21307.1 | I95: 16731.32 | J95: 24397 | K95: 28695.48 | L95: 14953 | M95: 21722.08 | N95: 18494.5 | S95: 165723.14 | U95: 93136.4 | V95: 72586.74 | W95: =LOOKUP(A95,'DOE - FIPStoPayeeCodeConvTable'!$A$3:$A$213,'DOE - FIPStoPayeeCodeConvTable'!$E$3:$E$213) -> 0.3853 | X95: 0.481625 | Y95: 34959.59 | Z95: 37627.15 | AD95: 0 | AE95: 4793.5 | AF95: 21958 | AG95: 37790.5 | AH95: 1900.86 | AI95: 7335.6 | AQ95: 0 | AR95: 4793.5 | AS95: 21958 | AT95: 37790.5 | AU95: 1900.86 | AV95: 7335.6
A96: 191 | B96: =LOOKUP(A96,'DOE - FIPStoPayeeCodeConvTable'!$A$3:$A$213,'DOE - FIPStoPayeeCodeConvTable'!$B$3:$B$213) -> Washington Co | C96: 72864.08 | D96: 66443.32 | E96: 71884.85 | F96: 33263.82 | G96: 38767.32 | H96: -9370.31 | I96: 61470.35 | J96: 30573.03 | K96: 52328.25 | L96: 22634.19 | M96: 17119.12 | N96: 41381.51 | S96: 499359.53 | U96: 280640.06 | V96: 218719.47 | W96: =LOOKUP(A96,'DOE - FIPStoPayeeCodeConvTable'!$A$3:$A$213,'DOE - FIPStoPayeeCodeConvTable'!$E$3:$E$213) -> 0.276 | X96: 0.345 | Y96: 75458.22 | Z96: 143261.25 | AD96: 57397.67 | AE96: 33803.54 | AF96: 55348.85 | AG96: 52875.98 | AH96: 87837.58 | AI96: 80466.49 | AQ96: 57397.67 | AR96: 33803.54 | AS96: 55348.85 | AT96: 52875.98 | AU96: 87837.58 | AV96: 80466.49
A97: 193 | B97: =LOOKUP(A97,'DOE - FIPStoPayeeCodeConvTable'!$A$3:$A$213,'DOE - FIPStoPayeeCodeConvTable'!$B$3:$B$213) -> Westmoreland Co | C97: 14166 | D97: 30437.18 | E97: 16920.5 | F97: 23216.5 | G97: 25971 | H97: 22429.5 | I97: 44465.5 | J97: 42891.5 | K97: 62960 | L97: 41891.64 | M97: 26758 | N97: 20068.5 | S97: 372175.82 | U97: 209162.81 | V97: 163013.01 | W97: =LOOKUP(A97,'DOE - FIPStoPayeeCodeConvTable'!$A$3:$A$213,'DOE - FIPStoPayeeCodeConvTable'!$E$3:$E$213) -> 0.3025 | X97: 0.378125 | Y97: 61639.29 | Z97: 101373.72 | AD97: 33228.3 | AE97: 24872.28 | AF97: 20666.32 | AG97: 35021.5 | AH97: 55322.4 | AI97: 16021.7 | AQ97: 33228.3 | AR97: 24872.28 | AS97: 20666.32 | AT97: 35021.5 | AU97: 55322.4 | AV97: 16021.7
A98: 195 | B98: =LOOKUP(A98,'DOE - FIPStoPayeeCodeConvTable'!$A$3:$A$213,'DOE - FIPStoPayeeCodeConvTable'!$B$3:$B$213) -> Wise Co | C98: 11695.4 | D98: 4532.82 | E98: 68279.82 | F98: 2485.74 | G98: 0 | H98: 0 | I98: 2754.5 | J98: 36989 | K98: 73978 | L98: 26568.82 | M98: 26693.56 | N98: 25220.62 | S98: 279198.28 | U98: 156909.43 | V98: 122288.85 | W98: =LOOKUP(A98,'DOE - FIPStoPayeeCodeConvTable'!$A$3:$A$213,'DOE - FIPStoPayeeCodeConvTable'!$E$3:$E$213) -> 0.2755 | X98: 0.344375 | Y98: 42113.22 | Z98: 80175.63 | AD98: 5292.31 | AE98: 2624.13 | AF98: 3207.27 | AG98: 1263.47 | AH98: 10668.84 | AI98: 10966.5 | AQ98: 5292.31 | AR98: 2624.13 | AS98: 3207.27 | AT98: 1263.47 | AU98: 10668.84 | AV98: 10966.5
A99: 197 | B99: =LOOKUP(A99,'DOE - FIPStoPayeeCodeConvTable'!$A$3:$A$213,'DOE - FIPStoPayeeCodeConvTable'!$B$3:$B$213) -> Wythe Co | C99: 36595.5 | D99: 47220 | E99: 12198.5 | F99: 11805 | G99: 13953.14 | H99: 16191.6 | I99: 65873.66 | J99: 25971 | K99: 65321 | L99: 48794 | M99: 60205.5 | N99: 52335.5 | S99: 456464.4 | U99: 256532.99 | V99: 199931.41 | W99: =LOOKUP(A99,'DOE - FIPStoPayeeCodeConvTable'!$A$3:$A$213,'DOE - FIPStoPayeeCodeConvTable'!$E$3:$E$213) -> 0.2708 | X99: 0.3385 | Y99: 67676.78 | Z99: 132254.63 | AD99: 33051.97 | AE99: 11018 | AF99: 37987.73 | AG99: 73584.5 | AH99: 36202 | AI99: 48400.5 | AQ99: 33051.97 | AR99: 11018 | AS99: 37987.73 | AT99: 73584.5 | AU99: 36202 | AV99: 48400.5
A100: 199 | B100: =LOOKUP(A100,'DOE - FIPStoPayeeCodeConvTable'!$A$3:$A$213,'DOE - FIPStoPayeeCodeConvTable'!$B$3:$B$213) -> York Co | C100: 23700 | D100: 10353.5 | E100: 0 | F100: 12198.5 | G100: 24003.5 | H100: 11805 | I100: 12198.5 | J100: 12198.5 | K100: 0 | L100: 23216.5 | M100: 12536.1 | N100: 12198.5 | S100: 154408.6 | U100: 86777.63 | V100: 67630.97 | W100: =LOOKUP(A100,'DOE - FIPStoPayeeCodeConvTable'!$A$3:$A$213,'DOE - FIPStoPayeeCodeConvTable'!$E$3:$E$213) -> 0.3888 | X100: 0.486 | Y100: 32868.65 | Z100: 34762.32 | AD100: 27938.5 | AE100: 10231 | AF100: 13806.92 | AG100: 0 | AH100: 12198.5 | AI100: 1755 | AQ100: 27938.5 | AR100: 10231 | AS100: 13806.92 | AT100: 0 | AU100: 12198.5 | AV100: 1755
A101: 510 | B101: =LOOKUP(A101,'DOE - FIPStoPayeeCodeConvTable'!$A$3:$A$213,'DOE - FIPStoPayeeCodeConvTable'!$B$3:$B$213) -> Alexandria City | C101: 19675 | D101: 33841 | E101: 60205.5 | F101: 99144.92 | G101: 74238.22 | H101: 44151.58 | I101: 55479.36 | J101: 66521.04 | K101: 35541.94 | L101: 24994.82 | M101: 22487.6 | N101: 10435.32 | S101: =SUM(C101:R101) -> 546716.3 | U101: 307254.56 | V101: 239461.74 | W101: =LOOKUP(A101,'DOE - FIPStoPayeeCodeConvTable'!$A$3:$A$213,'DOE - FIPStoPayeeCodeConvTable'!$E$3:$E$213) -> 0.5309 | X101: 0.663625 | Y101: 158912.8 | Z101: 80548.94 | AD101: 2317.87 | AE101: 5619.24 | AF101: 40137 | AG101: 42498 | AH101: 25768.88 | AI101: 3148 | AQ101: 2317.87 | AR101: 5619.24 | AS101: 40137 | AT101: 42498 | AU101: 25768.88 | AV101: 3148
A102: 520 | B102: =LOOKUP(A102,'DOE - FIPStoPayeeCodeConvTable'!$A$3:$A$213,'DOE - FIPStoPayeeCodeConvTable'!$B$3:$B$213) -> Bristol City | C102: 28768.8 | D102: 29727.76 | E102: 29727.76 | F102: 16963.8 | G102: 29917.98 | H102: 15692.6 | I102: 14045.11 | J102: 15211.39 | K102: 25293.06 | L102: 5767.39 | M102: 7289.25 | N102: 5637.02 | S102: 224041.92 | U102: 125911.56 | V102: 98130.36 | W102: =LOOKUP(A102,'DOE - FIPStoPayeeCodeConvTable'!$A$3:$A$213,'DOE - FIPStoPayeeCodeConvTable'!$E$3:$E$213) -> 0.2547 | X102: 0.318375 | Y102: 31242.25 | Z102: 66888.11 | AD102: 31796.49 | AE102: 21716.45 | AF102: 24504.09 | AG102: 39716.77 | AH102: 43299.86 | AI102: 14051.77 | AQ102: 31796.49 | AR102: 21716.45 | AS102: 24504.09 | AT102: 39716.77 | AU102: 43299.86 | AV102: 14051.77
A103: 530 | B103: =LOOKUP(A103,'DOE - FIPStoPayeeCodeConvTable'!$A$3:$A$213,'DOE - FIPStoPayeeCodeConvTable'!$B$3:$B$213) -> Buena Vista City | C103: 40102.55 | D103: 16723.52 | E103: 23008.04 | F103: 14224.1 | G103: 14953 | H103: 15550.82 | I103: 15088.48 | J103: 4722 | K103: 0 | L103: 0 | M103: 12985.5 | N103: 11411.5 | S103: 168769.51 | U103: 94848.46 | V103: 73921.05 | W103: =LOOKUP(A103,'DOE - FIPStoPayeeCodeConvTable'!$A$3:$A$213,'DOE - FIPStoPayeeCodeConvTable'!$E$3:$E$213) -> 0.2329 | X103: 0.291125 | Y103: 21520.27 | Z103: 52400.78 | AD103: 8657 | AE103: 18494.5 | AF103: 33821.72 | AG103: 24207.82 | AH103: 43185.3 | AI103: 33055.91 | AQ103: 8657 | AR103: 18494.5 | AS103: 33821.72 | AT103: 24207.82 | AU103: 43185.3 | AV103: 33055.91
A104: 540 | B104: =LOOKUP(A104,'DOE - FIPStoPayeeCodeConvTable'!$A$3:$A$213,'DOE - FIPStoPayeeCodeConvTable'!$B$3:$B$213) -> Charlottesville City | C104: 19587.06 | D104: 29203.16 | E104: 24087.66 | F104: 9685.78 | G104: 29736.28 | H104: 15798.28 | I104: 13161.74 | J104: 6579.9 | K104: 15645.54 | L104: 18131.28 | M104: 8626.98 | N104: 36202 | S104: 226445.66 | U104: 127262.46 | V104: 99183.2 | W104: =LOOKUP(A104,'DOE - FIPStoPayeeCodeConvTable'!$A$3:$A$213,'DOE - FIPStoPayeeCodeConvTable'!$E$3:$E$213) -> 0.3068 | X104: 0.3835 | Y104: 38036.76 | Z104: 61146.44 | AD104: 38265.14 | AE104: 78332.34 | AF104: -58429.98 | AG104: 26352.4 | AH104: 31820.64 | AI104: -6363.12 | AQ104: 38265.14 | AR104: 78332.34 | AS104: -58429.98 | AT104: 26352.4 | AU104: 31820.64 | AV104: -6363.12
A105: 550 | B105: =LOOKUP(A105,'DOE - FIPStoPayeeCodeConvTable'!$A$3:$A$213,'DOE - FIPStoPayeeCodeConvTable'!$B$3:$B$213) -> Chesapeake City | C105: 4328.5 | D105: 14684.24 | E105: 12198.5 | F105: 11805 | G105: 28332 | H105: 24003.5 | I105: 24003.5 | J105: 24397 | K105: 45007.42 | L105: 20565.26 | M105: 46542.86 | N105: 37586.82 | S105: 293454.6 | U105: 164921.49 | V105: 128533.11 | W105: =LOOKUP(A105,'DOE - FIPStoPayeeCodeConvTable'!$A$3:$A$213,'DOE - FIPStoPayeeCodeConvTable'!$E$3:$E$213) -> 0.3715 | X105: 0.464375 | Y105: 59687.56 | Z105: 68845.55 | AD105: 7311 | AE105: 17329.14 | AF105: 9065.64 | AG105: 0 | AH105: 3947.94 | AI105: 0 | AQ105: 7311 | AR105: 17329.14 | AS105: 9065.64 | AT105: 0 | AU105: 3947.94 | AV105: 0
A106: 570 | B106: =LOOKUP(A106,'DOE - FIPStoPayeeCodeConvTable'!$A$3:$A$213,'DOE - FIPStoPayeeCodeConvTable'!$B$3:$B$213) -> Colonial Heights City | C106: 0 | D106: 0 | E106: 0 | F106: 0 | G106: 0 | H106: 0 | I106: 0 | J106: 5880.78 | K106: 0 | L106: 0 | M106: 0 | N106: 0 | S106: 5880.78 | U106: 3305 | V106: 2575.78 | W106: =LOOKUP(A106,'DOE - FIPStoPayeeCodeConvTable'!$A$3:$A$213,'DOE - FIPStoPayeeCodeConvTable'!$E$3:$E$213) -> 0.4027 | X106: 0.503375 | Y106: 1296.58 | Z106: 1279.2 | AD106: 16090.37 | AE106: 5682.52 | AF106: 2317.87 | AG106: 5383.44 | AH106: 0 | AI106: 0 | AQ106: 16090.37 | AR106: 5682.52 | AS106: 2317.87 | AT106: 5383.44 | AU106: 0 | AV106: 0
A107: 580 | B107: =LOOKUP(A107,'DOE - FIPStoPayeeCodeConvTable'!$A$3:$A$213,'DOE - FIPStoPayeeCodeConvTable'!$B$3:$B$213) -> Covington City | C107: 11805 | D107: 3541.5 | E107: 0 | F107: 0 | G107: 0 | H107: 0 | I107: 0 | J107: 0 | K107: 731.1 | L107: 0 | M107: 0 | N107: 0 | S107: 16077.6 | U107: 9035.61 | V107: 7041.99 | W107: =LOOKUP(A107,'DOE - FIPStoPayeeCodeConvTable'!$A$3:$A$213,'DOE - FIPStoPayeeCodeConvTable'!$E$3:$E$213) -> 0.2496 | X107: 0.312 | Y107: 2197.1 | Z107: 4844.89 | AD107: 12198.5 | AE107: 0 | AF107: 12198.5 | AG107: 11411.5 | AH107: 11805 | AI107: 0 | AQ107: 12198.5 | AR107: 0 | AS107: 12198.5 | AT107: 11411.5 | AU107: 11805 | AV107: 0
A108: 590 | B108: =LOOKUP(A108,'DOE - FIPStoPayeeCodeConvTable'!$A$3:$A$213,'DOE - FIPStoPayeeCodeConvTable'!$B$3:$B$213) -> Danville City | C108: 17452.04 | D108: 72191.76 | E108: 22378.36 | F108: 45237.1 | G108: 36739.88 | H108: 48990.14 | I108: -1598.2 | J108: 44996.4 | K108: 26815.28 | L108: 28327.42 | M108: 30401.64 | N108: 29767.15 | S108: 401698.97 | U108: 225754.82 | V108: 175944.15 | W108: =LOOKUP(A108,'DOE - FIPStoPayeeCodeConvTable'!$A$3:$A$213,'DOE - FIPStoPayeeCodeConvTable'!$E$3:$E$213) -> 0.2223 | X108: 0.277875 | Y108: 48890.48 | Z108: 127053.67 | AD108: 45439.74 | AE108: 13686.58 | AF108: 45700.14 | AG108: 68164.68 | AH108: 72572.68 | AI108: 33558.6 | AQ108: 45439.74 | AR108: 13686.58 | AS108: 45700.14 | AT108: 68164.68 | AU108: 72572.68 | AV108: 33558.6
A109: 620 | B109: =LOOKUP(A109,'DOE - FIPStoPayeeCodeConvTable'!$A$3:$A$213,'DOE - FIPStoPayeeCodeConvTable'!$B$3:$B$213) -> Franklin City | C109: 33781.29 | D109: -9981.34 | E109: 4234.29 | F109: 5279.7 | G109: 4792.29 | H109: 3755.85 | I109: 2697 | J109: 4564.72 | K109: 8512.72 | L109: 7501.69 | M109: 4875.06 | N109: 3771.13 | S109: 73784.4 | U109: 41466.83 | V109: 32317.57 | W109: =LOOKUP(A109,'DOE - FIPStoPayeeCodeConvTable'!$A$3:$A$213,'DOE - FIPStoPayeeCodeConvTable'!$E$3:$E$213) -> 0.371 | X109: 0.46375 | Y109: 14987.27 | Z109: 17330.3 | AD109: 2188.29 | AE109: 1058.85 | AF109: 3176.55 | AG109: 2188.29 | AH109: 2117.7 | AI109: 33917.62 | AQ109: 2188.29 | AR109: 1058.85 | AS109: 3176.55 | AT109: 2188.29 | AU109: 2117.7 | AV109: 33917.62
A110: 630 | B110: =LOOKUP(A110,'DOE - FIPStoPayeeCodeConvTable'!$A$3:$A$213,'DOE - FIPStoPayeeCodeConvTable'!$B$3:$B$213) -> Fredericksburg City | C110: 12592 | D110: 45252.5 | E110: 24971.14 | F110: 32718.6 | G110: 34801.2 | H110: 55769.6 | I110: 61983.82 | J110: 42891.5 | K110: 56429.66 | L110: 31976.76 | M110: 36989 | N110: 66895 | S110: 503270.78 | U110: 282838.18 | V110: 220432.6 | W110: =LOOKUP(A110,'DOE - FIPStoPayeeCodeConvTable'!$A$3:$A$213,'DOE - FIPStoPayeeCodeConvTable'!$E$3:$E$213) -> 0.3441 | X110: 0.430125 | Y110: 94813.57 | Z110: 125619.03 | AD110: 28011.74 | AE110: 25796.96 | AF110: 13013.58 | AG110: 9065.64 | AH110: 6814.24 | AI110: 53909.5 | AQ110: 28011.74 | AR110: 25796.96 | AS110: 13013.58 | AT110: 9065.64 | AU110: 6814.24 | AV110: 53909.5
A111: 640 | B111: =LOOKUP(A111,'DOE - FIPStoPayeeCodeConvTable'!$A$3:$A$213,'DOE - FIPStoPayeeCodeConvTable'!$B$3:$B$213) -> Galax City | C111: 7457.22 | D111: 5903.06 | E111: 10766.02 | F111: 3921.48 | G111: 0 | H111: 24984.08 | I111: 7164.78 | J111: 9446.2 | K111: 7534.6 | L111: 13052.14 | M111: 12592 | N111: 12727.48 | S111: 115549.06 | U111: 64938.57 | V111: 50610.49 | W111: =LOOKUP(A111,'DOE - FIPStoPayeeCodeConvTable'!$A$3:$A$213,'DOE - FIPStoPayeeCodeConvTable'!$E$3:$E$213) -> 0.3146 | X111: 0.39325 | Y111: 19902.58 | Z111: 30707.91 | AD111: 6500.32 | AE111: 11617.5 | AF111: 6287.46 | AG111: 3428.56 | AH111: 3655.5 | AI111: 8042.1 | AQ111: 6500.32 | AR111: 11617.5 | AS111: 6287.46 | AT111: 3428.56 | AU111: 3655.5 | AV111: 8042.1
A112: 650 | B112: =LOOKUP(A112,'DOE - FIPStoPayeeCodeConvTable'!$A$3:$A$213,'DOE - FIPStoPayeeCodeConvTable'!$B$3:$B$213) -> Hampton City | C112: 0 | D112: 0 | E112: 0 | F112: 0 | G112: 0 | H112: 0 | I112: 0 | J112: 0 | K112: 0 | L112: 0 | M112: 0 | N112: 0 | S112: 0 | U112: 0 | V112: 0 | W112: =LOOKUP(A112,'DOE - FIPStoPayeeCodeConvTable'!$A$3:$A$213,'DOE - FIPStoPayeeCodeConvTable'!$E$3:$E$213) -> 0.3223 | X112: 0.402875 | Y112: 0 | Z112: 0 | AD112: 0 | AE112: 0 | AF112: 0 | AG112: 0 | AH112: 0 | AI112: 0 | AQ112: 0 | AR112: 0 | AS112: 0 | AT112: 0 | AU112: 0 | AV112: 0
A113: 660 | B113: =LOOKUP(A113,'DOE - FIPStoPayeeCodeConvTable'!$A$3:$A$213,'DOE - FIPStoPayeeCodeConvTable'!$B$3:$B$213) -> Harrisonburg City | C113: 193602.5 | D113: 264356.04 | E113: 198425.15 | F113: 191077.36 | G113: 166668.04 | H113: 138864.75 | I113: 182616.19 | J113: 161187.86 | K113: 165371.32 | L113: 151811.36 | M113: 89573.95 | N113: -10582.51 | S113: 1892972.01 | U113: 1063850.27 | V113: 829121.74 | W113: =LOOKUP(A113,'DOE - FIPStoPayeeCodeConvTable'!$A$3:$A$213,'DOE - FIPStoPayeeCodeConvTable'!$E$3:$E$213) -> 0.3808 | X113: 0.476 | Y113: 394661.95 | Z113: 434459.79 | AD113: 180549.59 | AE113: 89767.02 | AF113: 232147.81 | AG113: 192926.44 | AH113: 355462.02 | AI113: 141115.94 | AQ113: 180549.59 | AR113: 89767.02 | AS113: 232147.81 | AT113: 192926.44 | AU113: 355462.02 | AV113: 141115.94
A114: 670 | B114: =LOOKUP(A114,'DOE - FIPStoPayeeCodeConvTable'!$A$3:$A$213,'DOE - FIPStoPayeeCodeConvTable'!$B$3:$B$213) -> Hopewell City | C114: 0 | D114: 0 | E114: 0 | F114: 0 | G114: 0 | H114: 18862.38 | I114: 0 | J114: 18131.28 | K114: 0 | L114: 11843.82 | M114: 0 | N114: 8919.42 | S114: 57756.9 | U114: 32459.38 | V114: 25297.52 | W114: =LOOKUP(A114,'DOE - FIPStoPayeeCodeConvTable'!$A$3:$A$213,'DOE - FIPStoPayeeCodeConvTable'!$E$3:$E$213) -> 0.2667 | X114: 0.333375 | Y114: 8433.56 | Z114: 16863.96 | AD114: 0 | AE114: 0 | AF114: 0 | AG114: 0 | AH114: 0 | AI114: 0 | AQ114: 0 | AR114: 0 | AS114: 0 | AT114: 0 | AU114: 0 | AV114: 0
A115: 678 | B115: =LOOKUP(A115,'DOE - FIPStoPayeeCodeConvTable'!$A$3:$A$213,'DOE - FIPStoPayeeCodeConvTable'!$B$3:$B$213) -> Lexington City | C115: 0 | D115: 0 | E115: 0 | F115: 0 | G115: 0 | H115: 0 | I115: 0 | J115: 0 | K115: 0 | L115: 5115.5 | M115: 5115.5 | N115: 0 | S115: 10231 | U115: 5749.82 | V115: 4481.18 | W115: =LOOKUP(A115,'DOE - FIPStoPayeeCodeConvTable'!$A$3:$A$213,'DOE - FIPStoPayeeCodeConvTable'!$E$3:$E$213) -> 0.3302 | X115: 0.41275 | Y115: 1849.61 | Z115: 2631.57 | AD115: 0 | AE115: 0 | AF115: 0 | AG115: 5902.5 | AH115: 0 | AI115: 0 | AQ115: 0 | AR115: 0 | AS115: 0 | AT115: 5902.5 | AU115: 0 | AV115: 0
A116: 680 | B116: =LOOKUP(A116,'DOE - FIPStoPayeeCodeConvTable'!$A$3:$A$213,'DOE - FIPStoPayeeCodeConvTable'!$B$3:$B$213) -> Lynchburg City | C116: 145535.52 | D116: 137032.06 | E116: 110024.96 | F116: 125812.52 | G116: 121712.06 | H116: 150569.84 | I116: 214530.08 | J116: 147950.05 | K116: 154544.57 | L116: 234503.85 | M116: 178241.51 | N116: 56256.36 | S116: 1776713.38 | U116: 998512.92 | V116: 778200.46 | W116: =LOOKUP(A116,'DOE - FIPStoPayeeCodeConvTable'!$A$3:$A$213,'DOE - FIPStoPayeeCodeConvTable'!$E$3:$E$213) -> 0.2736 | X116: 0.342 | Y116: 266144.56 | Z116: 512055.9 | AD116: 166782.2 | AE116: 56565.74 | AF116: 207624.59 | AG116: 180914.5 | AH116: 206041.16 | AI116: 119657.85 | AQ116: 166782.2 | AR116: 56565.74 | AS116: 207624.59 | AT116: 180914.5 | AU116: 206041.16 | AV116: 119657.85
A117: 683 | B117: =LOOKUP(A117,'DOE - FIPStoPayeeCodeConvTable'!$A$3:$A$213,'DOE - FIPStoPayeeCodeConvTable'!$B$3:$B$213) -> Manassas City | C117: 0 | D117: 0 | E117: 0 | F117: 11805 | G117: 17707.5 | H117: 11805 | I117: 12198.5 | J117: 12198.5 | K117: 11018 | L117: 11805 | M117: 0 | N117: 0 | S117: 88537.5 | U117: 49758.08 | V117: 38779.42 | W117: =LOOKUP(A117,'DOE - FIPStoPayeeCodeConvTable'!$A$3:$A$213,'DOE - FIPStoPayeeCodeConvTable'!$E$3:$E$213) -> 0.4168 | X117: 0.521 | Y117: 20204.08 | Z117: 18575.34 | AD117: 15022.02 | AE117: 13922.64 | AF117: 12501.02 | AG117: 35808.5 | AH117: 11805 | AI117: 7870 | AQ117: 15022.02 | AR117: 13922.64 | AS117: 12501.02 | AT117: 35808.5 | AU117: 11805 | AV117: 7870
A118: 685 | B118: =LOOKUP(A118,'DOE - FIPStoPayeeCodeConvTable'!$A$3:$A$213,'DOE - FIPStoPayeeCodeConvTable'!$B$3:$B$213) -> Manassas Park City | C118: 1967.5 | D118: 7164.78 | E118: 0 | F118: 0 | G118: 0 | H118: 0 | I118: 0 | J118: 0 | K118: 0 | L118: 0 | M118: 0 | N118: 0 | S118: 9132.28 | U118: 5132.34 | V118: 3999.94 | W118: =LOOKUP(A118,'DOE - FIPStoPayeeCodeConvTable'!$A$3:$A$213,'DOE - FIPStoPayeeCodeConvTable'!$E$3:$E$213) -> 0.4273 | X118: 0.534125 | Y118: 2136.47 | Z118: 1863.47 | AD118: 0 | AE118: 0 | AF118: 0 | AG118: 3541.5 | AH118: 22429.5 | AI118: 3655.5 | AQ118: 0 | AR118: 0 | AS118: 0 | AT118: 3541.5 | AU118: 22429.5 | AV118: 3655.5
A119: 690 | B119: =LOOKUP(A119,'DOE - FIPStoPayeeCodeConvTable'!$A$3:$A$213,'DOE - FIPStoPayeeCodeConvTable'!$B$3:$B$213) -> Martinsville City | C119: 68133.6 | D119: 13765.9 | E119: 5859.28 | F119: 25825.04 | G119: -49686.72 | H119: -51155.26 | I119: -393.5 | J119: 0 | K119: 0 | L119: 0 | M119: 0 | N119: 16527 | S119: 28875.34 | U119: 16227.94 | V119: 12647.4 | W119: =LOOKUP(A119,'DOE - FIPStoPayeeCodeConvTable'!$A$3:$A$213,'DOE - FIPStoPayeeCodeConvTable'!$E$3:$E$213) -> 0.3321 | X119: 0.415125 | Y119: 5250.25 | Z119: 7397.15 | AD119: 47652.32 | AE119: 4532.82 | AF119: 21169.42 | AG119: 7416.2 | AH119: 18238.68 | AI119: 31473.66 | AQ119: 47652.32 | AR119: 4532.82 | AS119: 21169.42 | AT119: 7416.2 | AU119: 18238.68 | AV119: 31473.66
A120: 700 | B120: =LOOKUP(A120,'DOE - FIPStoPayeeCodeConvTable'!$A$3:$A$213,'DOE - FIPStoPayeeCodeConvTable'!$B$3:$B$213) -> Newport News City | C120: 17384.96 | D120: 59513.22 | E120: 64639.46 | F120: 40500.48 | G120: 42770.52 | H120: 44415.04 | I120: 49974.5 | J120: 27286.98 | K120: 52727 | L120: -6490.1 | M120: 105497.88 | N120: 85115 | S120: 583334.94 | U120: 327834.24 | V120: 255500.7 | W120: =LOOKUP(A120,'DOE - FIPStoPayeeCodeConvTable'!$A$3:$A$213,'DOE - FIPStoPayeeCodeConvTable'!$E$3:$E$213) -> 0.2773 | X120: 0.346625 | Y120: 88562.93 | Z120: 166937.77 | AD120: 31609.14 | AE120: 23376.78 | AF120: 46500.22 | AG120: 54891.96 | AH120: 31650.3 | AI120: 19273.86 | AQ120: 31609.14 | AR120: 23376.78 | AS120: 46500.22 | AT120: 54891.96 | AU120: 31650.3 | AV120: 19273.86
A121: 710 | B121: =LOOKUP(A121,'DOE - FIPStoPayeeCodeConvTable'!$A$3:$A$213,'DOE - FIPStoPayeeCodeConvTable'!$B$3:$B$213) -> Norfolk City | C121: 116181.62 | D121: 195718.18 | E121: 123327.12 | F121: 99413.94 | G121: 159772.77 | H121: 110580.76 | I121: 101168.24 | J121: 137348.09 | K121: 79295.26 | L121: 139439.23 | M121: 122744.94 | N121: 181096.53 | S121: 1566086.68 | U121: 880140.71 | V121: 685945.97 | W121: =LOOKUP(A121,'DOE - FIPStoPayeeCodeConvTable'!$A$3:$A$213,'DOE - FIPStoPayeeCodeConvTable'!$E$3:$E$213) -> 0.2455 | X121: 0.306875 | Y121: 210499.67 | Z121: 475446.3 | AD121: 132678.6 | AE121: 74885.3 | AF121: 178266.76 | AG121: 73434.14 | AH121: 137009.3 | AI121: 52026.24 | AQ121: 132678.6 | AR121: 74885.3 | AS121: 178266.76 | AT121: 73434.14 | AU121: 137009.3 | AV121: 52026.24
A122: 720 | B122: =LOOKUP(A122,'DOE - FIPStoPayeeCodeConvTable'!$A$3:$A$213,'DOE - FIPStoPayeeCodeConvTable'!$B$3:$B$213) -> Norton City | C122: 0 | D122: 0 | E122: 0 | F122: 0 | G122: 0 | H122: 0 | I122: 0 | J122: 0 | K122: 0 | L122: 0 | M122: 0 | N122: 0 | S122: 0 | U122: 0 | V122: 0 | W122: =LOOKUP(A122,'DOE - FIPStoPayeeCodeConvTable'!$A$3:$A$213,'DOE - FIPStoPayeeCodeConvTable'!$E$3:$E$213) -> 0.3254 | X122: 0.40675 | Y122: 0 | Z122: 0 | AD122: 0 | AE122: 0 | AF122: 0 | AG122: 0 | AH122: 0 | AI122: 0 | AQ122: 0 | AR122: 0 | AS122: 0 | AT122: 0 | AU122: 0 | AV122: 0
A123: 730 | B123: =LOOKUP(A123,'DOE - FIPStoPayeeCodeConvTable'!$A$3:$A$213,'DOE - FIPStoPayeeCodeConvTable'!$B$3:$B$213) -> Petersburg City | C123: 4305.99 | D123: 12964.24 | E123: 13051.39 | F123: 26422.6 | G123: 27863.32 | H123: 30097.38 | I123: 22225.44 | J123: 8262.81 | K123: 4094.16 | L123: 7895.88 | M123: 8773.2 | N123: 8715.1 | S123: 174671.51 | U123: 98165.39 | V123: 76506.12 | W123: =LOOKUP(A123,'DOE - FIPStoPayeeCodeConvTable'!$A$3:$A$213,'DOE - FIPStoPayeeCodeConvTable'!$E$3:$E$213) -> 0.3535 | X123: 0.441875 | Y123: 33806.14 | Z123: 42699.98 | AD123: 3663.73 | AE123: 2611.83 | AF123: 5494.42 | AG123: 5179.09 | AH123: 19431.7 | AI123: 11805 | AQ123: 3663.73 | AR123: 2611.83 | AS123: 5494.42 | AT123: 5179.09 | AU123: 19431.7 | AV123: 11805
A124: 735 | B124: =LOOKUP(A124,'DOE - FIPStoPayeeCodeConvTable'!$A$3:$A$213,'DOE - FIPStoPayeeCodeConvTable'!$B$3:$B$213) -> Poquoson City | C124: 24003.5 | D124: 12198.5 | E124: 12198.5 | F124: 11805 | G124: 12198.5 | H124: 11805 | I124: 12198.5 | J124: 6296 | K124: 16920.5 | L124: 12198.5 | M124: 11805 | N124: 12198.5 | S124: 155826 | U124: 87574.21 | V124: 68251.79 | W124: =LOOKUP(A124,'DOE - FIPStoPayeeCodeConvTable'!$A$3:$A$213,'DOE - FIPStoPayeeCodeConvTable'!$E$3:$E$213) -> 0.2787 | X124: 0.348375 | Y124: 23777.22 | Z124: 44474.57 | AD124: 8263.5 | AE124: 5902.5 | AF124: 17707.5 | AG124: 12198.5 | AH124: 11805 | AI124: 0 | AQ124: 8263.5 | AR124: 5902.5 | AS124: 17707.5 | AT124: 12198.5 | AU124: 11805 | AV124: 0
A125: 740 | B125: =LOOKUP(A125,'DOE - FIPStoPayeeCodeConvTable'!$A$3:$A$213,'DOE - FIPStoPayeeCodeConvTable'!$B$3:$B$213) -> Portsmouth City | C125: 4370.38 | D125: 2803.64 | E125: 11310.76 | F125: 247.38 | G125: 0 | H125: 1652.63 | I125: 0 | J125: 16703.78 | K125: 17866.11 | L125: 31130.35 | M125: 31707.83 | N125: 32790.79 | S125: 150583.65 | U125: 84628.01 | V125: 65955.64 | W125: =LOOKUP(A125,'DOE - FIPStoPayeeCodeConvTable'!$A$3:$A$213,'DOE - FIPStoPayeeCodeConvTable'!$E$3:$E$213) -> 0.2605 | X125: 0.325625 | Y125: 21476.81 | Z125: 44478.83 | AD125: 4371 | AE125: 4371 | AF125: 4089 | AG125: 4517.22 | AH125: 0 | AI125: 8601 | AQ125: 4371 | AR125: 4371 | AS125: 4089 | AT125: 4517.22 | AU125: 0 | AV125: 8601
A126: 750 | B126: =LOOKUP(A126,'DOE - FIPStoPayeeCodeConvTable'!$A$3:$A$213,'DOE - FIPStoPayeeCodeConvTable'!$B$3:$B$213) -> Radford City | C126: 22018.9 | D126: 23893.9 | E126: 26243.32 | F126: 22625.28 | G126: 16731.32 | H126: 20724.42 | I126: 24188.54 | J126: 10231 | K126: 25547.48 | L126: 5509 | M126: 17632.32 | N126: 7870 | S126: 223215.48 | U126: 125447.1 | V126: 97768.38 | W126: =LOOKUP(A126,'DOE - FIPStoPayeeCodeConvTable'!$A$3:$A$213,'DOE - FIPStoPayeeCodeConvTable'!$E$3:$E$213) -> 0.2035 | X126: 0.254375 | Y126: 24869.83 | Z126: 72898.55 | AD126: 27151.5 | AE126: 3541.5 | AF126: 22429.5 | AG126: 23216.5 | AH126: 14211.16 | AI126: 16933.44 | AQ126: 27151.5 | AR126: 3541.5 | AS126: 22429.5 | AT126: 23216.5 | AU126: 14211.16 | AV126: 16933.44
A127: 760 | B127: =LOOKUP(A127,'DOE - FIPStoPayeeCodeConvTable'!$A$3:$A$213,'DOE - FIPStoPayeeCodeConvTable'!$B$3:$B$213) -> Richmond City | C127: 142394.38 | D127: 225202.88 | E127: 162858.95 | F127: 139210.19 | G127: 136641.76 | H127: 133588.89 | I127: 193998.61 | J127: 123135.24 | K127: 181590.59 | L127: 155029.87 | M127: 164889.96 | N127: 14844.65 | S127: 1773385.97 | U127: 996642.92 | V127: 776743.05 | W127: =LOOKUP(A127,'DOE - FIPStoPayeeCodeConvTable'!$A$3:$A$213,'DOE - FIPStoPayeeCodeConvTable'!$E$3:$E$213) -> 0.3691 | X127: 0.461375 | Y127: 358369.82 | Z127: 418373.23 | AD127: 276147.83 | AE127: 186579.76 | AF127: 323187.44 | AG127: 211745.22 | AH127: 327055.8 | AI127: 154939.03 | AQ127: 276147.83 | AR127: 186579.76 | AS127: 323187.44 | AT127: 211745.22 | AU127: 327055.8 | AV127: 154939.03
A128: 770 | B128: =LOOKUP(A128,'DOE - FIPStoPayeeCodeConvTable'!$A$3:$A$213,'DOE - FIPStoPayeeCodeConvTable'!$B$3:$B$213) -> Roanoke City | C128: 110895.42 | D128: 174446.29 | E128: 152015.88 | F128: 146383.8 | G128: 177263.42 | H128: 193444.68 | I128: 173144.25 | J128: 165036.27 | K128: 196117.94 | L128: 234285.09 | M128: 154792.56 | N128: 136463.07 | S128: 2014288.67 | U128: 1132030.23 | V128: 882258.44 | W128: =LOOKUP(A128,'DOE - FIPStoPayeeCodeConvTable'!$A$3:$A$213,'DOE - FIPStoPayeeCodeConvTable'!$E$3:$E$213) -> 0.3072 | X128: 0.384 | Y128: 338787.24 | Z128: 543471.2 | AD128: 168775.29 | AE128: 86951.17 | AF128: 179400.08 | AG128: 143042.25 | AH128: 193486.13 | AI128: 124940.63 | AQ128: 168775.29 | AR128: 86951.17 | AS128: 179400.08 | AT128: 143042.25 | AU128: 193486.13 | AV128: 124940.63
A129: 775 | B129: =LOOKUP(A129,'DOE - FIPStoPayeeCodeConvTable'!$A$3:$A$213,'DOE - FIPStoPayeeCodeConvTable'!$B$3:$B$213) -> Salem City | C129: 10466.7 | D129: 10815.59 | E129: 24588.09 | F129: 24239.2 | G129: 24588.09 | H129: 24239.2 | I129: 17451.94 | J129: 25179.86 | K129: 42984.7 | L129: 51559.89 | M129: 30753.98 | N129: 12490.52 | S129: 299357.76 | U129: 168239.06 | V129: 131118.7 | W129: =LOOKUP(A129,'DOE - FIPStoPayeeCodeConvTable'!$A$3:$A$213,'DOE - FIPStoPayeeCodeConvTable'!$E$3:$E$213) -> 0.3513 | X129: 0.439125 | Y129: 57577.5 | Z129: 73541.2 | AD129: 54623.52 | AE129: 18597.76 | AF129: 15673.36 | AG129: 15412.56 | AH129: 10466.7 | AI129: 10815.59 | AQ129: 54623.52 | AR129: 18597.76 | AS129: 15673.36 | AT129: 15412.56 | AU129: 10466.7 | AV129: 10815.59
A130: 790 | B130: =LOOKUP(A130,'DOE - FIPStoPayeeCodeConvTable'!$A$3:$A$213,'DOE - FIPStoPayeeCodeConvTable'!$B$3:$B$213) -> Staunton City | C130: 53748.32 | D130: 82881.87 | E130: 52120.59 | F130: 40869.5 | G130: 4284.07 | H130: -8699.55 | I130: 48166.96 | J130: 45120.89 | K130: 51625.12 | L130: 35041.82 | M130: 27680.59 | N130: 52717.22 | S130: 485557.4 | U130: 272883.26 | V130: 212674.14 | W130: =LOOKUP(A130,'DOE - FIPStoPayeeCodeConvTable'!$A$3:$A$213,'DOE - FIPStoPayeeCodeConvTable'!$E$3:$E$213) -> 0.2699 | X130: 0.337375 | Y130: 71750.94 | Z130: 140923.2 | AD130: 2023.97 | AE130: 13295.2 | AF130: 9812.87 | AG130: 18875.89 | AH130: 37788.77 | AI130: 66319.75 | AQ130: 2023.97 | AR130: 13295.2 | AS130: 9812.87 | AT130: 18875.89 | AU130: 37788.77 | AV130: 66319.75
A131: 800 | B131: =LOOKUP(A131,'DOE - FIPStoPayeeCodeConvTable'!$A$3:$A$213,'DOE - FIPStoPayeeCodeConvTable'!$B$3:$B$213) -> Suffolk City | C131: 38238.52 | D131: 31155.52 | E131: 20612.8 | F131: 31176.82 | G131: 33516.34 | H131: 787 | I131: 11411.5 | J131: 31873.5 | K131: 9837.5 | L131: 67559.46 | M131: 18260.16 | N131: 40479 | S131: 334908.12 | U131: 188218.36 | V131: 146689.76 | W131: =LOOKUP(A131,'DOE - FIPStoPayeeCodeConvTable'!$A$3:$A$213,'DOE - FIPStoPayeeCodeConvTable'!$E$3:$E$213) -> 0.2432 | X131: 0.304 | Y131: 44593.69 | Z131: 102096.07 | AD131: 15627.8 | AE131: 23471.26 | AF131: 53638.1 | AG131: 80971.52 | AH131: 41658.14 | AI131: 10903.7 | AQ131: 15627.8 | AR131: 23471.26 | AS131: 53638.1 | AT131: 80971.52 | AU131: 41658.14 | AV131: 10903.7
A132: 810 | B132: =LOOKUP(A132,'DOE - FIPStoPayeeCodeConvTable'!$A$3:$A$213,'DOE - FIPStoPayeeCodeConvTable'!$B$3:$B$213) -> Virginia Beach City | C132: 241685.71 | D132: 295492.29 | E132: 266946.38 | F132: 203911.48 | G132: 295891.19 | H132: 218744.42 | I132: 391923.53 | J132: 253860.87 | K132: 262895.44 | L132: 241062.55 | M132: 269002.98 | N132: 183249.27 | S132: 3124666.11 | U132: 1756062.35 | V132: 1368603.76 | W132: =LOOKUP(A132,'DOE - FIPStoPayeeCodeConvTable'!$A$3:$A$213,'DOE - FIPStoPayeeCodeConvTable'!$E$3:$E$213) -> 0.3569 | X132: 0.446125 | Y132: 610568.35 | Z132: 758035.41 | AD132: 192029.08 | AE132: 197326.26 | AF132: 316277.78 | AG132: 246410.2 | AH132: 239961.65 | AI132: 211918.95 | AQ132: 192029.08 | AR132: 197326.26 | AS132: 316277.78 | AT132: 246410.2 | AU132: 239961.65 | AV132: 211918.95
A133: 820 | B133: =LOOKUP(A133,'DOE - FIPStoPayeeCodeConvTable'!$A$3:$A$213,'DOE - FIPStoPayeeCodeConvTable'!$B$3:$B$213) -> Waynesboro City | C133: 14628.52 | D133: 11874.02 | E133: 8332.52 | F133: 83188.5 | G133: 35311.92 | H133: 2823.52 | I133: 3529.4 | J133: 2823.52 | K133: 32998.43 | L133: 56259.19 | M133: 29034.12 | N133: 32609.75 | S133: 313413.41 | U133: 176138.34 | V133: =SUM(S133)-SUM(U133) -> 137275.07 | W133: =LOOKUP(A133,'DOE - FIPStoPayeeCodeConvTable'!$A$3:$A$213,'DOE - FIPStoPayeeCodeConvTable'!$E$3:$E$213) -> 0.3843 | X133: 0.480375 | Y133: 65943.51 | Z133: 71331.56 | AD133: 27695.14 | AE133: 29230.98 | AF133: 42874.6 | AG133: 42567.02 | AH133: 26352.4 | AI133: -2210.86 | AQ133: 27695.14 | AR133: 29230.98 | AS133: 42874.6 | AT133: 42567.02 | AU133: 26352.4 | AV133: -2210.86
A134: 830 | B134: =LOOKUP(A134,'DOE - FIPStoPayeeCodeConvTable'!$A$3:$A$213,'DOE - FIPStoPayeeCodeConvTable'!$B$3:$B$213) -> Williamsburg City | C134: 0 | D134: 0 | E134: 0 | F134: 0 | G134: 0 | H134: 0 | I134: 19281.5 | J134: 12198.5 | K134: 11018 | L134: 16920.5 | M134: 7083 | N134: 12198.5 | S134: 78700 | U134: =ROUND($U$1*S134,2) -> 44229.4 | V134: 34470.6 | W134: =LOOKUP(A134,'DOE - FIPStoPayeeCodeConvTable'!$A$3:$A$213,'DOE - FIPStoPayeeCodeConvTable'!$E$3:$E$213) -> 0.4553 | X134: 0.569125 | Y134: 19618.08 | Z134: 14852.52 | AD134: 0 | AE134: 0 | AF134: 0 | AG134: 0 | AH134: 0 | AI134: 0 | AQ134: 0 | AR134: 0 | AS134: 0 | AT134: 0 | AU134: 0 | AV134: 0
A135: 840 | B135: =LOOKUP(A135,'DOE - FIPStoPayeeCodeConvTable'!$A$3:$A$213,'DOE - FIPStoPayeeCodeConvTable'!$B$3:$B$213) -> Winchester City | C135: 111380.04 | D135: 156879.82 | E135: 52305.48 | F135: 42046.66 | G135: 56724.3 | H135: 59283.28 | I135: 50355.32 | J135: 60379.8 | K135: 36931.16 | L135: 33060.6 | M135: 34002.36 | N135: 30168.42 | S135: 723517.24 | U135: 406616.69 | V135: 316900.55 | W135: =LOOKUP(A135,'DOE - FIPStoPayeeCodeConvTable'!$A$3:$A$213,'DOE - FIPStoPayeeCodeConvTable'!$E$3:$E$213) -> 0.4587 | X135: =$X$1*W135 -> 0.573375 | Y135: =ROUND(X135*V135,2) -> 181702.85 | Z135: =SUM(V135)-SUM(Y135) -> 135197.7 | AD135: 54440.68 | AE135: 31615.48 | AF135: 75713.36 | AG135: 98265.4 | AH135: 38913.54 | AI135: 33271.26 | AQ135: =+AD135+AJ135 -> 54440.68 | AR135: =+AE135+AK135 -> 31615.48 | AS135: =+AF135+AL135 -> 75713.36 | AT135: =+AG135+AM135 -> 98265.4 | AU135: =+AH135+AN135 -> 38913.54 | AV135: =+AI135+AO135 -> 33271.26

Sheet TFC (hidden)
A1: FY | B1: ='DOE - FIPStoPayeeCodeConvTable'!G1 -> 2021 | C1: MEDICAID ADJUSTMENTS--TFC PAYMENTS TO PROVIDERS | O1: ="Extended to be paided in this SFY = " & A1 -> Extended to be paided in this SFY = FY | T1: xx | U1: 0.5 | V1: 0.5 | W1: (POOL) | X1: 1
U2: FEDERAL | V2: STATE/ | W2: (RATE) | X2: Factor
A3: FIPS | S3: Grand | U3: MEDICAID | V3: LOCAL | W3: LOCAL | Y3: LOCAL | Z3: STATE
A4: CODE | B4: LOCALITY | C4: =TEXT("7/1/" & $B$1-1,"mmm-yyyy") -> Jul-2020 | D4: =TEXT("8/1/" & $B$1-1,"mmm-yyyy") -> Aug-2020 | E4: =TEXT("9/1/" & $B$1-1,"mmm-yyyy") -> Sep-2020 | F4: =TEXT("10/1/" & $B$1-1,"mmm-yyyy") -> Oct-2020 | G4: =TEXT("11/1/" & $B$1-1,"mmm-yyyy") -> Nov-2020 | H4: =TEXT("12/1/" & $B$1-1,"mmm-yyyy") -> Dec-2020 | I4: =TEXT("1/1/" & $B$1,"mmm-yyyy") -> Jan-2021 | J4: =TEXT("2/1/" & $B$1,"mmm-yyyy") -> Feb-2021 | K4: =TEXT("3/1/" & $B$1,"mmm-yyyy") -> Mar-2021 | L4: =TEXT("4/1/" & $B$1,"mmm-yyyy") -> Apr-2021 | M4: =TEXT("5/1/" & $B$1,"mmm-yyyy") -> May-2021 | N4: =TEXT("6/1/" & $B$1,"mmm-yyyy") -> Jun-2021 | O4: =TEXT("7/1/" & $B$1,"mmm-yyyy") -> Jul-2021 | P4: =TEXT("8/1/" & $B$1,"mmm-yyyy") -> Aug-2021 | Q4: =TEXT("9/1/" & $B$1,"mmm-yyyy") -> Sep-2021 | R4: =TEXT("10/1/" & $B$1,"mmm-yyyy") -> Oct-2021 | S4: Total | U4: RATE/Share | V4: SHARE | W4: MATCH Rate | Y4: MATCH | Z4: SHARE
A5: Totals | C5: =SUM(C6:C1201) -> 0 | D5: 0 | E5: =SUM(E6:E1201) -> 0 | F5: =SUM(F6:F1201) -> 0 | G5: =SUM(G6:G1201) -> 0 | H5: =SUM(H6:H1201) -> 0 | I5: 0 | J5: =SUM(J6:J1200) -> 0 | K5: =SUM(K6:K1200) -> 0 | L5: =SUM(L6:L1200) -> 0 | M5: =SUM(M6:M1200) -> 0 | N5: =SUM(N6:N1200) -> 0 | O5: =SUM(O6:O1200) -> 0 | P5: 0 | Q5: 0 | R5: 0 | S5: =SUM(C5:R5) -> 0 | T5: = | U5: =SUM(U6:U399) -> 0 | V5: =SUM(V6:V399) -> 0 | W5: = | Y5: =SUM(Y6:Y399) -> 0 | Z5: =SUM(Z6:Z399) -> 0
A6: 1 | B6: =LOOKUP(A6,'DOE - FIPStoPayeeCodeConvTable'!$A$3:$A$213,'DOE - FIPStoPayeeCodeConvTable'!$B$3:$B$213) -> Accomack Co | S6: 0 | U6: =ROUND($U$1*S6,2) -> 0 | V6: =SUM(S6)-SUM(U6) -> 0 | W6: =LOOKUP(A6,'DOE - FIPStoPayeeCodeConvTable'!$A$3:$A$213,'DOE - FIPStoPayeeCodeConvTable'!$E$3:$E$213) -> 0.2332 | X6: =$X$1*W6 -> 0.2332 | Y6: =ROUND(X6*V6,2) -> 0 | Z6: =SUM(V6)-SUM(Y6) -> 0
A7: 3 | B7: =LOOKUP(A7,'DOE - FIPStoPayeeCodeConvTable'!$A$3:$A$213,'DOE - FIPStoPayeeCodeConvTable'!$B$3:$B$213) -> Albemarle Co | S7: 0 | U7: 0 | V7: 0 | W7: =LOOKUP(A7,'DOE - FIPStoPayeeCodeConvTable'!$A$3:$A$213,'DOE - FIPStoPayeeCodeConvTable'!$E$3:$E$213) -> 0.4474 | X7: =$X$1*W7 -> 0.4474 | Y7: =ROUND(X7*V7,2) -> 0 | Z7: =SUM(V7)-SUM(Y7) -> 0
A8: 5 | B8: =LOOKUP(A8,'DOE - FIPStoPayeeCodeConvTable'!$A$3:$A$213,'DOE - FIPStoPayeeCodeConvTable'!$B$3:$B$213) -> Alleghany Co | S8: 0 | U8: 0 | V8: 0 | W8: =LOOKUP(A8,'DOE - FIPStoPayeeCodeConvTable'!$A$3:$A$213,'DOE - FIPStoPayeeCodeConvTable'!$E$3:$E$213) -> 0.1924 | X8: 0.1924 | Y8: 0 | Z8: 0
A9: 7 | B9: =LOOKUP(A9,'DOE - FIPStoPayeeCodeConvTable'!$A$3:$A$213,'DOE - FIPStoPayeeCodeConvTable'!$B$3:$B$213) -> Amelia Co | S9: 0 | U9: 0 | V9: 0 | W9: =LOOKUP(A9,'DOE - FIPStoPayeeCodeConvTable'!$A$3:$A$213,'DOE - FIPStoPayeeCodeConvTable'!$E$3:$E$213) -> 0.3268 | X9: 0.3268 | Y9: 0 | Z9: 0
A10: 9 | B10: =LOOKUP(A10,'DOE - FIPStoPayeeCodeConvTable'!$A$3:$A$213,'DOE - FIPStoPayeeCodeConvTable'!$B$3:$B$213) -> Amherst Co | S10: 0 | U10: 0 | V10: 0 | W10: =LOOKUP(A10,'DOE - FIPStoPayeeCodeConvTable'!$A$3:$A$213,'DOE - FIPStoPayeeCodeConvTable'!$E$3:$E$213) -> 0.2722 | X10: 0.2722 | Y10: 0 | Z10: 0
A11: 11 | B11: =LOOKUP(A11,'DOE - FIPStoPayeeCodeConvTable'!$A$3:$A$213,'DOE - FIPStoPayeeCodeConvTable'!$B$3:$B$213) -> Appomattox Co | S11: 0 | U11: 0 | V11: 0 | W11: =LOOKUP(A11,'DOE - FIPStoPayeeCodeConvTable'!$A$3:$A$213,'DOE - FIPStoPayeeCodeConvTable'!$E$3:$E$213) -> 0.2639 | X11: 0.2639 | Y11: 0 | Z11: 0
A12: 13 | B12: =LOOKUP(A12,'DOE - FIPStoPayeeCodeConvTable'!$A$3:$A$213,'DOE - FIPStoPayeeCodeConvTable'!$B$3:$B$213) -> Arlington Co | S12: 0 | U12: 0 | V12: 0 | W12: =LOOKUP(A12,'DOE - FIPStoPayeeCodeConvTable'!$A$3:$A$213,'DOE - FIPStoPayeeCodeConvTable'!$E$3:$E$213) -> 0.4602 | X12: 0.4602 | Y12: 0 | Z12: 0
A13: 15 | B13: =LOOKUP(A13,'DOE - FIPStoPayeeCodeConvTable'!$A$3:$A$213,'DOE - FIPStoPayeeCodeConvTable'!$B$3:$B$213) -> Augusta Co | S13: 0 | U13: 0 | V13: 0 | W13: =LOOKUP(A13,'DOE - FIPStoPayeeCodeConvTable'!$A$3:$A$213,'DOE - FIPStoPayeeCodeConvTable'!$E$3:$E$213) -> 0.3302 | X13: 0.3302 | Y13: 0 | Z13: 0
A14: 17 | B14: =LOOKUP(A14,'DOE - FIPStoPayeeCodeConvTable'!$A$3:$A$213,'DOE - FIPStoPayeeCodeConvTable'!$B$3:$B$213) -> Bath Co | S14: 0 | U14: 0 | V14: 0 | W14: =LOOKUP(A14,'DOE - FIPStoPayeeCodeConvTable'!$A$3:$A$213,'DOE - FIPStoPayeeCodeConvTable'!$E$3:$E$213) -> 0.4278 | X14: 0.4278 | Y14: 0 | Z14: 0
A15: 19 | B15: =LOOKUP(A15,'DOE - FIPStoPayeeCodeConvTable'!$A$3:$A$213,'DOE - FIPStoPayeeCodeConvTable'!$B$3:$B$213) -> Bedford Co | S15: 0 | U15: 0 | V15: 0 | W15: =LOOKUP(A15,'DOE - FIPStoPayeeCodeConvTable'!$A$3:$A$213,'DOE - FIPStoPayeeCodeConvTable'!$E$3:$E$213) -> 0.31112 | X15: 0.31112 | Y15: 0 | Z15: 0
A16: 21 | B16: =LOOKUP(A16,'DOE - FIPStoPayeeCodeConvTable'!$A$3:$A$213,'DOE - FIPStoPayeeCodeConvTable'!$B$3:$B$213) -> Bland Co | S16: 0 | U16: 0 | V16: 0 | W16: =LOOKUP(A16,'DOE - FIPStoPayeeCodeConvTable'!$A$3:$A$213,'DOE - FIPStoPayeeCodeConvTable'!$E$3:$E$213) -> 0.2109 | X16: 0.2109 | Y16: 0 | Z16: 0
A17: 23 | B17: =LOOKUP(A17,'DOE - FIPStoPayeeCodeConvTable'!$A$3:$A$213,'DOE - FIPStoPayeeCodeConvTable'!$B$3:$B$213) -> Botetourt Co | S17: 0 | U17: 0 | V17: 0 | W17: =LOOKUP(A17,'DOE - FIPStoPayeeCodeConvTable'!$A$3:$A$213,'DOE - FIPStoPayeeCodeConvTable'!$E$3:$E$213) -> 0.3602 | X17: 0.3602 | Y17: 0 | Z17: 0
A18: 25 | B18: =LOOKUP(A18,'DOE - FIPStoPayeeCodeConvTable'!$A$3:$A$213,'DOE - FIPStoPayeeCodeConvTable'!$B$3:$B$213) -> Brunswick Co | S18: 0 | U18: 0 | V18: 0 | W18: =LOOKUP(A18,'DOE - FIPStoPayeeCodeConvTable'!$A$3:$A$213,'DOE - FIPStoPayeeCodeConvTable'!$E$3:$E$213) -> 0.2439 | X18: 0.2439 | Y18: 0 | Z18: 0
A19: 27 | B19: =LOOKUP(A19,'DOE - FIPStoPayeeCodeConvTable'!$A$3:$A$213,'DOE - FIPStoPayeeCodeConvTable'!$B$3:$B$213) -> Buchanan Co | S19: 0 | U19: 0 | V19: 0 | W19: =LOOKUP(A19,'DOE - FIPStoPayeeCodeConvTable'!$A$3:$A$213,'DOE - FIPStoPayeeCodeConvTable'!$E$3:$E$213) -> 0.3156 | X19: 0.3156 | Y19: 0 | Z19: 0
A20: 29 | B20: =LOOKUP(A20,'DOE - FIPStoPayeeCodeConvTable'!$A$3:$A$213,'DOE - FIPStoPayeeCodeConvTable'!$B$3:$B$213) -> Buckingham Co | S20: 0 | U20: 0 | V20: 0 | W20: =LOOKUP(A20,'DOE - FIPStoPayeeCodeConvTable'!$A$3:$A$213,'DOE - FIPStoPayeeCodeConvTable'!$E$3:$E$213) -> 0.2023 | X20: 0.2023 | Y20: 0 | Z20: 0
A21: 31 | B21: =LOOKUP(A21,'DOE - FIPStoPayeeCodeConvTable'!$A$3:$A$213,'DOE - FIPStoPayeeCodeConvTable'!$B$3:$B$213) -> Campbell Co | S21: 0 | U21: 0 | V21: 0 | W21: =LOOKUP(A21,'DOE - FIPStoPayeeCodeConvTable'!$A$3:$A$213,'DOE - FIPStoPayeeCodeConvTable'!$E$3:$E$213) -> 0.3107 | X21: 0.3107 | Y21: 0 | Z21: 0
A22: 33 | B22: =LOOKUP(A22,'DOE - FIPStoPayeeCodeConvTable'!$A$3:$A$213,'DOE - FIPStoPayeeCodeConvTable'!$B$3:$B$213) -> Caroline Co | S22: 0 | U22: 0 | V22: 0 | W22: =LOOKUP(A22,'DOE - FIPStoPayeeCodeConvTable'!$A$3:$A$213,'DOE - FIPStoPayeeCodeConvTable'!$E$3:$E$213) -> 0.3308 | X22: 0.3308 | Y22: 0 | Z22: 0
A23: 35 | B23: =LOOKUP(A23,'DOE - FIPStoPayeeCodeConvTable'!$A$3:$A$213,'DOE - FIPStoPayeeCodeConvTable'!$B$3:$B$213) -> Carroll Co | S23: 0 | U23: 0 | V23: 0 | W23: =LOOKUP(A23,'DOE - FIPStoPayeeCodeConvTable'!$A$3:$A$213,'DOE - FIPStoPayeeCodeConvTable'!$E$3:$E$213) -> 0.291 | X23: 0.291 | Y23: 0 | Z23: 0
A24: 36 | B24: =LOOKUP(A24,'DOE - FIPStoPayeeCodeConvTable'!$A$3:$A$213,'DOE - FIPStoPayeeCodeConvTable'!$B$3:$B$213) -> Charles City Co | S24: 0 | U24: 0 | V24: 0 | W24: =LOOKUP(A24,'DOE - FIPStoPayeeCodeConvTable'!$A$3:$A$213,'DOE - FIPStoPayeeCodeConvTable'!$E$3:$E$213) -> 0.3131 | X24: 0.3131 | Y24: 0 | Z24: 0
A25: 37 | B25: =LOOKUP(A25,'DOE - FIPStoPayeeCodeConvTable'!$A$3:$A$213,'DOE - FIPStoPayeeCodeConvTable'!$B$3:$B$213) -> Charlotte Co | S25: 0 | U25: 0 | V25: 0 | W25: =LOOKUP(A25,'DOE - FIPStoPayeeCodeConvTable'!$A$3:$A$213,'DOE - FIPStoPayeeCodeConvTable'!$E$3:$E$213) -> 0.2204 | X25: 0.2204 | Y25: 0 | Z25: 0
A26: 41 | B26: =LOOKUP(A26,'DOE - FIPStoPayeeCodeConvTable'!$A$3:$A$213,'DOE - FIPStoPayeeCodeConvTable'!$B$3:$B$213) -> Chesterfield Co | S26: 0 | U26: 0 | V26: 0 | W26: =LOOKUP(A26,'DOE - FIPStoPayeeCodeConvTable'!$A$3:$A$213,'DOE - FIPStoPayeeCodeConvTable'!$E$3:$E$213) -> 0.3853 | X26: 0.3853 | Y26: 0 | Z26: 0
A27: 43 | B27: =LOOKUP(A27,'DOE - FIPStoPayeeCodeConvTable'!$A$3:$A$213,'DOE - FIPStoPayeeCodeConvTable'!$B$3:$B$213) -> Clarke Co | S27: 0 | U27: 0 | V27: 0 | W27: =LOOKUP(A27,'DOE - FIPStoPayeeCodeConvTable'!$A$3:$A$213,'DOE - FIPStoPayeeCodeConvTable'!$E$3:$E$213) -> 0.4797 | X27: 0.4797 | Y27: 0 | Z27: 0
A28: 45 | B28: =LOOKUP(A28,'DOE - FIPStoPayeeCodeConvTable'!$A$3:$A$213,'DOE - FIPStoPayeeCodeConvTable'!$B$3:$B$213) -> Craig Co | S28: 0 | U28: 0 | V28: 0 | W28: =LOOKUP(A28,'DOE - FIPStoPayeeCodeConvTable'!$A$3:$A$213,'DOE - FIPStoPayeeCodeConvTable'!$E$3:$E$213) -> 0.2901 | X28: 0.2901 | Y28: 0 | Z28: 0
A29: 47 | B29: =LOOKUP(A29,'DOE - FIPStoPayeeCodeConvTable'!$A$3:$A$213,'DOE - FIPStoPayeeCodeConvTable'!$B$3:$B$213) -> Culpeper Co | S29: 0 | U29: 0 | V29: 0 | W29: =LOOKUP(A29,'DOE - FIPStoPayeeCodeConvTable'!$A$3:$A$213,'DOE - FIPStoPayeeCodeConvTable'!$E$3:$E$213) -> 0.3767 | X29: 0.3767 | Y29: 0 | Z29: 0
A30: 49 | B30: =LOOKUP(A30,'DOE - FIPStoPayeeCodeConvTable'!$A$3:$A$213,'DOE - FIPStoPayeeCodeConvTable'!$B$3:$B$213) -> Cumberland Co | S30: 0 | U30: 0 | V30: 0 | W30: =LOOKUP(A30,'DOE - FIPStoPayeeCodeConvTable'!$A$3:$A$213,'DOE - FIPStoPayeeCodeConvTable'!$E$3:$E$213) -> 0.304 | X30: 0.304 | Y30: 0 | Z30: 0
A31: 51 | B31: =LOOKUP(A31,'DOE - FIPStoPayeeCodeConvTable'!$A$3:$A$213,'DOE - FIPStoPayeeCodeConvTable'!$B$3:$B$213) -> Dickenson Co | S31: 0 | U31: 0 | V31: 0 | W31: =LOOKUP(A31,'DOE - FIPStoPayeeCodeConvTable'!$A$3:$A$213,'DOE - FIPStoPayeeCodeConvTable'!$E$3:$E$213) -> 0.3042 | X31: 0.3042 | Y31: 0 | Z31: 0
A32: 53 | B32: =LOOKUP(A32,'DOE - FIPStoPayeeCodeConvTable'!$A$3:$A$213,'DOE - FIPStoPayeeCodeConvTable'!$B$3:$B$213) -> Dinwiddie Co | S32: 0 | U32: 0 | V32: 0 | W32: =LOOKUP(A32,'DOE - FIPStoPayeeCodeConvTable'!$A$3:$A$213,'DOE - FIPStoPayeeCodeConvTable'!$E$3:$E$213) -> 0.3358 | X32: 0.3358 | Y32: 0 | Z32: 0
A33: 57 | B33: =LOOKUP(A33,'DOE - FIPStoPayeeCodeConvTable'!$A$3:$A$213,'DOE - FIPStoPayeeCodeConvTable'!$B$3:$B$213) -> Essex Co | S33: 0 | U33: 0 | V33: 0 | W33: =LOOKUP(A33,'DOE - FIPStoPayeeCodeConvTable'!$A$3:$A$213,'DOE - FIPStoPayeeCodeConvTable'!$E$3:$E$213) -> 0.3853 | X33: 0.3853 | Y33: 0 | Z33: 0
A34: 59 | B34: =LOOKUP(A34,'DOE - FIPStoPayeeCodeConvTable'!$A$3:$A$213,'DOE - FIPStoPayeeCodeConvTable'!$B$3:$B$213) -> Fairfax Co | S34: 0 | U34: 0 | V34: 0 | W34: =LOOKUP(A34,'DOE - FIPStoPayeeCodeConvTable'!$A$3:$A$213,'DOE - FIPStoPayeeCodeConvTable'!$E$3:$E$213) -> 0.4611 | X34: 0.4611 | Y34: 0 | Z34: 0
A35: 61 | B35: =LOOKUP(A35,'DOE - FIPStoPayeeCodeConvTable'!$A$3:$A$213,'DOE - FIPStoPayeeCodeConvTable'!$B$3:$B$213) -> Fauquier Co | S35: 0 | U35: 0 | V35: 0 | W35: =LOOKUP(A35,'DOE - FIPStoPayeeCodeConvTable'!$A$3:$A$213,'DOE - FIPStoPayeeCodeConvTable'!$E$3:$E$213) -> 0.4584 | X35: 0.4584 | Y35: 0 | Z35: 0
A36: 63 | B36: =LOOKUP(A36,'DOE - FIPStoPayeeCodeConvTable'!$A$3:$A$213,'DOE - FIPStoPayeeCodeConvTable'!$B$3:$B$213) -> Floyd Co | S36: 0 | U36: 0 | V36: 0 | W36: =LOOKUP(A36,'DOE - FIPStoPayeeCodeConvTable'!$A$3:$A$213,'DOE - FIPStoPayeeCodeConvTable'!$E$3:$E$213) -> 0.2324 | X36: 0.2324 | Y36: 0 | Z36: 0
A37: 65 | B37: =LOOKUP(A37,'DOE - FIPStoPayeeCodeConvTable'!$A$3:$A$213,'DOE - FIPStoPayeeCodeConvTable'!$B$3:$B$213) -> Fluvanna Co | S37: =SUM(C37:R37) -> 0 | U37: 0 | V37: 0 | W37: =LOOKUP(A37,'DOE - FIPStoPayeeCodeConvTable'!$A$3:$A$213,'DOE - FIPStoPayeeCodeConvTable'!$E$3:$E$213) -> 0.3811 | X37: 0.3811 | Y37: 0 | Z37: 0
A38: 67 | B38: =LOOKUP(A38,'DOE - FIPStoPayeeCodeConvTable'!$A$3:$A$213,'DOE - FIPStoPayeeCodeConvTable'!$B$3:$B$213) -> Franklin Co | S38: 0 | U38: =ROUND($U$1*S38,2) -> 0 | V38: =SUM(S38)-SUM(U38) -> 0 | W38: =LOOKUP(A38,'DOE - FIPStoPayeeCodeConvTable'!$A$3:$A$213,'DOE - FIPStoPayeeCodeConvTable'!$E$3:$E$213) -> 0.283 | X38: 0.283 | Y38: 0 | Z38: 0
A39: 69 | B39: =LOOKUP(A39,'DOE - FIPStoPayeeCodeConvTable'!$A$3:$A$213,'DOE - FIPStoPayeeCodeConvTable'!$B$3:$B$213) -> Frederick Co | S39: 0 | U39: 0 | V39: 0 | W39: =LOOKUP(A39,'DOE - FIPStoPayeeCodeConvTable'!$A$3:$A$213,'DOE - FIPStoPayeeCodeConvTable'!$E$3:$E$213) -> 0.4348 | X39: 0.4348 | Y39: 0 | Z39: 0
A40: 71 | B40: =LOOKUP(A40,'DOE - FIPStoPayeeCodeConvTable'!$A$3:$A$213,'DOE - FIPStoPayeeCodeConvTable'!$B$3:$B$213) -> Giles Co | S40: 0 | U40: 0 | V40: 0 | W40: =LOOKUP(A40,'DOE - FIPStoPayeeCodeConvTable'!$A$3:$A$213,'DOE - FIPStoPayeeCodeConvTable'!$E$3:$E$213) -> 0.2898 | X40: 0.2898 | Y40: 0 | Z40: 0
A41: 73 | B41: =LOOKUP(A41,'DOE - FIPStoPayeeCodeConvTable'!$A$3:$A$213,'DOE - FIPStoPayeeCodeConvTable'!$B$3:$B$213) -> Gloucester Co | S41: 0 | U41: 0 | V41: 0 | W41: =LOOKUP(A41,'DOE - FIPStoPayeeCodeConvTable'!$A$3:$A$213,'DOE - FIPStoPayeeCodeConvTable'!$E$3:$E$213) -> 0.3687 | X41: 0.3687 | Y41: 0 | Z41: 0
A42: 75 | B42: =LOOKUP(A42,'DOE - FIPStoPayeeCodeConvTable'!$A$3:$A$213,'DOE - FIPStoPayeeCodeConvTable'!$B$3:$B$213) -> Goochland Co | S42: 0 | U42: 0 | V42: 0 | W42: =LOOKUP(A42,'DOE - FIPStoPayeeCodeConvTable'!$A$3:$A$213,'DOE - FIPStoPayeeCodeConvTable'!$E$3:$E$213) -> 0.4871 | X42: 0.4871 | Y42: 0 | Z42: 0
A43: 77 | B43: =LOOKUP(A43,'DOE - FIPStoPayeeCodeConvTable'!$A$3:$A$213,'DOE - FIPStoPayeeCodeConvTable'!$B$3:$B$213) -> Grayson Co | S43: 0 | U43: 0 | V43: 0 | W43: =LOOKUP(A43,'DOE - FIPStoPayeeCodeConvTable'!$A$3:$A$213,'DOE - FIPStoPayeeCodeConvTable'!$E$3:$E$213) -> 0.2109 | X43: 0.2109 | Y43: 0 | Z43: 0
A44: 79 | B44: =LOOKUP(A44,'DOE - FIPStoPayeeCodeConvTable'!$A$3:$A$213,'DOE - FIPStoPayeeCodeConvTable'!$B$3:$B$213) -> Greene Co | S44: 0 | U44: 0 | V44: 0 | W44: =LOOKUP(A44,'DOE - FIPStoPayeeCodeConvTable'!$A$3:$A$213,'DOE - FIPStoPayeeCodeConvTable'!$E$3:$E$213) -> 0.3471 | X44: 0.3471 | Y44: 0 | Z44: 0
A45: 81 | B45: =LOOKUP(A45,'DOE - FIPStoPayeeCodeConvTable'!$A$3:$A$213,'DOE - FIPStoPayeeCodeConvTable'!$B$3:$B$213) -> Greensville Co | S45: 0 | U45: 0 | V45: 0 | W45: =LOOKUP(A45,'DOE - FIPStoPayeeCodeConvTable'!$A$3:$A$213,'DOE - FIPStoPayeeCodeConvTable'!$E$3:$E$213) -> 0.2266 | X45: 0.2266 | Y45: 0 | Z45: 0
A46: 83 | B46: =LOOKUP(A46,'DOE - FIPStoPayeeCodeConvTable'!$A$3:$A$213,'DOE - FIPStoPayeeCodeConvTable'!$B$3:$B$213) -> Halifax Co | S46: 0 | U46: 0 | V46: 0 | W46: =LOOKUP(A46,'DOE - FIPStoPayeeCodeConvTable'!$A$3:$A$213,'DOE - FIPStoPayeeCodeConvTable'!$E$3:$E$213) -> 0.2335 | X46: 0.2335 | Y46: 0 | Z46: 0
A47: 85 | B47: =LOOKUP(A47,'DOE - FIPStoPayeeCodeConvTable'!$A$3:$A$213,'DOE - FIPStoPayeeCodeConvTable'!$B$3:$B$213) -> Hanover Co | S47: 0 | U47: 0 | V47: 0 | W47: =LOOKUP(A47,'DOE - FIPStoPayeeCodeConvTable'!$A$3:$A$213,'DOE - FIPStoPayeeCodeConvTable'!$E$3:$E$213) -> 0.4444 | X47: 0.4444 | Y47: 0 | Z47: 0
A48: 87 | B48: =LOOKUP(A48,'DOE - FIPStoPayeeCodeConvTable'!$A$3:$A$213,'DOE - FIPStoPayeeCodeConvTable'!$B$3:$B$213) -> Henrico Co | S48: 0 | U48: 0 | V48: 0 | W48: =LOOKUP(A48,'DOE - FIPStoPayeeCodeConvTable'!$A$3:$A$213,'DOE - FIPStoPayeeCodeConvTable'!$E$3:$E$213) -> 0.3755 | X48: 0.3755 | Y48: 0 | Z48: 0
A49: 89 | B49: =LOOKUP(A49,'DOE - FIPStoPayeeCodeConvTable'!$A$3:$A$213,'DOE - FIPStoPayeeCodeConvTable'!$B$3:$B$213) -> Henry Co | S49: 0 | U49: 0 | V49: 0 | W49: =LOOKUP(A49,'DOE - FIPStoPayeeCodeConvTable'!$A$3:$A$213,'DOE - FIPStoPayeeCodeConvTable'!$E$3:$E$213) -> 0.2786 | X49: 0.2786 | Y49: 0 | Z49: 0
A50: 91 | B50: =LOOKUP(A50,'DOE - FIPStoPayeeCodeConvTable'!$A$3:$A$213,'DOE - FIPStoPayeeCodeConvTable'!$B$3:$B$213) -> Highland Co | S50: 0 | U50: 0 | V50: 0 | W50: =LOOKUP(A50,'DOE - FIPStoPayeeCodeConvTable'!$A$3:$A$213,'DOE - FIPStoPayeeCodeConvTable'!$E$3:$E$213) -> 0.3822 | X50: 0.3822 | Y50: 0 | Z50: 0
A51: 93 | B51: =LOOKUP(A51,'DOE - FIPStoPayeeCodeConvTable'!$A$3:$A$213,'DOE - FIPStoPayeeCodeConvTable'!$B$3:$B$213) -> Isle Of Wight Co | S51: 0 | U51: 0 | V51: 0 | W51: =LOOKUP(A51,'DOE - FIPStoPayeeCodeConvTable'!$A$3:$A$213,'DOE - FIPStoPayeeCodeConvTable'!$E$3:$E$213) -> 0.3613 | X51: 0.3613 | Y51: 0 | Z51: 0
A52: 95 | B52: =LOOKUP(A52,'DOE - FIPStoPayeeCodeConvTable'!$A$3:$A$213,'DOE - FIPStoPayeeCodeConvTable'!$B$3:$B$213) -> James City Co | S52: 0 | U52: 0 | V52: 0 | W52: =LOOKUP(A52,'DOE - FIPStoPayeeCodeConvTable'!$A$3:$A$213,'DOE - FIPStoPayeeCodeConvTable'!$E$3:$E$213) -> 0.4483 | X52: 0.4483 | Y52: 0 | Z52: 0
A53: 97 | B53: =LOOKUP(A53,'DOE - FIPStoPayeeCodeConvTable'!$A$3:$A$213,'DOE - FIPStoPayeeCodeConvTable'!$B$3:$B$213) -> King And Queen Co | S53: 0 | U53: 0 | V53: 0 | W53: =LOOKUP(A53,'DOE - FIPStoPayeeCodeConvTable'!$A$3:$A$213,'DOE - FIPStoPayeeCodeConvTable'!$E$3:$E$213) -> 0.3144 | X53: 0.3144 | Y53: 0 | Z53: 0
A54: 99 | B54: =LOOKUP(A54,'DOE - FIPStoPayeeCodeConvTable'!$A$3:$A$213,'DOE - FIPStoPayeeCodeConvTable'!$B$3:$B$213) -> King George Co | S54: 0 | U54: 0 | V54: 0 | W54: =LOOKUP(A54,'DOE - FIPStoPayeeCodeConvTable'!$A$3:$A$213,'DOE - FIPStoPayeeCodeConvTable'!$E$3:$E$213) -> 0.3627 | X54: 0.3627 | Y54: 0 | Z54: 0
A55: 101 | B55: =LOOKUP(A55,'DOE - FIPStoPayeeCodeConvTable'!$A$3:$A$213,'DOE - FIPStoPayeeCodeConvTable'!$B$3:$B$213) -> King William Co | S55: 0 | U55: 0 | V55: 0 | W55: =LOOKUP(A55,'DOE - FIPStoPayeeCodeConvTable'!$A$3:$A$213,'DOE - FIPStoPayeeCodeConvTable'!$E$3:$E$213) -> 0.3853 | X55: 0.3853 | Y55: 0 | Z55: 0
A56: 103 | B56: =LOOKUP(A56,'DOE - FIPStoPayeeCodeConvTable'!$A$3:$A$213,'DOE - FIPStoPayeeCodeConvTable'!$B$3:$B$213) -> Lancaster Co | S56: 0 | U56: 0 | V56: 0 | W56: =LOOKUP(A56,'DOE - FIPStoPayeeCodeConvTable'!$A$3:$A$213,'DOE - FIPStoPayeeCodeConvTable'!$E$3:$E$213) -> 0.4391 | X56: 0.4391 | Y56: 0 | Z56: 0
A57: 105 | B57: =LOOKUP(A57,'DOE - FIPStoPayeeCodeConvTable'!$A$3:$A$213,'DOE - FIPStoPayeeCodeConvTable'!$B$3:$B$213) -> Lee Co | S57: 0 | U57: 0 | V57: 0 | W57: =LOOKUP(A57,'DOE - FIPStoPayeeCodeConvTable'!$A$3:$A$213,'DOE - FIPStoPayeeCodeConvTable'!$E$3:$E$213) -> 0.2245 | X57: 0.2245 | Y57: 0 | Z57: 0
A58: 107 | B58: =LOOKUP(A58,'DOE - FIPStoPayeeCodeConvTable'!$A$3:$A$213,'DOE - FIPStoPayeeCodeConvTable'!$B$3:$B$213) -> Loudoun Co | S58: 0 | U58: 0 | V58: 0 | W58: =LOOKUP(A58,'DOE - FIPStoPayeeCodeConvTable'!$A$3:$A$213,'DOE - FIPStoPayeeCodeConvTable'!$E$3:$E$213) -> 0.4764 | X58: 0.4764 | Y58: 0 | Z58: 0
A59: 109 | B59: =LOOKUP(A59,'DOE - FIPStoPayeeCodeConvTable'!$A$3:$A$213,'DOE - FIPStoPayeeCodeConvTable'!$B$3:$B$213) -> Louisa Co | S59: 0 | U59: 0 | V59: 0 | W59: =LOOKUP(A59,'DOE - FIPStoPayeeCodeConvTable'!$A$3:$A$213,'DOE - FIPStoPayeeCodeConvTable'!$E$3:$E$213) -> 0.4401 | X59: 0.4401 | Y59: 0 | Z59: 0
A60: 111 | B60: =LOOKUP(A60,'DOE - FIPStoPayeeCodeConvTable'!$A$3:$A$213,'DOE - FIPStoPayeeCodeConvTable'!$B$3:$B$213) -> Lunenburg Co | S60: 0 | U60: 0 | V60: 0 | W60: =LOOKUP(A60,'DOE - FIPStoPayeeCodeConvTable'!$A$3:$A$213,'DOE - FIPStoPayeeCodeConvTable'!$E$3:$E$213) -> 0.1698 | X60: 0.1698 | Y60: 0 | Z60: 0
A61: 113 | B61: =LOOKUP(A61,'DOE - FIPStoPayeeCodeConvTable'!$A$3:$A$213,'DOE - FIPStoPayeeCodeConvTable'!$B$3:$B$213) -> Madison Co | S61: 0 | U61: 0 | V61: 0 | W61: =LOOKUP(A61,'DOE - FIPStoPayeeCodeConvTable'!$A$3:$A$213,'DOE - FIPStoPayeeCodeConvTable'!$E$3:$E$213) -> 0.3355 | X61: 0.3355 | Y61: 0 | Z61: 0
A62: 115 | B62: =LOOKUP(A62,'DOE - FIPStoPayeeCodeConvTable'!$A$3:$A$213,'DOE - FIPStoPayeeCodeConvTable'!$B$3:$B$213) -> Mathews Co | S62: 0 | U62: 0 | V62: 0 | W62: =LOOKUP(A62,'DOE - FIPStoPayeeCodeConvTable'!$A$3:$A$213,'DOE - FIPStoPayeeCodeConvTable'!$E$3:$E$213) -> 0.4271 | X62: 0.4271 | Y62: 0 | Z62: 0
A63: 117 | B63: =LOOKUP(A63,'DOE - FIPStoPayeeCodeConvTable'!$A$3:$A$213,'DOE - FIPStoPayeeCodeConvTable'!$B$3:$B$213) -> Mecklenburg Co | S63: 0 | U63: 0 | V63: 0 | W63: =LOOKUP(A63,'DOE - FIPStoPayeeCodeConvTable'!$A$3:$A$213,'DOE - FIPStoPayeeCodeConvTable'!$E$3:$E$213) -> 0.2286 | X63: 0.2286 | Y63: 0 | Z63: 0
A64: 119 | B64: =LOOKUP(A64,'DOE - FIPStoPayeeCodeConvTable'!$A$3:$A$213,'DOE - FIPStoPayeeCodeConvTable'!$B$3:$B$213) -> Middlesex Co | S64: 0 | U64: 0 | V64: 0 | W64: =LOOKUP(A64,'DOE - FIPStoPayeeCodeConvTable'!$A$3:$A$213,'DOE - FIPStoPayeeCodeConvTable'!$E$3:$E$213) -> 0.4333 | X64: 0.4333 | Y64: 0 | Z64: 0
A65: 121 | B65: =LOOKUP(A65,'DOE - FIPStoPayeeCodeConvTable'!$A$3:$A$213,'DOE - FIPStoPayeeCodeConvTable'!$B$3:$B$213) -> Montgomery Co | S65: 0 | U65: 0 | V65: 0 | W65: =LOOKUP(A65,'DOE - FIPStoPayeeCodeConvTable'!$A$3:$A$213,'DOE - FIPStoPayeeCodeConvTable'!$E$3:$E$213) -> 0.2834 | X65: 0.2834 | Y65: 0 | Z65: 0
A66: 125 | B66: =LOOKUP(A66,'DOE - FIPStoPayeeCodeConvTable'!$A$3:$A$213,'DOE - FIPStoPayeeCodeConvTable'!$B$3:$B$213) -> Nelson Co | S66: 0 | U66: 0 | V66: 0 | W66: =LOOKUP(A66,'DOE - FIPStoPayeeCodeConvTable'!$A$3:$A$213,'DOE - FIPStoPayeeCodeConvTable'!$E$3:$E$213) -> 0.3132 | X66: 0.3132 | Y66: 0 | Z66: 0
A67: 127 | B67: =LOOKUP(A67,'DOE - FIPStoPayeeCodeConvTable'!$A$3:$A$213,'DOE - FIPStoPayeeCodeConvTable'!$B$3:$B$213) -> New Kent Co | S67: 0 | U67: 0 | V67: 0 | W67: =LOOKUP(A67,'DOE - FIPStoPayeeCodeConvTable'!$A$3:$A$213,'DOE - FIPStoPayeeCodeConvTable'!$E$3:$E$213) -> 0.4329 | X67: 0.4329 | Y67: 0 | Z67: 0
A68: 131 | B68: =LOOKUP(A68,'DOE - FIPStoPayeeCodeConvTable'!$A$3:$A$213,'DOE - FIPStoPayeeCodeConvTable'!$B$3:$B$213) -> Northampton Co | S68: 0 | U68: 0 | V68: 0 | W68: =LOOKUP(A68,'DOE - FIPStoPayeeCodeConvTable'!$A$3:$A$213,'DOE - FIPStoPayeeCodeConvTable'!$E$3:$E$213) -> 0.1971 | X68: 0.1971 | Y68: 0 | Z68: 0
A69: 133 | B69: =LOOKUP(A69,'DOE - FIPStoPayeeCodeConvTable'!$A$3:$A$213,'DOE - FIPStoPayeeCodeConvTable'!$B$3:$B$213) -> Northumberland Co | S69: =SUM(C69:R69) -> 0 | U69: 0 | V69: 0 | W69: =LOOKUP(A69,'DOE - FIPStoPayeeCodeConvTable'!$A$3:$A$213,'DOE - FIPStoPayeeCodeConvTable'!$E$3:$E$213) -> 0.3304 | X69: 0.3304 | Y69: 0 | Z69: 0
A70: 135 | B70: =LOOKUP(A70,'DOE - FIPStoPayeeCodeConvTable'!$A$3:$A$213,'DOE - FIPStoPayeeCodeConvTable'!$B$3:$B$213) -> Nottoway Co | S70: 0 | U70: =ROUND($U$1*S70,2) -> 0 | V70: =SUM(S70)-SUM(U70) -> 0 | W70: =LOOKUP(A70,'DOE - FIPStoPayeeCodeConvTable'!$A$3:$A$213,'DOE - FIPStoPayeeCodeConvTable'!$E$3:$E$213) -> 0.2686 | X70: 0.2686 | Y70: 0 | Z70: 0
A71: 137 | B71: =LOOKUP(A71,'DOE - FIPStoPayeeCodeConvTable'!$A$3:$A$213,'DOE - FIPStoPayeeCodeConvTable'!$B$3:$B$213) -> Orange Co | S71: 0 | U71: 0 | V71: 0 | W71: =LOOKUP(A71,'DOE - FIPStoPayeeCodeConvTable'!$A$3:$A$213,'DOE - FIPStoPayeeCodeConvTable'!$E$3:$E$213) -> 0.4083 | X71: =$X$1*W71 -> 0.4083 | Y71: =ROUND(X71*V71,2) -> 0 | Z71: =SUM(V71)-SUM(Y71) -> 0
A72: 139 | B72: =LOOKUP(A72,'DOE - FIPStoPayeeCodeConvTable'!$A$3:$A$213,'DOE - FIPStoPayeeCodeConvTable'!$B$3:$B$213) -> Page Co | S72: 0 | U72: 0 | V72: 0 | W72: =LOOKUP(A72,'DOE - FIPStoPayeeCodeConvTable'!$A$3:$A$213,'DOE - FIPStoPayeeCodeConvTable'!$E$3:$E$213) -> 0.2865 | X72: 0.2865 | Y72: 0 | Z72: 0
A73: 141 | B73: =LOOKUP(A73,'DOE - FIPStoPayeeCodeConvTable'!$A$3:$A$213,'DOE - FIPStoPayeeCodeConvTable'!$B$3:$B$213) -> Patrick Co | S73: 0 | U73: 0 | V73: 0 | W73: =LOOKUP(A73,'DOE - FIPStoPayeeCodeConvTable'!$A$3:$A$213,'DOE - FIPStoPayeeCodeConvTable'!$E$3:$E$213) -> 0.2539 | X73: 0.2539 | Y73: 0 | Z73: 0
A74: 143 | B74: =LOOKUP(A74,'DOE - FIPStoPayeeCodeConvTable'!$A$3:$A$213,'DOE - FIPStoPayeeCodeConvTable'!$B$3:$B$213) -> Pittsylvania Co | S74: 0 | U74: 0 | V74: 0 | W74: =LOOKUP(A74,'DOE - FIPStoPayeeCodeConvTable'!$A$3:$A$213,'DOE - FIPStoPayeeCodeConvTable'!$E$3:$E$213) -> 0.2355 | X74: 0.2355 | Y74: 0 | Z74: 0
A75: 145 | B75: =LOOKUP(A75,'DOE - FIPStoPayeeCodeConvTable'!$A$3:$A$213,'DOE - FIPStoPayeeCodeConvTable'!$B$3:$B$213) -> Powhatan Co | S75: 0 | U75: 0 | V75: 0 | W75: =LOOKUP(A75,'DOE - FIPStoPayeeCodeConvTable'!$A$3:$A$213,'DOE - FIPStoPayeeCodeConvTable'!$E$3:$E$213) -> 0.4342 | X75: 0.4342 | Y75: 0 | Z75: 0
A76: 147 | B76: =LOOKUP(A76,'DOE - FIPStoPayeeCodeConvTable'!$A$3:$A$213,'DOE - FIPStoPayeeCodeConvTable'!$B$3:$B$213) -> Prince Edward Co | S76: 0 | U76: 0 | V76: 0 | W76: =LOOKUP(A76,'DOE - FIPStoPayeeCodeConvTable'!$A$3:$A$213,'DOE - FIPStoPayeeCodeConvTable'!$E$3:$E$213) -> 0.2232 | X76: 0.2232 | Y76: 0 | Z76: 0
A77: 149 | B77: =LOOKUP(A77,'DOE - FIPStoPayeeCodeConvTable'!$A$3:$A$213,'DOE - FIPStoPayeeCodeConvTable'!$B$3:$B$213) -> Prince George Co | S77: 0 | U77: 0 | V77: 0 | W77: =LOOKUP(A77,'DOE - FIPStoPayeeCodeConvTable'!$A$3:$A$213,'DOE - FIPStoPayeeCodeConvTable'!$E$3:$E$213) -> 0.3716 | X77: 0.3716 | Y77: 0 | Z77: 0
A78: 153 | B78: =LOOKUP(A78,'DOE - FIPStoPayeeCodeConvTable'!$A$3:$A$213,'DOE - FIPStoPayeeCodeConvTable'!$B$3:$B$213) -> Prince William Co | S78: 0 | U78: 0 | V78: 0 | W78: =LOOKUP(A78,'DOE - FIPStoPayeeCodeConvTable'!$A$3:$A$213,'DOE - FIPStoPayeeCodeConvTable'!$E$3:$E$213) -> 0.3414 | X78: 0.3414 | Y78: 0 | Z78: 0
A79: 155 | B79: =LOOKUP(A79,'DOE - FIPStoPayeeCodeConvTable'!$A$3:$A$213,'DOE - FIPStoPayeeCodeConvTable'!$B$3:$B$213) -> Pulaski Co | S79: 0 | U79: 0 | V79: 0 | W79: =LOOKUP(A79,'DOE - FIPStoPayeeCodeConvTable'!$A$3:$A$213,'DOE - FIPStoPayeeCodeConvTable'!$E$3:$E$213) -> 0.2923 | X79: 0.2923 | Y79: 0 | Z79: 0
A80: 157 | B80: =LOOKUP(A80,'DOE - FIPStoPayeeCodeConvTable'!$A$3:$A$213,'DOE - FIPStoPayeeCodeConvTable'!$B$3:$B$213) -> Rappahannock Co | S80: 0 | U80: 0 | V80: 0 | W80: =LOOKUP(A80,'DOE - FIPStoPayeeCodeConvTable'!$A$3:$A$213,'DOE - FIPStoPayeeCodeConvTable'!$E$3:$E$213) -> 0.4199 | X80: 0.4199 | Y80: 0 | Z80: 0
A81: 159 | B81: =LOOKUP(A81,'DOE - FIPStoPayeeCodeConvTable'!$A$3:$A$213,'DOE - FIPStoPayeeCodeConvTable'!$B$3:$B$213) -> Richmond Co | S81: 0 | U81: 0 | V81: 0 | W81: =LOOKUP(A81,'DOE - FIPStoPayeeCodeConvTable'!$A$3:$A$213,'DOE - FIPStoPayeeCodeConvTable'!$E$3:$E$213) -> 0.3227 | X81: 0.3227 | Y81: 0 | Z81: 0
A82: 161 | B82: =LOOKUP(A82,'DOE - FIPStoPayeeCodeConvTable'!$A$3:$A$213,'DOE - FIPStoPayeeCodeConvTable'!$B$3:$B$213) -> Roanoke Co | S82: 0 | U82: 0 | V82: 0 | W82: =LOOKUP(A82,'DOE - FIPStoPayeeCodeConvTable'!$A$3:$A$213,'DOE - FIPStoPayeeCodeConvTable'!$E$3:$E$213) -> 0.4397 | X82: 0.4397 | Y82: 0 | Z82: 0
A83: 163 | B83: =LOOKUP(A83,'DOE - FIPStoPayeeCodeConvTable'!$A$3:$A$213,'DOE - FIPStoPayeeCodeConvTable'!$B$3:$B$213) -> Rockbridge Co | S83: 0 | U83: 0 | V83: 0 | W83: =LOOKUP(A83,'DOE - FIPStoPayeeCodeConvTable'!$A$3:$A$213,'DOE - FIPStoPayeeCodeConvTable'!$E$3:$E$213) -> 0.2336 | X83: 0.2336 | Y83: 0 | Z83: 0
A84: 165 | B84: =LOOKUP(A84,'DOE - FIPStoPayeeCodeConvTable'!$A$3:$A$213,'DOE - FIPStoPayeeCodeConvTable'!$B$3:$B$213) -> Rockingham Co | S84: 0 | U84: 0 | V84: 0 | W84: =LOOKUP(A84,'DOE - FIPStoPayeeCodeConvTable'!$A$3:$A$213,'DOE - FIPStoPayeeCodeConvTable'!$E$3:$E$213) -> 0.3445 | X84: 0.3445 | Y84: 0 | Z84: 0
A85: 167 | B85: =LOOKUP(A85,'DOE - FIPStoPayeeCodeConvTable'!$A$3:$A$213,'DOE - FIPStoPayeeCodeConvTable'!$B$3:$B$213) -> Russell Co | S85: 0 | U85: 0 | V85: 0 | W85: =LOOKUP(A85,'DOE - FIPStoPayeeCodeConvTable'!$A$3:$A$213,'DOE - FIPStoPayeeCodeConvTable'!$E$3:$E$213) -> 0.1894 | X85: 0.1894 | Y85: 0 | Z85: 0
A86: 169 | B86: =LOOKUP(A86,'DOE - FIPStoPayeeCodeConvTable'!$A$3:$A$213,'DOE - FIPStoPayeeCodeConvTable'!$B$3:$B$213) -> Scott Co | S86: 0 | U86: 0 | V86: 0 | W86: =LOOKUP(A86,'DOE - FIPStoPayeeCodeConvTable'!$A$3:$A$213,'DOE - FIPStoPayeeCodeConvTable'!$E$3:$E$213) -> 0.3154 | X86: 0.3154 | Y86: 0 | Z86: 0
A87: 171 | B87: =LOOKUP(A87,'DOE - FIPStoPayeeCodeConvTable'!$A$3:$A$213,'DOE - FIPStoPayeeCodeConvTable'!$B$3:$B$213) -> Shenandoah Co | S87: 0 | U87: 0 | V87: 0 | W87: =LOOKUP(A87,'DOE - FIPStoPayeeCodeConvTable'!$A$3:$A$213,'DOE - FIPStoPayeeCodeConvTable'!$E$3:$E$213) -> 0.3517 | X87: 0.3517 | Y87: 0 | Z87: 0
A88: 173 | B88: =LOOKUP(A88,'DOE - FIPStoPayeeCodeConvTable'!$A$3:$A$213,'DOE - FIPStoPayeeCodeConvTable'!$B$3:$B$213) -> Smyth Co | S88: 0 | U88: 0 | V88: 0 | W88: =LOOKUP(A88,'DOE - FIPStoPayeeCodeConvTable'!$A$3:$A$213,'DOE - FIPStoPayeeCodeConvTable'!$E$3:$E$213) -> 0.2337 | X88: 0.2337 | Y88: 0 | Z88: 0
A89: 175 | B89: =LOOKUP(A89,'DOE - FIPStoPayeeCodeConvTable'!$A$3:$A$213,'DOE - FIPStoPayeeCodeConvTable'!$B$3:$B$213) -> Southampton Co | S89: 0 | U89: 0 | V89: 0 | W89: =LOOKUP(A89,'DOE - FIPStoPayeeCodeConvTable'!$A$3:$A$213,'DOE - FIPStoPayeeCodeConvTable'!$E$3:$E$213) -> 0.323 | X89: 0.323 | Y89: 0 | Z89: 0
A90: 177 | B90: =LOOKUP(A90,'DOE - FIPStoPayeeCodeConvTable'!$A$3:$A$213,'DOE - FIPStoPayeeCodeConvTable'!$B$3:$B$213) -> Spotsylvania Co | S90: 0 | U90: 0 | V90: 0 | W90: =LOOKUP(A90,'DOE - FIPStoPayeeCodeConvTable'!$A$3:$A$213,'DOE - FIPStoPayeeCodeConvTable'!$E$3:$E$213) -> 0.4588 | X90: 0.4588 | Y90: 0 | Z90: 0
A91: 179 | B91: =LOOKUP(A91,'DOE - FIPStoPayeeCodeConvTable'!$A$3:$A$213,'DOE - FIPStoPayeeCodeConvTable'!$B$3:$B$213) -> Stafford Co | S91: 0 | U91: 0 | V91: 0 | W91: =LOOKUP(A91,'DOE - FIPStoPayeeCodeConvTable'!$A$3:$A$213,'DOE - FIPStoPayeeCodeConvTable'!$E$3:$E$213) -> 0.4439 | X91: 0.4439 | Y91: 0 | Z91: 0
A92: 181 | B92: =LOOKUP(A92,'DOE - FIPStoPayeeCodeConvTable'!$A$3:$A$213,'DOE - FIPStoPayeeCodeConvTable'!$B$3:$B$213) -> Surry Co | S92: 0 | U92: 0 | V92: 0 | W92: =LOOKUP(A92,'DOE - FIPStoPayeeCodeConvTable'!$A$3:$A$213,'DOE - FIPStoPayeeCodeConvTable'!$E$3:$E$213) -> 0.3979 | X92: 0.3979 | Y92: 0 | Z92: 0
A93: 183 | B93: =LOOKUP(A93,'DOE - FIPStoPayeeCodeConvTable'!$A$3:$A$213,'DOE - FIPStoPayeeCodeConvTable'!$B$3:$B$213) -> Sussex Co | S93: 0 | U93: 0 | V93: 0 | W93: =LOOKUP(A93,'DOE - FIPStoPayeeCodeConvTable'!$A$3:$A$213,'DOE - FIPStoPayeeCodeConvTable'!$E$3:$E$213) -> 0.2387 | X93: 0.2387 | Y93: 0 | Z93: 0
A94: 185 | B94: =LOOKUP(A94,'DOE - FIPStoPayeeCodeConvTable'!$A$3:$A$213,'DOE - FIPStoPayeeCodeConvTable'!$B$3:$B$213) -> Tazewell Co | S94: 0 | U94: 0 | V94: 0 | W94: =LOOKUP(A94,'DOE - FIPStoPayeeCodeConvTable'!$A$3:$A$213,'DOE - FIPStoPayeeCodeConvTable'!$E$3:$E$213) -> 0.2455 | X94: 0.2455 | Y94: 0 | Z94: 0
A95: 187 | B95: =LOOKUP(A95,'DOE - FIPStoPayeeCodeConvTable'!$A$3:$A$213,'DOE - FIPStoPayeeCodeConvTable'!$B$3:$B$213) -> Warren Co | S95: 0 | U95: 0 | V95: 0 | W95: =LOOKUP(A95,'DOE - FIPStoPayeeCodeConvTable'!$A$3:$A$213,'DOE - FIPStoPayeeCodeConvTable'!$E$3:$E$213) -> 0.3853 | X95: 0.3853 | Y95: 0 | Z95: 0
A96: 191 | B96: =LOOKUP(A96,'DOE - FIPStoPayeeCodeConvTable'!$A$3:$A$213,'DOE - FIPStoPayeeCodeConvTable'!$B$3:$B$213) -> Washington Co | S96: 0 | U96: 0 | V96: 0 | W96: =LOOKUP(A96,'DOE - FIPStoPayeeCodeConvTable'!$A$3:$A$213,'DOE - FIPStoPayeeCodeConvTable'!$E$3:$E$213) -> 0.276 | X96: 0.276 | Y96: 0 | Z96: 0
A97: 193 | B97: =LOOKUP(A97,'DOE - FIPStoPayeeCodeConvTable'!$A$3:$A$213,'DOE - FIPStoPayeeCodeConvTable'!$B$3:$B$213) -> Westmoreland Co | S97: 0 | U97: 0 | V97: 0 | W97: =LOOKUP(A97,'DOE - FIPStoPayeeCodeConvTable'!$A$3:$A$213,'DOE - FIPStoPayeeCodeConvTable'!$E$3:$E$213) -> 0.3025 | X97: 0.3025 | Y97: 0 | Z97: 0
A98: 195 | B98: =LOOKUP(A98,'DOE - FIPStoPayeeCodeConvTable'!$A$3:$A$213,'DOE - FIPStoPayeeCodeConvTable'!$B$3:$B$213) -> Wise Co | S98: 0 | U98: 0 | V98: 0 | W98: =LOOKUP(A98,'DOE - FIPStoPayeeCodeConvTable'!$A$3:$A$213,'DOE - FIPStoPayeeCodeConvTable'!$E$3:$E$213) -> 0.2755 | X98: 0.2755 | Y98: 0 | Z98: 0
A99: 197 | B99: =LOOKUP(A99,'DOE - FIPStoPayeeCodeConvTable'!$A$3:$A$213,'DOE - FIPStoPayeeCodeConvTable'!$B$3:$B$213) -> Wythe Co | S99: 0 | U99: 0 | V99: 0 | W99: =LOOKUP(A99,'DOE - FIPStoPayeeCodeConvTable'!$A$3:$A$213,'DOE - FIPStoPayeeCodeConvTable'!$E$3:$E$213) -> 0.2708 | X99: 0.2708 | Y99: 0 | Z99: 0
A100: 199 | B100: =LOOKUP(A100,'DOE - FIPStoPayeeCodeConvTable'!$A$3:$A$213,'DOE - FIPStoPayeeCodeConvTable'!$B$3:$B$213) -> York Co | S100: 0 | U100: 0 | V100: 0 | W100: =LOOKUP(A100,'DOE - FIPStoPayeeCodeConvTable'!$A$3:$A$213,'DOE - FIPStoPayeeCodeConvTable'!$E$3:$E$213) -> 0.3888 | X100: 0.3888 | Y100: 0 | Z100: 0
A101: 510 | B101: =LOOKUP(A101,'DOE - FIPStoPayeeCodeConvTable'!$A$3:$A$213,'DOE - FIPStoPayeeCodeConvTable'!$B$3:$B$213) -> Alexandria City | S101: =SUM(C101:R101) -> 0 | U101: 0 | V101: 0 | W101: =LOOKUP(A101,'DOE - FIPStoPayeeCodeConvTable'!$A$3:$A$213,'DOE - FIPStoPayeeCodeConvTable'!$E$3:$E$213) -> 0.5309 | X101: 0.5309 | Y101: 0 | Z101: 0
A102: 520 | B102: =LOOKUP(A102,'DOE - FIPStoPayeeCodeConvTable'!$A$3:$A$213,'DOE - FIPStoPayeeCodeConvTable'!$B$3:$B$213) -> Bristol City | S102: 0 | U102: =ROUND($U$1*S102,2) -> 0 | V102: =SUM(S102)-SUM(U102) -> 0 | W102: =LOOKUP(A102,'DOE - FIPStoPayeeCodeConvTable'!$A$3:$A$213,'DOE - FIPStoPayeeCodeConvTable'!$E$3:$E$213) -> 0.2547 | X102: 0.2547 | Y102: 0 | Z102: 0
A103: 530 | B103: =LOOKUP(A103,'DOE - FIPStoPayeeCodeConvTable'!$A$3:$A$213,'DOE - FIPStoPayeeCodeConvTable'!$B$3:$B$213) -> Buena Vista City | S103: 0 | U103: 0 | V103: 0 | W103: =LOOKUP(A103,'DOE - FIPStoPayeeCodeConvTable'!$A$3:$A$213,'DOE - FIPStoPayeeCodeConvTable'!$E$3:$E$213) -> 0.2329 | X103: 0.2329 | Y103: 0 | Z103: 0
A104: 540 | B104: =LOOKUP(A104,'DOE - FIPStoPayeeCodeConvTable'!$A$3:$A$213,'DOE - FIPStoPayeeCodeConvTable'!$B$3:$B$213) -> Charlottesville City | S104: 0 | U104: 0 | V104: 0 | W104: =LOOKUP(A104,'DOE - FIPStoPayeeCodeConvTable'!$A$3:$A$213,'DOE - FIPStoPayeeCodeConvTable'!$E$3:$E$213) -> 0.3068 | X104: 0.3068 | Y104: 0 | Z104: 0
A105: 550 | B105: =LOOKUP(A105,'DOE - FIPStoPayeeCodeConvTable'!$A$3:$A$213,'DOE - FIPStoPayeeCodeConvTable'!$B$3:$B$213) -> Chesapeake City | S105: 0 | U105: 0 | V105: 0 | W105: =LOOKUP(A105,'DOE - FIPStoPayeeCodeConvTable'!$A$3:$A$213,'DOE - FIPStoPayeeCodeConvTable'!$E$3:$E$213) -> 0.3715 | X105: 0.3715 | Y105: 0 | Z105: 0
A106: 570 | B106: =LOOKUP(A106,'DOE - FIPStoPayeeCodeConvTable'!$A$3:$A$213,'DOE - FIPStoPayeeCodeConvTable'!$B$3:$B$213) -> Colonial Heights City | S106: 0 | U106: 0 | V106: 0 | W106: =LOOKUP(A106,'DOE - FIPStoPayeeCodeConvTable'!$A$3:$A$213,'DOE - FIPStoPayeeCodeConvTable'!$E$3:$E$213) -> 0.4027 | X106: 0.4027 | Y106: 0 | Z106: 0
A107: 580 | B107: =LOOKUP(A107,'DOE - FIPStoPayeeCodeConvTable'!$A$3:$A$213,'DOE - FIPStoPayeeCodeConvTable'!$B$3:$B$213) -> Covington City | S107: 0 | U107: 0 | V107: 0 | W107: =LOOKUP(A107,'DOE - FIPStoPayeeCodeConvTable'!$A$3:$A$213,'DOE - FIPStoPayeeCodeConvTable'!$E$3:$E$213) -> 0.2496 | X107: 0.2496 | Y107: 0 | Z107: 0
A108: 590 | B108: =LOOKUP(A108,'DOE - FIPStoPayeeCodeConvTable'!$A$3:$A$213,'DOE - FIPStoPayeeCodeConvTable'!$B$3:$B$213) -> Danville City | S108: 0 | U108: 0 | V108: 0 | W108: =LOOKUP(A108,'DOE - FIPStoPayeeCodeConvTable'!$A$3:$A$213,'DOE - FIPStoPayeeCodeConvTable'!$E$3:$E$213) -> 0.2223 | X108: 0.2223 | Y108: 0 | Z108: 0
A109: 620 | B109: =LOOKUP(A109,'DOE - FIPStoPayeeCodeConvTable'!$A$3:$A$213,'DOE - FIPStoPayeeCodeConvTable'!$B$3:$B$213) -> Franklin City | S109: 0 | U109: 0 | V109: 0 | W109: =LOOKUP(A109,'DOE - FIPStoPayeeCodeConvTable'!$A$3:$A$213,'DOE - FIPStoPayeeCodeConvTable'!$E$3:$E$213) -> 0.371 | X109: 0.371 | Y109: 0 | Z109: 0
A110: 630 | B110: =LOOKUP(A110,'DOE - FIPStoPayeeCodeConvTable'!$A$3:$A$213,'DOE - FIPStoPayeeCodeConvTable'!$B$3:$B$213) -> Fredericksburg City | S110: 0 | U110: 0 | V110: 0 | W110: =LOOKUP(A110,'DOE - FIPStoPayeeCodeConvTable'!$A$3:$A$213,'DOE - FIPStoPayeeCodeConvTable'!$E$3:$E$213) -> 0.3441 | X110: 0.3441 | Y110: 0 | Z110: 0
A111: 640 | B111: =LOOKUP(A111,'DOE - FIPStoPayeeCodeConvTable'!$A$3:$A$213,'DOE - FIPStoPayeeCodeConvTable'!$B$3:$B$213) -> Galax City | S111: 0 | U111: 0 | V111: 0 | W111: =LOOKUP(A111,'DOE - FIPStoPayeeCodeConvTable'!$A$3:$A$213,'DOE - FIPStoPayeeCodeConvTable'!$E$3:$E$213) -> 0.3146 | X111: 0.3146 | Y111: 0 | Z111: 0
A112: 650 | B112: =LOOKUP(A112,'DOE - FIPStoPayeeCodeConvTable'!$A$3:$A$213,'DOE - FIPStoPayeeCodeConvTable'!$B$3:$B$213) -> Hampton City | S112: 0 | U112: 0 | V112: 0 | W112: =LOOKUP(A112,'DOE - FIPStoPayeeCodeConvTable'!$A$3:$A$213,'DOE - FIPStoPayeeCodeConvTable'!$E$3:$E$213) -> 0.3223 | X112: 0.3223 | Y112: 0 | Z112: 0
A113: 660 | B113: =LOOKUP(A113,'DOE - FIPStoPayeeCodeConvTable'!$A$3:$A$213,'DOE - FIPStoPayeeCodeConvTable'!$B$3:$B$213) -> Harrisonburg City | S113: 0 | U113: 0 | V113: 0 | W113: =LOOKUP(A113,'DOE - FIPStoPayeeCodeConvTable'!$A$3:$A$213,'DOE - FIPStoPayeeCodeConvTable'!$E$3:$E$213) -> 0.3808 | X113: 0.3808 | Y113: 0 | Z113: 0
A114: 670 | B114: =LOOKUP(A114,'DOE - FIPStoPayeeCodeConvTable'!$A$3:$A$213,'DOE - FIPStoPayeeCodeConvTable'!$B$3:$B$213) -> Hopewell City | S114: 0 | U114: 0 | V114: 0 | W114: =LOOKUP(A114,'DOE - FIPStoPayeeCodeConvTable'!$A$3:$A$213,'DOE - FIPStoPayeeCodeConvTable'!$E$3:$E$213) -> 0.2667 | X114: 0.2667 | Y114: 0 | Z114: 0
A115: 678 | B115: =LOOKUP(A115,'DOE - FIPStoPayeeCodeConvTable'!$A$3:$A$213,'DOE - FIPStoPayeeCodeConvTable'!$B$3:$B$213) -> Lexington City | S115: 0 | U115: 0 | V115: 0 | W115: =LOOKUP(A115,'DOE - FIPStoPayeeCodeConvTable'!$A$3:$A$213,'DOE - FIPStoPayeeCodeConvTable'!$E$3:$E$213) -> 0.3302 | X115: 0.3302 | Y115: 0 | Z115: 0
A116: 680 | B116: =LOOKUP(A116,'DOE - FIPStoPayeeCodeConvTable'!$A$3:$A$213,'DOE - FIPStoPayeeCodeConvTable'!$B$3:$B$213) -> Lynchburg City | S116: 0 | U116: 0 | V116: 0 | W116: =LOOKUP(A116,'DOE - FIPStoPayeeCodeConvTable'!$A$3:$A$213,'DOE - FIPStoPayeeCodeConvTable'!$E$3:$E$213) -> 0.2736 | X116: 0.2736 | Y116: 0 | Z116: 0
A117: 683 | B117: =LOOKUP(A117,'DOE - FIPStoPayeeCodeConvTable'!$A$3:$A$213,'DOE - FIPStoPayeeCodeConvTable'!$B$3:$B$213) -> Manassas City | S117: 0 | U117: 0 | V117: 0 | W117: =LOOKUP(A117,'DOE - FIPStoPayeeCodeConvTable'!$A$3:$A$213,'DOE - FIPStoPayeeCodeConvTable'!$E$3:$E$213) -> 0.4168 | X117: 0.4168 | Y117: 0 | Z117: 0
A118: 685 | B118: =LOOKUP(A118,'DOE - FIPStoPayeeCodeConvTable'!$A$3:$A$213,'DOE - FIPStoPayeeCodeConvTable'!$B$3:$B$213) -> Manassas Park City | S118: 0 | U118: 0 | V118: 0 | W118: =LOOKUP(A118,'DOE - FIPStoPayeeCodeConvTable'!$A$3:$A$213,'DOE - FIPStoPayeeCodeConvTable'!$E$3:$E$213) -> 0.4273 | X118: 0.4273 | Y118: 0 | Z118: 0
A119: 690 | B119: =LOOKUP(A119,'DOE - FIPStoPayeeCodeConvTable'!$A$3:$A$213,'DOE - FIPStoPayeeCodeConvTable'!$B$3:$B$213) -> Martinsville City | S119: 0 | U119: 0 | V119: 0 | W119: =LOOKUP(A119,'DOE - FIPStoPayeeCodeConvTable'!$A$3:$A$213,'DOE - FIPStoPayeeCodeConvTable'!$E$3:$E$213) -> 0.3321 | X119: 0.3321 | Y119: 0 | Z119: 0
A120: 700 | B120: =LOOKUP(A120,'DOE - FIPStoPayeeCodeConvTable'!$A$3:$A$213,'DOE - FIPStoPayeeCodeConvTable'!$B$3:$B$213) -> Newport News City | S120: 0 | U120: 0 | V120: 0 | W120: =LOOKUP(A120,'DOE - FIPStoPayeeCodeConvTable'!$A$3:$A$213,'DOE - FIPStoPayeeCodeConvTable'!$E$3:$E$213) -> 0.2773 | X120: 0.2773 | Y120: 0 | Z120: 0
A121: 710 | B121: =LOOKUP(A121,'DOE - FIPStoPayeeCodeConvTable'!$A$3:$A$213,'DOE - FIPStoPayeeCodeConvTable'!$B$3:$B$213) -> Norfolk City | S121: 0 | U121: 0 | V121: 0 | W121: =LOOKUP(A121,'DOE - FIPStoPayeeCodeConvTable'!$A$3:$A$213,'DOE - FIPStoPayeeCodeConvTable'!$E$3:$E$213) -> 0.2455 | X121: 0.2455 | Y121: 0 | Z121: 0
A122: 720 | B122: =LOOKUP(A122,'DOE - FIPStoPayeeCodeConvTable'!$A$3:$A$213,'DOE - FIPStoPayeeCodeConvTable'!$B$3:$B$213) -> Norton City | S122: 0 | U122: 0 | V122: 0 | W122: =LOOKUP(A122,'DOE - FIPStoPayeeCodeConvTable'!$A$3:$A$213,'DOE - FIPStoPayeeCodeConvTable'!$E$3:$E$213) -> 0.3254 | X122: 0.3254 | Y122: 0 | Z122: 0
A123: 730 | B123: =LOOKUP(A123,'DOE - FIPStoPayeeCodeConvTable'!$A$3:$A$213,'DOE - FIPStoPayeeCodeConvTable'!$B$3:$B$213) -> Petersburg City | S123: 0 | U123: 0 | V123: 0 | W123: =LOOKUP(A123,'DOE - FIPStoPayeeCodeConvTable'!$A$3:$A$213,'DOE - FIPStoPayeeCodeConvTable'!$E$3:$E$213) -> 0.3535 | X123: 0.3535 | Y123: 0 | Z123: 0
A124: 735 | B124: =LOOKUP(A124,'DOE - FIPStoPayeeCodeConvTable'!$A$3:$A$213,'DOE - FIPStoPayeeCodeConvTable'!$B$3:$B$213) -> Poquoson City | S124: 0 | U124: 0 | V124: 0 | W124: =LOOKUP(A124,'DOE - FIPStoPayeeCodeConvTable'!$A$3:$A$213,'DOE - FIPStoPayeeCodeConvTable'!$E$3:$E$213) -> 0.2787 | X124: 0.2787 | Y124: 0 | Z124: 0
A125: 740 | B125: =LOOKUP(A125,'DOE - FIPStoPayeeCodeConvTable'!$A$3:$A$213,'DOE - FIPStoPayeeCodeConvTable'!$B$3:$B$213) -> Portsmouth City | S125: 0 | U125: 0 | V125: 0 | W125: =LOOKUP(A125,'DOE - FIPStoPayeeCodeConvTable'!$A$3:$A$213,'DOE - FIPStoPayeeCodeConvTable'!$E$3:$E$213) -> 0.2605 | X125: 0.2605 | Y125: 0 | Z125: 0
A126: 750 | B126: =LOOKUP(A126,'DOE - FIPStoPayeeCodeConvTable'!$A$3:$A$213,'DOE - FIPStoPayeeCodeConvTable'!$B$3:$B$213) -> Radford City | S126: 0 | U126: 0 | V126: 0 | W126: =LOOKUP(A126,'DOE - FIPStoPayeeCodeConvTable'!$A$3:$A$213,'DOE - FIPStoPayeeCodeConvTable'!$E$3:$E$213) -> 0.2035 | X126: 0.2035 | Y126: 0 | Z126: 0
A127: 760 | B127: =LOOKUP(A127,'DOE - FIPStoPayeeCodeConvTable'!$A$3:$A$213,'DOE - FIPStoPayeeCodeConvTable'!$B$3:$B$213) -> Richmond City | S127: 0 | U127: 0 | V127: 0 | W127: =LOOKUP(A127,'DOE - FIPStoPayeeCodeConvTable'!$A$3:$A$213,'DOE - FIPStoPayeeCodeConvTable'!$E$3:$E$213) -> 0.3691 | X127: 0.3691 | Y127: 0 | Z127: 0
A128: 770 | B128: =LOOKUP(A128,'DOE - FIPStoPayeeCodeConvTable'!$A$3:$A$213,'DOE - FIPStoPayeeCodeConvTable'!$B$3:$B$213) -> Roanoke City | S128: 0 | U128: 0 | V128: 0 | W128: =LOOKUP(A128,'DOE - FIPStoPayeeCodeConvTable'!$A$3:$A$213,'DOE - FIPStoPayeeCodeConvTable'!$E$3:$E$213) -> 0.3072 | X128: 0.3072 | Y128: 0 | Z128: 0
A129: 775 | B129: =LOOKUP(A129,'DOE - FIPStoPayeeCodeConvTable'!$A$3:$A$213,'DOE - FIPStoPayeeCodeConvTable'!$B$3:$B$213) -> Salem City | S129: 0 | U129: 0 | V129: 0 | W129: =LOOKUP(A129,'DOE - FIPStoPayeeCodeConvTable'!$A$3:$A$213,'DOE - FIPStoPayeeCodeConvTable'!$E$3:$E$213) -> 0.3513 | X129: 0.3513 | Y129: 0 | Z129: 0
A130: 790 | B130: =LOOKUP(A130,'DOE - FIPStoPayeeCodeConvTable'!$A$3:$A$213,'DOE - FIPStoPayeeCodeConvTable'!$B$3:$B$213) -> Staunton City | S130: 0 | U130: 0 | V130: 0 | W130: =LOOKUP(A130,'DOE - FIPStoPayeeCodeConvTable'!$A$3:$A$213,'DOE - FIPStoPayeeCodeConvTable'!$E$3:$E$213) -> 0.2699 | X130: 0.2699 | Y130: 0 | Z130: 0
A131: 800 | B131: =LOOKUP(A131,'DOE - FIPStoPayeeCodeConvTable'!$A$3:$A$213,'DOE - FIPStoPayeeCodeConvTable'!$B$3:$B$213) -> Suffolk City | S131: 0 | U131: 0 | V131: 0 | W131: =LOOKUP(A131,'DOE - FIPStoPayeeCodeConvTable'!$A$3:$A$213,'DOE - FIPStoPayeeCodeConvTable'!$E$3:$E$213) -> 0.2432 | X131: 0.2432 | Y131: 0 | Z131: 0
A132: 810 | B132: =LOOKUP(A132,'DOE - FIPStoPayeeCodeConvTable'!$A$3:$A$213,'DOE - FIPStoPayeeCodeConvTable'!$B$3:$B$213) -> Virginia Beach City | S132: 0 | U132: 0 | V132: 0 | W132: =LOOKUP(A132,'DOE - FIPStoPayeeCodeConvTable'!$A$3:$A$213,'DOE - FIPStoPayeeCodeConvTable'!$E$3:$E$213) -> 0.3569 | X132: 0.3569 | Y132: 0 | Z132: 0
A133: 820 | B133: =LOOKUP(A133,'DOE - FIPStoPayeeCodeConvTable'!$A$3:$A$213,'DOE - FIPStoPayeeCodeConvTable'!$B$3:$B$213) -> Waynesboro City | S133: =SUM(C133:R133) -> 0 | U133: 0 | V133: =SUM(S133)-SUM(U133) -> 0 | W133: =LOOKUP(A133,'DOE - FIPStoPayeeCodeConvTable'!$A$3:$A$213,'DOE - FIPStoPayeeCodeConvTable'!$E$3:$E$213) -> 0.3843 | X133: 0.3843 | Y133: 0 | Z133: 0
A134: 830 | B134: =LOOKUP(A134,'DOE - FIPStoPayeeCodeConvTable'!$A$3:$A$213,'DOE - FIPStoPayeeCodeConvTable'!$B$3:$B$213) -> Williamsburg City | S134: 0 | U134: 0 | V134: 0 | W134: =LOOKUP(A134,'DOE - FIPStoPayeeCodeConvTable'!$A$3:$A$213,'DOE - FIPStoPayeeCodeConvTable'!$E$3:$E$213) -> 0.4553 | X134: =$X$1*W134 -> 0.4553 | Y134: =ROUND(X134*V134,2) -> 0 | Z134: =SUM(V134)-SUM(Y134) -> 0
A135: 840 | B135: =LOOKUP(A135,'DOE - FIPStoPayeeCodeConvTable'!$A$3:$A$213,'DOE - FIPStoPayeeCodeConvTable'!$B$3:$B$213) -> Winchester City | S135: 0 | U135: 0 | V135: 0 | W135: =LOOKUP(A135,'DOE - FIPStoPayeeCodeConvTable'!$A$3:$A$213,'DOE - FIPStoPayeeCodeConvTable'!$E$3:$E$213) -> 0.4587 | X135: 0.4587 | Y135: 0 | Z135: 0

Sheet TFC Covid 19 Rate Adj (hidden)
A1: FY | B1: ='DOE - FIPStoPayeeCodeConvTable'!G1 -> 2021 | C1: MEDICAID ADJUSTMENTS--TFC PAYMENTS TO PROVIDERS COVID 19 | O1: ="Extended to be paided in this SFY = " & A1 -> Extended to be paided in this SFY = FY | T1: xx | U1: 0.562 | V1: 0.438 | W1: (POOL) | X1: 1
U2: FEDERAL | V2: STATE/ | W2: (RATE) | X2: Factor
A3: FIPS | S3: Grand | U3: MEDICAID | V3: LOCAL | W3: LOCAL | Y3: LOCAL | Z3: STATE
A4: CODE | B4: LOCALITY | C4: =TEXT("7/1/" & $B$1-1,"mmm-yyyy") -> Jul-2020 | D4: =TEXT("8/1/" & $B$1-1,"mmm-yyyy") -> Aug-2020 | E4: =TEXT("9/1/" & $B$1-1,"mmm-yyyy") -> Sep-2020 | F4: =TEXT("10/1/" & $B$1-1,"mmm-yyyy") -> Oct-2020 | G4: =TEXT("11/1/" & $B$1-1,"mmm-yyyy") -> Nov-2020 | H4: =TEXT("12/1/" & $B$1-1,"mmm-yyyy") -> Dec-2020 | I4: =TEXT("1/1/" & $B$1,"mmm-yyyy") -> Jan-2021 | J4: =TEXT("2/1/" & $B$1,"mmm-yyyy") -> Feb-2021 | K4: =TEXT("3/1/" & $B$1,"mmm-yyyy") -> Mar-2021 | L4: =TEXT("4/1/" & $B$1,"mmm-yyyy") -> Apr-2021 | M4: =TEXT("5/1/" & $B$1,"mmm-yyyy") -> May-2021 | N4: =TEXT("6/1/" & $B$1,"mmm-yyyy") -> Jun-2021 | O4: =TEXT("7/1/" & $B$1,"mmm-yyyy") -> Jul-2021 | P4: =TEXT("8/1/" & $B$1,"mmm-yyyy") -> Aug-2021 | Q4: =TEXT("9/1/" & $B$1,"mmm-yyyy") -> Sep-2021 | R4: =TEXT("10/1/" & $B$1,"mmm-yyyy") -> Oct-2021 | S4: Total | U4: RATE/Share | V4: SHARE | W4: MATCH Rate | Y4: MATCH | Z4: SHARE
